Workbook

Sheet ACS_Notes (hidden)
A1: NOTES:
A4: Data are based on a sample and are subject to sampling variability. The degree of uncertainty for an estimate arising from sampling variability is represented through the use of a margin of error. The value shown here is the 90 percent margin of error. The margin of error can be interpreted roughly as providing a 90 percent probability that the interval defined by the estimate minus the margin of error and the estimate plus the margin of error (the lower and upper confidence bounds) contains the true value. In addition to sampling variability, the ACS estimates are subject to nonsampling error (for a discussion of nonsampling variability, see Accuracy of the Data). The effect of nonsampling error is not represented in these tables.
A8: In addition to sampling variability, the ACS estimates are subject to nonsampling error (for a discussion of nonsampling variability, see Accuracy of the Data. The link is located at the end of this worksheet.). The effect of nonsampling error is not represented in these tables.
A11: While the 2005-2009 American Community Survey (ACS) data generally reflect the November 2008 Office of Management and Budget (OMB) definitions of metropolitan and micropolitan statistical areas; in certain instances the names, codes, and boundaries of the principal cities shown in ACS tables may differ from the OMB definitions due to differences in the effective dates of the geographic entities.
A15: Estimates of urban and rural population, housing units, and characteristics reflect boundaries of urban areas defined based on Census 2000 data. Boundaries for urban areas have not been updated since Census 2000. As a result, data for urban and rural areas from the ACS do not necessarily reflect the results of ongoing urbanization.
A17: Explanation of Symbols:
A19: 1. An '**' entry in the margin of error column indicates that either no sample observations or too few sample observations were available to compute a standard error and thus the margin of error. A statistical test is not appropriate.
A21: 2. An '-' entry in the estimate column indicates that either no sample observations or too few sample observations were available to compute an estimate, or a ratio of medians cannot be calculated because one or both of the median estimates falls in the lowest interval or upper interval of an open-ended distribution.
A23: 3. An '-' following a median estimate means the median falls in the lowest interval of an open-ended distribution.
A24: 4. An '+' following a median estimate means the median falls in the upper interval of an open-ended distribution.
A25: 5. An '***' entry in the margin of error column indicates that the median falls in the lowest interval or upper interval of an open-ended distribution. A statistical test is not appropriate.
A26: 6. An '*****' entry in the margin of error column indicates that the estimate is controlled. A statistical test for sampling variability is not appropriate.

Sheet StartInstruction
A1: Demographic Profiles for New Hampshire and its Counties
A3: To view or print a Demographic Profile follow the steps below
A6: Step 1. | C6: Select the municipality you wish to
C7: Profile from the drop down box below.
A12: Step 2. | C12: Click one of the profile topic buttons below to review or print
C13: the information for the selected geography.
C14: Don't forget to adjust the axis on charts as necessary.
O29: Updated: | Q29: 2023-12-07
O31: Next Update: | Q31: Spring 2024 Annual Employment Date

Sheet PopulationCharacteristics (hidden)
B2: =CntyDataLink!$A35 -> Grafton County
H3: Land Area: | I3: =((CntyDataLink!F35*10.764)/43560)/640 -> 1713.346134 | K3: Water Area: | L3: =((CntyDataLink!G35*10.764)/43560)/640 -> 36.7480726
B4: POPULATION CHARACTERISTICS
B19: Population | C19: ="Source: US Census; Office of Planning and Devlopment, NH BEA; "& L20&", "&P20&", and "&S20&" American Community Survey Table B01001" -> Source: US Census; Office of Planning and Devlopment, NH BEA; 2008-2012, 2013-2017, and 2018-2022 American Community Survey Table B01001 | N19: Population by Age | P19: ="Source: "& L20&", "&P20&", and "&S20&" American Community Survey Tables B01001 and B01002" -> Source: 2008-2012, 2013-2017, and 2018-2022 American Community Survey Tables B01001 and B01002
L20: 2008-2012 | P20: 2013-2017 | S20: 2018-2022
C21: 1990 | D21: 2000 | E21: 2010 | F21: 2020 | G21: 2018-2022 | H21: 2025 | I21: 2030 | L21: Estimate | N21: Margin of Error | O21: Percent of Population | P21: Estimate | Q21: Margin of Error | R21: Percent of Population | S21: Estimate | T21: Margin of Error | U21: Percent of Population | V21: Percent Change | W21: Statistically Significant Change
C22: =CntyDataLink!$F$20 -> 74929 | D22: =CntyDataLink!$G$20 -> 81743 | E22: =CntyDataLink!$H$20 -> 89118 | F22: =CntyDataLink!$I$20 -> 91118 | G22: =CntyDataLink!$B$132 -> 1372175 | H22: =CntyDataLink!$J$20 -> 94984 | I22: =CntyDataLink!$K$20 -> 98030 | K22: Under 15 yrs. | L22: =CntyDataLinkPrior10YearEstimate!$D$132 -> 235048 | N22: =CntyDataLinkPrior10YearEstimate!$E$132 -> 2140.27872 | O22: =L22/SUM($L$22:$L$29) -> 0.1786199827 | P22: =CntyDataLinkPrior5YearEstimates!$D$132 -> 216135 | Q22: =CntyDataLinkPrior5YearEstimates!$E$132 -> 1757.031872 | R22: =P22/SUM($P$22:$P$29) -> 0.1628131914 | S22: =CntyDataLink!$D$132 -> 211268 | T22: =CntyDataLink!$E$132 -> 2321.977175 | U22: =S22/SUM($S$22:$S$29) -> 0.1539657842 | V22: =(S22-P22)/P22 -> -0.02251833345 | W22: =StatisticallySignificantCalcs!$A3 -> Y
K23: 15 to 24 yrs. | L23: =CntyDataLinkPrior10YearEstimate!$F$132 -> 179443 | N23: =CntyDataLinkPrior10YearEstimate!$G$132 -> 1753.697807 | O23: 0.1363640854 | P23: =CntyDataLinkPrior5YearEstimates!$F$132 -> 179024 | Q23: =CntyDataLinkPrior5YearEstimates!$G$132 -> 1776.45743 | R23: =P23/SUM($P$22:$P$29) -> 0.134857699 | S23: =CntyDataLink!$F$132 -> 174801 | T23: =CntyDataLink!$G$132 -> 2121.741502 | U23: 0.127389728 | V23: =(S23-P23)/P23 -> -0.023589016 | W23: =StatisticallySignificantCalcs!$A4 -> Y
B24: Percent Change | K24: 25 to 34 yrs. | L24: =CntyDataLinkPrior10YearEstimate!$H$132 -> 144004 | N24: =CntyDataLinkPrior10YearEstimate!$I$132 -> 475.9401223 | O24: 0.1094329328 | P24: =CntyDataLinkPrior5YearEstimates!$H$132 -> 154495 | Q24: =CntyDataLinkPrior5YearEstimates!$I$132 -> 503.3438189 | R24: 0.1163801513 | S24: =CntyDataLink!$H$132 -> 171559 | T24: =CntyDataLink!$I$132 -> 664.7240029 | U24: 0.1250270556 | V24: 0.1104501764 | W24: =StatisticallySignificantCalcs!$A5 -> Y
D25: =C21&"-2020" -> 1990-2020 | E25: =D21&"-2020" -> 2000-2020 | F25: =E21&"-2020" -> 2010-2020 | G25: =F21&"-2030" -> 2020-2030 | H25: =G21&"-"&H21 -> 2018-2022-2025 | I25: =H21&"-"&I21 -> 2025-2030 | K25: 35 to 44 yrs. | L25: =CntyDataLinkPrior10YearEstimate!$J$132 -> 185779 | N25: =CntyDataLinkPrior10YearEstimate!$K$132 -> 1952.058401 | O25: 0.1411790007 | P25: =CntyDataLinkPrior5YearEstimates!$J$132 -> 159325 | Q25: =CntyDataLinkPrior5YearEstimates!$K$132 -> 2080.457161 | R25: 0.1200185612 | S25: =CntyDataLink!$J$132 -> 160635 | T25: =CntyDataLink!$K$132 -> 2332.674431 | U25: 0.1170659719 | V25: 0.008222187353 | W25: =StatisticallySignificantCalcs!$A6 -> Y
D26: =(D22-C22)/C22 -> 0.09093942265 | E26: 0.09022179269 | F26: 0.02244215534 | G26: 14.05931869 | H26: -0.9307785086 | I26: 0.03206855892 | K26: 45 to 54 yrs. | L26: =CntyDataLinkPrior10YearEstimate!$L$132 -> 223299 | N26: =CntyDataLinkPrior10YearEstimate!$M$132 -> 410.4217343 | O26: 0.1696915673 | P26: =CntyDataLinkPrior5YearEstimates!$L$132 -> 210225 | Q26: =CntyDataLinkPrior5YearEstimates!$M$132 -> 458.4670108 | R26: 0.158361224 | S26: =CntyDataLink!$L$132 -> 187228 | T26: =CntyDataLink!$M$132 -> 508.2302628 | U26: 0.136446153 | V26: -0.1093923178 | W26: =StatisticallySignificantCalcs!$A7 -> Y
K27: 55 to 64 yrs. | L27: =CntyDataLinkPrior10YearEstimate!$N$132 -> 173170 | N27: =CntyDataLinkPrior10YearEstimate!$O$132 -> 1840.286934 | O27: 0.1315970457 | P27: =CntyDataLinkPrior5YearEstimates!$N$132 -> 197914 | Q27: =CntyDataLinkPrior5YearEstimates!$O$132 -> 2137.49386 | R27: 0.149087422 | S27: =CntyDataLink!$N$132 -> 216548 | T27: =CntyDataLink!$O$132 -> 2758.427269 | U27: 0.1578136899 | V27: 0.09415200542 | W27: =StatisticallySignificantCalcs!$A8 -> Y
K28: 65 to 74 yrs. | L28: =CntyDataLinkPrior10YearEstimate!$P$132 -> 94294 | N28: =CntyDataLinkPrior10YearEstimate!$Q$132 -> 1426.887872 | O28: 0.07165682178 | P28: =CntyDataLinkPrior5YearEstimates!$P$132 -> 123021 | Q28: =CntyDataLinkPrior5YearEstimates!$Q$132 -> 1631.921873 | R28: 0.09267097701 | S28: =CntyDataLink!$P$132 -> 154122 | T28: =CntyDataLink!$Q$132 -> 2305.733723 | U28: 0.1123194928 | V28: 0.2528104958 | W28: =StatisticallySignificantCalcs!$A9 -> Y
K29: Over 74 yrs. | L29: =CntyDataLinkPrior10YearEstimate!$R$132 -> 80874 | N29: =CntyDataLinkPrior10YearEstimate!$S$132 -> 1461.854302 | O29: 0.06145856369 | P29: =CntyDataLinkPrior5YearEstimates!$R$132 -> 87364 | Q29: =CntyDataLinkPrior5YearEstimates!$S$132 -> 1446.928816 | R29: 0.06581077406 | S29: =CntyDataLink!$R$132 -> 96014 | T29: =CntyDataLink!$S$132 -> 1862.270389 | U29: 0.06997212455 | V29: 0.09901103429 | W29: =StatisticallySignificantCalcs!$A10 -> Y
K30: Median Age (years) | L30: =CntyDataLinkPrior10YearEstimate!$AX$132 -> 40.7 | N30: =CntyDataLinkPrior10YearEstimate!$AY$132 -> 0.2 | P30: =CntyDataLinkPrior5YearEstimates!$AX132 -> 42.4 | Q30: =CntyDataLinkPrior5YearEstimates!$AY$132 -> 0.1 | S30: =CntyDataLink!$AX$132 -> 43 | T30: =CntyDataLink!$AY$132 -> 0.1
B32: Population By Race | M32: Statistically Significant Change
C34: 2008-2012 | F34: 2013-2017 | I34: 2018-2022 | L34: Statistically Significant Change
C35: Estimate | D35: Margin of Error | F35: Estimate | G35: Margin of Error | I35: Estimate | J35: Margin of Error | L35: 2012-2022 | M35: 2017-2022
B36: White | C36: =CntyDataLinkPrior10YearEstimate!$AL$132 -> 1216365 | D36: =CntyDataLinkPrior10YearEstimate!$AM$132 -> 523 | E36: =IF(C$36="-","-",VALUE(C36/$C$41)) -> 0.9243520268 | F36: =CntyDataLinkPrior5YearEstimates!$AL$132 -> 1211271 | G36: =CntyDataLinkPrior5YearEstimates!$AM$132 -> 462 | H36: =IF(F$36="-","-",VALUE(F36/$F$41)) -> 0.9124431357 | I36: =CntyDataLink!$AL$132 -> 1220505 | J36: =CntyDataLink!$AM$132 -> 1545 | K36: =IF(I$36="-","-",VALUE(I36/$I$41)) -> 0.8894674513 | L36: =StatisticallySignificantCalcs!A20 -> Y | M36: =StatisticallySignificantCalcs!J20 -> Y
B37: Black | C37: =CntyDataLinkPrior10YearEstimate!$AN132 -> 13668 | D37: =CntyDataLinkPrior10YearEstimate!$AO$132 -> 528 | E37: =IF(C$37="-","-",VALUE(C37/$C$41)) -> 0.01038672068 | F37: =CntyDataLinkPrior5YearEstimates!$AN132 -> 15565 | G37: =CntyDataLinkPrior5YearEstimates!$AO$132 -> 783 | H37: =IF(F$37="-","-",VALUE(F37/$F$41)) -> 0.01172502058 | I37: =CntyDataLink!$AN$132 -> 18705 | J37: =CntyDataLink!$AO$132 -> 973 | K37: =IF(I$37="-","-",VALUE(I37/$I$41)) -> 0.01363164319 | L37: =StatisticallySignificantCalcs!A21 -> Y | M37: =StatisticallySignificantCalcs!J21 -> Y
B38: American Indian | C38: =CntyDataLinkPrior10YearEstimate!$AP$132 -> 2258 | D38: =CntyDataLinkPrior10YearEstimate!$AQ$132 -> 273 | E38: =IF(C$38="-","-",VALUE(C38/$C$41)) -> 0.001715921517 | F38: =CntyDataLinkPrior5YearEstimates!$AP$132 -> 1855 | G38: =CntyDataLinkPrior5YearEstimates!$AQ$132 -> 292 | H38: =IF(F$38="-","-",VALUE(F38/$F$41)) -> 0.001397360307 | I38: =CntyDataLink!$AP$132 -> 1452 | J38: =CntyDataLink!$AQ$132 -> 253 | K38: =IF(I$38="-","-",VALUE(I38/$I$41)) -> 0.001058174067 | L38: =StatisticallySignificantCalcs!A22 -> Y | M38: =StatisticallySignificantCalcs!J22 -> Y
B39: Asian &Pacific Is. | C39: =CntyDataLinkPrior10YearEstimate!$AR$132 -> 27940 | D39: =CntyDataLinkPrior10YearEstimate!$AS$132 -> 755.2463174 | E39: =IF(C$39="-","-",VALUE(C39/$C$41)) -> 0.02123243897 | F39: =CntyDataLinkPrior5YearEstimates!$AR$132 -> 32064 | G39: =CntyDataLinkPrior5YearEstimates!$AS$132 -> 809.2465632 | H39: =IF(F$39="-","-",VALUE(F39/$F$41)) -> 0.02415361773 | I39: =CntyDataLink!$AR$132 -> 36909 | J39: =CntyDataLink!$AS$132 -> 953.5711825 | K39: =IF(I$39="-","-",VALUE(I39/$I$41)) -> 0.02689817261 | L39: =StatisticallySignificantCalcs!A23 -> Y | M39: =StatisticallySignificantCalcs!J23 -> Y
B40: Other* | C40: =CntyDataLinkPrior10YearEstimate!$AT$132 -> 19228 | D40: =CntyDataLinkPrior10YearEstimate!$AU$132 -> 1038.786311 | E40: =IF(C$40="-","-",VALUE(C40/$C$41)) -> 0.01461193044 | F40: =CntyDataLinkPrior5YearEstimates!$AT$132 -> 23248 | G40: =CntyDataLinkPrior5YearEstimates!$AU$132 -> 1244.820067 | H40: =IF(F$40="-","-",VALUE(F40/$F$41)) -> 0.01751257813 | I40: =CntyDataLink!$AT$132 -> 38689 | J40: =CntyDataLink!$AU$132 -> 1873.692878 | K40: =IF(I$40="-","-",VALUE(I40/$I$41)) -> 0.02819538324 | L40: =StatisticallySignificantCalcs!A24 -> Y | M40: =StatisticallySignificantCalcs!J24 -> Y
B41: Total Population | C41: =CntyDataLinkPrior10YearEstimate!$B$132 -> 1315911 | D41: =CntyDataLinkPrior10YearEstimate!$C$132 -> ***** | F41: =CntyDataLinkPrior5YearEstimates!$B$132 -> 1327503 | G41: =CntyDataLinkPrior5YearEstimates!$C$132 -> ***** | I41: =CntyDataLink!$B$132 -> 1372175 | J41: =CntyDataLink!$C$132 -> *****
B42: Hispanic | C42: =CntyDataLinkPrior10YearEstimate!$AV132 -> 36452 | D42: =CntyDataLinkPrior10YearEstimate!$AW$132 -> ***** | E42: =IF(C$42="-","-",VALUE(C42/$C$41)) -> 0.02770096154 | F42: =CntyDataLinkPrior5YearEstimates!$AV132 -> 43500 | G42: =CntyDataLinkPrior5YearEstimates!$AW$132 -> ***** | H42: =IF(F$42="-","-",VALUE(F42/$F$41)) -> 0.03276828753 | I42: =CntyDataLink!$AV$132 -> 55915 | J42: =CntyDataLink!$AW$132 -> ***** | K42: =IF(I$42="-","-",VALUE(I42/$I$41)) -> 0.04074917558
B44: * | C44: Other includes population of 2 or more races
B46: ="Source: "& L20&", "&P20&", and "&S20&" American Community Survey Table B03002" -> Source: 2008-2012, 2013-2017, and 2018-2022 American Community Survey Table B03002
C48: Households and Families
D49: 2007-2012 | G49: 2013-2017 | J49: 2018-2022 | N49: =" Percent Change "&L35 -> Percent Change 2012-2022 | P49: =" Percent Change "&M35 -> Percent Change 2017-2022
D50: Estimate | E50: Margin of Error | G50: Estimate | H50: Margin of Error | J50: Estimate | K50: Margin of Error
C51: Total Households | D51: =CntyDataLinkPrior10YearEstimate!$T$132 -> 514869 | E51: =CntyDataLinkPrior10YearEstimate!$U$132 -> 1627 | G51: =CntyDataLinkPrior5YearEstimates!$T$132 -> 521373 | H51: =CntyDataLinkPrior5YearEstimates!$U$132 -> 2113 | J51: =CntyDataLink!$T$132 -> 540498 | K51: =CntyDataLink!$U$132 -> 1974 | N51: =(J51-D51)/D51 -> 0.04977771045 | P51: =(J51-G51)/G51 -> 0.03668199159
C52: Persons per Household | D52: =CntyDataLinkPrior10YearEstimate!$BD$132 -> 2.478537259 | E52: =CntyDataLinkPrior10YearEstimate!$BE$132 -> 0.01 | G52: =CntyDataLinkPrior5YearEstimates!$BD$132 -> 2.46582581 | H52: =CntyDataLinkPrior5YearEstimates!$BE$132 -> 0.03 | J52: =CntyDataLink!$BD$132 -> 2.464567861 | K52: =CntyDataLink!$BE$132 -> 0.01 | N52: =(J52-D52)/D52 -> -0.005636145856 | P52: =(J52-G52)/G52 -> -0.0005101530015
C53: Family Households | D53: =CntyDataLinkPrior10YearEstimate!$V$132 -> 348040 | E53: =CntyDataLinkPrior10YearEstimate!$U$132 -> 1627 | G53: =CntyDataLinkPrior5YearEstimates!$V$132 -> 346476 | H53: =CntyDataLinkPrior5YearEstimates!$U$132 -> 2113 | J53: =CntyDataLink!$V$132 -> 352210 | K53: =CntyDataLink!$U$132 -> 1974 | N53: 0.01198138145 | P53: 0.01654948683
C54: Persons per Family Household | D54: =CntyDataLinkPrior10YearEstimate!$BF$132 -> 3.047827836 | E54: =CntyDataLinkPrior10YearEstimate!$BG$132 -> 0.02171384806 | G54: =CntyDataLinkPrior5YearEstimates!$BF$132 -> 3.051856406 | H54: =CntyDataLinkPrior5YearEstimates!$BG$132 -> 0.02659753391 | J54: =CntyDataLink!$BF$132 -> 3.082726214 | K54: =CntyDataLink!$BG$132 -> 0.02598533889 | N54: 0.01145024604 | P54: 0.01011509217
C55: Married-Couple Family Hh | D55: =CntyDataLinkPrior10YearEstimate!$X$132 -> 279173 | E55: =CntyDataLinkPrior10YearEstimate!$Y$132 -> 2139 | G55: =CntyDataLinkPrior5YearEstimates!$X$132 -> 273886 | H55: =CntyDataLinkPrior5YearEstimates!$Y$132 -> 2671 | J55: =CntyDataLink!$X$132 -> 281942 | K55: =CntyDataLink!$Y$132 -> 2816 | N55: 0.009918580952 | P55: 0.02941369767
C56: Single-Parent Family Hh | D56: =CntyDataLinkPrior10YearEstimate!$Z$132 -> 68867 | E56: =CntyDataLinkPrior10YearEstimate!$AA$132 -> 1758 | G56: =CntyDataLinkPrior5YearEstimates!$Z$132 -> 72590 | H56: =CntyDataLinkPrior5YearEstimates!$AA$132 -> 1982 | J56: =CntyDataLink!$Z$132 -> 70268 | K56: =CntyDataLink!$AA$132 -> 1940 | N56: 0.02034356078 | P56: -0.03198787712
C57: Non-Family Households | D57: =CntyDataLinkPrior10YearEstimate!$AF$132 -> 166829 | E57: =CntyDataLinkPrior10YearEstimate!$AG$132 -> 2174 | G57: =CntyDataLinkPrior5YearEstimates!$AF$132 -> 174897 | H57: =CntyDataLinkPrior5YearEstimates!$AG$132 -> 2379 | J57: =CntyDataLink!$AF$132 -> 188288 | K57: =CntyDataLink!$AG$132 -> 2658 | N57: 0.1286287156 | P57: 0.07656506401
C58: Persons per Non-Family Hh | D58: =CntyDataLinkPrior10YearEstimate!$BH$132 -> 1.290878684 | E58: =CntyDataLinkPrior10YearEstimate!$BI$132 -> 0.02552170032 | G58: =CntyDataLinkPrior5YearEstimates!$BH$132 -> 1.304882302 | H58: =CntyDataLinkPrior5YearEstimates!$BI$132 -> 0.02784341954 | J58: =CntyDataLink!$BH$132 -> 1.308245879 | K58: =CntyDataLink!$BI$132 -> 0.02886119614 | N58: 0.01345377742 | P58: 0.002577685737
B61: As a result of changes in the American Community Survey, direct comparisons between the data should be made with caution.
B63: ="Source: "& L20&", "&P20&", and "&S20&" American Community Survey Table B11001" -> Source: 2008-2012, 2013-2017, and 2018-2022 American Community Survey Table B11001
B64: POPULATION CHARACTERISTICS

Sheet SchoolEnrolEduAttain (hidden)
C2: =CntyDataLink!A50 -> Grafton County
C3: SOCIAL CHARACTERISTICS
C21: School Enrollment | F21: 2008-2012 | I21: 2013-2017 | L21: 2018-2022 | P21: Statistically Significant Change
F22: Estimate | G22: Margin of Error | H22: Percent of Population | I22: Estimate | J22: Margin of Error | K22: Percent of Population | L22: Estimate | M22: Margin of Error | N22: Percent of Population | P22: 2012-2022 | Q22: 2017-2022
C23: Population 3 years and over | F23: =CntyDataLinkPrior10YearEstimate!$B$140 -> 1275668 | G23: =CntyDataLinkPrior10YearEstimate!$C$140 -> 908 | I23: =CntyDataLinkPrior5YearEstimates!$B$140 -> 1290419 | J23: =CntyDataLinkPrior5YearEstimates!$C$140 -> 732 | L23: =CntyDataLink!$B$140 -> 1336082 | M23: =CntyDataLink!$C$140 -> 833 | P23: =StatisticallySignificantCalcs!$A$45 -> Y | Q23: =StatisticallySignificantCalcs!$J$45 -> Y
C24: Population 3 years & over enrolled in school | F24: =CntyDataLinkPrior10YearEstimate!$D$140 -> 332571 | G24: =CntyDataLinkPrior10YearEstimate!$E$140 -> 1908 | H24: =F24/$F$23 -> 0.2607034119 | I24: =CntyDataLinkPrior5YearEstimates!$D$140 -> 316403 | J24: =CntyDataLinkPrior5YearEstimates!$E$140 -> 2088 | K24: =I24/$I$23 -> 0.2451940029 | L24: =CntyDataLink!$D$140 -> 302247 | M24: =CntyDataLink!$E$140 -> 2637 | N24: =L24/$L$23 -> 0.2262188997 | P24: =StatisticallySignificantCalcs!$A$46 -> Y | Q24: =StatisticallySignificantCalcs!$J$46 -> Y
C25: Preprimary (Nursery, Preschool, Kindergarten) | F25: =CntyDataLinkPrior10YearEstimate!$F$140 -> 34659 | G25: =CntyDataLinkPrior10YearEstimate!$G$140 -> 1087.589077 | H25: =F25/$F$23 -> 0.02716929483 | I25: =CntyDataLinkPrior5YearEstimates!$F$140 -> 32841 | J25: =CntyDataLinkPrior5YearEstimates!$G$140 -> 1130.761248 | K25: =I25/$I$23 -> 0.02544987326 | L25: =CntyDataLink!$F$140 -> 31170 | M25: =CntyDataLink!$G$140 -> 1260.301948 | N25: =L25/$L$23 -> 0.02332940643 | P25: =StatisticallySignificantCalcs!$A$47 -> Y | Q25: =StatisticallySignificantCalcs!$J$47 -> N
C26: Nursery school and Preschool | F26: =CntyDataLinkPrior10YearEstimate!$H$140 -> 19421 | G26: =CntyDataLinkPrior10YearEstimate!$I$140 -> 711 | H26: 0.01522418059 | I26: =CntyDataLinkPrior5YearEstimates!$H$140 -> 18156 | J26: =CntyDataLinkPrior5YearEstimates!$I$140 -> 810 | K26: 0.01406984863 | L26: =CntyDataLink!$H$140 -> 17867 | M26: =CntyDataLink!$I$140 -> 925 | N26: 0.01337268222 | P26: =StatisticallySignificantCalcs!$A$48 -> Y | Q26: =StatisticallySignificantCalcs!$J$48 -> N
C27: Kindergarten | F27: =CntyDataLinkPrior10YearEstimate!$J$140 -> 15238 | G27: =CntyDataLinkPrior10YearEstimate!$K$140 -> 823 | H27: 0.01194511425 | I27: =CntyDataLinkPrior5YearEstimates!$J$140 -> 14685 | J27: =CntyDataLinkPrior5YearEstimates!$K$140 -> 789 | K27: 0.01138002463 | L27: =CntyDataLink!$J$140 -> 13303 | M27: =CntyDataLink!$K$140 -> 856 | N27: 0.009956724213 | P27: =StatisticallySignificantCalcs!$A$49 -> Y | Q27: =StatisticallySignificantCalcs!$J$49 -> Y
C28: Elementary through High school | F28: =CntyDataLinkPrior10YearEstimate!$P$140 -> 206789 | G28: =CntyDataLinkPrior10YearEstimate!$Q$140 -> 2148.93206 | H28: 0.162102522 | I28: =CntyDataLinkPrior5YearEstimates!$P$140 -> 189131 | J28: =CntyDataLinkPrior5YearEstimates!$Q$140 -> 1846.579811 | K28: 0.1465655729 | L28: =CntyDataLink!$P$140 -> 183046 | M28: =CntyDataLink!$Q$140 -> 2457.830954 | N28: 0.1370020702 | P28: =StatisticallySignificantCalcs!$A$50 -> Y | Q28: =StatisticallySignificantCalcs!$J$50 -> Y
C29: Elementary school (grades 1-8) | F29: =CntyDataLinkPrior10YearEstimate!$L$140 -> 132395 | G29: =CntyDataLinkPrior10YearEstimate!$M$140 -> 1911.435325 | H29: 0.1037848406 | I29: =CntyDataLinkPrior5YearEstimates!$L$140 -> 121256 | J29: =CntyDataLinkPrior5YearEstimates!$M$140 -> 1497.817412 | K29: 0.09396637836 | L29: =CntyDataLink!$L$140 -> 117702 | M29: =CntyDataLink!$M$140 -> 2195.931921 | N29: 0.08809489238 | P29: =StatisticallySignificantCalcs!$A$51 -> Y | Q29: =StatisticallySignificantCalcs!$J$51 -> Y
C30: High school (grades 9-12) | F30: =CntyDataLinkPrior10YearEstimate!$N$140 -> 74394 | G30: =CntyDataLinkPrior10YearEstimate!$O$140 -> 982 | H30: 0.0583176814 | I30: =CntyDataLinkPrior5YearEstimates!$N$140 -> 67875 | J30: =CntyDataLinkPrior5YearEstimates!$O$140 -> 1080 | K30: 0.05259919453 | L30: =CntyDataLink!$N$140 -> 65344 | M30: =CntyDataLink!$O$140 -> 1104 | N30: 0.04890717785 | P30: =StatisticallySignificantCalcs!$A$52 -> Y | Q30: =StatisticallySignificantCalcs!$J$52 -> Y
C31: College or Graduate School | F31: =CntyDataLinkPrior10YearEstimate!$R$140 -> 91123 | G31: =CntyDataLinkPrior10YearEstimate!$S$140 -> 1691.68555 | H31: 0.07143159505 | I31: =CntyDataLinkPrior5YearEstimates!$R$140 -> 94431 | J31: =CntyDataLinkPrior5YearEstimates!$S$140 -> 1604.127177 | K31: =I31/$I$23 -> 0.07317855673 | L31: =CntyDataLink!$R$140 -> 88031 | M31: =CntyDataLink!$S$140 -> 2333.178519 | N31: 0.06588742308 | P31: =StatisticallySignificantCalcs!$A$53 -> Y | Q31: =StatisticallySignificantCalcs!$J$53 -> Y
C33: ="Source: "&F21&", "& I21&" and "&L21&" American Community Survey Table B14001" -> Source: 2008-2012, 2013-2017 and 2018-2022 American Community Survey Table B14001
C50: Educational Attainment | F50: =F21 -> 2008-2012 | I50: =I21 -> 2013-2017 | L50: =L21 -> 2018-2022 | P50: Statistically Significant Change
F51: Estimate | G51: Margin of Error | H51: Percent of Population | I51: Estimate | J51: Margin of Error | K51: Percent of Population | L51: Estimate | M51: Margin of Error | N51: Percent of Population | P51: =P22 -> 2012-2022 | Q51: =Q22 -> 2017-2022
C52: Population 25 years and over | F52: =CntyDataLinkPrior10YearEstimate!$V$140 -> 901420 | G52: =CntyDataLinkPrior10YearEstimate!$W$140 -> 476 | I52: =CntyDataLinkPrior5YearEstimates!$V$140 -> 932344 | J52: =CntyDataLinkPrior5YearEstimates!$W$140 -> 468 | L52: =CntyDataLink!$V$140 -> 986106 | M52: =CntyDataLink!$W$140 -> 521 | P52: =StatisticallySignificantCalcs!A54 -> Y | Q52: =StatisticallySignificantCalcs!$J$54 -> Y
C53: Less than 9th Grade | F53: =CntyDataLinkPrior10YearEstimate!$X$140 -> 21345 | G53: =CntyDataLinkPrior10YearEstimate!$Y$140 -> 1056.529223 | H53: =F53/$F$52 -> 0.02367930598 | I53: =CntyDataLinkPrior5YearEstimates!$X$140 -> 16647 | J53: =CntyDataLinkPrior5YearEstimates!$Y$140 -> 957.1593389 | K53: =I53/$I$52 -> 0.01785499773 | L53: =CntyDataLink!$X$140 -> 13811 | M53: =CntyDataLink!$Y$140 -> 1029.348823 | N53: =L53/$L$52 -> 0.01400559372 | P53: =StatisticallySignificantCalcs!A55 -> Y | Q53: =StatisticallySignificantCalcs!$J$55 -> Y
C54: 9th to 12th Grade, no Diploma | F54: =CntyDataLinkPrior10YearEstimate!$Z$140 -> 53236 | G54: =CntyDataLinkPrior10YearEstimate!$AA$140 -> 1532.866269 | H54: =F54/$F$52 -> 0.05905793082 | I54: =CntyDataLinkPrior5YearEstimates!$Z$140 -> 47217 | J54: =CntyDataLinkPrior5YearEstimates!$AA$140 -> 1480.516802 | K54: =I54/$I$52 -> 0.05064332478 | L54: =CntyDataLink!$Z$140 -> 41913 | M54: =CntyDataLink!$AA$140 -> 1623.227341 | N54: =L54/$L$52 -> 0.04250354424 | P54: =StatisticallySignificantCalcs!A56 -> Y | Q54: =StatisticallySignificantCalcs!$J$56 -> Y
C55: High School Graduate | F55: =CntyDataLinkPrior10YearEstimate!$AB$140 -> 266108 | G55: =CntyDataLinkPrior10YearEstimate!$AC$140 -> 3080.599455 | H55: 0.2952097801 | I55: =CntyDataLinkPrior5YearEstimates!$AB$140 -> 264372 | J55: =CntyDataLinkPrior5YearEstimates!$AC$140 -> 2916.355602 | K55: 0.2835562839 | L55: =CntyDataLink!$AB$140 -> 269342 | M55: =CntyDataLink!$AC$140 -> 3601.20216 | N55: 0.273136965 | P55: =StatisticallySignificantCalcs!A57 -> Y | Q55: =StatisticallySignificantCalcs!$J$57 -> Y
C56: Some College, No Degree | F56: =CntyDataLinkPrior10YearEstimate!$AD$140 -> 171847 | G56: =CntyDataLinkPrior10YearEstimate!$AE$140 -> 2488.137858 | H56: 0.190640323 | I56: =CntyDataLinkPrior5YearEstimates!$AD$140 -> 176695 | J56: =CntyDataLinkPrior5YearEstimates!$AE$140 -> 2852.896423 | K56: 0.1895169594 | L56: =CntyDataLink!$AD$140 -> 175537 | M56: =CntyDataLink!$AE$140 -> 3463.608379 | N56: 0.1780102748 | P56: =StatisticallySignificantCalcs!A58 -> N | Q56: =StatisticallySignificantCalcs!$J$58 -> N
C57: Associate Degree | F57: =CntyDataLinkPrior10YearEstimate!$AF$140 -> 85948 | G57: =CntyDataLinkPrior10YearEstimate!$AG$140 -> 1909.942669 | H57: 0.09534734086 | I57: =CntyDataLinkPrior5YearEstimates!$AF$140 -> 91327 | J57: =CntyDataLinkPrior5YearEstimates!$AG$140 -> 2142.24415 | K57: 0.09795418858 | L57: =CntyDataLink!$AF$140 -> 101383 | M57: =CntyDataLink!$AG$140 -> 2294.303598 | N57: 0.1028114625 | P57: =StatisticallySignificantCalcs!A59 -> Y | Q57: =StatisticallySignificantCalcs!$J$59 -> Y
C58: Bachelor's Degree | F58: =CntyDataLinkPrior10YearEstimate!$AH$140 -> 189486 | G58: =CntyDataLinkPrior10YearEstimate!$AI$140 -> 2685.714058 | H58: 0.210208338 | I58: =CntyDataLinkPrior5YearEstimates!$AH$140 -> 206061 | J58: =CntyDataLinkPrior5YearEstimates!$AI$140 -> 2628.490441 | K58: 0.2210139176 | L58: =CntyDataLink!$AH$140 -> 230314 | M58: =CntyDataLink!$AI$140 -> 3386.842925 | N58: 0.2335590697 | P58: =StatisticallySignificantCalcs!A60 -> Y | Q58: =StatisticallySignificantCalcs!$J$60 -> Y
C59: Graduate or Professional Degree | F59: =CntyDataLinkPrior10YearEstimate!$AJ$140 -> 58215 | G59: =CntyDataLinkPrior10YearEstimate!$AK$140 -> 1486.751156 | H59: 0.06458143818 | I59: =CntyDataLinkPrior5YearEstimates!$AJ$140 -> 124615 | J59: =CntyDataLinkPrior5YearEstimates!$AK$140 -> 2019.120105 | K59: 0.1336577486 | L59: =CntyDataLink!$AJ$140 -> 146721 | M59: =CntyDataLink!$AK$140 -> 2642.315651 | N59: 0.1487882641 | P59: =StatisticallySignificantCalcs!A61 -> Y | Q59: =StatisticallySignificantCalcs!$J$61 -> Y
C61: Percent of High School Graduate or Higher | H61: =SUM(F55:F59)/F52 -> 0.8559872202 | K61: =SUM(I55:I59)/I52 -> 0.9256990982 | N61: =SUM(L55:L59)/L52 -> 0.9363060361
C62: Percent of Bachelor's Degree or Higher | H62: =SUM(F58:F59)/F52 -> 0.2747897761 | K62: =SUM(I58:I59)/I52 -> 0.3546716663 | N62: =SUM(L58:L59)/L52 -> 0.3823473339
C64: ="Source: "&F21&", "&I21&" and "&L21&" American Community Survey Table B15002" -> Source: 2008-2012, 2013-2017 and 2018-2022 American Community Survey Table B15002 | H64: Data from the American Community Survey are estimates
C66: As a result of changes in the American Community Survey, direct comparisons between the data should be made with caution.
C67: be made with caution.

Sheet HousingCharacteristics (hidden)
B2: =CntyDataLink!$A35 -> Grafton County
B4: HOUSING CHARACTERISTICS
D27: ="Source: "& " "&D69&", "&G69&" and "&J69& " American Community Survey Table B25004; B25024; B25032" -> Source: 2008-2012, 2013-2017 and 2018-2022 American Community Survey Table B25004; B25024; B25032
B28: Units by Tenure & Vacancy
C30: 2008-2012 | F30: 2013-2017 | I30: 2018-2022 | L30: Percent Change | O30: Statistically Significant Change
C31: Estimate | D31: Margin of Error | E31: % | F31: Estimate | G31: Margin of Error | H31: % | I31: Estimate | J31: Margin of Error | K31: % | L31: 2012-2022 | M31: 2017-2022 | O31: =L31 -> 2012-2022 | P31: =M31 -> 2017-2022
B32: Total Units | C32: =CntyDataLinkPrior10YearEstimate!$B$108 -> 611916 | D32: =CntyDataLinkPrior5YearEstimates!$C$108 -> 282 | F32: =CntyDataLinkPrior5YearEstimates!$B$108 -> 620729 | G32: =CntyDataLinkPrior5YearEstimates!$C$108 -> 282 | I32: =CntyDataLink!$B$108 -> 636480 | J32: =CntyDataLink!$C$108 -> 184 | L32: =IF(I32="-","-",(I32-C32)/C32) -> 0.04014276469 | M32: =IF(I32="-","-",(I32-F32)/F32) -> 0.02537500262 | O32: =StatisticallySignificantCalcs!$A62 -> Y | P32: =StatisticallySignificantCalcs!$J62 -> Y
B33: Occupied Units | C33: =CntyDataLinkPrior10YearEstimate!$D$108 -> 514869 | D33: =CntyDataLinkPrior5YearEstimates!$E$108 -> 2113 | E33: =ROUND(C33/C32,2)*100&"% of Total" -> 84% of Total | F33: =CntyDataLinkPrior5YearEstimates!$D$108 -> 521373 | G33: =CntyDataLinkPrior5YearEstimates!$E$108 -> 2113 | H33: =ROUND(F33/F32,2)*100&"% of Total" -> 84% of Total | I33: =CntyDataLink!$D$108 -> 540498 | J33: =CntyDataLink!$E$108 -> 1974 | K33: =ROUND(I33/I32,2)*100&"% of Total" -> 85% of Total | L33: =IF(I33="-","-",(I33-C33)/C33) -> 0.04977771045 | M33: 0.03668199159 | O33: =StatisticallySignificantCalcs!$A63 -> Y | P33: =StatisticallySignificantCalcs!$J63 -> Y
B34: Owner Occupied | C34: =CntyDataLinkPrior10YearEstimate!$F$108 -> 373342 | D34: =CntyDataLinkPrior5YearEstimates!$G$108 -> 2832 | E34: =ROUND(C34/C33,2)*100&"% of Occ." -> 73% of Occ. | F34: =CntyDataLinkPrior5YearEstimates!$F$108 -> 368553 | G34: =CntyDataLinkPrior5YearEstimates!$G$108 -> 2832 | H34: =ROUND(F34/F33,2)*100&"% of Occ." -> 71% of Occ. | I34: =CntyDataLink!$F$108 -> 387149 | J34: =CntyDataLink!$G$108 -> 2619 | K34: =ROUND(I34/I33,2)*100&"% of Occ." -> 72% of Occ. | L34: =IF(I34="-","-",(I34-C34)/C34) -> 0.0369821772 | M34: 0.05045678641 | O34: =StatisticallySignificantCalcs!$A64 -> Y | P34: =StatisticallySignificantCalcs!$J64 -> Y
B35: Renter Occupied | C35: =CntyDataLinkPrior10YearEstimate!$H$108 -> 141527 | D35: =CntyDataLinkPrior5YearEstimates!$I$108 -> 2219 | E35: =ROUND(C35/C33,2)*100&"% of Occ." -> 27% of Occ. | F35: =CntyDataLinkPrior5YearEstimates!$H$108 -> 152820 | G35: =CntyDataLinkPrior5YearEstimates!$I$108 -> 2219 | H35: =ROUND(F35/F33,2)*100&"% of Occ." -> 29% of Occ. | I35: =CntyDataLink!$H$108 -> 153349 | J35: =CntyDataLink!$I$108 -> 1981 | K35: =ROUND(I35/I33,2)*100&"% of Occ." -> 28% of Occ. | L35: =IF(I35="-","-",(I35-C35)/C35) -> 0.08353176426 | M35: 0.003461588797 | O35: =StatisticallySignificantCalcs!$A65 -> Y | P35: =StatisticallySignificantCalcs!$J65 -> N
B36: Vacant Units | C36: =CntyDataLinkPrior10YearEstimate!$J$108 -> 97047 | D36: =CntyDataLinkPrior5YearEstimates!$K$108 -> 2051 | E36: =ROUND(C36/C32,2)*100&"% of Total" -> 16% of Total | F36: =CntyDataLinkPrior5YearEstimates!$J$108 -> 99356 | G36: =CntyDataLinkPrior5YearEstimates!$K$108 -> 2051 | H36: =ROUND(F36/F32,2)*100&"% of Total" -> 16% of Total | I36: =CntyDataLink!$J$108 -> 95982 | J36: =CntyDataLink!$K$108 -> 1935 | K36: =ROUND(I36/I32,2)*100&"% of Total" -> 15% of Total | L36: =IF(I36="-",I36,VALUE((I36-C36)/C36)) -> -0.01097406411 | M36: -0.03395869399 | O36: =StatisticallySignificantCalcs!$A66 -> N | P36: =StatisticallySignificantCalcs!$J66 -> Y
B37: Vacant For Sale | C37: =CntyDataLinkPrior10YearEstimate!$P$108 -> 6769 | D37: =CntyDataLinkPrior5YearEstimates!$Q$108 -> 538 | E37: =ROUND(C37/(C$36),3)*100&"% Vac." -> 7% Vac. | F37: =CntyDataLinkPrior5YearEstimates!$P$108 -> 5192 | G37: =CntyDataLinkPrior5YearEstimates!$Q$108 -> 538 | H37: =ROUND(F37/(F$36),3)*100&"% Vac." -> 5.2% Vac. | I37: =CntyDataLink!$P$108 -> 2866 | J37: =CntyDataLink!$Q$108 -> 477 | K37: =ROUND(I37/(I$36),3)*100&"% Vac." -> 3% Vac. | L37: =IF(I37="-",I37,VALUE((I37-C37)/C37)) -> -0.5765992022 | M37: -0.4479969183 | O37: =StatisticallySignificantCalcs!$A67 -> Y | P37: =StatisticallySignificantCalcs!$J67 -> Y
B38: Vacant For Rent | C38: =CntyDataLinkPrior10YearEstimate!$L$108 -> 8396 | D38: =CntyDataLinkPrior5YearEstimates!$M$108 -> 657 | E38: =ROUND(C38/(C$36),3)*100&"% Vac." -> 8.7% Vac. | F38: =CntyDataLinkPrior5YearEstimates!$L$108 -> 7288 | G38: =CntyDataLinkPrior5YearEstimates!$M$108 -> 657 | H38: =ROUND(F38/(F$36),3)*100&"% Vac." -> 7.3% Vac. | I38: =CntyDataLink!$L$108 -> 6271 | J38: =CntyDataLink!$M$108 -> 787 | K38: =ROUND(I38/(I$36),3)*100&"% Vac." -> 6.5% Vac. | L38: =IF(I38="-",I38,VALUE((I38-C38)/C38)) -> -0.2530967127 | M38: -0.1395444566 | O38: =StatisticallySignificantCalcs!$A68 -> Y | P38: =StatisticallySignificantCalcs!$J68 -> N
B39: Vacant Seasonal | C39: =CntyDataLinkPrior10YearEstimate!$T$108 -> 63842 | D39: =CntyDataLinkPrior5YearEstimates!$U$108 -> 1283 | E39: =ROUND(C39/(C$36),3)*100&"% Vac." -> 65.8% Vac. | F39: =CntyDataLinkPrior5YearEstimates!$T$108 -> 66969 | G39: =CntyDataLinkPrior5YearEstimates!$U$108 -> 1283 | H39: =ROUND(F39/(F$36),3)*100&"% Vac." -> 67.4% Vac. | I39: =CntyDataLink!$T$108 -> 67649 | J39: =CntyDataLink!$U$108 -> 1396 | K39: =ROUND(I39/(I$36),3)*100&"% Vac." -> 70.5% Vac. | L39: =IF(I39="-",I39,VALUE((I39-C39)/C39)) -> 0.05963159049 | M39: 0.01015395183 | O39: =StatisticallySignificantCalcs!$A69 -> Y | P39: =StatisticallySignificantCalcs!$J69 -> N
B41: Data from the American Community Survey are estimates
B44: HOUSING CHARACTERISTICS
D65: ="Source: "& " "&D69&", "&G69&" and "&J69& " American Community Survey Table B25024; B25032" -> Source: 2008-2012, 2013-2017 and 2018-2022 American Community Survey Table B25024; B25032
C67: Units by Type
D69: =C30 -> 2008-2012 | G69: =F30 -> 2013-2017 | J69: =I30 -> 2018-2022 | M69: Percent Change | O69: Statistically Significant Change
D70: Estimate | E70: Margin of Error | F70: % of Total | G70: Estimate | H70: Margin of Error | I70: % of Total | J70: Estimate | K70: Margin of Error | L70: % of Total | M70: =L31 -> 2012-2022 | N70: =M31 -> 2017-2022 | O70: =O31 -> 2012-2022 | P70: =P31 -> 2017-2022
C71: Total Units | D71: =CntyDataLinkPrior10YearEstimate!$B$108 -> 611916 | E71: =CntyDataLinkPrior10YearEstimate!$C$108 -> 594 | G71: =CntyDataLinkPrior5YearEstimates!$B$108 -> 620729 | H71: =CntyDataLinkPrior5YearEstimates!$C$108 -> 282 | J71: =CntyDataLink!$B$108 -> 636480 | K71: =CntyDataLink!$C$108 -> 184 | O71: =StatisticallySignificantCalcs!$A70 -> Y | P71: =StatisticallySignificantCalcs!$J70 -> Y
C72: Single Family Units | D72: =CntyDataLinkPrior10YearEstimate!$AT$108 -> 389227 | E72: =CntyDataLinkPrior10YearEstimate!$AU$108 -> 1890 | F72: =IF(D72="-","-",($D$72/$D$71)) -> 0.636079135 | G72: =CntyDataLinkPrior5YearEstimates!$AT$108 -> 394161 | H72: =CntyDataLinkPrior5YearEstimates!$AU$108 -> 2299 | I72: =IF(G72="-","-",($G$72/$G$71)) -> 0.6349969149 | J72: =CntyDataLink!$AT$108 -> 403000 | K72: =CntyDataLink!$AU$108 -> 2705 | L72: =IF(J72="-","-",($J$72/$J$71)) -> 0.6331699346 | M72: =IF(J72="-","-",($J72-$D72)/$D72) -> 0.03538552053 | N72: =IF(J72="-","-",($J72-$G72)/$G72) -> 0.0224248467 | O72: =StatisticallySignificantCalcs!$A71 -> Y | P72: =StatisticallySignificantCalcs!$J71 -> Y
C73: SF Owner Occ. | D73: =CntyDataLinkPrior10YearEstimate!$AF$108 -> 303896 | E73: =CntyDataLinkPrior10YearEstimate!$AG$108 -> 1931 | G73: =CntyDataLinkPrior5YearEstimates!$AF$108 -> 303561 | H73: =CntyDataLinkPrior5YearEstimates!$AG$108 -> 2951 | J73: =CntyDataLink!$AF$108 -> 317587 | K73: =CntyDataLink!$AG$108 -> 2675 | O73: =StatisticallySignificantCalcs!$A72 -> Y | P73: =StatisticallySignificantCalcs!$J72 -> Y
C74: SF Renter Occ. | D74: =CntyDataLinkPrior10YearEstimate!$AN$108 -> 23423 | E74: =CntyDataLinkPrior10YearEstimate!$AO$108 -> 1064 | G74: =CntyDataLinkPrior5YearEstimates!$AN$108 -> 27273 | H74: =CntyDataLinkPrior5YearEstimates!$AO$108 -> 1068 | J74: =CntyDataLink!$AN$108 -> 22859 | K74: =CntyDataLink!$AO$108 -> 1057 | O74: =StatisticallySignificantCalcs!$A73 -> N | P74: =StatisticallySignificantCalcs!$J73 -> Y
C75: Multi-family Units | D75: =CntyDataLinkPrior10YearEstimate!$AV$108 -> 186536 | E75: =CntyDataLinkPrior10YearEstimate!$AW$108 -> 2933.442858 | F75: =IF(D75="-","-",$D$75/$D$71) -> 0.3048392263 | G75: =CntyDataLinkPrior5YearEstimates!$AV$108 -> 190441 | H75: =CntyDataLinkPrior5YearEstimates!$AW$108 -> 2929.598949 | I75: =IF(G75="-","-",$G$75/$G$71) -> 0.3068021633 | J75: =CntyDataLink!$AV$108 -> 198955 | K75: =CntyDataLink!$AW$108 -> 3296.689855 | L75: =IF(J75="-","-",$J$75/$J$71) -> 0.3125864128 | M75: =IF(J75="-","-",($J75-$D75)/$D75) -> 0.06657696102 | N75: =IF(J75="-","-",($J75-$G75)/$G75) -> 0.04470675957 | O75: =StatisticallySignificantCalcs!$A74 -> Y | P75: =StatisticallySignificantCalcs!$J74 -> Y
C76: MF Owner Occ. | D76: =CntyDataLinkPrior10YearEstimate!$AH$108 -> 43650 | E76: =CntyDataLinkPrior10YearEstimate!$AI$108 -> 1332.102098 | G76: =CntyDataLinkPrior5YearEstimates!$AH$108 -> 40926 | H76: =CntyDataLinkPrior5YearEstimates!$AI$108 -> 1257.068813 | J76: =CntyDataLink!$AH$108 -> 45353 | K76: =CntyDataLink!$AI$108 -> 1671.621369 | O76: =StatisticallySignificantCalcs!$A75 -> N | P76: =StatisticallySignificantCalcs!$J75 -> Y
C77: MF Renter Occ. | D77: =CntyDataLinkPrior10YearEstimate!$AP$108 -> 113575 | E77: =CntyDataLinkPrior10YearEstimate!$AQ$108 -> 2457.357727 | G77: =CntyDataLinkPrior5YearEstimates!$AP$108 -> 121078 | H77: =CntyDataLinkPrior5YearEstimates!$AQ$108 -> 2356.218156 | J77: =CntyDataLink!$AP$108 -> 126869 | K77: =CntyDataLink!$AQ$108 -> 2753.873817 | O77: =StatisticallySignificantCalcs!$A76 -> Y | P77: =StatisticallySignificantCalcs!$J76 -> Y
C78: Mobile Home & Other | D78: =CntyDataLinkPrior10YearEstimate!$AX$108 -> 36153 | E78: =CntyDataLinkPrior10YearEstimate!$AY$108 -> 1018.888119 | F78: =IF(D78="-","-",($D$78/$D$71)) -> 0.05908163866 | G78: =CntyDataLinkPrior5YearEstimates!$AX$108 -> 36127 | H78: =CntyDataLinkPrior5YearEstimates!$AY$108 -> 1088.882455 | I78: =IF(G78="-","-",($G$78/$G$71)) -> 0.05820092182 | J78: =CntyDataLink!$AX$108 -> 34525 | K78: =CntyDataLink!$AY$108 -> 1065.796416 | L78: =IF(J78="-","-",($J$78/$J$71)) -> 0.05424365259 | M78: =IF(J78="-","-",($J78-$D78)/$D78) -> -0.04503084115 | N78: =IF(J78="-","-",($J78-$G78)/$G78) -> -0.04434356575 | O78: =StatisticallySignificantCalcs!$A77 -> Y | P78: =StatisticallySignificantCalcs!$J77 -> Y
B80: Data from the American Community Survey are estimates
B83: Units by Number of Bedrooms
D84: ="Source: "& " "&D69&", "&G69&" and "&J69& " American Community Survey Table B25041" -> Source: 2008-2012, 2013-2017 and 2018-2022 American Community Survey Table B25041
C86: =C30 -> 2008-2012 | G86: =F30 -> 2013-2017 | K86: =I30 -> 2018-2022 | O86: Statistically Significant Change
B87: Bedrooms | C87: Estimate | D87: Margin of Error | E87: % of Total | G87: Estimate | H87: Margin of Error | I87: % of Total | K87: Estimate | L87: Margin of Error | M87: % of Total | O87: =O31 -> 2012-2022 | P87: =P31 -> 2017-2022
B88: No Bedrooms | C88: =CntyDataLinkPrior10YearEstimate!$BR$108 -> 9703 | D88: =CntyDataLinkPrior10YearEstimate!$BS$108 -> 766 | E88: =C88/SUM($C$88:$C$92) -> 0.01585675158 | G88: =CntyDataLinkPrior5YearEstimates!$BR$108 -> 12127 | H88: =CntyDataLinkPrior5YearEstimates!$BS$108 -> 798 | I88: =G88/SUM($G$88:$G$92) -> 0.02024432752 | K88: =CntyDataLink!$BT$108 -> 12498 | L88: =CntyDataLink!$BU$108 -> 920 | M88: =K88/SUM($K$88:$K$92) -> 0.01963612368 | O88: =StatisticallySignificantCalcs!$A78 -> Y | P88: =StatisticallySignificantCalcs!$J78 -> N
B89: 1 Bedroom | C89: =CntyDataLinkPrior10YearEstimate!$BT$108 -> 66974 | D89: =CntyDataLinkPrior10YearEstimate!$BU$108 -> 1616 | E89: =C89/SUM($C$88:$C$92) -> 0.109449663 | G89: =CntyDataLinkPrior5YearEstimates!$BT$108 -> 66476 | H89: =CntyDataLinkPrior5YearEstimates!$BU$108 -> 1479 | I89: =G89/SUM($G$88:$G$92) -> 0.1109723688 | K89: =CntyDataLink!$BV$108 -> 70365 | L89: =CntyDataLink!$BW$108 -> 1841 | M89: =K89/SUM($K$88:$K$92) -> 0.110553356 | O89: =StatisticallySignificantCalcs!$A79 -> Y | P89: =StatisticallySignificantCalcs!$J79 -> Y
B90: 2 Bedrooms | C90: =CntyDataLinkPrior10YearEstimate!$BV$108 -> 187828 | D90: =CntyDataLinkPrior10YearEstimate!$BW$108 -> 2132 | E90: =C90/SUM($C$88:$C$92) -> 0.3069506272 | G90: =CntyDataLinkPrior5YearEstimates!$BV$108 -> 187719 | H90: =CntyDataLinkPrior5YearEstimates!$BW$108 -> 2334 | I90: =G90/SUM($G$88:$G$92) -> 0.3133705712 | K90: =CntyDataLink!$BX$108 -> 189796 | L90: =CntyDataLink!$BY$108 -> 3044 | M90: =K90/SUM($K$88:$K$92) -> 0.2981963298 | O90: =StatisticallySignificantCalcs!$A80 -> Y | P90: =StatisticallySignificantCalcs!$J80 -> N
B91: 3 Bedrooms | C91: =CntyDataLinkPrior10YearEstimate!$BX$108 -> 234199 | D91: =CntyDataLinkPrior10YearEstimate!$BY$108 -> 2547 | E91: =C91/SUM($C$88:$C$92) -> 0.3827306362 | G91: =CntyDataLinkPrior5YearEstimates!$BX$108 -> 236923 | H91: =CntyDataLinkPrior5YearEstimates!$BY$108 -> 2464 | I91: =G91/SUM($G$88:$G$92) -> 0.3955097557 | K91: =CntyDataLink!$BZ$108 -> 240436 | L91: =CntyDataLink!$CA$108 -> 3110 | M91: =K91/SUM($K$88:$K$92) -> 0.3777589241 | O91: =StatisticallySignificantCalcs!$A81 -> Y | P91: =StatisticallySignificantCalcs!$J81 -> N
B92: 4+ Bedrooms | C92: =CntyDataLinkPrior10YearEstimate!$BZ$108 -> 113212 | D92: =CntyDataLinkPrior10YearEstimate!$CA$108 -> 1873.91035 | E92: =C92/SUM($C$88:$C$92) -> 0.185012322 | G92: =CntyDataLinkPrior5YearEstimates!$BZ$108 -> 95787 | H92: =CntyDataLinkPrior5YearEstimates!$CA$108 -> 1695 | I92: =G92/SUM($G$88:$G$92) -> 0.1599029768 | K92: =CntyDataLink!$CB$108 -> 123385 | L92: =CntyDataLink!$CC$108 -> 2412.746153 | M92: =K92/SUM($K$88:$K$92) -> 0.1938552665 | O92: =StatisticallySignificantCalcs!$A82 -> Y | P92: =StatisticallySignificantCalcs!$J82 -> Y
B94: As a result of changes in the American Community Survey, direct comparisons between the 2009-2013 and 2018-2022 data should be made with caution.
B95: Data from the American Community Survey are estimates
B97: Units by Year Built
B98: ="Source: "&K86& " American Community Survey Table B25034" -> Source: 2018-2022 American Community Survey Table B25034
D100: Year Built | G100: Units | I100: % of Total | K100: Margin of Error
F101: 2020 or later | G101: =CntyDataLink!$AZ$108 -> 691 | I101: =G101/SUM($G$101:$G$110) -> 0.001085658622 | K101: =CntyDataLink!$BA$108 -> 296
F102: 2010 through 2019 | G102: =CntyDataLink!$BB$108 -> 31709 | I102: 0.04981931875 | K102: =CntyDataLink!$BC$108 -> 1342
F103: 2000 through 2009 | G103: =CntyDataLink!$BD$108 -> 73390 | I103: 0.1153060583 | K103: =CntyDataLink!$BE$108 -> 1991
F104: 1990 through 1999 | G104: =CntyDataLink!$BF$108 -> 66653 | I104: 0.1047212795 | K104: =CntyDataLink!$BG$108 -> 1850
F105: 1980 through 1989 | G105: =CntyDataLink!$BH$108 -> 123115 | I105: 0.1934310583 | K105: =CntyDataLink!$BI$108 -> 2522
F106: 1970 through 1979 | G106: =CntyDataLink!$BJ$108 -> 95004 | I106: 0.1492647059 | K106: =CntyDataLink!$BK$108 -> 2008
F107: 1960 through 1969 | G107: =CntyDataLink!$BL$108 -> 54907 | I107: 0.0862666541 | K107: =CntyDataLink!$BM$108 -> 1705
F108: 1950 through 1959 | G108: =CntyDataLink!$BN$108 -> 43168 | I108: 0.06782302665 | K108: =CntyDataLink!$BO$108 -> 1859
F109: 1940 through 1949 | G109: =CntyDataLink!$BP$108 -> 22789 | I109: 0.03580473856 | K109: =CntyDataLink!$BQ$108 -> 1306
F110: 1939 and earlier | G110: =CntyDataLink!$BR$108 -> 125054 | I110: 0.1964775013 | K110: =CntyDataLink!$BS$108 -> 2093
B112: Data from the American Community Survey are estimates

Sheet BuildingPermitsSince2000 (hidden)
B2: =CntyDataLink!A35 -> Grafton County
B4: HOUSING CHARACTERISTICS
B35: Housing Units Authorized by Permit | F35: Source: New Hampshire Office of Planning and Development, NH BEA
B37: Year | C37: 2000 | D37: =C37+1 -> 2001 | E37: =D37+1 -> 2002 | F37: 2003 | G37: 2004 | H37: 2005 | I37: 2006 | J37: 2007 | K37: 2008 | L37: 2009 | M37: 2010 | N37: 2011 | O37: 2012 | P37: 2013 | Q37: 2014 | R37: 2015 | S37: 2016 | T37: 2017 | U37: 2018 | V37: 2019 | W37: 2020 | X37: 2021 | Y37: Total
B38: Single Family | C38: =CntyDataLink!$BU$20 -> 331 | D38: =CntyDataLink!$BX$20 -> 407 | E38: =CntyDataLink!$CA$20 -> 482 | F38: =CntyDataLink!$CD$20 -> 477 | G38: =CntyDataLink!$CG$20 -> 552 | H38: =CntyDataLink!$CJ$20 -> 501 | I38: =CntyDataLink!$CM$20 -> 385 | J38: =CntyDataLink!$CO$20 -> 28 | K38: =CntyDataLink!$CS$20 -> 137 | L38: =CntyDataLink!$CV$20 -> 138 | M38: =CntyDataLink!$CY$20 -> 161 | N38: =CntyDataLink!$DB$20 -> 128 | O38: =CntyDataLink!$DE$20 -> 70 | P38: =CntyDataLink!$DH$20 -> 113 | Q38: =CntyDataLink!$DK$20 -> 102 | R38: =CntyDataLink!$DN$20 -> 107 | S38: =CntyDataLink!$DQ$20 -> 135 | T38: =CntyDataLink!$DT$20 -> 140 | U38: =CntyDataLink!$DW$20 -> 140 | V38: =CntyDataLink!$DZ$20 -> 160 | W38: =CntyDataLink!$EC$20 -> 204 | X38: =CntyDataLink!$EI$20 -> 253 | Y38: =SUM(C38:X38) -> 5151
B39: Multi-family | C39: =CntyDataLink!$BV$20 -> 110 | D39: =CntyDataLink!$BY$20 -> 81 | E39: =CntyDataLink!$CB$20 -> 183 | F39: =CntyDataLink!$CE$20 -> 270 | G39: =CntyDataLink!$CH$20 -> 60 | H39: =CntyDataLink!$CK$20 -> 200 | I39: =CntyDataLink!$CN$20 -> 222 | J39: =CntyDataLink!$CP$20 -> 272 | K39: =CntyDataLink!$CT$20 -> 128 | L39: =CntyDataLink!$CW$20 -> 141 | M39: =CntyDataLink!$CZ$20 -> 275 | N39: =CntyDataLink!$DC$20 -> 53 | O39: =CntyDataLink!$DF$20 -> 61 | P39: =CntyDataLink!$DI$20 -> 42 | Q39: =CntyDataLink!$DL$20 -> 139 | R39: =CntyDataLink!$DO$20 -> 52 | S39: =CntyDataLink!$DR$20 -> 37 | T39: =CntyDataLink!$DU$20 -> 130 | U39: =CntyDataLink!$DX$20 -> 180 | V39: =CntyDataLink!$EA$20 -> 149 | W39: =CntyDataLink!$ED$20 -> 385 | X39: =CntyDataLink!$EJ$20 -> 123 | Y39: =SUM(C39:X39) -> 3293
B40: Manufactured | C40: =CntyDataLink!$BW$20 -> 80 | D40: =CntyDataLink!$BZ$20 -> 65 | E40: =CntyDataLink!$CC$20 -> 75 | F40: =CntyDataLink!$CF$20 -> 59 | G40: =CntyDataLink!$CI$20 -> 71 | H40: =CntyDataLink!$CL$20 -> 80 | I40: =CntyDataLink!$CO$20 -> 28 | J40: =CntyDataLink!$CR$20 -> 35 | K40: =CntyDataLink!$CU$20 -> 24 | L40: =CntyDataLink!$CX$20 -> 10 | M40: =CntyDataLink!$DA$20 -> 3 | N40: =CntyDataLink!$DD$20 -> -1 | O40: =CntyDataLink!$DG$20 -> 4 | P40: =CntyDataLink!$DJ$20 -> 12 | Q40: =CntyDataLink!$DM$20 -> 3 | R40: =CntyDataLink!$DP$20 -> 12 | S40: =CntyDataLink!$DR$20 -> 37 | T40: =CntyDataLink!$DV$20 -> 18 | U40: =CntyDataLink!$DY$20 -> 17 | V40: =CntyDataLink!$EB$20 -> 5 | W40: =CntyDataLink!$EE$20 -> 29 | X40: =CntyDataLink!$EK$20 -> 21 | Y40: =SUM(C40:X40) -> 687
B41: Total | C41: =SUM(C38:C40) -> 521 | D41: =SUM(D38:D40) -> 553 | E41: 740 | F41: 806 | G41: 683 | H41: 781 | I41: 635 | J41: 335 | K41: 289 | L41: 289 | M41: 439 | N41: 180 | O41: 135 | P41: 167 | Q41: 244 | R41: 171 | S41: 209 | T41: 288 | U41: =SUM(U38:U40) -> 337 | V41: =SUM(V38:V40) -> 314 | W41: =SUM(W38:W40) -> 618 | X41: =SUM(X38:X40) -> 397 | Y41: =SUM(Y38:Y40) -> 9131

Sheet EmploymentAndWages (hidden)
B2: =CntyDataLink!A35 -> Grafton County
B4: EMPLOYMENT CHARACTERISTICS
B29: Annual Average Covered Private Employment
C30: Source: NH Department of Employment Security, Covered Private Employment by location of employment
C31: 2012 | D31: 2013 | E31: 2014 | F31: 2015 | G31: 2016 | H31: 2017 | I31: 2018 | J31: 2019 | K31: 2020 | L31: 2021 | M31: =L31+1 -> 2022 | N31: Total Change
B32: Goods Producing | C32: 90404 | D32: 90890 | E32: 92176 | F32: 93968 | G32: 96138 | H32: 97995 | I32: 100089 | J32: 101907 | K32: 97843 | L32: 99578 | M32: =IF((CntyDataLink!$FQ$25)="n",NA(),IF(VALUE(CntyDataLink!$FQ$25)="",NA(),VALUE(CntyDataLink!$FQ$25))) -> 6756 | N32: =$M32-C32 -> -83648
B33: Service Providing | C33: 436858 | D33: 443216 | E33: 449265 | F33: 458308 | G33: 466699 | H33: 471029 | I33: 473955 | J33: 478487 | K33: 444981 | L33: 467996 | M33: =IF((CntyDataLink!$FR$25)="n",NA(),IF(VALUE(CntyDataLink!$FR$25)="",NA(),VALUE(CntyDataLink!$FR$25))) -> 40292 | N33: =$M33-C33 -> -396566
B34: Total Private Emp | C34: 527263 | D34: 534106 | E34: 541441 | F34: 552276 | G34: 562836 | H34: 569023 | I34: 574044 | J34: 580394 | K34: 542824 | L34: 567574 | M34: =IF((CntyDataLink!$FPH$25)="n",NA(),IF(VALUE(CntyDataLink!$FP$25)="",NA(),VALUE(CntyDataLink!$FP$25))) -> 47047 | N34: =$M34-C34 -> -480216
B36: % Change from prior Year | D36: 12-13 | E36: 13-14 | F36: 14-15 | G36: 15-16 | H36: 16-17 | I36: 17-18 | J36: 18-19 | K36: 19-20 | L36: 20-21 | M36: 21-22 | N36: Total % Change
B37: Goods Producing | D37: =(D32-C32)/C32 -> 0.005375868324 | E37: 0.01414897128 | F37: 0.01944106926 | G37: 0.02309296782 | H37: 0.01931598327 | I37: =(I32-H32)/H32 -> 0.02136843717 | J37: 0.01816383419 | K37: -0.03987949797 | L37: 0.01773248981 | M37: -0.9321536886 | N37: =N32/C32 -> -0.9252687934
B38: Service Providing | D38: 0.01455392828 | E38: 0.013647973 | F38: 0.02012843199 | G38: =(G33-F33)/F33 -> 0.01830864833 | H38: 0.009277928601 | I38: 0.006211931749 | J38: 0.009562089228 | K38: -0.07002489096 | L38: 0.05172130945 | M38: -0.9139052471 | N38: =N33/C33 -> -0.9077686571
B39: Total Private Emp | D39: 0.01297834288 | E39: 0.01373322898 | F39: 0.02001141399 | G39: 0.01912087435 | H39: 0.0109925449 | I39: 0.008823896398 | J39: 0.01106186982 | K39: -0.06473188903 | L39: 0.04559488895 | M39: -0.9171086061 | N39: =N34/C34 -> -0.9107712849
B42: EMPLOYMENT CHARACTERISTICS
B67: Covered Private Employment Average Wages | G67: Source: NH Department of Employment Security, Covered Private Employment
C69: 2012 | D69: 2013 | E69: 2014 | F69: 2015 | G69: 2016 | H69: 2017 | I69: 2018 | J69: 2019 | K69: 2020 | L69: 2021 | M69: =L69+1 -> 2022 | N69: Total $ Change
B70: Goods Producing | C70: 1152.07 | D70: 1173.11 | E70: 1200.71 | F70: 1224.55 | G70: 1251.03 | H70: 1294.46 | I70: 1317.59 | J70: 1346.98 | K70: 1431.08 | L70: 1483.75 | M70: =IF((CntyDataLink!$FU$25)="n",NA(),IF(VALUE(CntyDataLink!$FU$25)="",NA(),VALUE(CntyDataLink!$FU$25))) -> 1348 | N70: =M70-C70 -> 195.93
B71: Service Providing | C71: 893.72 | D71: 905.2 | E71: 954.42 | F71: 980.34 | G71: 999.7 | H71: 1028.12 | I71: 1061.85 | J71: 1102.03 | K71: 1233.99 | L71: 1412.5 | M71: =IF((CntyDataLink!FV$25)="n",NA(),IF(VALUE(CntyDataLink!$FV$25)="",NA(),VALUE(CntyDataLink!$FV$25))) -> 1358 | N71: =M71-C71 -> 464.28
B72: Total Private Emp | C72: 938.02 | D72: 950.79 | E72: 996.35 | F72: 1021.89 | G72: 1042.63 | H72: 1073.99 | I72: 1106.44 | J72: 1145.04 | K72: 1269.51 | L72: 1425 | M72: =IF((CntyDataLink!$FT$25)="n",NA(),IF(VALUE(CntyDataLink!$FT$25)="",NA(),VALUE(CntyDataLink!$FT$25))) -> 1356 | N72: =M72-C72 -> 417.98
B74: % Change from prior Year | D74: =D36 -> 12-13 | E74: 13-14 | F74: 14-15 | G74: 15-16 | H74: 16-17 | I74: 17-18 | J74: 18-19 | K74: 19-20 | L74: 20-21 | M74: 21-22 | N74: Total % Change
B75: Goods Producing | D75: =(D70-C70)/C70 -> 0.01826277917 | E75: 0.02352720546 | F75: 0.01985491917 | G75: 0.02162427014 | H75: 0.03471539451 | I75: 0.0178684548 | J75: 0.02230587664 | K75: 0.06243596787 | L75: 0.03680437152 | M75: -0.09149115417 | N75: =N70/C70 -> 0.170067791
B76: Service Providing | D76: 0.01284518641 | E76: 0.05437472382 | F76: 0.02715785503 | G76: 0.01974825061 | H76: 0.02842852856 | I76: 0.03280745438 | J76: 0.03783961953 | K76: 0.1197426567 | L76: 0.1446608157 | M76: -0.0385840708 | N76: =N71/C71 -> 0.5194915634
B77: Total Private Emp | D77: 0.01361378222 | E77: 0.0479180471 | F77: 0.0256335625 | G77: 0.02029572655 | H77: 0.03007778407 | I77: 0.03021443403 | J77: 0.03488666353 | K77: 0.1087036261 | L77: 0.1224803271 | M77: -0.04842105263 | N77: =N72/C72 -> 0.4455981749
B80: LABOR FORCE AND UNEMPLOYMENT CHARACTERISTICS
B110: Annual Average Labor Force and Unemployment
C111: 2012 | D111: =C111+1 -> 2013 | E111: =D111+1 -> 2014 | F111: 2015 | G111: 2016 | H111: 2017 | I111: 2018 | J111: 2019 | K111: 2020 | L111: 2021 | M111: 2022 | N111: Total Change
B112: Civilian Labor Force | C112: =CntyDataLink!$CL$30 -> 48730 | D112: =CntyDataLink!$CP$30 -> 48360 | E112: =CntyDataLink!$CT$30 -> 48550 | F112: =CntyDataLink!$CX$30 -> 48690 | G112: =CntyDataLink!$DB$30 -> 48810 | H112: =CntyDataLink!$DF$30 -> 49340 | I112: =CntyDataLink!$DJ$30 -> 49860 | J112: =CntyDataLink!$DN$30 -> 50040 | K112: =CntyDataLink!$DR$30 -> 47860 | L112: =CntyDataLink!$DV$30 -> 48470 | M112: =CntyDataLink!$DZ$30 -> 48940 | N112: =$M112-$C112 -> 210
B113: Employed Labor Force | C113: =CntyDataLink!$CM$30 -> 46560 | D113: =CntyDataLink!$CQ$30 -> 46320 | E113: =CntyDataLink!$CU$30 -> 46880 | F113: =CntyDataLink!$CY$30 -> 47360 | G113: =CntyDataLink!$DC$30 -> 47660 | H113: =CntyDataLink!$DG$30 -> 48210 | I113: =CntyDataLink!$DK$30 -> 48780 | J113: =CntyDataLink!$DO$30 -> 48930 | K113: =CntyDataLink!$DS$30 -> 45030 | L113: =CntyDataLink!$DW$30 -> 46900 | M113: =CntyDataLink!$EA$30 -> 47800 | N113: =$M113-C113 -> 1240
B114: Unemployed Labor Force | C114: =CntyDataLink!$CN$30 -> 2170 | D114: =CntyDataLink!$CR$30 -> 2040 | E114: =CntyDataLink!$CV$30 -> 1670 | F114: =CntyDataLink!$CZ$30 -> 1330 | G114: =CntyDataLink!$DD$30 -> 1150 | H114: =CntyDataLink!$DH$30 -> 1130 | I114: =CntyDataLink!$DL$30 -> 1080 | J114: =CntyDataLink!$DP$30 -> 1110 | K114: =CntyDataLink!$DT$30 -> 2830 | L114: =CntyDataLink!$DX$30 -> 1570 | M114: =CntyDataLink!$EB$30 -> 1140 | N114: =$M114-C114 -> -1030
B115: Unemployment Rate | C115: =CntyDataLink!$CO$30 -> 4.4 | D115: =CntyDataLink!$CS$30 -> 4.2 | E115: =CntyDataLink!$CW$30 -> 3.4 | F115: =CntyDataLink!$DA$30 -> 2.7 | G115: =CntyDataLink!$DE$30 -> 2.4 | H115: =CntyDataLink!$DI$30 -> 2.3 | I115: =CntyDataLink!$DM$30 -> 2.3 | J115: =CntyDataLink!$DQ$30 -> 2.3 | K115: =CntyDataLink!$DU$30 -> 5.9 | L115: =CntyDataLink!$DY$30 -> 3.2 | M115: =CntyDataLink!$EC$30 -> 2.3
B117: Source: NH Department of Employment Security, Local Area Unemployment Statistics

Sheet EmpVsHUxCounty (hidden)
A2: =A45 -> Grafton County
A44: Housing Units
A45: =CntyDataLink!A20 -> Grafton County
D46: Source: Office of Planning and Development, NH BEA
A47: Units Authorized By Permit | B47: 2010 | C47: =B47+1 -> 2011 | D47: =C47+1 -> 2012 | E47: 2013 | F47: 2014 | G47: 2015 | H47: 2016 | I47: 2017 | J47: 2018 | K47: 2019 | L47: 2020 | M47: 2021
A48: Single Family | B48: =CntyDataLink!$CY$20 -> 161 | C48: =CntyDataLink!$DB$20 -> 128 | D48: =CntyDataLink!$DE$20 -> 70 | E48: =CntyDataLink!$DH$20 -> 113 | F48: =CntyDataLink!$DK$20 -> 102 | G48: =CntyDataLink!$DN$20 -> 107 | H48: =CntyDataLink!$DQ$20 -> 135 | I48: =CntyDataLink!$DT$20 -> 140 | J48: =CntyDataLink!$DW$20 -> 140 | K48: =CntyDataLink!$DZ$20 -> 160 | L48: =CntyDataLink!$EC$20 -> 204 | M48: =CntyDataLink!$EI$20 -> 253
A49: Multi-family | B49: =CntyDataLink!$CZ$20 -> 275 | C49: =CntyDataLink!$DC$20 -> 53 | D49: =CntyDataLink!$DF$20 -> 61 | E49: =CntyDataLink!$DI$20 -> 42 | F49: =CntyDataLink!$DL$20 -> 139 | G49: =CntyDataLink!$DO$20 -> 52 | H49: =CntyDataLink!$DR$20 -> 37 | I49: =CntyDataLink!$DU$20 -> 130 | J49: =CntyDataLink!$DX$20 -> 180 | K49: =CntyDataLink!$EA$20 -> 149 | L49: =CntyDataLink!$ED$20 -> 385 | M49: =CntyDataLink!$EJ$20 -> 123
A50: Mobile Home | B50: =CntyDataLink!$DA$20 -> 3 | C50: =CntyDataLink!$DD$20 -> -1 | D50: =CntyDataLink!$DG$20 -> 4 | E50: =CntyDataLink!$DJ$20 -> 12 | F50: =CntyDataLink!$DM$20 -> 3 | G50: =CntyDataLink!$DP$20 -> 12 | H50: =CntyDataLink!$DR$20 -> 37 | I50: =CntyDataLink!$DV$20 -> 18 | J50: =CntyDataLink!$DY$20 -> 17 | K50: =CntyDataLink!$EB$20 -> 5 | L50: =CntyDataLink!$EE$20 -> 29 | M50: =CntyDataLink!$EK$20 -> 21
A51: Total | B51: =SUM(B48:B50) -> 439 | C51: 180 | D51: 135 | E51: 167 | F51: 244 | G51: 171 | H51: 209 | I51: 288 | J51: =SUM(J48:J50) -> 337 | K51: =SUM(K48:K50) -> 314 | L51: =SUM(L48:L50) -> 618 | M51: =SUM(M48:M50) -> 397
A53: Total Housing Units | B53: 2010 Census | C53: 2011 | D53: =C53+1 -> 2012 | E53: 2013 | F53: 2014 | G53: 2015 | H53: 2016 | I53: 2017 | J53: 2018 | K53: 2019 | L53: 2020 | M53: 2021 | N53: 2022
A54: Single Family | B54: =CntyDataLink!$BA$167 -> 31687 | C54: =B48+B54 -> 31848 | D54: 31976 | E54: 32046 | F54: 32159 | G54: 32261 | H54: 32368 | I54: 32503 | J54: 32643 | K54: 32783 | L54: =K54+K48 -> 32943 | M54: 33147 | N54: 33400
A55: Multi Family | B55: =CntyDataLink!$BB$167 -> 15353 | C55: 15628 | D55: 15681 | E55: 15742 | F55: 15784 | G55: 15923 | H55: 15975 | I55: 16012 | J55: 16142 | K55: 16322 | L55: 16471 | M55: 16856 | N55: 16979
A56: Mobile Home | B56: =CntyDataLink!$BC$167 -> 4084 | C56: 4087 | D56: 4086 | E56: 4090 | F56: 4102 | G56: 4105 | H56: 4117 | I56: 4154 | J56: 4172 | K56: 4189 | L56: 4194 | M56: 4223 | N56: 4244
A57: Total | B57: =SUM(B54:B56) -> 51124 | C57: 51563 | D57: 51743 | E57: 51878 | F57: 52045 | G57: 52289 | H57: 52460 | I57: 52669 | J57: 52957 | K57: 53294 | L57: 53608 | M57: 54226 | N57: =SUM(N54:N56) -> 54623
A59: Percent Change | B59: 2000-2010 Census | C59: 10-11 | D59: 11-12 | E59: 12-13 | F59: 13-14 | G59: 14-15 | H59: 15-16 | I59: 16-17 | J59: 17-18 | K59: 18-19 | L59: 19-20 | M59: 20-21 | N59: 21-22
A60: Single Family | B60: =(B54-CntyDataLink!CF$65)/CntyDataLink!CF$65 -> 0.1788757022 | C60: =(C54-B54)/B54 -> 0.005080948023 | D60: 0.004019090681 | E60: 0.002189141856 | F60: 0.003526181115 | G60: 0.003171740415 | H60: 0.00331669818 | I60: 0.004170785961 | J60: 0.004307294711 | K60: 0.004288821493 | L60: 0.004880578349 | M60: 0.006192514343 | N60: 0.007632666606
A61: Multi Family | B61: =(B55-SUM(CntyDataLink!CG65:CM65))/SUM(CntyDataLink!CG65:CM65) -> 0.1718058312 | C61: 0.01791180877 | D61: 0.003391348861 | E61: 0.003890058032 | F61: 0.002668021852 | G61: 0.008806386214 | H61: 0.003265716259 | I61: 0.002316118936 | J61: 0.008118910817 | K61: 0.01115103457 | L61: 0.009128783237 | M61: 0.02337441564 | N61: 0.007297104888
A62: Mobile Home | B62: =(B56-SUM(CntyDataLink!CN65))/(CntyDataLink!CN65) -> 0.1155422016 | C62: 0.0007345739471 | D62: -0.0002446782481 | E62: 0.0009789525208 | F62: 0.00293398533 | G62: 0.0007313505607 | H62: 0.002923264312 | I62: 0.008987126548 | J62: 0.004333172845 | K62: 0.004074784276 | L62: 0.001193602292 | M62: 0.006914639962 | N62: 0.004972768174
A63: Total | B63: =(B57-CntyDataLink!$CE65)/CntyDataLink!$CE65 -> 0.1691097441 | C63: 0.008586965026 | D63: 0.00349087524 | E63: 0.002609048567 | F63: 0.003219090944 | G63: 0.004688250552 | H63: 0.003270286293 | I63: 0.0039839878 | J63: 0.005468112172 | K63: 0.00636365353 | L63: 0.005891845236 | M63: 0.01152813013 | N63: 0.007321211227
A68: Private Employment
A69: =CntyDataLink!A25 -> Grafton County
B70: 2011 | C70: 2012 | D70: =C70+1 -> 2013 | E70: 2014 | F70: 2015 | G70: 2016 | H70: 2017 | I70: 2018 | J70: 2019 | K70: 2020 | L70: 2021 | M70: 2022
A71: Goods Producing | B71: =IF((CntyDataLink!$CG$25)="n",NA(),IF(VALUE(CntyDataLink!$CG$25)="",NA(),VALUE(CntyDataLink!$CG$25))) -> 6681 | C71: =IF((CntyDataLink!$CO$25)="n",NA(),IF(VALUE(CntyDataLink!$CO$25)="",NA(),VALUE(CntyDataLink!$CO$25))) -> 6818 | D71: =IF((CntyDataLink!$CW$25)="n",NA(),IF(VALUE(CntyDataLink!$CW$25)="",NA(),VALUE(CntyDataLink!$CW$25))) -> 6717 | E71: =IF((CntyDataLink!$DE$25)="n",NA(),IF(VALUE(CntyDataLink!$DE$25)="",NA(),VALUE(CntyDataLink!$DE$25))) -> 6778 | F71: =IF((CntyDataLink!$DM$25)="n",NA(),IF(VALUE(CntyDataLink!$DM$25)="",NA(),VALUE(CntyDataLink!$DM$25))) -> 6882 | G71: =IF((CntyDataLink!$DU$25)="n",NA(),IF(VALUE(CntyDataLink!$DU$25)="",NA(),VALUE(CntyDataLink!$DU$25))) -> 6801 | H71: =IF((CntyDataLink!$EC$25)="n",NA(),IF(VALUE(CntyDataLink!$EC$25)="",NA(),VALUE(CntyDataLink!$EC$25))) -> 6781 | I71: =IF((CntyDataLink!$EK$25)="n",NA(),IF(VALUE(CntyDataLink!$EK$25)="",NA(),VALUE(CntyDataLink!$EK$25))) -> 6926 | J71: =IF((CntyDataLink!$ES$25)="n",NA(),IF(VALUE(CntyDataLink!$ES$25)="",NA(),VALUE(CntyDataLink!$ES$25))) -> 6855 | K71: =IF((CntyDataLink!$FA$25)="n",NA(),IF(VALUE(CntyDataLink!$FA$25)="",NA(),VALUE(CntyDataLink!$FA$25))) -> 6338 | L71: =IF((CntyDataLink!$FI$25)="n",NA(),IF(VALUE(CntyDataLink!$FI$25)="",NA(),VALUE(CntyDataLink!$FI$25))) -> 6526 | M71: =IF((CntyDataLink!$FQ$25)="n",NA(),IF(VALUE(CntyDataLink!$FQ$25)="",NA(),VALUE(CntyDataLink!$FQ$25))) -> 6756
A72: Service Providing | B72: =IF((CntyDataLink!$CH$25)="n",NA(),IF(VALUE(CntyDataLink!$CH$25)="",NA(),VALUE(CntyDataLink!$CH$25))) -> 38186 | C72: =IF((CntyDataLink!$CP$25)="n",NA(),IF(VALUE(CntyDataLink!$CP$25)="",NA(),VALUE(CntyDataLink!$CP$25))) -> 38428 | D72: =IF((CntyDataLink!$CX$25)="n",NA(),IF(VALUE(CntyDataLink!$CX$25)="",NA(),VALUE(CntyDataLink!$CX$25))) -> 38736 | E72: =IF((CntyDataLink!$DF$25)="n",NA(),IF(VALUE(CntyDataLink!$DF$25)="",NA(),VALUE(CntyDataLink!$DF$25))) -> 38787 | F72: =IF((CntyDataLink!$DN$25)="n",NA(),IF(VALUE(CntyDataLink!$DN$25)="",NA(),VALUE(CntyDataLink!$DN$25))) -> 39174 | G72: =IF((CntyDataLink!$DV$25)="n",NA(),IF(VALUE(CntyDataLink!$DV$25)="",NA(),VALUE(CntyDataLink!$DV$25))) -> 39885 | H72: =IF((CntyDataLink!$ED$25)="n",NA(),IF(VALUE(CntyDataLink!$ED$25)="",NA(),VALUE(CntyDataLink!$ED$25))) -> 40380 | I72: =IF((CntyDataLink!$EL$25)="n",NA(),IF(VALUE(CntyDataLink!$EL$25)="",NA(),VALUE(CntyDataLink!$EL$25))) -> 40491 | J72: =IF((CntyDataLink!$ET$25)="n",NA(),IF(VALUE(CntyDataLink!$ET$25)="",NA(),VALUE(CntyDataLink!$ET$25))) -> 40830 | K72: =IF((CntyDataLink!$FB$25)="n",NA(),IF(VALUE(CntyDataLink!$FB$25)="",NA(),VALUE(CntyDataLink!$FB$25))) -> 37870 | L72: =IF((CntyDataLink!$FJ$25)="n",NA(),IF(VALUE(CntyDataLink!$FJ$25)="",NA(),VALUE(CntyDataLink!$FJ$25))) -> 39308 | M72: =IF((CntyDataLink!$FR$25)="n",NA(),IF(VALUE(CntyDataLink!$FR$25)="",NA(),VALUE(CntyDataLink!$FR$25))) -> 40292
A73: Total Private Emp | B73: =IF((CntyDataLink!$CF$25)="n",NA(),IF(VALUE(CntyDataLink!$CF$25)="",NA(),VALUE(CntyDataLink!$CF$25))) -> 44867 | C73: =IF((CntyDataLink!$CN$25)="n",NA(),IF(VALUE(CntyDataLink!$CN$25)="",NA(),VALUE(CntyDataLink!$CN$25))) -> 45246 | D73: =IF((CntyDataLink!$CV$25)="n",NA(),IF(VALUE(CntyDataLink!$CV$25)="",NA(),VALUE(CntyDataLink!$CV$25))) -> 45454 | E73: =IF((CntyDataLink!$DD$25)="n",NA(),IF(VALUE(CntyDataLink!$DD$25)="",NA(),VALUE(CntyDataLink!$DD$25))) -> 45565 | F73: =IF((CntyDataLink!$DL$25)="n",NA(),IF(VALUE(CntyDataLink!$DL$25)="",NA(),VALUE(CntyDataLink!$DL$25))) -> 46056 | G73: =IF((CntyDataLink!$DT$25)="n",NA(),IF(VALUE(CntyDataLink!$DT$25)="",NA(),VALUE(CntyDataLink!$DT$25))) -> 46686 | H73: =IF((CntyDataLink!$EB$25)="n",NA(),IF(VALUE(CntyDataLink!$EB$25)="",NA(),VALUE(CntyDataLink!$EB$25))) -> 47161 | I73: =IF((CntyDataLink!$EJ$25)="n",NA(),IF(VALUE(CntyDataLink!$EJ$25)="",NA(),VALUE(CntyDataLink!$EJ$25))) -> 47417 | J73: =IF((CntyDataLink!$ER$25)="n",NA(),IF(VALUE(CntyDataLink!$ER$25)="",NA(),VALUE(CntyDataLink!$ER$25))) -> 47685 | K73: =IF((CntyDataLink!$EZ$25)="n",NA(),IF(VALUE(CntyDataLink!$EZ$25)="",NA(),VALUE(CntyDataLink!$EZ$25))) -> 44208 | L73: =IF((CntyDataLink!$FH$25)="n",NA(),IF(VALUE(CntyDataLink!$FH$25)="",NA(),VALUE(CntyDataLink!$FH$25))) -> 45834 | M73: =IF((CntyDataLink!$FPH$25)="n",NA(),IF(VALUE(CntyDataLink!$FP$25)="",NA(),VALUE(CntyDataLink!$FP$25))) -> 47047
A75: Percent Change | C75: 11-12 | D75: 12-13 | E75: 13-14 | F75: 14-15 | G75: 15-16 | H75: 16-17 | I75: 17-18 | J75: 18-19 | K75: 19-20 | L75: 20-21 | M75: 21-22
A76: Goods Producing | C76: =(C71-B71)/B71 -> 0.02050591229 | D76: -0.01481372837 | E76: 0.009081435165 | F76: 0.01534375922 | G76: -0.01176983435 | H76: -0.002940744008 | I76: 0.0213832768 | J76: -0.01025122726 | K76: -0.0754194019 | L76: 0.02966235405 | M76: 0.03524364082
A77: Service Providing | C77: =(C72-B72)/B72 -> 0.006337401142 | D77: 0.00801498907 | E77: 0.001316604709 | F77: 0.009977569804 | G77: 0.01814979323 | H77: 0.01241068071 | I77: 0.002748885587 | J77: 0.008372230866 | K77: -0.07249571394 | L77: 0.03797200951 | M77: 0.02503307215
A78: Total Private Emp | C78: =(C73-B73)/B73 -> 0.008447188357 | D78: 0.004597091456 | E78: 0.002442029304 | F78: 0.01077581477 | G78: 0.01367899948 | H78: 0.01017435634 | I78: 0.00542821399 | J78: 0.005651981357 | K78: -0.07291601132 | L78: 0.03678067318 | M78: 0.0264650696
A82: Source: New Hampshire Department of Employment Security
A84: =A2 -> Grafton County
C120: 2012 | D120: =C120+1 -> 2013 | E120: 2014 | F120: 2015 | G120: 2016 | H120: 2017 | I120: 2018 | J120: 2019 | K120: 2020 | L120: 2021 | M120: 2022
A121: Total Housing Units | C121: =B$57 -> 51124 | D121: =C$57 -> 51563 | E121: =D$57 -> 51743 | F121: =E$57 -> 51878 | G121: =F$57 -> 52045 | H121: =G$57 -> 52289 | I121: =H$57 -> 52460 | J121: =I$57 -> 52669 | K121: =J$57 -> 52957 | L121: =L$57 -> 53608 | M121: =M$57 -> 54226
A122: Private & Government Emp. | C122: =VALUE(CntyDataLink!$CM$25) -> 52026 | D122: =VALUE(CntyDataLink!$CU$25) -> 52153 | E122: =VALUE(CntyDataLink!$DC$25) -> 52226 | F122: =VALUE(CntyDataLink!$DK$25) -> 52654 | G122: =VALUE(CntyDataLink!$DS$25) -> 53361 | H122: =VALUE(CntyDataLink!$EA$25) -> 53790 | I122: =VALUE(CntyDataLink!$EI$25) -> 54119 | J122: =VALUE(CntyDataLink!$EQ$25) -> 54388 | K122: =VALUE(CntyDataLink!$EY$25) -> 50622 | L122: =VALUE(CntyDataLink!$FG$25) -> 52299 | M122: =VALUE(CntyDataLink!$FO$25) -> 53193
A124: Source: New Hampshire Department of Employment Security and Office of Planning and Development, NH BEA

Sheet HHIncome-10YearComparison (hidden)
B2: =CntyDataLink!A35 -> Grafton County
B4: INCOME CHARACTERISTICS
B27: Households By Household Income
E28: 2007-2011 | I28: 2012-2016 | L28: 2017-2021 | P28: Statistically Significant Change
B29: Household Income | E29: Estimate | F29: Margin of Error | I29: Estimate | J29: Margin of Error | L29: Estimate | M29: Margin of Error | P29: 2011-2021 | Q29: 2016-2021
B30: Less than $10,000 | E30: =CntyDataLinkPrior10YearEstimate!$B$120 -> 2085 | F30: =CntyDataLinkPrior10YearEstimate!$C$120 -> 281 | G30: =E30/SUM($E$30:$E$39) -> 0.05988625919 | I30: =CntyDataLinkPrior5YearEstimates!$B$120 -> 1855 | J30: =CntyDataLinkPrior5YearEstimates!$C$120 -> 293 | K30: =I30/SUM($I$30:$I$39) -> 0.05283244567 | L30: =CntyDataLink!$B$120 -> 1581 | M30: =CntyDataLink!$C$120 -> 321 | N30: =L30/SUM($L$30:$L$39) -> 0.04601682335 | P30: =StatisticallySignificantCalcs!$A$83 -> Y | Q30: =StatisticallySignificantCalcs!$J$83 -> N
B31: $10,000 to $14,999 | E31: =CntyDataLinkPrior10YearEstimate!$D$120 -> 1626 | F31: =CntyDataLinkPrior10YearEstimate!$E$120 -> 259 | G31: =E31/SUM($E$30:$E$39) -> 0.04670266544 | I31: =CntyDataLinkPrior5YearEstimates!$D$120 -> 1740 | J31: =CntyDataLinkPrior5YearEstimates!$E$120 -> 285 | K31: =I31/SUM($I$30:$I$39) -> 0.04955711885 | L31: =CntyDataLink!$D$120 -> 1325 | M31: =CntyDataLink!$E$120 -> 302 | N31: =L31/SUM($L$30:$L$39) -> 0.03856564892 | P31: =StatisticallySignificantCalcs!$A$84 -> N | Q31: =StatisticallySignificantCalcs!$J$84 -> N
B32: $15,000 to $24,999 | E32: =CntyDataLinkPrior10YearEstimate!$F$120 -> 3500 | F32: =CntyDataLinkPrior10YearEstimate!$G$120 -> 396.4000505 | G32: 0.1005284926 | I32: =CntyDataLinkPrior5YearEstimates!$F$120 -> 3500 | J32: =CntyDataLinkPrior5YearEstimates!$G$120 -> 377.0106099 | K32: 0.09968385976 | L32: =CntyDataLink!$F$120 -> 2706 | M32: =CntyDataLink!$G$120 -> 397.0805964 | N32: 0.07876124225 | P32: =StatisticallySignificantCalcs!$A$85 -> Y | Q32: =StatisticallySignificantCalcs!$J$85 -> N
B33: $25,000 to $34,999 | E33: =CntyDataLinkPrior10YearEstimate!$H$120 -> 3604 | F33: =CntyDataLinkPrior10YearEstimate!$I$120 -> 315.7340653 | G33: 0.103515625 | I33: =CntyDataLinkPrior5YearEstimates!$H$120 -> 3568 | J33: =CntyDataLinkPrior5YearEstimates!$I$120 -> 360.2235417 | K33: 0.1016205747 | L33: =CntyDataLink!$H$120 -> 2706 | M33: =CntyDataLink!$I$120 -> 349.8714049 | N33: 0.07876124225 | P33: =StatisticallySignificantCalcs!$A$86 -> Y | Q33: =StatisticallySignificantCalcs!$J$86 -> N
B34: $35,000 to $49,999 | E34: =CntyDataLinkPrior10YearEstimate!$J$120 -> 5494 | F34: =CntyDataLinkPrior10YearEstimate!$K$120 -> 468.5957746 | G34: 0.157801011 | I34: =CntyDataLinkPrior5YearEstimates!$J$120 -> 5182 | J34: =CntyDataLinkPrior5YearEstimates!$K$120 -> 413.4174646 | K34: 0.1475890746 | L34: =CntyDataLink!$J$120 -> 3765 | M34: =CntyDataLink!$K$120 -> 438.1415296 | N34: 0.1095846552 | P34: =StatisticallySignificantCalcs!$A$87 -> Y | Q34: =StatisticallySignificantCalcs!$J$87 -> N
B35: $50,000 to $74,999 | E35: =CntyDataLinkPrior10YearEstimate!$L$120 -> 6290 | F35: =CntyDataLinkPrior10YearEstimate!$M$120 -> 471.6407531 | G35: 0.1806640625 | I35: =CntyDataLinkPrior5YearEstimates!$L$120 -> 6579 | J35: =CntyDataLinkPrior5YearEstimates!$M$120 -> 456.1107322 | K35: 0.1873771752 | L35: =CntyDataLink!$L$120 -> 5474 | M35: =CntyDataLink!$M$120 -> 479.9302033 | N35: 0.1593270658 | P35: =StatisticallySignificantCalcs!$A$88 -> Y | Q35: =StatisticallySignificantCalcs!$J$88 -> N
B36: $75,000 to $99,999 | E36: =CntyDataLinkPrior10YearEstimate!$N$120 -> 4544 | F36: =CntyDataLinkPrior10YearEstimate!$O$120 -> 369 | G36: 0.1305147059 | I36: =CntyDataLinkPrior5YearEstimates!$N$120 -> 4757 | J36: =CntyDataLinkPrior5YearEstimates!$O$120 -> 342 | K36: 0.135484606 | L36: =CntyDataLink!$N$120 -> 5066 | M36: =CntyDataLink!$O$120 -> 459 | N36: 0.1474517566 | P36: =StatisticallySignificantCalcs!$A$89 -> N | Q36: =StatisticallySignificantCalcs!$J$89 -> N
B37: $100,000 to $149,999 | E37: =CntyDataLinkPrior10YearEstimate!$P$120 -> 4376 | F37: =CntyDataLinkPrior10YearEstimate!$Q$120 -> 404.2239478 | G37: 0.1256893382 | I37: =CntyDataLinkPrior5YearEstimates!$P$120 -> 4404 | J37: =CntyDataLinkPrior5YearEstimates!$Q$120 -> 353.4204295 | K37: 0.1254307767 | L37: =CntyDataLink!$P$120 -> 5775 | M37: =CntyDataLink!$Q$120 -> 488.2151165 | N37: 0.168088017 | P37: =StatisticallySignificantCalcs!$A$90 -> Y | Q37: =StatisticallySignificantCalcs!$J$90 -> N
B38: $150,000 to $199,999 | E38: =CntyDataLinkPrior10YearEstimate!$R$120 -> 1629 | F38: =CntyDataLinkPrior10YearEstimate!$S$120 -> 180 | G38: 0.04678883272 | I38: =CntyDataLinkPrior5YearEstimates!$R$120 -> 1752 | J38: =CntyDataLinkPrior5YearEstimates!$S$120 -> 226 | K38: 0.04989889209 | L38: =CntyDataLink!$R$120 -> 2546 | M38: =CntyDataLink!$S$120 -> 362 | N38: 0.07410425823 | P38: =StatisticallySignificantCalcs!$A$91 -> Y | Q38: =StatisticallySignificantCalcs!$J$91 -> N
B39: Greater than $200,000 | E39: =CntyDataLinkPrior10YearEstimate!$T$120 -> 1668 | F39: =CntyDataLinkPrior10YearEstimate!$U$120 -> 226 | G39: 0.04790900735 | I39: =CntyDataLinkPrior5YearEstimates!$T$120 -> 1774 | J39: =CntyDataLinkPrior5YearEstimates!$U$120 -> 235 | K39: 0.05052547635 | L39: =CntyDataLink!$T$120 -> 3413 | M39: =CntyDataLink!$U$120 -> 289 | N39: 0.09933929039 | P39: =StatisticallySignificantCalcs!$A$92 -> Y | Q39: =StatisticallySignificantCalcs!$J$92 -> N
C41: Median HH Income | E41: =CntyDataLinkPrior10YearEstimate!$BV$128 -> 53386 | F41: =CntyDataLinkPrior10YearEstimate!$BW$128 -> 1641 | I41: =CntyDataLinkPrior5YearEstimates!$BV$128 -> 61036 | J41: =CntyDataLinkPrior5YearEstimates!$BW$128 -> 2543 | L41: =CntyDataLink!$BV$128 -> 79949 | M41: =CntyDataLink!$BW$128 -> 2014
C42: HH Income in 2022 Dollars | E42: =($E$50)*E41 -> 68049.16431 | F42: =($E$50)*F41 -> 2091.722149 | I42: =($E$49)*I41 -> 72872.4322 | J42: =($E$49)*J41 -> 3036.152354
B44: ="Source: "& " "&E28&", "&I28&" and "&L28& " American Community Survey; Tables B25119; B19001" -> Source: 2007-2011, 2012-2016 and 2017-2021 American Community Survey; Tables B25119; B19001
B46: Data from the American Community Survey are estimates.
B48: CPI Adjustment Factor
B49: 2013-2017 | E49: 1.193925424
B50: 2008-2012 | E50: 1.274663101

Sheet HHIncomeByAge (hidden)
C2: =CntyDataLink!A55 -> Grafton County
C3: INCOME CHARACTERISTICS
C21: =HHIncomeByAge!C2 -> Grafton County | D21: Household Income in 2022
G22: Households by Age of Householder
D23: Households | E23: Margin of Error Households | G23: Under 25 | H23: Margin of Error Under 25 | J23: 25 to 44 | K23: Margin of Error 25 to 44 | M23: 45 to 64 | N23: Margin of Error 45 to 64 | P23: 65 & Over | Q23: Margin of Error 65 & Over | S23: Family Households | T23: Margin of Error Family HH | U23: Non-Family HH | V23: Margin of Error Non-Family HH
C24: Less Than $10,000 | D24: =CntyDataLink!$D$116 -> 1581 | E24: =CntyDataLink!$E$116 -> 321 | G24: =CntyDataLink!$AN$116 -> 190 | H24: =CntyDataLink!$AO$116 -> 133 | J24: =CntyDataLink!$BV$116 -> 408 | K24: =CntyDataLink!$BW$116 -> 194 | M24: =CntyDataLink!$DD$116 -> 427 | N24: =CntyDataLink!$DE$116 -> 155 | P24: =CntyDataLink!$EL$116 -> 556 | Q24: =CntyDataLink!$EM$116 -> 202 | S24: =CntyDataLink!$D$160 -> 609 | T24: =CntyDataLink!$E$160 -> 223 | U24: =CntyDataLink!$AN$160 -> 1037 | V24: =CntyDataLink!$AO$160 -> 212
C25: $10,000 to $14,999 | D25: =CntyDataLink!$F$116 -> 1325 | E25: =CntyDataLink!$G$116 -> 302 | G25: =CntyDataLink!$AP$116 -> 58 | H25: =CntyDataLink!$AQ$116 -> 56 | J25: =CntyDataLink!$BX$116 -> 124 | K25: =CntyDataLink!$BY$116 -> 97 | M25: =CntyDataLink!$DF$116 -> 475 | N25: =CntyDataLink!$DG$116 -> 205 | P25: =CntyDataLink!$EN$116 -> 668 | Q25: =CntyDataLink!$EO$116 -> 196 | S25: =CntyDataLink!$F$160 -> 349 | T25: =CntyDataLink!$G$160 -> 194 | U25: =CntyDataLink!$AP$160 -> 1000 | V25: =CntyDataLink!$AQ$160 -> 250
C26: $15,000 to $19,999 | D26: =CntyDataLink!$H$116 -> 1362 | E26: =CntyDataLink!$I$116 -> 293 | G26: =CntyDataLink!$AR$116 -> 53 | H26: =CntyDataLink!$AS$116 -> 52 | J26: =CntyDataLink!$BZ$116 -> 285 | K26: =CntyDataLink!$CA$116 -> 158 | M26: =CntyDataLink!$DH$116 -> 317 | N26: =CntyDataLink!$DI$116 -> 90 | P26: =CntyDataLink!$EP$116 -> 707 | Q26: =CntyDataLink!$EQ$116 -> 203 | S26: =CntyDataLink!$H$160 -> 306 | T26: =CntyDataLink!$I$160 -> 170 | U26: =CntyDataLink!$AR$160 -> 1060 | V26: =CntyDataLink!$AS$160 -> 275
C27: $20,000 to $24,999 | D27: =CntyDataLink!$J$116 -> 1344 | E27: =CntyDataLink!$K$116 -> 268 | G27: =CntyDataLink!$AT$116 -> 66 | H27: =CntyDataLink!$AU$116 -> 60 | J27: =CntyDataLink!$CB$116 -> 243 | K27: =CntyDataLink!$CC$116 -> 109 | M27: =CntyDataLink!$DJ$116 -> 437 | N27: =CntyDataLink!$DK$116 -> 159 | P27: =CntyDataLink!$ER$116 -> 598 | Q27: =CntyDataLink!$ES$116 -> 163 | S27: =CntyDataLink!$J$160 -> 627 | T27: =CntyDataLink!$K$160 -> 208 | U27: =CntyDataLink!$AT$160 -> 798 | V27: =CntyDataLink!$AU$160 -> 189
C28: $25,000 to $29,999 | D28: =CntyDataLink!$L$116 -> 1431 | E28: =CntyDataLink!$M$116 -> 261 | G28: =CntyDataLink!$AV$116 -> 47 | H28: =CntyDataLink!$AW$116 -> 39 | J28: =CntyDataLink!$CD$116 -> 220 | K28: =CntyDataLink!$CE$116 -> 134 | M28: =CntyDataLink!$DL$116 -> 438 | N28: =CntyDataLink!$DM$116 -> 167 | P28: =CntyDataLink!$ET$116 -> 726 | Q28: =CntyDataLink!$EU$116 -> 151 | S28: =CntyDataLink!$L$160 -> 490 | T28: =CntyDataLink!$M$160 -> 155 | U28: =CntyDataLink!$AV$160 -> 945 | V28: =CntyDataLink!$AW$160 -> 201
C29: $30,000 to $34,999 | D29: =CntyDataLink!$N$116 -> 1275 | E29: =CntyDataLink!$O$116 -> 233 | G29: =CntyDataLink!$AX$116 -> 36 | H29: =CntyDataLink!$AY$116 -> 36 | J29: =CntyDataLink!$CF$116 -> 327 | K29: =CntyDataLink!$CG$116 -> 132 | M29: =CntyDataLink!$DN$116 -> 408 | N29: =CntyDataLink!$DO$116 -> 124 | P29: =CntyDataLink!$EV$116 -> 504 | Q29: =CntyDataLink!$EW$116 -> 134 | S29: =CntyDataLink!$N$160 -> 565 | T29: =CntyDataLink!$O$160 -> 157 | U29: =CntyDataLink!$AX$160 -> 778 | V29: =CntyDataLink!$AY$160 -> 189
C30: $35,000 to $39,999 | D30: =CntyDataLink!$P$116 -> 1188 | E30: =CntyDataLink!$Q$116 -> 264 | G30: =CntyDataLink!$AZ$116 -> 18 | H30: =CntyDataLink!$BA$116 -> 15 | J30: =CntyDataLink!$CH$116 -> 373 | K30: =CntyDataLink!$CI$116 -> 150 | M30: =CntyDataLink!$DP$116 -> 382 | N30: =CntyDataLink!$DQ$116 -> 154 | P30: =CntyDataLink!$EX$116 -> 415 | Q30: =CntyDataLink!$EY$116 -> 137 | S30: =CntyDataLink!$P$160 -> 550 | T30: =CntyDataLink!$Q$160 -> 141 | U30: =CntyDataLink!$AZ$160 -> 649 | V30: =CntyDataLink!$BA$160 -> 213
C31: $40,000 to $44,999 | D31: =CntyDataLink!$R$116 -> 1392 | E31: =CntyDataLink!$S$116 -> 284 | G31: =CntyDataLink!$BB$116 -> 21 | H31: =CntyDataLink!$BC$116 -> 26 | J31: =CntyDataLink!$CJ$116 -> 376 | K31: =CntyDataLink!$CK$116 -> 168 | M31: =CntyDataLink!$DR$116 -> 575 | N31: =CntyDataLink!$DS$116 -> 170 | P31: =CntyDataLink!$EZ$116 -> 420 | Q31: =CntyDataLink!$FA$116 -> 94 | S31: =CntyDataLink!$R$160 -> 777 | T31: =CntyDataLink!$S$160 -> 197 | U31: =CntyDataLink!$BB$160 -> 638 | V31: =CntyDataLink!$BC$160 -> 184
C32: $45,000 to $49,999 | D32: =CntyDataLink!$T$116 -> 1185 | E32: =CntyDataLink!$U$116 -> 204 | G32: =CntyDataLink!$BD$116 -> 96 | H32: =CntyDataLink!$BE$116 -> 75 | J32: =CntyDataLink!$CL$116 -> 206 | K32: =CntyDataLink!$CM$116 -> 91 | M32: =CntyDataLink!$DT$116 -> 514 | N32: =CntyDataLink!$DU$116 -> 141 | P32: =CntyDataLink!$FB$116 -> 369 | Q32: =CntyDataLink!$FC$116 -> 119 | S32: =CntyDataLink!$T$160 -> 654 | T32: =CntyDataLink!$U$160 -> 150 | U32: =CntyDataLink!$BD$160 -> 516 | V32: =CntyDataLink!$BE$160 -> 131
C33: $50,000 to $59,999 | D33: =CntyDataLink!$V$116 -> 2100 | E33: =CntyDataLink!$W$116 -> 302 | G33: =CntyDataLink!$BF$116 -> 82 | H33: =CntyDataLink!$BG$116 -> 75 | J33: =CntyDataLink!$CN$116 -> 467 | K33: =CntyDataLink!$CO$116 -> 142 | M33: =CntyDataLink!$DV$116 -> 588 | N33: =CntyDataLink!$DW$116 -> 136 | P33: =CntyDataLink!$FD$116 -> 963 | Q33: =CntyDataLink!$FE$116 -> 212 | S33: =CntyDataLink!$V$160 -> 1175 | T33: =CntyDataLink!$W$160 -> 215 | U33: =CntyDataLink!$BF$160 -> 935 | V33: =CntyDataLink!$BG$160 -> 216
C34: $60,000 to $74,999 | D34: =CntyDataLink!$X$116 -> 3374 | E34: =CntyDataLink!$Y$116 -> 373 | G34: =CntyDataLink!$BH$116 -> 164 | H34: =CntyDataLink!$BI$116 -> 156 | J34: =CntyDataLink!$CP$116 -> 944 | K34: =CntyDataLink!$CQ$116 -> 215 | M34: =CntyDataLink!$DX$116 -> 1252 | N34: =CntyDataLink!$DY$116 -> 216 | P34: =CntyDataLink!$FF$116 -> 1014 | Q34: =CntyDataLink!$FG$116 -> 166 | S34: =CntyDataLink!$X$160 -> 2095 | T34: =CntyDataLink!$Y$160 -> 293 | U34: =CntyDataLink!$BH$160 -> 1400 | V34: =CntyDataLink!$BI$160 -> 275
C35: $75,000 to $99,999 | D35: =CntyDataLink!$Z$116 -> 5066 | E35: =CntyDataLink!$AA$116 -> 459 | G35: =CntyDataLink!$BJ$116 -> 55 | H35: =CntyDataLink!$BK$116 -> 42 | J35: =CntyDataLink!$CR$116 -> 1500 | K35: =CntyDataLink!$CS$116 -> 240 | M35: =CntyDataLink!$DZ$116 -> 1812 | N35: =CntyDataLink!$EA$116 -> 253 | P35: =CntyDataLink!$FH$116 -> 1699 | Q35: =CntyDataLink!$FI$116 -> 277 | S35: =CntyDataLink!$Z$160 -> 3425 | T35: =CntyDataLink!$AA$160 -> 406 | U35: =CntyDataLink!$BJ$160 -> 1538 | V35: =CntyDataLink!$BK$160 -> 288
C36: $100,000 to $124,999 | D36: =CntyDataLink!$AB$116 -> 3652 | E36: =CntyDataLink!$AC$116 -> 373 | G36: =CntyDataLink!$BL$116 -> 45 | H36: =CntyDataLink!$BM$116 -> 78 | J36: =CntyDataLink!$CT$116 -> 1140 | K36: =CntyDataLink!$CU$116 -> 220 | M36: =CntyDataLink!$EB$116 -> 1731 | N36: =CntyDataLink!$EC$116 -> 264 | P36: =CntyDataLink!$FJ$116 -> 736 | Q36: =CntyDataLink!$FK$116 -> 167 | S36: =CntyDataLink!$AB$160 -> 2824 | T36: =CntyDataLink!$AC$160 -> 312 | U36: =CntyDataLink!$BL$160 -> 779 | V36: =CntyDataLink!$BM$160 -> 220
C37: $125,000 to $149,999 | D37: =CntyDataLink!$AD$116 -> 2123 | E37: =CntyDataLink!$AE$116 -> 315 | G37: =CntyDataLink!$BN$116 -> 44 | H37: =CntyDataLink!$BO$116 -> 59 | J37: =CntyDataLink!$CV$116 -> 539 | K37: =CntyDataLink!$CW$116 -> 162 | M37: =CntyDataLink!$ED$116 -> 957 | N37: =CntyDataLink!$EE$116 -> 173 | P37: =CntyDataLink!$FL$116 -> 583 | Q37: =CntyDataLink!$FM$116 -> 173 | S37: =CntyDataLink!$AD$160 -> 1726 | T37: =CntyDataLink!$AE$160 -> 256 | U37: =CntyDataLink!$BN$160 -> 361 | V37: =CntyDataLink!$BO$160 -> 149
C38: $150,000 to $199,999 | D38: =CntyDataLink!$AF$116 -> 2546 | E38: =CntyDataLink!$AG$116 -> 362 | G38: =CntyDataLink!$BP$116 -> 0 | H38: =CntyDataLink!$BQ$116 -> 28 | J38: =CntyDataLink!$CX$116 -> 582 | K38: =CntyDataLink!$CY$116 -> 180 | M38: =CntyDataLink!$EF$116 -> 1418 | N38: =CntyDataLink!$EG$116 -> 222 | P38: =CntyDataLink!$FN$116 -> 546 | Q38: =CntyDataLink!$FO$116 -> 165 | S38: =CntyDataLink!$AF$160 -> 1915 | T38: =CntyDataLink!$AG$160 -> 281 | U38: =CntyDataLink!$BP$160 -> 502 | V38: =CntyDataLink!$BQ$160 -> 176
C39: $200,000 or More | D39: =CntyDataLink!$AH$116 -> 3413 | E39: =CntyDataLink!$AI$116 -> 289 | G39: =CntyDataLink!$BR$116 -> 33 | H39: =CntyDataLink!$BS$116 -> 42 | J39: =CntyDataLink!$CZ$116 -> 727 | K39: =CntyDataLink!$DA$116 -> 171 | M39: =CntyDataLink!$EH$116 -> 1887 | N39: =CntyDataLink!$EI$116 -> 218 | P39: =CntyDataLink!$FP$116 -> 766 | Q39: =CntyDataLink!$FQ$116 -> 147 | S39: =CntyDataLink!$AH$160 -> 2904 | T39: =CntyDataLink!$AI$160 -> 268 | U39: =CntyDataLink!$BR$160 -> 430 | V39: =CntyDataLink!$BS$160 -> 127
C41: Total Households | D41: =CntyDataLink!$B$116 -> 34357 | E41: =CntyDataLink!$C$116 -> 620 | G41: =CntyDataLink!$AL$116 -> 1008 | H41: =CntyDataLink!$AM$116 -> 251 | J41: =CntyDataLink!$BT$116 -> 8461 | K41: =CntyDataLink!$BU$116 -> 477 | M41: =CntyDataLink!$DB$116 -> 13618 | N41: =CntyDataLink!$DC$116 -> 435 | P41: =CntyDataLink!$EJ$116 -> 11270 | Q41: =CntyDataLink!$EK$116 -> 394 | S41: =CntyDataLink!$B$160 -> 20991 | T41: =CntyDataLink!$C$160 -> 668 | U41: =CntyDataLink!$AL$160 -> 13366 | V41: =CntyDataLink!$AM$160 -> 763
C42: Median Household Inc | D42: =CntyDataLink!$FR$116 -> 73755 | E42: =CntyDataLink!$FS$116 -> 2014 | G42: =CntyDataLink!$FT$116 -> 47500 | H42: =CntyDataLink!$FU$116 -> 20223 | J42: =CntyDataLink!$FV$116 -> 77820 | K42: =CntyDataLink!$FW$116 -> 3849 | M42: =CntyDataLink!$FX$116 -> 90013 | N42: =CntyDataLink!$FY$116 -> 6207 | P42: =CntyDataLink!$FZ$116 -> 57421 | Q42: =CntyDataLink!$GA$116 -> 3034 | S42: =CntyDataLink!$AJ$160 -> 92986 | T42: =CntyDataLink!$AK$160 -> 2792 | U42: =CntyDataLink!BT$160 -> 43769 | V42: =CntyDataLink!$BU$160 -> 2539
C44: Source: 2018-2022 American Community Survey Table B19001; B19037; B19101; B19102; B19112; B19113; B19049
C45: Data from the American Community Survey are estimates
C47: =C2 -> Grafton County
C48: INCOME CHARACTERISTICS
C80: Source: 2018-2022 American Community Survey Table B19001; Table B19102 | P80: Data from the American Community Survey are estimates

Sheet HHIncomeByTenure (hidden)
D2: =CntyDataLink!A80 -> Grafton County
D3: INCOME CHARACTERISTICS
D28: =D2 -> Grafton County
D29: Household Income By Tenure
F30: 2022 Household Income 1 | H30: Occupied Housing Units | I30: Margin of Error Occupied Housing Units | J30: Owner Occupied Housing Units | K30: Margin of Error Owner Occupied Housing Units | L30: Renter Occupied Housing Units | M30: Margin of Error Renter Occupied Housing Units
F32: Total | H32: =CntyDataLink!$B$128 -> 35084 | I32: =CntyDataLink!$C$128 -> 684 | J32: =CntyDataLink!$D$128 -> 24776 | K32: =CntyDataLink!$E$128 -> 629 | L32: =CntyDataLink!$AB$128 -> 10308 | M32: =CntyDataLink!$AC$128 -> 707
D33: 4999 | E33: =VALUE(RIGHT(F33,7)) -> 5000 | F33: Less Than $5,000 | H33: =CntyDataLink!$AZ$128 -> 1016 | I33: =CntyDataLink!$BA$128 -> 280.9786469 | J33: =CntyDataLink!$F$128 -> 464 | K33: =CntyDataLink!$G$128 -> 207 | L33: =CntyDataLink!$AD$128 -> 552 | M33: =CntyDataLink!$AE$128 -> 190
C34: =VALUE(RIGHT($F33,7)) -> 5000 | D34: 4999 | E34: 10000 | F34: $5,000 to $10,000 | H34: =CntyDataLink!$BB$128 -> 494 | I34: =CntyDataLink!$BC$128 -> 156.6684397 | J34: =CntyDataLink!$H$128 -> 179 | K34: =CntyDataLink!$I$128 -> 64 | L34: =CntyDataLink!$AF$128 -> 315 | M34: =CntyDataLink!$AG$128 -> 143
C35: 10000 | D35: 4999 | E35: 15000 | F35: $10,000 to $15,000 | H35: =CntyDataLink!$BD$128 -> 1363 | I35: =CntyDataLink!$BE$128 -> 379.1635531 | J35: =CntyDataLink!$J$128 -> 622 | K35: =CntyDataLink!$K$128 -> 214 | L35: =CntyDataLink!$AH$128 -> 741 | M35: =CntyDataLink!$AI$128 -> 313
C36: 15000 | D36: 4999 | E36: 20000 | F36: $15,000 to $20,000 | H36: =CntyDataLink!$BF$128 -> 1318 | I36: =CntyDataLink!$BG$128 -> 294.8525055 | J36: =CntyDataLink!$L$128 -> 729 | K36: =CntyDataLink!$M$128 -> 243 | L36: =CntyDataLink!$AJ$128 -> 589 | M36: =CntyDataLink!$AK$128 -> 167
C37: 20000 | D37: 4999 | E37: 25000 | F37: $20,000 to $25,000 | H37: =CntyDataLink!$BH$128 -> 1210 | I37: =CntyDataLink!$BI$128 -> 237.0021097 | J37: =CntyDataLink!$N$128 -> 642 | K37: =CntyDataLink!$O$128 -> 189 | L37: =CntyDataLink!$AL$128 -> 568 | M37: =CntyDataLink!$AM$128 -> 143
C38: 25000 | D38: 9999 | E38: 35000 | F38: $25,000 to $35,000 | H38: =CntyDataLink!$BJ$128 -> 2574 | I38: =CntyDataLink!$BK$128 -> 333.2101439 | J38: =CntyDataLink!$P$128 -> 1322 | K38: =CntyDataLink!$Q$128 -> 202 | L38: =CntyDataLink!$AN$128 -> 1252 | M38: =CntyDataLink!$AO$128 -> 265
C39: 35000 | D39: 14999 | E39: 50000 | F39: $35,000 to $50,000 | H39: =CntyDataLink!$BL$128 -> 3117 | I39: =CntyDataLink!$BM$128 -> 336.8798005 | J39: =CntyDataLink!$R$128 -> 1966 | K39: =CntyDataLink!$S$128 -> 248 | L39: =CntyDataLink!$AP$128 -> 1151 | M39: =CntyDataLink!$AQ$128 -> 228
C40: 50000 | D40: 24999 | E40: 75000 | F40: $50,000 to $75,000 | H40: =CntyDataLink!$BN$128 -> 5475 | I40: =CntyDataLink!$BO$128 -> 497.1156807 | J40: =CntyDataLink!$T$128 -> 3680 | K40: =CntyDataLink!$U$128 -> 332 | L40: =CntyDataLink!$AR$128 -> 1795 | M40: =CntyDataLink!$AS$128 -> 370
C41: 75000 | D41: 24999 | E41: 100000 | F41: $75,000 to $100,000 | H41: =CntyDataLink!$BP$128 -> 4750 | I41: =CntyDataLink!$BQ$128 -> 487.7909388 | J41: =CntyDataLink!$V$128 -> 3476 | K41: =CntyDataLink!$W$128 -> 428 | L41: =CntyDataLink!$AT$128 -> 1274 | M41: =CntyDataLink!$AU$128 -> 234
C42: 100000 | D42: 49999 | E42: 150000 | F42: $100,000 to $150,000 | H42: =CntyDataLink!$BR$128 -> 6647 | I42: =CntyDataLink!$BS$128 -> 490.7229361 | J42: =CntyDataLink!$X$128 -> 5282 | K42: =CntyDataLink!$Y$128 -> 403 | L42: =CntyDataLink!$AV$128 -> 1365 | M42: =CntyDataLink!$AW$128 -> 280
C43: 150000 | F43: $150,000 and More | H43: =CntyDataLink!$BT$128 -> 7120 | I43: =CntyDataLink!$BU$128 -> 416.2030754 | J43: =CntyDataLink!$Z$128 -> 6414 | K43: =CntyDataLink!$AA$128 -> 379 | L43: =CntyDataLink!$AX$128 -> 706 | M43: =CntyDataLink!$AY$128 -> 172
F46: Median Household Income 2 | H46: =CntyDataLink!$BV$128 -> 79949 | I46: =CntyDataLink!$BW$128 -> 2014 | J46: =CntyDataLink!$BX$128 -> 93718 | K46: =CntyDataLink!$BY$128 -> 3675 | L46: =CntyDataLink!$BZ$128 -> 49804 | M46: =CntyDataLink!$CA$128 -> 4603
F49: Data from the American Community Survey are estimates
D51: Source: | E51: 1 | F51: 2018-2022 American Community Survey Table B25119; 2022 Inflation Adjusted dollars
E52: 2 | F52: 2018-2022 American Community Survey Table B25119; 2022 Inflation Adjusted dollars
D56: HOUSEHOLD INCOME IN THE PAST 12 MONTHS BY PERCENT OF MEDIAN THRESHOLD
D59: All Occupied Housing Units | I59: Owner Occupied Households | N59: Renter Occupied Households
D61: HOUSEHOLD INCOME | F61: Estimate | G61: Margin Of Error | I61: HOUSEHOLD INCOME | K61: Estimate | L61: Margin Of Error | N61: HOUSEHOLD INCOME | P61: Estimate | Q61: Margin Of Error
C62: =$H$46*0.3 -> 23984.7 | D62: 30% of Median Household Income | F62: =IF($C$62<$C$36,((($C$62-$C$35)/$D$35)*$H$35)+SUM($H$33:$H$34),IF($C$62<$C$37,((($C$62-$C$36)/$D$36)*$H$36)+SUM($H$33:$H$35),IF($C$62<$C$38,((($C$62-$C$37)/$D$37)*$H$37)+SUM($H$33:$H$36),IF($C$62<$C$39,((($C$62-$C$38)/$D$38)*$H$38)+SUM($H$33:$H$37),IF($C$62<$C$40,((($C$62-$C$39)/$D$39)*$H$39)+SUM($H$33:$H$38),IF($C$62<$C$41,((($C$62-$C$40)/$D$40)*$H$40)+SUM($H$33:$H$39),IF($C$62<$C$42,((($C$62-$C$41)/$D$41)*$H$41)+SUM($H$33:$H$40),"False"))))))) -> 5155.490298 | G62: =IF($C$62<$C$36,((($C$62-$C$35)/$D$35)*$I$35)+SQRT(SUM(($I$33^2),($I$34^2))),IF($C$62<$C$37,((($C$62-$C$36)/$D$36)*$I$36)+SQRT(SUM(($I$33^2),($I$34^2),($I$35^2))),IF($C$62<$C$38,((($C$62-$C$37)/$D$37)*$I$37)+SQRT(SUM(($I$33^2),($I$34^2),($I$35^2),($I$36^2))),IF($C$62<$C$39,((($C$62-$C$38)/$D$38)*$I$38)+SQRT(SUM(($I$33^2),($I$34^2),($I$35^2),($I$36^2),($I$37^2))),IF($C$62<$C$40,((($C$62-$C$39)/$D$39)*$I$39)+SQRT(SUM(($I$33^2),($I$34^2),($I$35^2),($I$36^2),($I$37^2),($I$38^2))),IF($C$62<$C$41,((($C$62-$C$40)/$D$40)*$I$40)+SQRT(SUM(($I$33^2),($I$34^2),($I$35^2),($I$36^2),($I$37^2),($I$38^2),($I$39^2))),IF($C$62<$C$42,((($C$62-$C$41)/$D$41)*$I$41)+SQRT((($I$33^2)+($I$34^2)+($I$35^2)+($I$36^2)+($I$37^2)+($I$38^2)+($I$39^2)+($I$40^2))),"False"))))))) -> 767.0119868 | H62: =$J$46*0.3 -> 28115.4 | I62: 30% of Median Household Income | K62: =IF($H$62<$C$36,((($H$62-$C$35)/$D$35)*$J$35)+SUM($J$33:$J$34),IF($H$62<$C$37,((($H$62-$C$36)/$D$36)*$J$36)+SUM($J$33:$J$35),IF($H$62<$C$38,((($H$62-$C$37)/$D$37)*$J$37)+SUM($J$33:$J$36),IF($H$62<$C$39,((($H$62-$C$38)/$D$38)*$J$38)+SUM($J$33:$J$37),IF($H$62<$C$40,((($H$62-$C$39)/$D$39)*$J$39)+SUM($J$33:$J$38),IF($H$62<$C$41,((($H$62-$C$40)/$D$40)*$J$40)+SUM($J$33:$J$39),IF($H$62<$C$42,((($H$62-$C$41)/$D$41)*$J$41)+SUM($J$33:$J$40),"False"))))))) -> 3047.89707 | L62: =IF($H$62<$C$36,((($H$62-$C$35)/$D$35)*$K$35)+SQRT(SUM(($K$33^2),($K$34^2))),IF($H$62<$C$37,((($H$62-$C$36)/$D$36)*$K$36)+SQRT(SUM(($K$33^2),($K$34^2),($K$35^2))),IF($H$62<$C$38,((($H$62-$C$37)/$D$37)*$K$37)+SQRT(SUM(($K$33^2),($K$34^2),($K$35^2),($K$36^2))),IF($H$62<$C$39,((($H$62-$C$38)/$D$38)*$K$38)+SQRT(SUM(($K$33^2),($K$34^2),($K$35^2),($K$36^2),($K$37^2))),IF($H$62<$C$40,((($H$62-$C$39)/$D$39)*$K$39)+SQRT(SUM(($K$33^2),($K$34^2),($K$35^2),($K$36^2),($K$37^2),($K$38^2))),IF($H$62<$C$41,((($H$62-$C$40)/$D$40)*$K$40)+SQRT(SUM(($K$33^2),($K$34^2),($K$35^2),($K$36^2),($K$37^2),($K$38^2),($K$39^2))),IF($H$62<$C$42,((($H$62-$C$41)/$D$41)*$K$41)+SQRT((($K$33^2)+($K$34^2)+($K$35^2)+($K$36^2)+($K$37^2)+($K$38^2)+($K$39^2)+($K$40^2))),"False"))))))) -> 495.9627771 | M62: =$L$46*0.3 -> 14941.2 | N62: 30% of Median Household Income | P62: =IF($M$62<$C$36,((($M$62-$C$35)/$D$35)*$L$35)+SUM($L$33:$L$34),IF($M$62<$C$37,((($M$62-$C$36)/$D$36)*$L$36)+SUM($L$33:$L$35),IF($M$62<$C$38,((($M$62-$C$37)/$D$37)*$L$37)+SUM($L$33:$L$36),IF($M$62<$C$39,((($M$62-$C$38)/$D$38)*$L$38)+SUM($L$33:$L$37),IF($M$62<$C$40,((($M$62-$C$39)/$D$39)*$L$39)+SUM($L$33:$L$38),IF($M$62<$C$41,((($M$62-$C$40)/$D$40)*$L$40)+SUM($L$33:$L$39),IF($M$62<$C$42,((($M$62-$C$41)/$D$41)*$L$41)+SUM($L$33:$L$40),"False"))))))) -> 1599.432326 | Q62: =IF($M$62<$C$36,((($M$62-$C$35)/$D$35)*$M$35)+SQRT(SUM(($M$33^2),($M$34^2))),IF($M$62<$C$37,((($M$62-$C$36)/$D$36)*$M$36)+SQRT(SUM(($M$33^2),($M$34^2),($M$35^2))),IF($M$62<$C$38,((($M$62-$C$37)/$D$37)*$M$37)+SQRT(SUM(($M$33^2),($M$34^2),($M$35^2),($M$36^2))),IF($M$62<$C$39,((($M$62-$C$38)/$D$38)*$M$38)+SQRT(SUM(($M$33^2),($M$34^2),($M$35^2),($M$36^2),($M$37^2))),IF($M$62<$C$40,((($M$62-$C$39)/$D$39)*$M$39)+SQRT(SUM(($M$33^2),($M$34^2),($M$35^2),($M$36^2),($M$37^2),($M$38^2))),IF($M$62<$C$41,((($M$62-$C$40)/$D$40)*$M$40)+SQRT(SUM(($M$33^2),($M$34^2),($M$35^2),($M$36^2),($M$37^2),($M$38^2),($M$39^2))),IF($M$62<$C$42,((($M$62-$C$41)/$D$41)*$M$41)+SQRT((($M$33^2)+($M$34^2)+($M$35^2)+($M$36^2)+($M$37^2)+($M$38^2)+($M$39^2)+($M$40^2))),"False"))))))) -> 547.1813326
A63: 490 | C63: =$H$46*0.5 -> 39974.5 | D63: 50% of Median Household Income | F63: =IF($C$63<$C$36,((($C$63-$C$35)/$D$35)*$H$35)+SUM($H$33:$H$34),IF($C$63<$C$37,((($C$63-$C$36)/$D$36)*$H$36)+SUM($H$33:$H$35),IF($C$63<$C$38,((($C$63-$C$37)/$D$37)*$H$37)+SUM($H$33:$H$36),IF($C$63<$C$39,((($C$63-$C$38)/$D$38)*$H$38)+SUM($H$33:$H$37),IF($C$63<$C$40,((($C$63-$C$39)/$D$39)*$H$39)+SUM($H$33:$H$38),IF($C$63<$C$41,((($C$63-$C$40)/$D$40)*$H$40)+SUM($H$33:$H$39),IF($C$63<$C$42,((($C$63-$C$41)/$D$41)*$H$41)+SUM($H$33:$H$40),"False"))))))) -> 9008.770018 | G63: =IF($C$63<$C$36,((($C$63-$C$35)/$D$35)*$I$35)+SQRT(SUM(($I$33^2),($I$34^2))),IF($C$63<$C$37,((($C$63-$C$36)/$D$36)*$I$36)+SQRT(SUM(($I$33^2),($I$34^2),($I$35^2))),IF($C$63<$C$38,((($C$63-$C$37)/$D$37)*$I$37)+SQRT(SUM(($I$33^2),($I$34^2),($I$35^2),($I$36^2))),IF($C$63<$C$39,((($C$63-$C$38)/$D$38)*$I$38)+SQRT(SUM(($I$33^2),($I$34^2),($I$35^2),($I$36^2),($I$37^2))),IF($C$63<$C$40,((($C$63-$C$39)/$D$39)*$I$39)+SQRT(SUM(($I$33^2),($I$34^2),($I$35^2),($I$36^2),($I$37^2),($I$38^2))),IF($C$63<$C$41,((($C$63-$C$40)/$D$40)*$I$40)+SQRT(SUM(($I$33^2),($I$34^2),($I$35^2),($I$36^2),($I$37^2),($I$38^2),($I$39^2))),IF($C$63<$C$42,((($C$63-$C$41)/$D$41)*$I$41)+SQRT((($I$33^2)+($I$34^2)+($I$35^2)+($I$36^2)+($I$37^2)+($I$38^2)+($I$39^2)+($I$40^2))),"False"))))))) -> 819.8212339 | H63: =$J$46*0.5 -> 46859 | I63: 50% of Median Household Income | K63: =IF($H$63<$C$36,((($H$63-$C$35)/$D$35)*$J$35)+SUM($J$33:$J$34),IF($H$63<$C$37,((($H$63-$C$36)/$D$36)*$J$36)+SUM($J$33:$J$35),IF($H$63<$C$38,((($H$63-$C$37)/$D$37)*$J$37)+SUM($J$33:$J$36),IF($H$63<$C$39,((($H$63-$C$38)/$D$38)*$J$38)+SUM($J$33:$J$37),IF($H$63<$C$40,((($H$63-$C$39)/$D$39)*$J$39)+SUM($J$33:$J$38),IF($H$63<$C$41,((($H$63-$C$40)/$D$40)*$J$40)+SUM($J$33:$J$39),IF($H$63<$C$42,((($H$63-$C$41)/$D$41)*$J$41)+SUM($J$33:$J$40),"False"))))))) -> 5512.423228 | L63: =IF($H$63<$C$36,((($H$63-$C$35)/$D$35)*$K$35)+SQRT(SUM(($K$33^2),($K$34^2))),IF($H$63<$C$37,((($H$63-$C$36)/$D$36)*$K$36)+SQRT(SUM(($K$33^2),($K$34^2),($K$35^2))),IF($H$63<$C$38,((($H$63-$C$37)/$D$37)*$K$37)+SQRT(SUM(($K$33^2),($K$34^2),($K$35^2),($K$36^2))),IF($H$63<$C$39,((($H$63-$C$38)/$D$38)*$K$38)+SQRT(SUM(($K$33^2),($K$34^2),($K$35^2),($K$36^2),($K$37^2))),IF($H$63<$C$40,((($H$63-$C$39)/$D$39)*$K$39)+SQRT(SUM(($K$33^2),($K$34^2),($K$35^2),($K$36^2),($K$37^2),($K$38^2))),IF($H$63<$C$41,((($H$63-$C$40)/$D$40)*$K$40)+SQRT(SUM(($K$33^2),($K$34^2),($K$35^2),($K$36^2),($K$37^2),($K$38^2),($K$39^2))),IF($H$63<$C$42,((($H$63-$C$41)/$D$41)*$K$41)+SQRT((($K$33^2)+($K$34^2)+($K$35^2)+($K$36^2)+($K$37^2)+($K$38^2)+($K$39^2)+($K$40^2))),"False"))))))) -> 673.9050612 | M63: =$L$46*0.5 -> 24902 | N63: 50% of Median Household Income | P63: =IF($M$63<$C$36,((($M$63-$C$35)/$D$35)*$L$35)+SUM($L$33:$L$34),IF($M$63<$C$37,((($M$63-$C$36)/$D$36)*$L$36)+SUM($L$33:$L$35),IF($M$63<$C$38,((($M$63-$C$37)/$D$37)*$L$37)+SUM($L$33:$L$36),IF($M$63<$C$39,((($M$63-$C$38)/$D$38)*$L$38)+SUM($L$33:$L$37),IF($M$63<$C$40,((($M$63-$C$39)/$D$39)*$L$39)+SUM($L$33:$L$38),IF($M$63<$C$41,((($M$63-$C$40)/$D$40)*$L$40)+SUM($L$33:$L$39),IF($M$63<$C$42,((($M$63-$C$41)/$D$41)*$L$41)+SUM($L$33:$L$40),"False"))))))) -> 2753.978596 | Q63: =IF($M$63<$C$36,((($M$63-$C$35)/$D$35)*$M$35)+SQRT(SUM(($M$33^2),($M$34^2))),IF($M$63<$C$37,((($M$63-$C$36)/$D$36)*$M$36)+SQRT(SUM(($M$33^2),($M$34^2),($M$35^2))),IF($M$63<$C$38,((($M$63-$C$37)/$D$37)*$M$37)+SQRT(SUM(($M$33^2),($M$34^2),($M$35^2),($M$36^2))),IF($M$63<$C$39,((($M$63-$C$38)/$D$38)*$M$38)+SQRT(SUM(($M$33^2),($M$34^2),($M$35^2),($M$36^2),($M$37^2))),IF($M$63<$C$40,((($M$63-$C$39)/$D$39)*$M$39)+SQRT(SUM(($M$33^2),($M$34^2),($M$35^2),($M$36^2),($M$37^2),($M$38^2))),IF($M$63<$C$41,((($M$63-$C$40)/$D$40)*$M$40)+SQRT(SUM(($M$33^2),($M$34^2),($M$35^2),($M$36^2),($M$37^2),($M$38^2),($M$39^2))),IF($M$63<$C$42,((($M$63-$C$41)/$D$41)*$M$41)+SQRT((($M$33^2)+($M$34^2)+($M$35^2)+($M$36^2)+($M$37^2)+($M$38^2)+($M$39^2)+($M$40^2))),"False"))))))) -> 567.3165702
C64: =$H$46*0.8 -> 63959.2 | D64: 80% of Median Household Income | F64: =IF($C$64<$C$36,((($C$64-$C$35)/$D$35)*$H$35)+SUM($H$33:$H$34),IF($C$64<$C$37,((($C$64-$C$36)/$D$36)*$H$36)+SUM($H$33:$H$35),IF($C$64<$C$38,((($C$64-$C$37)/$D$37)*$H$37)+SUM($H$33:$H$36),IF($C$64<$C$39,((($C$64-$C$38)/$D$38)*$H$38)+SUM($H$33:$H$37),IF($C$64<$C$40,((($C$64-$C$39)/$D$39)*$H$39)+SUM($H$33:$H$38),IF($C$64<$C$41,((($C$64-$C$40)/$D$40)*$H$40)+SUM($H$33:$H$39),IF($C$64<$C$42,((($C$64-$C$41)/$D$41)*$H$41)+SUM($H$33:$H$40),"False"))))))) -> 14149.18709 | G64: =IF($C$64<$C$36,((($C$64-$C$35)/$D$35)*$I$35)+SQRT(SUM(($I$33^2),($I$34^2))),IF($C$64<$C$37,((($C$64-$C$36)/$D$36)*$I$36)+SQRT(SUM(($I$33^2),($I$34^2),($I$35^2))),IF($C$64<$C$38,((($C$64-$C$37)/$D$37)*$I$37)+SQRT(SUM(($I$33^2),($I$34^2),($I$35^2),($I$36^2))),IF($C$64<$C$39,((($C$64-$C$38)/$D$38)*$I$38)+SQRT(SUM(($I$33^2),($I$34^2),($I$35^2),($I$36^2),($I$37^2))),IF($C$64<$C$40,((($C$64-$C$39)/$D$39)*$I$39)+SQRT(SUM(($I$33^2),($I$34^2),($I$35^2),($I$36^2),($I$37^2),($I$38^2))),IF($C$64<$C$41,((($C$64-$C$40)/$D$40)*$I$40)+SQRT(SUM(($I$33^2),($I$34^2),($I$35^2),($I$36^2),($I$37^2),($I$38^2),($I$39^2))),IF($C$64<$C$42,((($C$64-$C$41)/$D$41)*$I$41)+SQRT((($I$33^2)+($I$34^2)+($I$35^2)+($I$36^2)+($I$37^2)+($I$38^2)+($I$39^2)+($I$40^2))),"False"))))))) -> 1061.729986 | H64: =$J$46*0.8 -> 74974.4 | I64: 80% of Median Household Income | K64: =IF($H$64<$C$36,((($H$64-$C$35)/$D$35)*$J$35)+SUM($J$33:$J$34),IF($H$64<$C$37,((($H$64-$C$36)/$D$36)*$J$36)+SUM($J$33:$J$35),IF($H$64<$C$38,((($H$64-$C$37)/$D$37)*$J$37)+SUM($J$33:$J$36),IF($H$64<$C$39,((($H$64-$C$38)/$D$38)*$J$38)+SUM($J$33:$J$37),IF($H$64<$C$40,((($H$64-$C$39)/$D$39)*$J$39)+SUM($J$33:$J$38),IF($H$64<$C$41,((($H$64-$C$40)/$D$40)*$J$40)+SUM($J$33:$J$39),IF($H$64<$C$42,((($H$64-$C$41)/$D$41)*$J$41)+SUM($J$33:$J$40),"False"))))))) -> 9600.378735 | L64: =IF($H$64<$C$36,((($H$64-$C$35)/$D$35)*$K$35)+SQRT(SUM(($K$33^2),($K$34^2))),IF($H$64<$C$37,((($H$64-$C$36)/$D$36)*$K$36)+SQRT(SUM(($K$33^2),($K$34^2),($K$35^2))),IF($H$64<$C$38,((($H$64-$C$37)/$D$37)*$K$37)+SQRT(SUM(($K$33^2),($K$34^2),($K$35^2),($K$36^2))),IF($H$64<$C$39,((($H$64-$C$38)/$D$38)*$K$38)+SQRT(SUM(($K$33^2),($K$34^2),($K$35^2),($K$36^2),($K$37^2))),IF($H$64<$C$40,((($H$64-$C$39)/$D$39)*$K$39)+SQRT(SUM(($K$33^2),($K$34^2),($K$35^2),($K$36^2),($K$37^2),($K$38^2))),IF($H$64<$C$41,((($H$64-$C$40)/$D$40)*$K$40)+SQRT(SUM(($K$33^2),($K$34^2),($K$35^2),($K$36^2),($K$37^2),($K$38^2),($K$39^2))),IF($H$64<$C$42,((($H$64-$C$41)/$D$41)*$K$41)+SQRT((($K$33^2)+($K$34^2)+($K$35^2)+($K$36^2)+($K$37^2)+($K$38^2)+($K$39^2)+($K$40^2))),"False"))))))) -> 870.0216991 | M64: =$L$46*0.8 -> 39843.2 | N64: 80% of Median Household Income | P64: =IF($M$64<$C$36,((($M$64-$C$35)/$D$35)*$L$35)+SUM($L$33:$L$34),IF($M$64<$C$37,((($M$64-$C$36)/$D$36)*$L$36)+SUM($L$33:$L$35),IF($M$64<$C$38,((($M$64-$C$37)/$D$37)*$L$37)+SUM($L$33:$L$36),IF($M$64<$C$39,((($M$64-$C$38)/$D$38)*$L$38)+SUM($L$33:$L$37),IF($M$64<$C$40,((($M$64-$C$39)/$D$39)*$L$39)+SUM($L$33:$L$38),IF($M$64<$C$41,((($M$64-$C$40)/$D$40)*$L$40)+SUM($L$33:$L$39),IF($M$64<$C$42,((($M$64-$C$41)/$D$41)*$L$41)+SUM($L$33:$L$40),"False"))))))) -> 4388.659657 | Q64: =IF($M$64<$C$36,((($M$64-$C$35)/$D$35)*$M$35)+SQRT(SUM(($M$33^2),($M$34^2))),IF($M$64<$C$37,((($M$64-$C$36)/$D$36)*$M$36)+SQRT(SUM(($M$33^2),($M$34^2),($M$35^2))),IF($M$64<$C$38,((($M$64-$C$37)/$D$37)*$M$37)+SQRT(SUM(($M$33^2),($M$34^2),($M$35^2),($M$36^2))),IF($M$64<$C$39,((($M$64-$C$38)/$D$38)*$M$38)+SQRT(SUM(($M$33^2),($M$34^2),($M$35^2),($M$36^2),($M$37^2))),IF($M$64<$C$40,((($M$64-$C$39)/$D$39)*$M$39)+SQRT(SUM(($M$33^2),($M$34^2),($M$35^2),($M$36^2),($M$37^2),($M$38^2))),IF($M$64<$C$41,((($M$64-$C$40)/$D$40)*$M$40)+SQRT(SUM(($M$33^2),($M$34^2),($M$35^2),($M$36^2),($M$37^2),($M$38^2),($M$39^2))),IF($M$64<$C$42,((($M$64-$C$41)/$D$41)*$M$41)+SQRT((($M$33^2)+($M$34^2)+($M$35^2)+($M$36^2)+($M$37^2)+($M$38^2)+($M$39^2)+($M$40^2))),"False"))))))) -> 596.1930743

Sheet ACS_Source_Table_List (hidden)
A2: ACS Table B01001 | B2: x
A3: ACS Table B01002 | B3: x
A4: ACS Table B03002 | B4: x
A5: ACS Table B05002 | B5: x
A6: ACS Table B07003 | B6: x | C6: Replaces C07001
A7: ACS Table B11001 | B7: x
A8: ACS Table B11002 | B8: x
A9: ACS Table B14001 & B15002 | B9: x | C9: Replaces C15002
A10: ACS Table B17001 | B10: x
A11: ACS Table B17010 | B11: x | C11: Replaces C17010 | D11: Poverty Status by family type
A12: ACS Table B17017 | B12: x | C12: Replaces C17017 | D12: Poverty Status by HH type
A13: ACS Table B18001 | C13: Removed Disability Tables
A14: ACS Table C18001 | C14: Removed Disability Tables
A15: ACS Table B18003 | C15: Removed Disability Tables
A16: ACS Table B18004 | C16: Removed Disability Tables
A17: ACS Table B18005 | C17: Removed Disability Tables
A18: ACS Table B18006 | C18: Removed Disability Tables
A19: ACS Table B18007 | C19: Removed Disability Tables
A20: ACS Table B18008 | C20: Removed Disability Tables
A21: ACS Table B19001 | B21: x
A22: ACS Table B19037 | B22: x
A23: ACS Table B19049 | B23: x
A24: ACS Table B19101& B19113 | B24: s
A25: ACS Table B19201 & B19202 | B25: s
A26: ACS Table B25001, B25003 & B25004 | B26: x
A27: ACS Table B25008 | B27: x
A28: ACS Table B25010 | B28: x
A29: ACS Table B25024 | B29: x
A30: ACS Table B25032 | B30: x
A31: ACS Table B25034 & B25041 | B31: x
A32: ACS Table B25063 & B25064 | B32: x
A33: ACS Table B25070 & B25074 | B33: x
A34: ACS Table B25075 & B25077 | B34: x
A35: ACS Table B25088 | B35: x
A36: ACS Table B25091 | B36: x
A37: ACS Table B25118 & B25119 | B37: x
A44: Tables Removed from 5 Year Estimates
A45: ACS Table C19001 | B45: x | C45: May have to consolidate this table from Table B19001. This has already been done. For 5 year estimates remove worksheet.
A46: ACS Table B25094 | B46: x | C46: No Comparison Table for B25094 Removed
A47: ACS Table B25101 | C47: No Comparison Table for B25101 Removed
A48: ACS Table B25104 & B25105 | C48: No Comparison Table for B25104 & B25105 Removed
A49: ACS Table B25106 | B49: x | C49: No Comparison Table for B25106 Removed

Sheet CntyDataLink (hidden)
A1: 1 | B1: =A1+1 -> 2 | C1: =B1+1 -> 3 | D1: 4 | E1: 5 | F1: 6 | G1: 7 | H1: 8 | I1: 9 | J1: 10 | K1: 11 | L1: 12 | M1: 13 | N1: 14 | O1: 15 | P1: =O1+1 -> 16 | Q1: 17 | R1: 18 | S1: 19 | T1: 20 | U1: 21 | V1: 22 | W1: 23 | X1: 24 | Y1: 25 | Z1: 26 | AA1: 27 | AB1: 28 | AC1: 29 | AD1: 30 | AE1: 31 | AF1: 32 | AG1: 33 | AH1: 34 | AI1: 35 | AJ1: 36 | AK1: 37 | AL1: 38 | AM1: 39 | AN1: 40 | AO1: 41 | AP1: 42 | AQ1: 43 | AR1: 44 | AS1: 45 | AT1: 46 | AU1: 47 | AV1: 48 | AW1: 49 | AX1: 50 | AY1: 51 | AZ1: 52 | BA1: 53 | BB1: 54 | BC1: 55 | BD1: 56 | BE1: 57 | BF1: 58 | BG1: 59 | BH1: 60 | BI1: 61 | BJ1: 62 | BK1: 63 | BL1: 64 | BM1: 65 | BN1: 66 | BO1: =BN1+1 -> 67 | BP1: 68 | BQ1: 69 | BR1: 70 | BS1: 71 | BT1: 72 | BU1: 73 | BV1: 74 | BW1: 75 | BX1: 76 | BY1: 77 | BZ1: 78 | CA1: 79 | CB1: 80 | CC1: 81 | CD1: 82 | CE1: 83 | CF1: 84 | CG1: 85 | CH1: 86 | CI1: 87 | CJ1: 88 | CK1: 89 | CL1: 90 | CM1: 91 | CN1: 92 | CO1: 93 | CP1: 94 | CQ1: 95 | CR1: 96 | CS1: 97 | CT1: 98 | CU1: 99 | CV1: 100 | CW1: 101 | CX1: 102 | CY1: 103 | CZ1: 104 | DA1: 105 | DB1: 106 | DC1: 107 | DD1: 108 | DE1: 109 | DF1: 110 | DG1: 111 | DH1: 112 | DI1: 113 | DJ1: 114 | DK1: 115 | DL1: 116 | DM1: 117 | DN1: 118 | DO1: 119 | DP1: 120 | DQ1: 121 | DR1: 122 | DS1: 123 | DT1: 124 | DU1: 125 | DV1: 126 | DW1: 127 | DX1: 128 | DY1: 129 | DZ1: 130 | EA1: =DZ1+1 -> 131 | EB1: 132 | EC1: 133 | ED1: 134 | EE1: 135 | EF1: 136 | EG1: 137 | EH1: 138 | EI1: 139 | EJ1: 140 | EK1: 141 | EL1: 142 | EM1: 143 | EN1: 144 | EO1: 145 | EP1: 146 | EQ1: 147 | ER1: 148 | ES1: 149 | ET1: 150 | EU1: 151 | EV1: 152 | EW1: 153 | EX1: 154 | EY1: 155 | EZ1: 156 | FA1: 157 | FB1: 158 | FC1: 159 | FD1: 160 | FE1: 161 | FF1: 162 | FG1: 163 | FH1: 164 | FI1: 165 | FJ1: 166 | FK1: 167 | FL1: 168 | FM1: 169 | FN1: 170 | FO1: 171 | FP1: 172 | FQ1: 173 | FR1: 174 | FS1: 175 | FT1: 176 | FU1: 177 | FV1: 178 | FW1: 179 | FX1: 180 | FY1: 181 | FZ1: 182 | GA1: 183 | GB1: 184 | GC1: 185 | GD1: 186 | GE1: 187 | GF1: 188 | GG1: 189 | GH1: 190 | GI1: 191 | GJ1: 192 | GK1: 193 | GL1: 194 | GM1: =GL1+1 -> 195 | GN1: 196 | GO1: 197 | GP1: 198 | GQ1: 199 | GR1: 200 | GS1: 201 | GT1: 202 | GU1: 203 | GV1: 204 | GW1: 205 | GX1: 206 | GY1: 207 | GZ1: 208 | HA1: 209 | HB1: 210 | HC1: 211 | HD1: 212 | HE1: 213 | HF1: 214 | HG1: 215 | HH1: 216 | HI1: 217 | HJ1: 218 | HK1: 219 | HL1: 220 | HM1: 221 | HN1: 222 | HO1: 223 | HP1: 224 | HQ1: 225 | HR1: 226 | HS1: 227 | HT1: 228 | HU1: 229 | HV1: 230 | HW1: 231 | HX1: 232 | HY1: 233 | HZ1: 234 | IA1: 235 | IB1: 236 | IC1: 237 | ID1: 238 | IE1: 239 | IF1: 240 | IG1: 241 | IH1: 242 | II1: 243
A3: Census 1990 Data - Query Name: DPCnty90Census
A4: CountyName | B4: Cnty_Code | C4: Census_Cnty_Code | D4: LandAcres | E4: WaterAcres | F4: HousingUnits90Cen | G4: Persons90Cen | H4: Families90Cen | I4: Households90cen | J4: MalePop90cen | K4: FemalePop90cen | L4: WhitePop | M4: BlackPop | N4: AmerIndianPop | O4: AsianPIPop | P4: OtherRacePop | Q4: HispanicOrPop | R4: AgeUnder15_90cen | S4: Age15to24_90cen | T4: Age25to34_90cen | U4: Age35to44_90cen | V4: Age45to54_90cen | W4: Age55to64_90cen | X4: Age65to74_90cen | Y4: Age75andOver_90cen | Z4: PersonsInHH90cen | AA4: PersonsInFamHH90cen | AB4: PersonsInGC | AC4: PersonsPerHH90cen | AD4: PersonsPerFam90Cen | AE4: SinglePersonHH90cen | AF4: MarriedCoupleHH90cen | AG4: SingleParentHH90cen | AH4: NonFamilyHH90cen | AI4: TotalHousingUnits | AJ4: OccupiedHousingUnits | AK4: VacantHousingUnits | AL4: OwnerOccHU | AM4: RenterOccHU | AN4: VacantForRent90 | AO4: VacantForSale90 | AP4: VacantSeasonalRec | AQ4: SingFamHU90cen | AR4: MultiFamHU90cen | AS4: MobileHom90cen | AT4: SingFamOwnHU90cen | AU4: MultiFamOwnHU90cen | AV4: MobileHomOwnHU90cen | AW4: SingFamRntrHU90cen | AX4: MultiFamRntrHU90cen | AY4: MobileHomRntrHU90cen | AZ4: HU<5yrs90cen | BA4: HU5to20yrs90cen | BB4: HU20to50yrs90cen | BC4: HU>50yrs90cen | BD4: Units0Bedroom90cen | BE4: Units1Bedroom90cen | BF4: Units2Bedroom90cen | BG4: Units3Bedroom90cen | BH4: Units4+Bedroom90cen | BI4: HI<5K | BJ4: HI5Kto10K | BK4: HI10Kto15K | BL4: HI15Kto25K | BM4: HI25Kto35K | BN4: HI35Kto50K | BO4: HI50Kto75K | BP4: HI75Kto100K | BQ4: HI>100K | BR4: MedHI | BS4: HH<25HI<5K | BT4: HH<25HI5Kto10K | BU4: HH<25HI10Kto15K | BV4: HH<25HI15Kto25K | BW4: HH<25HI25Kto35K | BX4: HH<25HI35Kto50K | BY4: HH<25HI50Kto75K | BZ4: HH<25HI75Kto100K | CA4: HH<25HI>100K | CB4: HH25to34HI<5K | CC4: HH25to34HI5Kto10K | CD4: HH25to34HI10Kto15K | CE4: HH25to34HI15Kto25K | CF4: HH25to34HI25Kto35K | CG4: HH25to34HI35Kto50K | CH4: HH25to34HI50Kto75K | CI4: HH25to34HI75Kto100K | CJ4: HH25to34HI>100K | CK4: HH35to44HI<5K | CL4: HH35to44HI5Kto10K | CM4: HH35to44HI10Kto15K | CN4: HH35to44HI15Kto25K | CO4: HH35to44HI25Kto35K | CP4: HH35to44HI35Kto50K | CQ4: HH35to44HI50Kto75K | CR4: HH35to44HI75Kto100K | CS4: HH35to44HI>100K | CT4: HH45to54HI<5K | CU4: HH45to54HI5Kto10K | CV4: HH45to54HI10Kto15K | CW4: HH45to54HI15Kto25K | CX4: HH45to54HI25Kto35K | CY4: HH45to54HI35Kto50K | CZ4: HH45to54HI50Kto75K | DA4: HH45to54HI75Kto100K | DB4: HH45to54HI>100K | DC4: HH55to64HI<5K | DD4: HH55to64HI5Kto10K | DE4: HH55to64HI10Kto15K | DF4: HH55to64HI15Kto25K | DG4: HH55to64HI25Kto35K | DH4: HH55to64HI35Kto50K | DI4: HH55to64HI50Kto75K | DJ4: HH55to64HI75Kto100K | DK4: HH55to64HI>100K | DL4: HH65to74HI<5K | DM4: HH65to74HI5Kto10K | DN4: HH65to74HI10Kto15K | DO4: HH65to74HI15Kto25K | DP4: HH65to74HI25Kto35K | DQ4: HH65to74HI35Kto50K | DR4: HH65to74HI50Kto75K | DS4: HH65to74HI75Kto100K | DT4: HH65to74HI>100K | DU4: HH>75HI<5K | DV4: HH>75HI5Kto10K | DW4: HH>75HI10Kto15K | DX4: HH>75HI15Kto25K | DY4: HH>75HI25Kto35K | DZ4: HH>75HI35Kto50K | EA4: HH>75HI50Kto75K | EB4: HH>75HI75Kto100K | EC4: HH>75HI>100K | ED4: SchoolEnrollment1thru12 | EE4: Pop25andOver | EF4: HSGradorHigher | EG4: CollGradorHigher | EH4: NativePop | EI4: ForeignBornPop | EJ4: BornStateOfRes | EK4: NativePop2 | EL4: ForeignBornPop2 | EM4: DroveAlone | EN4: CarPooled | EO4: PublicTranspt | EP4: Walked | EQ4: OtherMeans | ER4: WorkedAtHome | ES4: HHInc<10K | ET4: HHInc10to15K | EU4: HHInc15to25K | EV4: HHInc25to35K | EW4: HHInc35to50K | EX4: HHInc50to75K | EY4: HHInc75to100K | EZ4: HHInc100to150K | FA4: HHInc>150K
A5: =VLOOKUP(DropDownList!$A$19,CntyQuery!$A$5:$FA$15,A1) -> Grafton County | B5: =VLOOKUP(DropDownList!$A$19,CntyQuery!$A$5:$FA$15,B$1) -> 5 | C5: =VLOOKUP(DropDownList!$A$19,CntyQuery!$A$5:$FA$15,C$1) -> 009 | D5: =VLOOKUP(DropDownList!$A$19,CntyQuery!$A$5:$FA$15,D$1) -> 1096323.55 | E5: =VLOOKUP(DropDownList!$A$19,CntyQuery!$A$5:$FA$15,E$1) -> 23419.8 | F5: =VLOOKUP(DropDownList!$A$19,CntyQuery!$A$5:$FA$15,F$1) -> 42206 | G5: =VLOOKUP(DropDownList!$A$19,CntyQuery!$A$5:$FA$15,G$1) -> 74929 | H5: =VLOOKUP(DropDownList!$A$19,CntyQuery!$A$5:$FA$15,H$1) -> 18544 | I5: =VLOOKUP(DropDownList!$A$19,CntyQuery!$A$5:$FA$15,I$1) -> 27542 | J5: =VLOOKUP(DropDownList!$A$19,CntyQuery!$A$5:$FA$15,J$1) -> 36966 | K5: =VLOOKUP(DropDownList!$A$19,CntyQuery!$A$5:$FA$15,K$1) -> 37963 | L5: =VLOOKUP(DropDownList!$A$19,CntyQuery!$A$5:$FA$15,L$1) -> 73395 | M5: =VLOOKUP(DropDownList!$A$19,CntyQuery!$A$5:$FA$15,M$1) -> 404 | N5: =VLOOKUP(DropDownList!$A$19,CntyQuery!$A$5:$FA$15,N$1) -> 186 | O5: =VLOOKUP(DropDownList!$A$19,CntyQuery!$A$5:$FA$15,O$1) -> 831 | P5: =VLOOKUP(DropDownList!$A$19,CntyQuery!$A$5:$FA$15,P$1) -> 113 | Q5: =VLOOKUP(DropDownList!$A$19,CntyQuery!$A$5:$FA$15,Q$1) -> 599 | R5: =VLOOKUP(DropDownList!$A$19,CntyQuery!$A$5:$FA$15,R$1) -> 14599 | S5: =VLOOKUP(DropDownList!$A$19,CntyQuery!$A$5:$FA$15,S$1) -> 14423 | T5: =VLOOKUP(DropDownList!$A$19,CntyQuery!$A$5:$FA$15,T$1) -> 11835 | U5: =VLOOKUP(DropDownList!$A$19,CntyQuery!$A$5:$FA$15,U$1) -> 11550 | V5: =VLOOKUP(DropDownList!$A$19,CntyQuery!$A$5:$FA$15,V$1) -> 7115 | W5: =VLOOKUP(DropDownList!$A$19,CntyQuery!$A$5:$FA$15,W$1) -> 6121 | X5: =VLOOKUP(DropDownList!$A$19,CntyQuery!$A$5:$FA$15,X$1) -> 5200 | Y5: =VLOOKUP(DropDownList!$A$19,CntyQuery!$A$5:$FA$15,Y$1) -> 4086 | Z5: =VLOOKUP(DropDownList!$A$19,CntyQuery!$A$5:$FA$15,Z$1) -> 69187 | AA5: =VLOOKUP(DropDownList!$A$19,CntyQuery!$A$5:$FA$15,AA$1) -> 56838 | AB5: =VLOOKUP(DropDownList!$A$19,CntyQuery!$A$5:$FA$15,AB$1) -> 5742 | AC5: =VLOOKUP(DropDownList!$A$19,CntyQuery!$A$5:$FA$15,AC$1) -> 2.512054317 | AD5: =VLOOKUP(DropDownList!$A$19,CntyQuery!$A$5:$FA$15,AD$1) -> 3.065034513 | AE5: =VLOOKUP(DropDownList!$A$19,CntyQuery!$A$5:$FA$15,AE$1) -> 6717 | AF5: =VLOOKUP(DropDownList!$A$19,CntyQuery!$A$5:$FA$15,AF$1) -> 15430 | AG5: =VLOOKUP(DropDownList!$A$19,CntyQuery!$A$5:$FA$15,AG$1) -> 3114 | AH5: =VLOOKUP(DropDownList!$A$19,CntyQuery!$A$5:$FA$15,AH$1) -> 2281 | AI5: =VLOOKUP(DropDownList!$A$19,CntyQuery!$A$5:$FA$15,AI$1) -> 42206 | AJ5: =VLOOKUP(DropDownList!$A$19,CntyQuery!$A$5:$FA$15,AJ$1) -> 27542 | AK5: =VLOOKUP(DropDownList!$A$19,CntyQuery!$A$5:$FA$15,AK$1) -> 14664 | AL5: =VLOOKUP(DropDownList!$A$19,CntyQuery!$A$5:$FA$15,AL$1) -> 18500 | AM5: =VLOOKUP(DropDownList!$A$19,CntyQuery!$A$5:$FA$15,AM$1) -> 9042 | AN5: =VLOOKUP(DropDownList!$A$19,CntyQuery!$A$5:$FA$15,AN$1) -> 1388 | AO5: =VLOOKUP(DropDownList!$A$19,CntyQuery!$A$5:$FA$15,AO$1) -> 899 | AP5: =VLOOKUP(DropDownList!$A$19,CntyQuery!$A$5:$FA$15,AP$1) -> 10558 | AQ5: =VLOOKUP(DropDownList!$A$19,CntyQuery!$A$5:$FA$15,AQ$1) -> 24402 | AR5: =VLOOKUP(DropDownList!$A$19,CntyQuery!$A$5:$FA$15,AR$1) -> 13249 | AS5: =VLOOKUP(DropDownList!$A$19,CntyQuery!$A$5:$FA$15,AS$1) -> 4555 | AT5: =VLOOKUP(DropDownList!$A$19,CntyQuery!$A$5:$FA$15,AT$1) -> 14707 | AU5: =VLOOKUP(DropDownList!$A$19,CntyQuery!$A$5:$FA$15,AU$1) -> 1271 | AV5: =VLOOKUP(DropDownList!$A$19,CntyQuery!$A$5:$FA$15,AV$1) -> 4555 | AW5: =VLOOKUP(DropDownList!$A$19,CntyQuery!$A$5:$FA$15,AW$1) -> 2033 | AX5: =VLOOKUP(DropDownList!$A$19,CntyQuery!$A$5:$FA$15,AX$1) -> 6411 | AY5: =VLOOKUP(DropDownList!$A$19,CntyQuery!$A$5:$FA$15,AY$1) -> 598 | AZ5: =VLOOKUP(DropDownList!$A$19,CntyQuery!$A$5:$FA$15,AZ$1) -> 8171 | BA5: =VLOOKUP(DropDownList!$A$19,CntyQuery!$A$5:$FA$15,BA$1) -> 12597 | BB5: =VLOOKUP(DropDownList!$A$19,CntyQuery!$A$5:$FA$15,BB$1) -> 7599 | BC5: =VLOOKUP(DropDownList!$A$19,CntyQuery!$A$5:$FA$15,BC$1) -> 13839 | BD5: =VLOOKUP(DropDownList!$A$19,CntyQuery!$A$5:$FA$15,BD$1) -> 754 | BE5: =VLOOKUP(DropDownList!$A$19,CntyQuery!$A$5:$FA$15,BE$1) -> 5861 | BF5: =VLOOKUP(DropDownList!$A$19,CntyQuery!$A$5:$FA$15,BF$1) -> 13240 | BG5: =VLOOKUP(DropDownList!$A$19,CntyQuery!$A$5:$FA$15,BG$1) -> 15103 | BH5: =VLOOKUP(DropDownList!$A$19,CntyQuery!$A$5:$FA$15,BH$1) -> 7248 | BI5: =VLOOKUP(DropDownList!$A$19,CntyQuery!$A$5:$FA$15,BI$1) -> 1244 | BJ5: =VLOOKUP(DropDownList!$A$19,CntyQuery!$A$5:$FA$15,BJ$1) -> 2515 | BK5: =VLOOKUP(DropDownList!$A$19,CntyQuery!$A$5:$FA$15,BK$1) -> 2684 | BL5: =VLOOKUP(DropDownList!$A$19,CntyQuery!$A$5:$FA$15,BL$1) -> 4912 | BM5: =VLOOKUP(DropDownList!$A$19,CntyQuery!$A$5:$FA$15,BM$1) -> 4722 | BN5: =VLOOKUP(DropDownList!$A$19,CntyQuery!$A$5:$FA$15,BN$1) -> 5427 | BO5: =VLOOKUP(DropDownList!$A$19,CntyQuery!$A$5:$FA$15,BO$1) -> 4109 | BP5: =VLOOKUP(DropDownList!$A$19,CntyQuery!$A$5:$FA$15,BP$1) -> 911 | BQ5: =VLOOKUP(DropDownList!$A$19,CntyQuery!$A$5:$FA$15,BQ$1) -> 1003 | BR5: =VLOOKUP(DropDownList!$A$19,CntyQuery!$A$5:$FA$15,BR$1) -> 30065 | BS5: =VLOOKUP(DropDownList!$A$19,CntyQuery!$A$5:$FA$15,BS$1) -> 189 | BT5: =VLOOKUP(DropDownList!$A$19,CntyQuery!$A$5:$FA$15,BT$1) -> 236 | BU5: =VLOOKUP(DropDownList!$A$19,CntyQuery!$A$5:$FA$15,BU$1) -> 294 | BV5: =VLOOKUP(DropDownList!$A$19,CntyQuery!$A$5:$FA$15,BV$1) -> 572 | BW5: =VLOOKUP(DropDownList!$A$19,CntyQuery!$A$5:$FA$15,BW$1) -> 342 | BX5: =VLOOKUP(DropDownList!$A$19,CntyQuery!$A$5:$FA$15,BX$1) -> 238 | BY5: =VLOOKUP(DropDownList!$A$19,CntyQuery!$A$5:$FA$15,BY$1) -> 81 | BZ5: =VLOOKUP(DropDownList!$A$19,CntyQuery!$A$5:$FA$15,BZ$1) -> 13 | CA5: =VLOOKUP(DropDownList!$A$19,CntyQuery!$A$5:$FA$15,CA$1) -> 0 | CB5: =VLOOKUP(DropDownList!$A$19,CntyQuery!$A$5:$FA$15,CB$1) -> 125 | CC5: =VLOOKUP(DropDownList!$A$19,CntyQuery!$A$5:$FA$15,CC$1) -> 224 | CD5: =VLOOKUP(DropDownList!$A$19,CntyQuery!$A$5:$FA$15,CD$1) -> 423 | CE5: =VLOOKUP(DropDownList!$A$19,CntyQuery!$A$5:$FA$15,CE$1) -> 1209 | CF5: =VLOOKUP(DropDownList!$A$19,CntyQuery!$A$5:$FA$15,CF$1) -> 1174 | CG5: =VLOOKUP(DropDownList!$A$19,CntyQuery!$A$5:$FA$15,CG$1) -> 1395 | CH5: =VLOOKUP(DropDownList!$A$19,CntyQuery!$A$5:$FA$15,CH$1) -> 810 | CI5: =VLOOKUP(DropDownList!$A$19,CntyQuery!$A$5:$FA$15,CI$1) -> 141 | CJ5: =VLOOKUP(DropDownList!$A$19,CntyQuery!$A$5:$FA$15,CJ$1) -> 130 | CK5: =VLOOKUP(DropDownList!$A$19,CntyQuery!$A$5:$FA$15,CK$1) -> 121 | CL5: =VLOOKUP(DropDownList!$A$19,CntyQuery!$A$5:$FA$15,CL$1) -> 184 | CM5: =VLOOKUP(DropDownList!$A$19,CntyQuery!$A$5:$FA$15,CM$1) -> 364 | CN5: =VLOOKUP(DropDownList!$A$19,CntyQuery!$A$5:$FA$15,CN$1) -> 975 | CO5: =VLOOKUP(DropDownList!$A$19,CntyQuery!$A$5:$FA$15,CO$1) -> 1214 | CP5: =VLOOKUP(DropDownList!$A$19,CntyQuery!$A$5:$FA$15,CP$1) -> 1690 | CQ5: =VLOOKUP(DropDownList!$A$19,CntyQuery!$A$5:$FA$15,CQ$1) -> 1259 | CR5: =VLOOKUP(DropDownList!$A$19,CntyQuery!$A$5:$FA$15,CR$1) -> 245 | CS5: =VLOOKUP(DropDownList!$A$19,CntyQuery!$A$5:$FA$15,CS$1) -> 319 | CT5: =VLOOKUP(DropDownList!$A$19,CntyQuery!$A$5:$FA$15,CT$1) -> 101 | CU5: =VLOOKUP(DropDownList!$A$19,CntyQuery!$A$5:$FA$15,CU$1) -> 116 | CV5: =VLOOKUP(DropDownList!$A$19,CntyQuery!$A$5:$FA$15,CV$1) -> 236 | CW5: =VLOOKUP(DropDownList!$A$19,CntyQuery!$A$5:$FA$15,CW$1) -> 461 | CX5: =VLOOKUP(DropDownList!$A$19,CntyQuery!$A$5:$FA$15,CX$1) -> 710 | CY5: =VLOOKUP(DropDownList!$A$19,CntyQuery!$A$5:$FA$15,CY$1) -> 927 | CZ5: =VLOOKUP(DropDownList!$A$19,CntyQuery!$A$5:$FA$15,CZ$1) -> 894 | DA5: =VLOOKUP(DropDownList!$A$19,CntyQuery!$A$5:$FA$15,DA$1) -> 259 | DB5: =VLOOKUP(DropDownList!$A$19,CntyQuery!$A$5:$FA$15,DB$1) -> 269 | DC5: =VLOOKUP(DropDownList!$A$19,CntyQuery!$A$5:$FA$15,DC$1) -> 164 | DD5: =VLOOKUP(DropDownList!$A$19,CntyQuery!$A$5:$FA$15,DD$1) -> 235 | DE5: =VLOOKUP(DropDownList!$A$19,CntyQuery!$A$5:$FA$15,DE$1) -> 289 | DF5: =VLOOKUP(DropDownList!$A$19,CntyQuery!$A$5:$FA$15,DF$1) -> 678 | DG5: =VLOOKUP(DropDownList!$A$19,CntyQuery!$A$5:$FA$15,DG$1) -> 625 | DH5: =VLOOKUP(DropDownList!$A$19,CntyQuery!$A$5:$FA$15,DH$1) -> 555 | DI5: =VLOOKUP(DropDownList!$A$19,CntyQuery!$A$5:$FA$15,DI$1) -> 604 | DJ5: =VLOOKUP(DropDownList!$A$19,CntyQuery!$A$5:$FA$15,DJ$1) -> 173 | DK5: =VLOOKUP(DropDownList!$A$19,CntyQuery!$A$5:$FA$15,DK$1) -> 184 | DL5: =VLOOKUP(DropDownList!$A$19,CntyQuery!$A$5:$FA$15,DL$1) -> 233 | DM5: =VLOOKUP(DropDownList!$A$19,CntyQuery!$A$5:$FA$15,DM$1) -> 596 | DN5: =VLOOKUP(DropDownList!$A$19,CntyQuery!$A$5:$FA$15,DN$1) -> 642 | DO5: =VLOOKUP(DropDownList!$A$19,CntyQuery!$A$5:$FA$15,DO$1) -> 614 | DP5: =VLOOKUP(DropDownList!$A$19,CntyQuery!$A$5:$FA$15,DP$1) -> 418 | DQ5: =VLOOKUP(DropDownList!$A$19,CntyQuery!$A$5:$FA$15,DQ$1) -> 474 | DR5: =VLOOKUP(DropDownList!$A$19,CntyQuery!$A$5:$FA$15,DR$1) -> 337 | DS5: =VLOOKUP(DropDownList!$A$19,CntyQuery!$A$5:$FA$15,DS$1) -> 55 | DT5: =VLOOKUP(DropDownList!$A$19,CntyQuery!$A$5:$FA$15,DT$1) -> 78 | DU5: =VLOOKUP(DropDownList!$A$19,CntyQuery!$A$5:$FA$15,DU$1) -> 311 | DV5: =VLOOKUP(DropDownList!$A$19,CntyQuery!$A$5:$FA$15,DV$1) -> 924 | DW5: =VLOOKUP(DropDownList!$A$19,CntyQuery!$A$5:$FA$15,DW$1) -> 436 | DX5: =VLOOKUP(DropDownList!$A$19,CntyQuery!$A$5:$FA$15,DX$1) -> 403 | DY5: =VLOOKUP(DropDownList!$A$19,CntyQuery!$A$5:$FA$15,DY$1) -> 239 | DZ5: =VLOOKUP(DropDownList!$A$19,CntyQuery!$A$5:$FA$15,DZ$1) -> 148 | EA5: =VLOOKUP(DropDownList!$A$19,CntyQuery!$A$5:$FA$15,EA$1) -> 124 | EB5: =VLOOKUP(DropDownList!$A$19,CntyQuery!$A$5:$FA$15,EB$1) -> 25 | EC5: =VLOOKUP(DropDownList!$A$19,CntyQuery!$A$5:$FA$15,EC$1) -> 23 | ED5: =VLOOKUP(DropDownList!$A$19,CntyQuery!$A$5:$FA$15,ED$1) -> 11188 | EE5: =VLOOKUP(DropDownList!$A$19,CntyQuery!$A$5:$FA$15,EE$1) -> 45960 | EF5: =VLOOKUP(DropDownList!$A$19,CntyQuery!$A$5:$FA$15,EF$1) -> 37390 | EG5: =VLOOKUP(DropDownList!$A$19,CntyQuery!$A$5:$FA$15,EG$1) -> 12123 | EH5: =VLOOKUP(DropDownList!$A$19,CntyQuery!$A$5:$FA$15,EH$1) -> 72572 | EI5: =VLOOKUP(DropDownList!$A$19,CntyQuery!$A$5:$FA$15,EI$1) -> 2357 | EJ5: =VLOOKUP(DropDownList!$A$19,CntyQuery!$A$5:$FA$15,EJ$1) -> 35079 | EK5: =VLOOKUP(DropDownList!$A$19,CntyQuery!$A$5:$FA$15,EK$1) -> 72572 | EL5: =VLOOKUP(DropDownList!$A$19,CntyQuery!$A$5:$FA$15,EL$1) -> 2357 | EM5: =VLOOKUP(DropDownList!$A$19,CntyQuery!$A$5:$FA$15,EM$1) -> 25347 | EN5: =VLOOKUP(DropDownList!$A$19,CntyQuery!$A$5:$FA$15,EN$1) -> 4602 | EO5: =VLOOKUP(DropDownList!$A$19,CntyQuery!$A$5:$FA$15,EO$1) -> 218 | EP5: =VLOOKUP(DropDownList!$A$19,CntyQuery!$A$5:$FA$15,EP$1) -> 3704 | EQ5: =VLOOKUP(DropDownList!$A$19,CntyQuery!$A$5:$FA$15,EQ$1) -> 593 | ER5: =VLOOKUP(DropDownList!$A$19,CntyQuery!$A$5:$FA$15,ER$1) -> 1671 | ES5: =VLOOKUP(DropDownList!$A$19,CntyQuery!$A$5:$FA$15,ES$1) -> 3759 | ET5: =VLOOKUP(DropDownList!$A$19,CntyQuery!$A$5:$FA$15,ET$1) -> 2684 | EU5: =VLOOKUP(DropDownList!$A$19,CntyQuery!$A$5:$FA$15,EU$1) -> 4912 | EV5: =VLOOKUP(DropDownList!$A$19,CntyQuery!$A$5:$FA$15,EV$1) -> 4722 | EW5: =VLOOKUP(DropDownList!$A$19,CntyQuery!$A$5:$FA$15,EW$1) -> 5427 | EX5: =VLOOKUP(DropDownList!$A$19,CntyQuery!$A$5:$FA$15,EX$1) -> 4109 | EY5: =VLOOKUP(DropDownList!$A$19,CntyQuery!$A$5:$FA$15,EY$1) -> 911 | EZ5: =VLOOKUP(DropDownList!$A$19,CntyQuery!$A$5:$FA$15,EZ$1) -> 737 | FA5: =VLOOKUP(DropDownList!$A$19,CntyQuery!$A$5:$FA$15,FA$1) -> 266
A8: Census 1990 Data - Query Name: CountySTF1Qry1
A9: NAME | B9: COUSUBFP | C9: Census_Cnty_Code | D9: FIPS | E9: LandAcres | F9: WaterAcres | G9: HousingUnits90Cen | H9: P01Persons90Cen | I9: P02Families90Cen | J9: P03Households90cen | K9: P05MalePop90cen | L9: P05FemalePop90cen | M9: P06WhitePop | N9: P06BlackPop | O9: P06AmerIndianPop | P9: P06AsianPIPop | Q9: P06OtherRacePop | R9: P08HispanicOrPop | S9: P11AgeUnder15_90cen | T9: P11Age15to24_90cen | U9: P11Age25to34_90cen | V9: P11Age35to44_90cen | W9: P11Age45to54_90cen | X9: P11Age55to64_90cen | Y9: P11Age65to74_90cen | Z9: P11Age75andOver_90cen | AA9: P15PersonsInHH90cen | AB9: P15PersonsInFamHH90cen | AC9: P15PersonsInGC | AD9: PersonsPerHH90cen | AE9: PersonsPerFam90Cen | AF9: P16SinglePersonHH90cen | AG9: P16MarriedCoupleHH90cen | AH9: P16SingleParentHH90cen | AI9: P16NonFamilyHH90cen | AJ9: H01TotalHousingUnits | AK9: H02OccupiedHousingUnits | AL9: H02VacantHousingUnits | AM9: H03OwnerOccHU | AN9: H03RenterOccHU | AO9: H05VacantForRent90 | AP9: H05VacantForSale90 | AQ9: H05VacantSeasonalRec | AR9: H23OOHUVal<15k | AS9: H23OOHUVal15to19k | AT9: H23OOHUVal20to24k | AU9: H23OOHUVal25to29k | AV9: H23OOHUVal30to34k | AW9: H23OOHUVal35to39k | AX9: H23OOHUVal40to44k | AY9: H23OOHUVal45to49k | AZ9: H23OOHUVal50to59k | BA9: H23OOHUVal60to74k | BB9: H23OOHUVal75to99k | BC9: H23OOHUVal100to124k | BD9: H23OOHUVal125to149k | BE9: H23OOHUVal150to174k | BF9: H23OOHUVal175to199k | BG9: H23OOHUVal200to249k | BH9: H23OOHUVal250to299k | BI9: H23OOHUVal300to399k | BJ9: H23OOHUVal400to499k | BK9: H23OOHUVal500kOrMore | BL9: H23BOOHUMedVal | BM9: H41SingFamHU90cen | BN9: H41MultiFamHU90cen | BO9: H41MobileHom90cen | BP9: H43SingFamOwnHU90cen | BQ9: H43MultiFamOwnHU90cen | BR9: H43MobileHomOwnHU90cen | BS9: H43SingFamRntrHU90cen | BT9: H43MultiFamRntrHU90cen | BU9: H43MobileHomRntrHU90cen | BV9: H41HU1UnitDet | BW9: H41HU1UnitAtt | BX9: H41HU2Unit | BY9: H41HU3to4Unit | BZ9: H41HU5to9Unit | CA9: H41HU10to19Unit | CB9: H41HU20to49Unit | CC9: H41HU50PlusUnit | CD9: H41HUMobilH | CE9: H41HUOther
A10: =VLOOKUP(DropDownList!$A$19,CntyQuery!$A$20:$CE$30,A$1) -> Grafton County | B10: =VLOOKUP(DropDownList!$A$19,CntyQuery!$A$20:$CE$30,B$1) -> 00005 | C10: =VLOOKUP(DropDownList!$A$19,CntyQuery!$A$20:$CE$30,C$1) -> 009 | D10: =VLOOKUP(DropDownList!$A$19,CntyQuery!$A$20:$CE$30,D$1) -> 9000 | E10: =VLOOKUP(DropDownList!$A$19,CntyQuery!$A$20:$CE$30,E$1) -> 1096323.55 | F10: =VLOOKUP(DropDownList!$A$19,CntyQuery!$A$20:$CE$30,F$1) -> 23419.8 | G10: =VLOOKUP(DropDownList!$A$19,CntyQuery!$A$20:$CE$30,G$1) -> 42206 | H10: =VLOOKUP(DropDownList!$A$19,CntyQuery!$A$20:$CE$30,H$1) -> 74929 | I10: =VLOOKUP(DropDownList!$A$19,CntyQuery!$A$20:$CE$30,I$1) -> 18544 | J10: =VLOOKUP(DropDownList!$A$19,CntyQuery!$A$20:$CE$30,J$1) -> 27542 | K10: =VLOOKUP(DropDownList!$A$19,CntyQuery!$A$20:$CE$30,K$1) -> 36966 | L10: =VLOOKUP(DropDownList!$A$19,CntyQuery!$A$20:$CE$30,L$1) -> 37963 | M10: =VLOOKUP(DropDownList!$A$19,CntyQuery!$A$20:$CE$30,M$1) -> 73395 | N10: =VLOOKUP(DropDownList!$A$19,CntyQuery!$A$20:$CE$30,N$1) -> 404 | O10: =VLOOKUP(DropDownList!$A$19,CntyQuery!$A$20:$CE$30,O$1) -> 186 | P10: =VLOOKUP(DropDownList!$A$19,CntyQuery!$A$20:$CE$30,P$1) -> 831 | Q10: =VLOOKUP(DropDownList!$A$19,CntyQuery!$A$20:$CE$30,Q$1) -> 113 | R10: =VLOOKUP(DropDownList!$A$19,CntyQuery!$A$20:$CE$30,R$1) -> 599 | S10: =VLOOKUP(DropDownList!$A$19,CntyQuery!$A$20:$CE$30,S$1) -> 14599 | T10: =VLOOKUP(DropDownList!$A$19,CntyQuery!$A$20:$CE$30,T$1) -> 14423 | U10: =VLOOKUP(DropDownList!$A$19,CntyQuery!$A$20:$CE$30,U$1) -> 11835 | V10: =VLOOKUP(DropDownList!$A$19,CntyQuery!$A$20:$CE$30,V$1) -> 11550 | W10: =VLOOKUP(DropDownList!$A$19,CntyQuery!$A$20:$CE$30,W$1) -> 7115 | X10: =VLOOKUP(DropDownList!$A$19,CntyQuery!$A$20:$CE$30,X$1) -> 6121 | Y10: =VLOOKUP(DropDownList!$A$19,CntyQuery!$A$20:$CE$30,Y$1) -> 5200 | Z10: =VLOOKUP(DropDownList!$A$19,CntyQuery!$A$20:$CE$30,Z$1) -> 4086 | AA10: =VLOOKUP(DropDownList!$A$19,CntyQuery!$A$20:$CE$30,AA$1) -> 69187 | AB10: =VLOOKUP(DropDownList!$A$19,CntyQuery!$A$20:$CE$30,AB$1) -> 56838 | AC10: =VLOOKUP(DropDownList!$A$19,CntyQuery!$A$20:$CE$30,AC$1) -> 5742 | AD10: =VLOOKUP(DropDownList!$A$19,CntyQuery!$A$20:$CE$30,AD$1) -> 2.512054317 | AE10: =VLOOKUP(DropDownList!$A$19,CntyQuery!$A$20:$CE$30,AE$1) -> 3.065034513 | AF10: =VLOOKUP(DropDownList!$A$19,CntyQuery!$A$20:$CE$30,AF$1) -> 6717 | AG10: =VLOOKUP(DropDownList!$A$19,CntyQuery!$A$20:$CE$30,AG$1) -> 15430 | AH10: =VLOOKUP(DropDownList!$A$19,CntyQuery!$A$20:$CE$30,AH$1) -> 3114 | AI10: =VLOOKUP(DropDownList!$A$19,CntyQuery!$A$20:$CE$30,AI$1) -> 2281 | AJ10: =VLOOKUP(DropDownList!$A$19,CntyQuery!$A$20:$CE$30,AJ$1) -> 42206 | AK10: =VLOOKUP(DropDownList!$A$19,CntyQuery!$A$20:$CE$30,AK$1) -> 27542 | AL10: =VLOOKUP(DropDownList!$A$19,CntyQuery!$A$20:$CE$30,AL$1) -> 14664 | AM10: =VLOOKUP(DropDownList!$A$19,CntyQuery!$A$20:$CE$30,AM$1) -> 18500 | AN10: =VLOOKUP(DropDownList!$A$19,CntyQuery!$A$20:$CE$30,AN$1) -> 9042 | AO10: =VLOOKUP(DropDownList!$A$19,CntyQuery!$A$20:$CE$30,AO$1) -> 1388 | AP10: =VLOOKUP(DropDownList!$A$19,CntyQuery!$A$20:$CE$30,AP$1) -> 899 | AQ10: =VLOOKUP(DropDownList!$A$19,CntyQuery!$A$20:$CE$30,AQ$1) -> 10558 | AR10: =VLOOKUP(DropDownList!$A$19,CntyQuery!$A$20:$CE$30,AR$1) -> 58 | AS10: =VLOOKUP(DropDownList!$A$19,CntyQuery!$A$20:$CE$30,AS$1) -> 50 | AT10: =VLOOKUP(DropDownList!$A$19,CntyQuery!$A$20:$CE$30,AT$1) -> 58 | AU10: =VLOOKUP(DropDownList!$A$19,CntyQuery!$A$20:$CE$30,AU$1) -> 87 | AV10: =VLOOKUP(DropDownList!$A$19,CntyQuery!$A$20:$CE$30,AV$1) -> 112 | AW10: =VLOOKUP(DropDownList!$A$19,CntyQuery!$A$20:$CE$30,AW$1) -> 119 | AX10: =VLOOKUP(DropDownList!$A$19,CntyQuery!$A$20:$CE$30,AX$1) -> 197 | AY10: =VLOOKUP(DropDownList!$A$19,CntyQuery!$A$20:$CE$30,AY$1) -> 177 | AZ10: =VLOOKUP(DropDownList!$A$19,CntyQuery!$A$20:$CE$30,AZ$1) -> 556 | BA10: =VLOOKUP(DropDownList!$A$19,CntyQuery!$A$20:$CE$30,BA$1) -> 1166 | BB10: =VLOOKUP(DropDownList!$A$19,CntyQuery!$A$20:$CE$30,BB$1) -> 2834 | BC10: =VLOOKUP(DropDownList!$A$19,CntyQuery!$A$20:$CE$30,BC$1) -> 2020 | BD10: =VLOOKUP(DropDownList!$A$19,CntyQuery!$A$20:$CE$30,BD$1) -> 1420 | BE10: =VLOOKUP(DropDownList!$A$19,CntyQuery!$A$20:$CE$30,BE$1) -> 968 | BF10: =VLOOKUP(DropDownList!$A$19,CntyQuery!$A$20:$CE$30,BF$1) -> 525 | BG10: =VLOOKUP(DropDownList!$A$19,CntyQuery!$A$20:$CE$30,BG$1) -> 599 | BH10: =VLOOKUP(DropDownList!$A$19,CntyQuery!$A$20:$CE$30,BH$1) -> 314 | BI10: =VLOOKUP(DropDownList!$A$19,CntyQuery!$A$20:$CE$30,BI$1) -> 276 | BJ10: =VLOOKUP(DropDownList!$A$19,CntyQuery!$A$20:$CE$30,BJ$1) -> 113 | BK10: =VLOOKUP(DropDownList!$A$19,CntyQuery!$A$20:$CE$30,BK$1) -> 96 | BL10: =VLOOKUP(DropDownList!$A$19,CntyQuery!$A$20:$CE$30,BL$1) -> 105700 | BM10: =VLOOKUP(DropDownList!$A$19,CntyQuery!$A$20:$CE$30,BM$1) -> 24402 | BN10: =VLOOKUP(DropDownList!$A$19,CntyQuery!$A$20:$CE$30,BN$1) -> 13249 | BO10: =VLOOKUP(DropDownList!$A$19,CntyQuery!$A$20:$CE$30,BO$1) -> 4555 | BP10: =VLOOKUP(DropDownList!$A$19,CntyQuery!$A$20:$CE$30,BP$1) -> 14707 | BQ10: =VLOOKUP(DropDownList!$A$19,CntyQuery!$A$20:$CE$30,BQ$1) -> 1271 | BR10: =VLOOKUP(DropDownList!$A$19,CntyQuery!$A$20:$CE$30,BR$1) -> 2522 | BS10: =VLOOKUP(DropDownList!$A$19,CntyQuery!$A$20:$CE$30,BS$1) -> 2033 | BT10: =VLOOKUP(DropDownList!$A$19,CntyQuery!$A$20:$CE$30,BT$1) -> 6411 | BU10: =VLOOKUP(DropDownList!$A$19,CntyQuery!$A$20:$CE$30,BU$1) -> 598 | BV10: =VLOOKUP(DropDownList!$A$19,CntyQuery!$A$20:$CE$30,BV$1) -> 24402 | BW10: =VLOOKUP(DropDownList!$A$19,CntyQuery!$A$20:$CE$30,BW$1) -> 1797 | BX10: =VLOOKUP(DropDownList!$A$19,CntyQuery!$A$20:$CE$30,BX$1) -> 2565 | BY10: =VLOOKUP(DropDownList!$A$19,CntyQuery!$A$20:$CE$30,BY$1) -> 2633 | BZ10: =VLOOKUP(DropDownList!$A$19,CntyQuery!$A$20:$CE$30,BZ$1) -> 3120 | CA10: =VLOOKUP(DropDownList!$A$19,CntyQuery!$A$20:$CE$30,CA$1) -> 1832 | CB10: =VLOOKUP(DropDownList!$A$19,CntyQuery!$A$20:$CE$30,CB$1) -> 863 | CC10: =VLOOKUP(DropDownList!$A$19,CntyQuery!$A$20:$CE$30,CC$1) -> 439 | CD10: =VLOOKUP(DropDownList!$A$19,CntyQuery!$A$20:$CE$30,CD$1) -> 3732 | CE10: =VLOOKUP(DropDownList!$A$19,CntyQuery!$A$20:$CE$30,CE$1) -> 823
A13: Census 1990 Data - Query Name: CountySTF3Qry1
A14: NAME | B14: FIPS | C14: COUSUBFP | D14: LandAcres | E14: WaterAcres | F14: HousingUnits90Cen | G14: P01Persons90Cen | H14: P02Families90Cen | I14: P03Households90cen | J14: H25HU<5yrs90cen | K14: H25HU5to20yrs90cen | L14: H25HU20to50yrs90cen | M14: H25HU>50yrs90cen | N14: H31Units0Bedroom90cen | O14: H31Units1Bedroom90cen | P14: H31Units2Bedroom90cen | Q14: H31Units3Bedroom90cen | R14: H31Units4Bedroom90cen | S14: H31Units5+Bedroom90cen | T14: P80HI<5K | U14: P80HI5Kto10K | V14: P80HI10Kto15K | W14: P80HI15Kto25K | X14: P80HI25Kto35K | Y14: P80HI35Kto50K | Z14: P80HI50Kto75K | AA14: P80HI75Kto100K | AB14: P80HI>100K | AC14: P80AMedHI | AD14: P86HH<25HI<5K | AE14: P86HH<25HI5Kto10K | AF14: P86HH<25HI10Kto15K | AG14: P86HH<25HI15Kto25K | AH14: P86HH<25HI25Kto35K | AI14: P86HH<25HI35Kto50K | AJ14: P86HH<25HI50Kto75K | AK14: P86HH<25HI75Kto100K | AL14: P86HH<25HI>100K | AM14: P86HH25to34HI<5K | AN14: P86HH25to34HI5Kto10K | AO14: P86HH25to34HI10Kto15K | AP14: P86HH25to34HI15Kto25K | AQ14: P86HH25to34HI25Kto35K | AR14: P86HH25to34HI35Kto50K | AS14: P86HH25to34HI50Kto75K | AT14: P86HH25to34HI75Kto100K | AU14: P86HH25to34HI>100K | AV14: P86HH35to44HI<5K | AW14: P86HH35to44HI5Kto10K | AX14: P86HH35to44HI10Kto15K | AY14: P86HH35to44HI15Kto25K | AZ14: P86HH35to44HI25Kto35K | BA14: P86HH35to44HI35Kto50K | BB14: P86HH35to44HI50Kto75K | BC14: P86HH35to44HI75Kto100K | BD14: P86HH35to44HI>100K | BE14: P86HH45to54HI<5K | BF14: P86HH45to54HI5Kto10K | BG14: P86HH45to54HI10Kto15K | BH14: P86HH45to54HI15Kto25K | BI14: P86HH45to54HI25Kto35K | BJ14: P86HH45to54HI35Kto50K | BK14: P86HH45to54HI50Kto75K | BL14: P86HH45to54HI75Kto100K | BM14: P86HH45to54HI>100K | BN14: P86HH55to64HI<5K | BO14: P86HH55to64HI5Kto10K | BP14: P86HH55to64HI10Kto15K | BQ14: P86HH55to64HI15Kto25K | BR14: P86HH55to64HI25Kto35K | BS14: P86HH55to64HI35Kto50K | BT14: P86HH55to64HI50Kto75K | BU14: P86HH55to64HI75Kto100K | BV14: P86HH55to64HI>100K | BW14: P86HH65to74HI<5K | BX14: P86HH65to74HI5Kto10K | BY14: P86HH65to74HI10Kto15K | BZ14: P86HH65to74HI15Kto25K | CA14: P86HH65to74HI25Kto35K | CB14: P86HH65to74HI35Kto50K | CC14: P86HH65to74HI50Kto75K | CD14: P86HH65to74HI75Kto100K | CE14: P86HH65to74HI>100K | CF14: P86HH>75HI<5K | CG14: P86HH>75HI5Kto10K | CH14: P86HH>75HI10Kto15K | CI14: P86HH>75HI15Kto25K | CJ14: P86HH>75HI25Kto35K | CK14: P86HH>75HI35Kto50K | CL14: P86HH>75HI50Kto75K | CM14: P86HH>75HI75Kto100K | CN14: P86HH>75HI>100K | CO14: P54SchlEnrlPrePrim | CP14: P54SchlEnrlElemThrHS | CQ14: P54SchlEnrlCollege | CR14: P54NotEnrlInSch | CS14: P57Pop25andOver | CT14: P57LessThan9thGrade | CU14: P579thto12thNoDip | CV14: P57HSGrad | CW14: P57SomeCollege | CX14: P57AssocDeg | CY14: P57BachelDeg | CZ14: P57GradorProfDeg | DA14: P57HSGradorHigher | DB14: P57CollGradorHigher | DC14: P42NativePop | DD14: P42ForeignBornPop | DE14: P42BornStateOfRes | DF14: P37NativePop2 | DG14: P37ForeignBornPop2 | DH14: P49DroveAlone | DI14: P49CarPooled | DJ14: P49PublicTranspt | DK14: P49Walked | DL14: P49OtherMeans | DM14: P49WorkedAtHome | DN14: P80HHInc<10K | DO14: P80HHInc10to15K | DP14: P80HHInc15to25K | DQ14: P80HHInc25to35K | DR14: P80HHInc35to50K | DS14: P80HHInc50to75K | DT14: P80HHInc75to100K | DU14: P80HHInc100to150K | DV14: P80HHInc>150K | DW14: H25YearStBlt89to90 | DX14: H25YearStBlt85to88 | DY14: H25YearStBlt80to84 | DZ14: H25YearStBlt70to79 | EA14: H25YearStBlt60to69 | EB14: H25YearStBlt50to59 | EC14: H25YearStBlt40to49 | ED14: H25YearStBlt39earlier | EE14: P107FamInc<10K | EF14: P107FamInc10to15K | EG14: P107FamInc15to25K | EH14: P107FamInc25to35K | EI14: P107FamInc35to50K | EJ14: P107FamInc50to75K | EK14: P107FamInc75to100K | EL14: P107FamInc100to150K | EM14: P107FamInc>150K | EN14: P107AMedFamInc | EO14: P110NonFamInc<10K | EP14: P110NonFamInc10to15K | EQ14: P110NonFamInc15to25K | ER14: P110NonFamInc25to35K | ES14: P110NonFamInc35to50K | ET14: P110NonFamInc50to75K | EU14: P110NonFamInc75to100K | EV14: P110NonFamInc100to150K | EW14: P110NonFamInc>150K | EX14: P110AMedNonFamInc | EY14: H16HU1Room | EZ14: H16HU2Room | FA14: H16HU3Room | FB14: H16HU4Room | FC14: H16HU5Room | FD14: H16HU6Room | FE14: H16HU7Room | FF14: H16HU8Room | FG14: H16HU9+Room | FH14: H43GrossRnt<100 | FI14: H43GrossRnt100to149 | FJ14: H43GrossRnt150to199 | FK14: H43GrossRnt200to249 | FL14: H43GrossRnt250to299 | FM14: H43GrossRnt300to349 | FN14: H43GrossRnt350to399 | FO14: H43GrossRnt400to449 | FP14: H43GrossRnt450to499 | FQ14: H43GrossRnt500to549 | FR14: H43GrossRnt550to599 | FS14: H43GrossRnt600to649 | FT14: H43GrossRnt650to699 | FU14: H43GrossRnt700to749 | FV14: H43GrossRnt750to999 | FW14: H43GrossRnt1000Plus | FX14: H43NoCashRent | FY14: H43MedGrossRent | FZ14: H51GrossRnt<20PctHHInc | GA14: H51GrossRnt20to24PctHHInc | GB14: H51GrossRnt25to29PctHHInc | GC14: H51GrossRnt30to34PctHHInc | GD14: H51GrossRnt35PctOrMoreHHInc | GE14: H51GrossRntAsPctHHIncNotComp | GF14: H52HUwMtgMoOwnCst<200 | GG14: H52HUwMtgMoOwnCst200to299 | GH14: H52HUwMtgMoOwnCst300to399 | GI14: H52HUwMtgMoOwnCst400to499 | GJ14: H52HUwMtgMoOwnCst500to599 | GK14: H52HUwMtgMoOwnCst600to699 | GL14: H52HUwMtgMoOwnCst700to799 | GM14: H52HUwMtgMoOwnCst800to899 | GN14: H52HUwMtgMoOwnCst900to999 | GO14: H52HUwMtgMoOwnCst1000to1249 | GP14: H52HUwMtgMoOwnCst1250to1499 | GQ14: H52HUwMtgMoOwnCst1500to1999 | GR14: H52HUwMtgMoOwnCst2000More | GS14: H52HUwNoMtgMoOwnCst<100 | GT14: H52HUwNoMtgMoOwnCst100to149 | GU14: H52HUwNoMtgMoOwnCst150to199 | GV14: H52HUwNoMtgMoOwnCst200to249 | GW14: H52HUwNoMtgMoOwnCst250to299 | GX14: H52HUwNoMtgMoOwnCst300to349 | GY14: H52HUwNoMtgMoOwnCst350to399 | GZ14: H52HUwNoMtgMoOwnCst400More | HA14: H52AMedMoOwnCstWMortg | HB14: H52AMedMoOwnCstWNoMortg | HC14: H58HUwMtgMOC<20pHHInc | HD14: H58HUwMtgMOC20to24pHHInc | HE14: H58HUwMtgMOC25to29pHHInc | HF14: H58HUwMtgMOC30to34pHHInc | HG14: H58wMtgMOC>35pHHInc | HH14: H58HUwMtgMOCNotComp | HI14: H58HUwNoMtgMOC<20pHHInc | HJ14: H58HUwNoMtgMOC20to24pHHInc | HK14: H58HUwNoMtgMOC25to29pHHInc | HL14: H58HUwNoMtgMOC30to34pHHInc | HM14: H58wNoMtgMOC>35pHHInc | HN14: H58HUwNoMtgMOCNotComp | HO14: H61OOHUVal<15k | HP14: H61OOHUVal15to19k | HQ14: H61OOHUVal20to24k | HR14: H61OOHUVal25to29k | HS14: H61OOHUVal30to34k | HT14: H61OOHUVal35to39k | HU14: H61OOHUVal40to44k | HV14: H61OOHUVal45to49k | HW14: H61OOHUVal50to59k | HX14: H61OOHUVal60to74k | HY14: H61OOHUVal75to99k | HZ14: H61OOHUVal100to124k | IA14: H61OOHUVal125to149k | IB14: H61OOHUVal150to174k | IC14: H61OOHUVal175to199k | ID14: H61OOHUVal200to249k | IE14: H61OOHUVal250to299k | IF14: H61OOHUVal300to399k | IG14: H61OOHUVal400to499k | IH14: H61OOHUVal500kOrMore | II14: H61aOOHUMedVal
A15: =VLOOKUP(DropDownList!$A$19,CntyQuery!$A$37:$CE$47,A$1) -> Grafton County | B15: =VLOOKUP(DropDownList!$A$19,CntyQuery!$A$37:$II$47,B$1) -> 9000 | C15: =VLOOKUP(DropDownList!$A$19,CntyQuery!$A$37:$II$47,C$1) -> 00005 | D15: =VLOOKUP(DropDownList!$A$19,CntyQuery!$A$37:$II$47,D$1) -> 1096323.55 | E15: =VLOOKUP(DropDownList!$A$19,CntyQuery!$A$37:$II$47,E$1) -> 23419.8 | F15: =VLOOKUP(DropDownList!$A$19,CntyQuery!$A$37:$II$47,F$1) -> 42206 | G15: =VLOOKUP(DropDownList!$A$19,CntyQuery!$A$37:$II$47,G$1) -> 74929 | H15: =VLOOKUP(DropDownList!$A$19,CntyQuery!$A$37:$II$47,H$1) -> 18544 | I15: =VLOOKUP(DropDownList!$A$19,CntyQuery!$A$37:$II$47,I$1) -> 27542 | J15: =VLOOKUP(DropDownList!$A$19,CntyQuery!$A$37:$II$47,J$1) -> 8171 | K15: =VLOOKUP(DropDownList!$A$19,CntyQuery!$A$37:$II$47,K$1) -> 12597 | L15: =VLOOKUP(DropDownList!$A$19,CntyQuery!$A$37:$II$47,L$1) -> 7599 | M15: =VLOOKUP(DropDownList!$A$19,CntyQuery!$A$37:$II$47,M$1) -> 13839 | N15: =VLOOKUP(DropDownList!$A$19,CntyQuery!$A$37:$II$47,N$1) -> 754 | O15: =VLOOKUP(DropDownList!$A$19,CntyQuery!$A$37:$II$47,O$1) -> 5861 | P15: =VLOOKUP(DropDownList!$A$19,CntyQuery!$A$37:$II$47,P$1) -> 13240 | Q15: =VLOOKUP(DropDownList!$A$19,CntyQuery!$A$37:$II$47,Q$1) -> 15103 | R15: =VLOOKUP(DropDownList!$A$19,CntyQuery!$A$37:$II$47,R$1) -> 5396 | S15: =VLOOKUP(DropDownList!$A$19,CntyQuery!$A$37:$II$47,S$1) -> 1852 | T15: =VLOOKUP(DropDownList!$A$19,CntyQuery!$A$37:$II$47,T$1) -> 1244 | U15: =VLOOKUP(DropDownList!$A$19,CntyQuery!$A$37:$II$47,U$1) -> 2515 | V15: =VLOOKUP(DropDownList!$A$19,CntyQuery!$A$37:$II$47,V$1) -> 2684 | W15: =VLOOKUP(DropDownList!$A$19,CntyQuery!$A$37:$II$47,W$1) -> 4912 | X15: =VLOOKUP(DropDownList!$A$19,CntyQuery!$A$37:$II$47,X$1) -> 4722 | Y15: =VLOOKUP(DropDownList!$A$19,CntyQuery!$A$37:$II$47,Y$1) -> 5427 | Z15: =VLOOKUP(DropDownList!$A$19,CntyQuery!$A$37:$II$47,Z$1) -> 4109 | AA15: =VLOOKUP(DropDownList!$A$19,CntyQuery!$A$37:$II$47,AA$1) -> 911 | AB15: =VLOOKUP(DropDownList!$A$19,CntyQuery!$A$37:$II$47,AB$1) -> 1003 | AC15: =VLOOKUP(DropDownList!$A$19,CntyQuery!$A$37:$II$47,AC$1) -> 30065 | AD15: =VLOOKUP(DropDownList!$A$19,CntyQuery!$A$37:$II$47,AD$1) -> 189 | AE15: =VLOOKUP(DropDownList!$A$19,CntyQuery!$A$37:$II$47,AE$1) -> 236 | AF15: =VLOOKUP(DropDownList!$A$19,CntyQuery!$A$37:$II$47,AF$1) -> 294 | AG15: =VLOOKUP(DropDownList!$A$19,CntyQuery!$A$37:$II$47,AG$1) -> 572 | AH15: =VLOOKUP(DropDownList!$A$19,CntyQuery!$A$37:$II$47,AH$1) -> 342 | AI15: =VLOOKUP(DropDownList!$A$19,CntyQuery!$A$37:$II$47,AI$1) -> 238 | AJ15: =VLOOKUP(DropDownList!$A$19,CntyQuery!$A$37:$II$47,AJ$1) -> 81 | AK15: =VLOOKUP(DropDownList!$A$19,CntyQuery!$A$37:$II$47,AK$1) -> 13 | AL15: =VLOOKUP(DropDownList!$A$19,CntyQuery!$A$37:$II$47,AL$1) -> 0 | AM15: =VLOOKUP(DropDownList!$A$19,CntyQuery!$A$37:$II$47,AM$1) -> 125 | AN15: =VLOOKUP(DropDownList!$A$19,CntyQuery!$A$37:$II$47,AN$1) -> 224 | AO15: =VLOOKUP(DropDownList!$A$19,CntyQuery!$A$37:$II$47,AO$1) -> 423 | AP15: =VLOOKUP(DropDownList!$A$19,CntyQuery!$A$37:$II$47,AP$1) -> 1209 | AQ15: =VLOOKUP(DropDownList!$A$19,CntyQuery!$A$37:$II$47,AQ$1) -> 1174 | AR15: =VLOOKUP(DropDownList!$A$19,CntyQuery!$A$37:$II$47,AR$1) -> 1395 | AS15: =VLOOKUP(DropDownList!$A$19,CntyQuery!$A$37:$II$47,AS$1) -> 810 | AT15: =VLOOKUP(DropDownList!$A$19,CntyQuery!$A$37:$II$47,AT$1) -> 141 | AU15: =VLOOKUP(DropDownList!$A$19,CntyQuery!$A$37:$II$47,AU$1) -> 130 | AV15: =VLOOKUP(DropDownList!$A$19,CntyQuery!$A$37:$II$47,AV$1) -> 121 | AW15: =VLOOKUP(DropDownList!$A$19,CntyQuery!$A$37:$II$47,AW$1) -> 184 | AX15: =VLOOKUP(DropDownList!$A$19,CntyQuery!$A$37:$II$47,AX$1) -> 364 | AY15: =VLOOKUP(DropDownList!$A$19,CntyQuery!$A$37:$II$47,AY$1) -> 975 | AZ15: =VLOOKUP(DropDownList!$A$19,CntyQuery!$A$37:$II$47,AZ$1) -> 1214 | BA15: =VLOOKUP(DropDownList!$A$19,CntyQuery!$A$37:$II$47,BA$1) -> 1690 | BB15: =VLOOKUP(DropDownList!$A$19,CntyQuery!$A$37:$II$47,BB$1) -> 1259 | BC15: =VLOOKUP(DropDownList!$A$19,CntyQuery!$A$37:$II$47,BC$1) -> 245 | BD15: =VLOOKUP(DropDownList!$A$19,CntyQuery!$A$37:$II$47,BD$1) -> 319 | BE15: =VLOOKUP(DropDownList!$A$19,CntyQuery!$A$37:$II$47,BE$1) -> 101 | BF15: =VLOOKUP(DropDownList!$A$19,CntyQuery!$A$37:$II$47,BF$1) -> 116 | BG15: =VLOOKUP(DropDownList!$A$19,CntyQuery!$A$37:$II$47,BG$1) -> 236 | BH15: =VLOOKUP(DropDownList!$A$19,CntyQuery!$A$37:$II$47,BH$1) -> 461 | BI15: =VLOOKUP(DropDownList!$A$19,CntyQuery!$A$37:$II$47,BI$1) -> 710 | BJ15: =VLOOKUP(DropDownList!$A$19,CntyQuery!$A$37:$II$47,BJ$1) -> 927 | BK15: =VLOOKUP(DropDownList!$A$19,CntyQuery!$A$37:$II$47,BK$1) -> 894 | BL15: =VLOOKUP(DropDownList!$A$19,CntyQuery!$A$37:$II$47,BL$1) -> 259 | BM15: =VLOOKUP(DropDownList!$A$19,CntyQuery!$A$37:$II$47,BM$1) -> 269 | BN15: =VLOOKUP(DropDownList!$A$19,CntyQuery!$A$37:$II$47,BN$1) -> 164 | BO15: =VLOOKUP(DropDownList!$A$19,CntyQuery!$A$37:$II$47,BO$1) -> 235 | BP15: =VLOOKUP(DropDownList!$A$19,CntyQuery!$A$37:$II$47,BP$1) -> 289 | BQ15: =VLOOKUP(DropDownList!$A$19,CntyQuery!$A$37:$II$47,BQ$1) -> 678 | BR15: =VLOOKUP(DropDownList!$A$19,CntyQuery!$A$37:$II$47,BR$1) -> 625 | BS15: =VLOOKUP(DropDownList!$A$19,CntyQuery!$A$37:$II$47,BS$1) -> 555 | BT15: =VLOOKUP(DropDownList!$A$19,CntyQuery!$A$37:$II$47,BT$1) -> 604 | BU15: =VLOOKUP(DropDownList!$A$19,CntyQuery!$A$37:$II$47,BU$1) -> 173 | BV15: =VLOOKUP(DropDownList!$A$19,CntyQuery!$A$37:$II$47,BV$1) -> 184 | BW15: =VLOOKUP(DropDownList!$A$19,CntyQuery!$A$37:$II$47,BW$1) -> 233 | BX15: =VLOOKUP(DropDownList!$A$19,CntyQuery!$A$37:$II$47,BX$1) -> 596 | BY15: =VLOOKUP(DropDownList!$A$19,CntyQuery!$A$37:$II$47,BY$1) -> 642 | BZ15: =VLOOKUP(DropDownList!$A$19,CntyQuery!$A$37:$II$47,BZ$1) -> 614 | CA15: =VLOOKUP(DropDownList!$A$19,CntyQuery!$A$37:$II$47,CA$1) -> 418 | CB15: =VLOOKUP(DropDownList!$A$19,CntyQuery!$A$37:$II$47,CB$1) -> 474 | CC15: =VLOOKUP(DropDownList!$A$19,CntyQuery!$A$37:$II$47,CC$1) -> 337 | CD15: =VLOOKUP(DropDownList!$A$19,CntyQuery!$A$37:$II$47,CD$1) -> 55 | CE15: =VLOOKUP(DropDownList!$A$19,CntyQuery!$A$37:$II$47,CE$1) -> 78 | CF15: =VLOOKUP(DropDownList!$A$19,CntyQuery!$A$37:$II$47,CF$1) -> 311 | CG15: =VLOOKUP(DropDownList!$A$19,CntyQuery!$A$37:$II$47,CG$1) -> 924 | CH15: =VLOOKUP(DropDownList!$A$19,CntyQuery!$A$37:$II$47,CH$1) -> 436 | CI15: =VLOOKUP(DropDownList!$A$19,CntyQuery!$A$37:$II$47,CI$1) -> 403 | CJ15: =VLOOKUP(DropDownList!$A$19,CntyQuery!$A$37:$II$47,CJ$1) -> 239 | CK15: =VLOOKUP(DropDownList!$A$19,CntyQuery!$A$37:$II$47,CK$1) -> 148 | CL15: =VLOOKUP(DropDownList!$A$19,CntyQuery!$A$37:$II$47,CL$1) -> 124 | CM15: =VLOOKUP(DropDownList!$A$19,CntyQuery!$A$37:$II$47,CM$1) -> 25 | CN15: =VLOOKUP(DropDownList!$A$19,CntyQuery!$A$37:$II$47,CN$1) -> 23 | CO15: =VLOOKUP(DropDownList!$A$19,CntyQuery!$A$37:$II$47,CO$1) -> 1078 | CP15: =VLOOKUP(DropDownList!$A$19,CntyQuery!$A$37:$II$47,CP$1) -> 11188 | CQ15: =VLOOKUP(DropDownList!$A$19,CntyQuery!$A$37:$II$47,CQ$1) -> 9325 | CR15: =VLOOKUP(DropDownList!$A$19,CntyQuery!$A$37:$II$47,CR$1) -> 50419 | CS15: =VLOOKUP(DropDownList!$A$19,CntyQuery!$A$37:$II$47,CS$1) -> 45960 | CT15: =VLOOKUP(DropDownList!$A$19,CntyQuery!$A$37:$II$47,CT$1) -> 3263 | CU15: =VLOOKUP(DropDownList!$A$19,CntyQuery!$A$37:$II$47,CU$1) -> 5307 | CV15: =VLOOKUP(DropDownList!$A$19,CntyQuery!$A$37:$II$47,CV$1) -> 15177 | CW15: =VLOOKUP(DropDownList!$A$19,CntyQuery!$A$37:$II$47,CW$1) -> 6932 | CX15: =VLOOKUP(DropDownList!$A$19,CntyQuery!$A$37:$II$47,CX$1) -> 3158 | CY15: =VLOOKUP(DropDownList!$A$19,CntyQuery!$A$37:$II$47,CY$1) -> 7347 | CZ15: =VLOOKUP(DropDownList!$A$19,CntyQuery!$A$37:$II$47,CZ$1) -> 4776 | DA15: =VLOOKUP(DropDownList!$A$19,CntyQuery!$A$37:$II$47,DA$1) -> 37390 | DB15: =VLOOKUP(DropDownList!$A$19,CntyQuery!$A$37:$II$47,DB$1) -> 12123 | DC15: =VLOOKUP(DropDownList!$A$19,CntyQuery!$A$37:$II$47,DC$1) -> 72572 | DD15: =VLOOKUP(DropDownList!$A$19,CntyQuery!$A$37:$II$47,DD$1) -> 2357 | DE15: =VLOOKUP(DropDownList!$A$19,CntyQuery!$A$37:$II$47,DE$1) -> 35079 | DF15: =VLOOKUP(DropDownList!$A$19,CntyQuery!$A$37:$II$47,DF$1) -> 72572 | DG15: =VLOOKUP(DropDownList!$A$19,CntyQuery!$A$37:$II$47,DG$1) -> 2357 | DH15: =VLOOKUP(DropDownList!$A$19,CntyQuery!$A$37:$II$47,DH$1) -> 25347 | DI15: =VLOOKUP(DropDownList!$A$19,CntyQuery!$A$37:$II$47,DI$1) -> 4602 | DJ15: =VLOOKUP(DropDownList!$A$19,CntyQuery!$A$37:$II$47,DJ$1) -> 218 | DK15: =VLOOKUP(DropDownList!$A$19,CntyQuery!$A$37:$II$47,DK$1) -> 3704 | DL15: =VLOOKUP(DropDownList!$A$19,CntyQuery!$A$37:$II$47,DL$1) -> 593 | DM15: =VLOOKUP(DropDownList!$A$19,CntyQuery!$A$37:$II$47,DM$1) -> 1671 | DN15: =VLOOKUP(DropDownList!$A$19,CntyQuery!$A$37:$II$47,DN$1) -> 3759 | DO15: =VLOOKUP(DropDownList!$A$19,CntyQuery!$A$37:$II$47,DO$1) -> 2684 | DP15: =VLOOKUP(DropDownList!$A$19,CntyQuery!$A$37:$II$47,DP$1) -> 4912 | DQ15: =VLOOKUP(DropDownList!$A$19,CntyQuery!$A$37:$II$47,DQ$1) -> 4722 | DR15: =VLOOKUP(DropDownList!$A$19,CntyQuery!$A$37:$II$47,DR$1) -> 5427 | DS15: =VLOOKUP(DropDownList!$A$19,CntyQuery!$A$37:$II$47,DS$1) -> 4109 | DT15: =VLOOKUP(DropDownList!$A$19,CntyQuery!$A$37:$II$47,DT$1) -> 911 | DU15: =VLOOKUP(DropDownList!$A$19,CntyQuery!$A$37:$II$47,DU$1) -> 737 | DV15: =VLOOKUP(DropDownList!$A$19,CntyQuery!$A$37:$II$47,DV$1) -> 266 | DW15: =VLOOKUP(DropDownList!$A$19,CntyQuery!$A$37:$II$47,DW$1) -> 1918 | DX15: =VLOOKUP(DropDownList!$A$19,CntyQuery!$A$37:$II$47,DX$1) -> 6253 | DY15: =VLOOKUP(DropDownList!$A$19,CntyQuery!$A$37:$II$47,DY$1) -> 3767 | DZ15: =VLOOKUP(DropDownList!$A$19,CntyQuery!$A$37:$II$47,DZ$1) -> 8830 | EA15: =VLOOKUP(DropDownList!$A$19,CntyQuery!$A$37:$II$47,EA$1) -> 3262 | EB15: =VLOOKUP(DropDownList!$A$19,CntyQuery!$A$37:$II$47,EB$1) -> 2447 | EC15: =VLOOKUP(DropDownList!$A$19,CntyQuery!$A$37:$II$47,EC$1) -> 1890 | ED15: =VLOOKUP(DropDownList!$A$19,CntyQuery!$A$37:$II$47,ED$1) -> 13839 | EE15: =VLOOKUP(DropDownList!$A$19,CntyQuery!$A$37:$II$47,EE$1) -> 1173 | EF15: =VLOOKUP(DropDownList!$A$19,CntyQuery!$A$37:$II$47,EF$1) -> 1392 | EG15: =VLOOKUP(DropDownList!$A$19,CntyQuery!$A$37:$II$47,EG$1) -> 3073 | EH15: =VLOOKUP(DropDownList!$A$19,CntyQuery!$A$37:$II$47,EH$1) -> 3473 | EI15: =VLOOKUP(DropDownList!$A$19,CntyQuery!$A$37:$II$47,EI$1) -> 4398 | EJ15: =VLOOKUP(DropDownList!$A$19,CntyQuery!$A$37:$II$47,EJ$1) -> 3403 | EK15: =VLOOKUP(DropDownList!$A$19,CntyQuery!$A$37:$II$47,EK$1) -> 793 | EL15: =VLOOKUP(DropDownList!$A$19,CntyQuery!$A$37:$II$47,EL$1) -> 667 | EM15: =VLOOKUP(DropDownList!$A$19,CntyQuery!$A$37:$II$47,EM$1) -> 228 | EN15: =VLOOKUP(DropDownList!$A$19,CntyQuery!$A$37:$II$47,EN$1) -> 35489 | EO15: =VLOOKUP(DropDownList!$A$19,CntyQuery!$A$37:$II$47,EO$1) -> 2701 | EP15: =VLOOKUP(DropDownList!$A$19,CntyQuery!$A$37:$II$47,EP$1) -> 1396 | EQ15: =VLOOKUP(DropDownList!$A$19,CntyQuery!$A$37:$II$47,EQ$1) -> 1904 | ER15: =VLOOKUP(DropDownList!$A$19,CntyQuery!$A$37:$II$47,ER$1) -> 1184 | ES15: =VLOOKUP(DropDownList!$A$19,CntyQuery!$A$37:$II$47,ES$1) -> 978 | ET15: =VLOOKUP(DropDownList!$A$19,CntyQuery!$A$37:$II$47,ET$1) -> 576 | EU15: =VLOOKUP(DropDownList!$A$19,CntyQuery!$A$37:$II$47,EU$1) -> 84 | EV15: =VLOOKUP(DropDownList!$A$19,CntyQuery!$A$37:$II$47,EV$1) -> 67 | EW15: =VLOOKUP(DropDownList!$A$19,CntyQuery!$A$37:$II$47,EW$1) -> 37 | EX15: =VLOOKUP(DropDownList!$A$19,CntyQuery!$A$37:$II$47,EX$1) -> 16535 | EY15: =VLOOKUP(DropDownList!$A$19,CntyQuery!$A$37:$II$47,EY$1) -> 617 | EZ15: =VLOOKUP(DropDownList!$A$19,CntyQuery!$A$37:$II$47,EZ$1) -> 2028 | FA15: =VLOOKUP(DropDownList!$A$19,CntyQuery!$A$37:$II$47,FA$1) -> 4135 | FB15: =VLOOKUP(DropDownList!$A$19,CntyQuery!$A$37:$II$47,FB$1) -> 8029 | FC15: =VLOOKUP(DropDownList!$A$19,CntyQuery!$A$37:$II$47,FC$1) -> 8602 | FD15: =VLOOKUP(DropDownList!$A$19,CntyQuery!$A$37:$II$47,FD$1) -> 7386 | FE15: =VLOOKUP(DropDownList!$A$19,CntyQuery!$A$37:$II$47,FE$1) -> 5055 | FF15: =VLOOKUP(DropDownList!$A$19,CntyQuery!$A$37:$II$47,FF$1) -> 3084 | FG15: =VLOOKUP(DropDownList!$A$19,CntyQuery!$A$37:$II$47,FG$1) -> 3270 | FH15: =VLOOKUP(DropDownList!$A$19,CntyQuery!$A$37:$II$47,FH$1) -> 94 | FI15: =VLOOKUP(DropDownList!$A$19,CntyQuery!$A$37:$II$47,FI$1) -> 277 | FJ15: =VLOOKUP(DropDownList!$A$19,CntyQuery!$A$37:$II$47,FJ$1) -> 217 | FK15: =VLOOKUP(DropDownList!$A$19,CntyQuery!$A$37:$II$47,FK$1) -> 229 | FL15: =VLOOKUP(DropDownList!$A$19,CntyQuery!$A$37:$II$47,FL$1) -> 413 | FM15: =VLOOKUP(DropDownList!$A$19,CntyQuery!$A$37:$II$47,FM$1) -> 571 | FN15: =VLOOKUP(DropDownList!$A$19,CntyQuery!$A$37:$II$47,FN$1) -> 806 | FO15: =VLOOKUP(DropDownList!$A$19,CntyQuery!$A$37:$II$47,FO$1) -> 961 | FP15: =VLOOKUP(DropDownList!$A$19,CntyQuery!$A$37:$II$47,FP$1) -> 935 | FQ15: =VLOOKUP(DropDownList!$A$19,CntyQuery!$A$37:$II$47,FQ$1) -> 753 | FR15: =VLOOKUP(DropDownList!$A$19,CntyQuery!$A$37:$II$47,FR$1) -> 616 | FS15: =VLOOKUP(DropDownList!$A$19,CntyQuery!$A$37:$II$47,FS$1) -> 622 | FT15: =VLOOKUP(DropDownList!$A$19,CntyQuery!$A$37:$II$47,FT$1) -> 438 | FU15: =VLOOKUP(DropDownList!$A$19,CntyQuery!$A$37:$II$47,FU$1) -> 336 | FV15: =VLOOKUP(DropDownList!$A$19,CntyQuery!$A$37:$II$47,FV$1) -> 605 | FW15: =VLOOKUP(DropDownList!$A$19,CntyQuery!$A$37:$II$47,FW$1) -> 346 | FX15: =VLOOKUP(DropDownList!$A$19,CntyQuery!$A$37:$II$47,FX$1) -> 450 | FY15: =VLOOKUP(DropDownList!$A$19,CntyQuery!$A$37:$II$47,FY$1) -> 479 | FZ15: =VLOOKUP(DropDownList!$A$19,CntyQuery!$A$37:$II$47,FZ$1) -> 2277 | GA15: =VLOOKUP(DropDownList!$A$19,CntyQuery!$A$37:$II$47,GA$1) -> 1273 | GB15: =VLOOKUP(DropDownList!$A$19,CntyQuery!$A$37:$II$47,GB$1) -> 1181 | GC15: =VLOOKUP(DropDownList!$A$19,CntyQuery!$A$37:$II$47,GC$1) -> 767 | GD15: =VLOOKUP(DropDownList!$A$19,CntyQuery!$A$37:$II$47,GD$1) -> 2609 | GE15: =VLOOKUP(DropDownList!$A$19,CntyQuery!$A$37:$II$47,GE$1) -> 562 | GF15: =VLOOKUP(DropDownList!$A$19,CntyQuery!$A$37:$II$47,GF$1) -> 9 | GG15: =VLOOKUP(DropDownList!$A$19,CntyQuery!$A$37:$II$47,GG$1) -> 87 | GH15: =VLOOKUP(DropDownList!$A$19,CntyQuery!$A$37:$II$47,GH$1) -> 356 | GI15: =VLOOKUP(DropDownList!$A$19,CntyQuery!$A$37:$II$47,GI$1) -> 686 | GJ15: =VLOOKUP(DropDownList!$A$19,CntyQuery!$A$37:$II$47,GJ$1) -> 848 | GK15: =VLOOKUP(DropDownList!$A$19,CntyQuery!$A$37:$II$47,GK$1) -> 951 | GL15: =VLOOKUP(DropDownList!$A$19,CntyQuery!$A$37:$II$47,GL$1) -> 721 | GM15: =VLOOKUP(DropDownList!$A$19,CntyQuery!$A$37:$II$47,GM$1) -> 815 | GN15: =VLOOKUP(DropDownList!$A$19,CntyQuery!$A$37:$II$47,GN$1) -> 600 | GO15: =VLOOKUP(DropDownList!$A$19,CntyQuery!$A$37:$II$47,GO$1) -> 1002 | GP15: =VLOOKUP(DropDownList!$A$19,CntyQuery!$A$37:$II$47,GP$1) -> 569 | GQ15: =VLOOKUP(DropDownList!$A$19,CntyQuery!$A$37:$II$47,GQ$1) -> 484 | GR15: =VLOOKUP(DropDownList!$A$19,CntyQuery!$A$37:$II$47,GR$1) -> 250 | GS15: =VLOOKUP(DropDownList!$A$19,CntyQuery!$A$37:$II$47,GS$1) -> 86 | GT15: =VLOOKUP(DropDownList!$A$19,CntyQuery!$A$37:$II$47,GT$1) -> 167 | GU15: =VLOOKUP(DropDownList!$A$19,CntyQuery!$A$37:$II$47,GU$1) -> 538 | GV15: =VLOOKUP(DropDownList!$A$19,CntyQuery!$A$37:$II$47,GV$1) -> 775 | GW15: =VLOOKUP(DropDownList!$A$19,CntyQuery!$A$37:$II$47,GW$1) -> 952 | GX15: =VLOOKUP(DropDownList!$A$19,CntyQuery!$A$37:$II$47,GX$1) -> 733 | GY15: =VLOOKUP(DropDownList!$A$19,CntyQuery!$A$37:$II$47,GY$1) -> 434 | GZ15: =VLOOKUP(DropDownList!$A$19,CntyQuery!$A$37:$II$47,GZ$1) -> 779 | HA15: =VLOOKUP(DropDownList!$A$19,CntyQuery!$A$37:$II$47,HA$1) -> 804 | HB15: =VLOOKUP(DropDownList!$A$19,CntyQuery!$A$37:$II$47,HB$1) -> 285 | HC15: =VLOOKUP(DropDownList!$A$19,CntyQuery!$A$37:$II$47,HC$1) -> 2724 | HD15: =VLOOKUP(DropDownList!$A$19,CntyQuery!$A$37:$II$47,HD$1) -> 1424 | HE15: =VLOOKUP(DropDownList!$A$19,CntyQuery!$A$37:$II$47,HE$1) -> 1055 | HF15: =VLOOKUP(DropDownList!$A$19,CntyQuery!$A$37:$II$47,HF$1) -> 666 | HG15: =VLOOKUP(DropDownList!$A$19,CntyQuery!$A$37:$II$47,HG$1) -> 1491 | HH15: =VLOOKUP(DropDownList!$A$19,CntyQuery!$A$37:$II$47,HH$1) -> 18 | HI15: =VLOOKUP(DropDownList!$A$19,CntyQuery!$A$37:$II$47,HI$1) -> 2912 | HJ15: =VLOOKUP(DropDownList!$A$19,CntyQuery!$A$37:$II$47,HJ$1) -> 329 | HK15: =VLOOKUP(DropDownList!$A$19,CntyQuery!$A$37:$II$47,HK$1) -> 293 | HL15: =VLOOKUP(DropDownList!$A$19,CntyQuery!$A$37:$II$47,HL$1) -> 194 | HM15: =VLOOKUP(DropDownList!$A$19,CntyQuery!$A$37:$II$47,HM$1) -> 709 | HN15: =VLOOKUP(DropDownList!$A$19,CntyQuery!$A$37:$II$47,HN$1) -> 27 | HO15: =VLOOKUP(DropDownList!$A$19,CntyQuery!$A$37:$II$47,HO$1) -> 65 | HP15: =VLOOKUP(DropDownList!$A$19,CntyQuery!$A$37:$II$47,HP$1) -> 41 | HQ15: =VLOOKUP(DropDownList!$A$19,CntyQuery!$A$37:$II$47,HQ$1) -> 51 | HR15: =VLOOKUP(DropDownList!$A$19,CntyQuery!$A$37:$II$47,HR$1) -> 75 | HS15: =VLOOKUP(DropDownList!$A$19,CntyQuery!$A$37:$II$47,HS$1) -> 116 | HT15: =VLOOKUP(DropDownList!$A$19,CntyQuery!$A$37:$II$47,HT$1) -> 136 | HU15: =VLOOKUP(DropDownList!$A$19,CntyQuery!$A$37:$II$47,HU$1) -> 168 | HV15: =VLOOKUP(DropDownList!$A$19,CntyQuery!$A$37:$II$47,HV$1) -> 169 | HW15: =VLOOKUP(DropDownList!$A$19,CntyQuery!$A$37:$II$47,HW$1) -> 571 | HX15: =VLOOKUP(DropDownList!$A$19,CntyQuery!$A$37:$II$47,HX$1) -> 1173 | HY15: =VLOOKUP(DropDownList!$A$19,CntyQuery!$A$37:$II$47,HY$1) -> 2886 | HZ15: =VLOOKUP(DropDownList!$A$19,CntyQuery!$A$37:$II$47,HZ$1) -> 2018 | IA15: =VLOOKUP(DropDownList!$A$19,CntyQuery!$A$37:$II$47,IA$1) -> 1489 | IB15: =VLOOKUP(DropDownList!$A$19,CntyQuery!$A$37:$II$47,IB$1) -> 947 | IC15: =VLOOKUP(DropDownList!$A$19,CntyQuery!$A$37:$II$47,IC$1) -> 554 | ID15: =VLOOKUP(DropDownList!$A$19,CntyQuery!$A$37:$II$47,ID$1) -> 639 | IE15: =VLOOKUP(DropDownList!$A$19,CntyQuery!$A$37:$II$47,IE$1) -> 307 | IF15: =VLOOKUP(DropDownList!$A$19,CntyQuery!$A$37:$II$47,IF$1) -> 250 | IG15: =VLOOKUP(DropDownList!$A$19,CntyQuery!$A$37:$II$47,IG$1) -> 94 | IH15: =VLOOKUP(DropDownList!$A$19,CntyQuery!$A$37:$II$47,IH$1) -> 93 | II15: =VLOOKUP(DropDownList!$A$19,CntyQuery!$A$37:$II$47,II$1) -> 105800
A19: AREANAME | B19: FIPS | C19: Cnty_Code | D19: COUSUBFP | E19: POP80 | F19: POP90CDCEN | G19: POP2000CEN | H19: POP2010CEN | I19: POP2020CEN | J19: POP2025-Proj | K19: POP2030-Proj | L19: POP2035-Proj | M19: SF80 | N19: MF80 | O19: MH80 | P19: SF81 | Q19: MF81 | R19: MH81 | S19: SF82 | T19: MF82 | U19: MH82 | V19: SF83 | W19: MF83 | X19: MH83 | Y19: SF84_OSP | Z19: MF84_OSP | AA19: MH84_OSP | AB19: SF85_OSP | AC19: MF85_OSP | AD19: MH85_OSP | AE19: SF86_OSP | AF19: MF86_OSP | AG19: MH86_OSP | AH19: SF87_OSP | AI19: MF87_OSP | AJ19: MH87_OSP | AK19: SF88_OSP | AL19: MF88_OSP | AM19: MH88_OSP | AN19: SF89_OSP | AO19: MF89_OSP | AP19: MH89_OSP | AQ19: SF90_OSP | AR19: MF90_OSP | AS19: MH90_OSP | AT19: SF91_OSP | AU19: MF91_OSP | AV19: MH91_OSP | AW19: SF92_OSP | AX19: MF92_OSP | AY19: MH92_OSP | AZ19: SF93_OSP | BA19: MF93_OSP | BB19: MH93_OSP | BC19: SF94_OSP | BD19: MF94_OSP | BE19: MH94_OSP | BF19: SF95_OSP | BG19: MF95_OSP | BH19: MH95_OSP | BI19: SF96_OSP | BJ19: MF96_OSP | BK19: MH96_OSP | BL19: SF97_OSP | BM19: MF97_OSP | BN19: MH97_OSP | BO19: SF98_OSP | BP19: MF98_OSP | BQ19: MH98_OSP | BR19: SF99_OSP | BS19: MF99_OSP | BT19: MH99_OSP | BU19: SF00_OSP | BV19: MF00_OSP | BW19: MH00_OSP | BX19: SF01_OSP | BY19: MF01_OSP | BZ19: MH01_OSP | CA19: SF02_OSP | CB19: MF02_OSP | CC19: MH02_OSP | CD19: SF03_OSP | CE19: MF03_OSP | CF19: MH03_OSP | CG19: SF04_OSP | CH19: MF04_OSP | CI19: MH04_OSP | CJ19: SF05_OSP | CK19: MF05_OSP | CL19: MH05_OSP | CM19: SF06_OSP | CN19: MF06_OSP | CO19: MH06_OSP | CP19: SF07_OSP | CQ19: MF07_OSP | CR19: MH07_OSP | CS19: SF08_OSP | CT19: MF08_OSP | CU19: MH08_OSP | CV19: SF09_OSP | CW19: MF09_OSP | CX19: MH09_OSP | CY19: SF10_OSP | CZ19: MF10_OSP | DA19: MH10_OSP | DB19: SF11_OSP | DC19: MF11_OSP | DD19: MH11_OSP | DE19: SF12_OSP | DF19: MF12_OSP | DG19: MH12_OSP | DH19: SF13_OSP | DI19: MF13_OSP | DJ19: MH13_OSP | DK19: SF14_OSP | DL19: MF14_OSP | DM19: MH14_OSP | DN19: SF15_OSP | DO19: MF15_OSP | DP19: MH15_OSP | DQ19: SF16_OSP | DR19: MF16_OSP | DS19: MH16_OSP | DT19: SF17_OSP | DU19: MF17_OSP | DV19: MH17_OSP | DW19: SF18_OSP | DX19: MF18_OSP | DY19: MH18_OSP | DZ19: SF19_OSP | EA19: MF19_OSP | EB19: MH19_OSP | EC19: SF20_OSP | ED19: MF20_OSP | EE19: MH20_OSP | EF19: SF20 Census_OSP | EG19: MF20 Census OSP | EH19: MH20 Census_OSP | EI19: SF21_OSP | EJ19: MF21_OSP | EK19: MH21_OSP | EL19: COMMENTS
A20: =VLOOKUP(DropDownList!$A$19,CntyQuery!$A$53:$FZ$65,A$1) -> Grafton County | B20: =VLOOKUP(DropDownList!$A$19,CntyQuery!$A$53:$FZ$65,B$1) -> 9000 | C20: =VLOOKUP(DropDownList!$A$19,CntyQuery!$A$53:$FZ$65,C$1) -> 5 | D20: =VLOOKUP(DropDownList!$A$19,CntyQuery!$A$53:$FZ$65,D$1) -> 00005 | E20: =VLOOKUP(DropDownList!$A$19,CntyQuery!$A$53:$FZ$65,E$1) -> 65806 | F20: =VLOOKUP(DropDownList!$A$19,CntyQuery!$A$53:$FZ$65,F$1) -> 74929 | G20: =VLOOKUP(DropDownList!$A$19,CntyQuery!$A$53:$FZ$65,G$1) -> 81743 | H20: =VLOOKUP(DropDownList!$A$19,CntyQuery!$A$53:$FZ$65,H$1) -> 89118 | I20: =VLOOKUP(DropDownList!$A$19,CntyQuery!$A$53:$FZ$65,I$1) -> 91118 | J20: =VLOOKUP(DropDownList!$A$19,CntyQuery!$A$53:$FZ$65,J$1) -> 94984 | K20: =VLOOKUP(DropDownList!$A$19,CntyQuery!$A$53:$FZ$65,K$1) -> 98030 | L20: =VLOOKUP(DropDownList!$A$19,CntyQuery!$A$53:$FZ$65,L$1) -> 99463 | M20: =VLOOKUP(DropDownList!$A$19,CntyQuery!$A$53:$FZ$65,M$1) -> 256 | N20: =VLOOKUP(DropDownList!$A$19,CntyQuery!$A$53:$FZ$65,N$1) -> 30 | O20: =VLOOKUP(DropDownList!$A$19,CntyQuery!$A$53:$FZ$65,O$1) -> 61 | P20: =VLOOKUP(DropDownList!$A$19,CntyQuery!$A$53:$FZ$65,P$1) -> 216 | Q20: =VLOOKUP(DropDownList!$A$19,CntyQuery!$A$53:$FZ$65,Q$1) -> 42 | R20: =VLOOKUP(DropDownList!$A$19,CntyQuery!$A$53:$FZ$65,R$1) -> 51 | S20: =VLOOKUP(DropDownList!$A$19,CntyQuery!$A$53:$FZ$65,S$1) -> 231 | T20: =VLOOKUP(DropDownList!$A$19,CntyQuery!$A$53:$FZ$65,T$1) -> 95 | U20: =VLOOKUP(DropDownList!$A$19,CntyQuery!$A$53:$FZ$65,U$1) -> 45 | V20: =VLOOKUP(DropDownList!$A$19,CntyQuery!$A$53:$FZ$65,V$1) -> 273 | W20: =VLOOKUP(DropDownList!$A$19,CntyQuery!$A$53:$FZ$65,W$1) -> 63 | X20: =VLOOKUP(DropDownList!$A$19,CntyQuery!$A$53:$FZ$65,X$1) -> 50 | Y20: =VLOOKUP(DropDownList!$A$19,CntyQuery!$A$53:$FZ$65,Y$1) -> 271 | Z20: =VLOOKUP(DropDownList!$A$19,CntyQuery!$A$53:$FZ$65,Z$1) -> 263 | AA20: =VLOOKUP(DropDownList!$A$19,CntyQuery!$A$53:$FZ$65,AA$1) -> 69 | AB20: =VLOOKUP(DropDownList!$A$19,CntyQuery!$A$53:$FZ$65,AB$1) -> 475 | AC20: =VLOOKUP(DropDownList!$A$19,CntyQuery!$A$53:$FZ$65,AC$1) -> 148 | AD20: =VLOOKUP(DropDownList!$A$19,CntyQuery!$A$53:$FZ$65,AD$1) -> 110 | AE20: =VLOOKUP(DropDownList!$A$19,CntyQuery!$A$53:$FZ$65,AE$1) -> 1096 | AF20: =VLOOKUP(DropDownList!$A$19,CntyQuery!$A$53:$FZ$65,AF$1) -> 286 | AG20: =VLOOKUP(DropDownList!$A$19,CntyQuery!$A$53:$FZ$65,AG$1) -> 116 | AH20: =VLOOKUP(DropDownList!$A$19,CntyQuery!$A$53:$FZ$65,AH$1) -> 985 | AI20: =VLOOKUP(DropDownList!$A$19,CntyQuery!$A$53:$FZ$65,AI$1) -> 115 | AJ20: =VLOOKUP(DropDownList!$A$19,CntyQuery!$A$53:$FZ$65,AJ$1) -> 120 | AK20: =VLOOKUP(DropDownList!$A$19,CntyQuery!$A$53:$FZ$65,AK$1) -> 1157 | AL20: =VLOOKUP(DropDownList!$A$19,CntyQuery!$A$53:$FZ$65,AL$1) -> 76 | AM20: =VLOOKUP(DropDownList!$A$19,CntyQuery!$A$53:$FZ$65,AM$1) -> 98 | AN20: =VLOOKUP(DropDownList!$A$19,CntyQuery!$A$53:$FZ$65,AN$1) -> 413 | AO20: =VLOOKUP(DropDownList!$A$19,CntyQuery!$A$53:$FZ$65,AO$1) -> 378 | AP20: =VLOOKUP(DropDownList!$A$19,CntyQuery!$A$53:$FZ$65,AP$1) -> 87 | AQ20: =VLOOKUP(DropDownList!$A$19,CntyQuery!$A$53:$FZ$65,AQ$1) -> 202 | AR20: =VLOOKUP(DropDownList!$A$19,CntyQuery!$A$53:$FZ$65,AR$1) -> 102 | AS20: =VLOOKUP(DropDownList!$A$19,CntyQuery!$A$53:$FZ$65,AS$1) -> 54 | AT20: =VLOOKUP(DropDownList!$A$19,CntyQuery!$A$53:$FZ$65,AT$1) -> 226 | AU20: =VLOOKUP(DropDownList!$A$19,CntyQuery!$A$53:$FZ$65,AU$1) -> 41 | AV20: =VLOOKUP(DropDownList!$A$19,CntyQuery!$A$53:$FZ$65,AV$1) -> 49 | AW20: =VLOOKUP(DropDownList!$A$19,CntyQuery!$A$53:$FZ$65,AW$1) -> 192 | AX20: =VLOOKUP(DropDownList!$A$19,CntyQuery!$A$53:$FZ$65,AX$1) -> 29 | AY20: =VLOOKUP(DropDownList!$A$19,CntyQuery!$A$53:$FZ$65,AY$1) -> 48 | AZ20: =VLOOKUP(DropDownList!$A$19,CntyQuery!$A$53:$FZ$65,AZ$1) -> 213 | BA20: =VLOOKUP(DropDownList!$A$19,CntyQuery!$A$53:$FZ$65,BA$1) -> 12 | BB20: =VLOOKUP(DropDownList!$A$19,CntyQuery!$A$53:$FZ$65,BB$1) -> 43 | BC20: =VLOOKUP(DropDownList!$A$19,CntyQuery!$A$53:$FZ$65,BC$1) -> 172 | BD20: =VLOOKUP(DropDownList!$A$19,CntyQuery!$A$53:$FZ$65,BD$1) -> 41 | BE20: =VLOOKUP(DropDownList!$A$19,CntyQuery!$A$53:$FZ$65,BE$1) -> 77 | BF20: =VLOOKUP(DropDownList!$A$19,CntyQuery!$A$53:$FZ$65,BF$1) -> 233 | BG20: =VLOOKUP(DropDownList!$A$19,CntyQuery!$A$53:$FZ$65,BG$1) -> 38 | BH20: =VLOOKUP(DropDownList!$A$19,CntyQuery!$A$53:$FZ$65,BH$1) -> 60 | BI20: =VLOOKUP(DropDownList!$A$19,CntyQuery!$A$53:$FZ$65,BI$1) -> 189 | BJ20: =VLOOKUP(DropDownList!$A$19,CntyQuery!$A$53:$FZ$65,BJ$1) -> 85 | BK20: =VLOOKUP(DropDownList!$A$19,CntyQuery!$A$53:$FZ$65,BK$1) -> 80 | BL20: =VLOOKUP(DropDownList!$A$19,CntyQuery!$A$53:$FZ$65,BL$1) -> 205 | BM20: =VLOOKUP(DropDownList!$A$19,CntyQuery!$A$53:$FZ$65,BM$1) -> 44 | BN20: =VLOOKUP(DropDownList!$A$19,CntyQuery!$A$53:$FZ$65,BN$1) -> 62 | BO20: =VLOOKUP(DropDownList!$A$19,CntyQuery!$A$53:$FZ$65,BO$1) -> 273 | BP20: =VLOOKUP(DropDownList!$A$19,CntyQuery!$A$53:$FZ$65,BP$1) -> 72 | BQ20: =VLOOKUP(DropDownList!$A$19,CntyQuery!$A$53:$FZ$65,BQ$1) -> 71 | BR20: =VLOOKUP(DropDownList!$A$19,CntyQuery!$A$53:$FZ$65,BR$1) -> 268 | BS20: =VLOOKUP(DropDownList!$A$19,CntyQuery!$A$53:$FZ$65,BS$1) -> 26 | BT20: =VLOOKUP(DropDownList!$A$19,CntyQuery!$A$53:$FZ$65,BT$1) -> 66 | BU20: =VLOOKUP(DropDownList!$A$19,CntyQuery!$A$53:$FZ$65,BU$1) -> 331 | BV20: =VLOOKUP(DropDownList!$A$19,CntyQuery!$A$53:$FZ$65,BV$1) -> 110 | BW20: =VLOOKUP(DropDownList!$A$19,CntyQuery!$A$53:$FZ$65,BW$1) -> 80 | BX20: =VLOOKUP(DropDownList!$A$19,CntyQuery!$A$53:$FZ$65,BX$1) -> 407 | BY20: =VLOOKUP(DropDownList!$A$19,CntyQuery!$A$53:$FZ$65,BY$1) -> 81 | BZ20: =VLOOKUP(DropDownList!$A$19,CntyQuery!$A$53:$FZ$65,BZ$1) -> 65 | CA20: =VLOOKUP(DropDownList!$A$19,CntyQuery!$A$53:$FZ$65,CA$1) -> 482 | CB20: =VLOOKUP(DropDownList!$A$19,CntyQuery!$A$53:$FZ$65,CB$1) -> 183 | CC20: =VLOOKUP(DropDownList!$A$19,CntyQuery!$A$53:$FZ$65,CC$1) -> 75 | CD20: =VLOOKUP(DropDownList!$A$19,CntyQuery!$A$53:$FZ$65,CD$1) -> 477 | CE20: =VLOOKUP(DropDownList!$A$19,CntyQuery!$A$53:$FZ$65,CE$1) -> 270 | CF20: =VLOOKUP(DropDownList!$A$19,CntyQuery!$A$53:$FZ$65,CF$1) -> 59 | CG20: =VLOOKUP(DropDownList!$A$19,CntyQuery!$A$53:$FZ$65,CG$1) -> 552 | CH20: =VLOOKUP(DropDownList!$A$19,CntyQuery!$A$53:$FZ$65,CH$1) -> 60 | CI20: =VLOOKUP(DropDownList!$A$19,CntyQuery!$A$53:$FZ$65,CI$1) -> 71 | CJ20: =VLOOKUP(DropDownList!$A$19,CntyQuery!$A$53:$FZ$65,CJ$1) -> 501 | CK20: =VLOOKUP(DropDownList!$A$19,CntyQuery!$A$53:$FZ$65,CK$1) -> 200 | CL20: =VLOOKUP(DropDownList!$A$19,CntyQuery!$A$53:$FZ$65,CL$1) -> 80 | CM20: =VLOOKUP(DropDownList!$A$19,CntyQuery!$A$53:$FZ$65,CM$1) -> 385 | CN20: =VLOOKUP(DropDownList!$A$19,CntyQuery!$A$53:$FZ$65,CN$1) -> 222 | CO20: =VLOOKUP(DropDownList!$A$19,CntyQuery!$A$53:$FZ$65,CO$1) -> 28 | CP20: =VLOOKUP(DropDownList!$A$19,CntyQuery!$A$53:$FZ$65,CP$1) -> 272 | CQ20: =VLOOKUP(DropDownList!$A$19,CntyQuery!$A$53:$FZ$65,CQ$1) -> 240 | CR20: =VLOOKUP(DropDownList!$A$19,CntyQuery!$A$53:$FZ$65,CR$1) -> 35 | CS20: =VLOOKUP(DropDownList!$A$19,CntyQuery!$A$53:$FZ$65,CS$1) -> 137 | CT20: =VLOOKUP(DropDownList!$A$19,CntyQuery!$A$53:$FZ$65,CT$1) -> 128 | CU20: =VLOOKUP(DropDownList!$A$19,CntyQuery!$A$53:$FZ$65,CU$1) -> 24 | CV20: =VLOOKUP(DropDownList!$A$19,CntyQuery!$A$53:$FZ$65,CV$1) -> 138 | CW20: =VLOOKUP(DropDownList!$A$19,CntyQuery!$A$53:$FZ$65,CW$1) -> 141 | CX20: =VLOOKUP(DropDownList!$A$19,CntyQuery!$A$53:$FZ$65,CX$1) -> 10 | CY20: =VLOOKUP(DropDownList!$A$19,CntyQuery!$A$53:$FZ$65,CY$1) -> 161 | CZ20: =VLOOKUP(DropDownList!$A$19,CntyQuery!$A$53:$FZ$65,CZ$1) -> 275 | DA20: =VLOOKUP(DropDownList!$A$19,CntyQuery!$A$53:$FZ$65,DA$1) -> 3 | DB20: =VLOOKUP(DropDownList!$A$19,CntyQuery!$A$53:$FZ$65,DB$1) -> 128 | DC20: =VLOOKUP(DropDownList!$A$19,CntyQuery!$A$53:$FZ$65,DC$1) -> 53 | DD20: =VLOOKUP(DropDownList!$A$19,CntyQuery!$A$53:$FZ$65,DD$1) -> -1 | DE20: =VLOOKUP(DropDownList!$A$19,CntyQuery!$A$53:$FZ$65,DE$1) -> 70 | DF20: =VLOOKUP(DropDownList!$A$19,CntyQuery!$A$53:$FZ$65,DF$1) -> 61 | DG20: =VLOOKUP(DropDownList!$A$19,CntyQuery!$A$53:$FZ$65,DG$1) -> 4 | DH20: =VLOOKUP(DropDownList!$A$19,CntyQuery!$A$53:$FZ$65,DH$1) -> 113 | DI20: =VLOOKUP(DropDownList!$A$19,CntyQuery!$A$53:$FZ$65,DI$1) -> 42 | DJ20: =VLOOKUP(DropDownList!$A$19,CntyQuery!$A$53:$FZ$65,DJ$1) -> 12 | DK20: =VLOOKUP(DropDownList!$A$19,CntyQuery!$A$53:$FZ$65,DK$1) -> 102 | DL20: =VLOOKUP(DropDownList!$A$19,CntyQuery!$A$53:$FZ$65,DL$1) -> 139 | DM20: =VLOOKUP(DropDownList!$A$19,CntyQuery!$A$53:$FZ$65,DM$1) -> 3 | DN20: =VLOOKUP(DropDownList!$A$19,CntyQuery!$A$53:$FZ$65,DN$1) -> 107 | DO20: =VLOOKUP(DropDownList!$A$19,CntyQuery!$A$53:$FZ$65,DO$1) -> 52 | DP20: =VLOOKUP(DropDownList!$A$19,CntyQuery!$A$53:$FZ$65,DP$1) -> 12 | DQ20: =VLOOKUP(DropDownList!$A$19,CntyQuery!$A$53:$FZ$65,DQ$1) -> 135 | DR20: =VLOOKUP(DropDownList!$A$19,CntyQuery!$A$53:$FZ$65,DR$1) -> 37 | DS20: =VLOOKUP(DropDownList!$A$19,CntyQuery!$A$53:$FZ$65,DS$1) -> 17 | DT20: =VLOOKUP(DropDownList!$A$19,CntyQuery!$A$53:$FZ$65,DT$1) -> 140 | DU20: =VLOOKUP(DropDownList!$A$19,CntyQuery!$A$53:$FZ$65,DU$1) -> 130 | DV20: =VLOOKUP(DropDownList!$A$19,CntyQuery!$A$53:$FZ$65,DV$1) -> 18 | DW20: =VLOOKUP(DropDownList!$A$19,CntyQuery!$A$53:$FZ$65,DW$1) -> 140 | DX20: =VLOOKUP(DropDownList!$A$19,CntyQuery!$A$53:$FZ$65,DX$1) -> 180 | DY20: =VLOOKUP(DropDownList!$A$19,CntyQuery!$A$53:$FZ$65,DY$1) -> 17 | DZ20: =VLOOKUP(DropDownList!$A$19,CntyQuery!$A$53:$FZ$65,DZ$1) -> 160 | EA20: =VLOOKUP(DropDownList!$A$19,CntyQuery!$A$53:$FZ$65,EA$1) -> 149 | EB20: =VLOOKUP(DropDownList!$A$19,CntyQuery!$A$53:$FZ$65,EB$1) -> 5 | EC20: =VLOOKUP(DropDownList!$A$19,CntyQuery!$A$53:$FZ$65,EC$1) -> 204 | ED20: =VLOOKUP(DropDownList!$A$19,CntyQuery!$A$53:$FZ$65,ED$1) -> 385 | EE20: =VLOOKUP(DropDownList!$A$19,CntyQuery!$A$53:$FZ$65,EE$1) -> 29 | EF20: =VLOOKUP(DropDownList!$A$19,CntyQuery!$A$53:$FZ$65,EF$1) -> 0 | EG20: =VLOOKUP(DropDownList!$A$19,CntyQuery!$A$53:$FZ$65,EG$1) -> 0 | EH20: =VLOOKUP(DropDownList!$A$19,CntyQuery!$A$53:$FZ$65,EH$1) -> 0 | EI20: =VLOOKUP(DropDownList!$A$19,CntyQuery!$A$53:$FZ$65,EI$1) -> 253 | EJ20: =VLOOKUP(DropDownList!$A$19,CntyQuery!$A$53:$FZ$65,EJ$1) -> 123 | EK20: =VLOOKUP(DropDownList!$A$19,CntyQuery!$A$53:$FZ$65,EK$1) -> 21 | EL20: =VLOOKUP(DropDownList!$A$19,CntyQuery!$A$53:$FZ$65,EL$1) -> 
A23: NH Employment Data | B23: Query Name: DPQryEmploymentByCnty
A24: AreaName | B24: COUNTYCODE | C24: TOTP & G2001 | D24: TOT2001 | E24: GOODPRO2001 | F24: SERVICEPROMAN2001 | G24: WAGEP & G2001 | H24: WAGETOT2001 | I24: WAGEGOODPRO2001 | J24: WAGESERVICEPRO2001 | K24: TOTP & G2002 | L24: TOT2002 | M24: GOODPRO2002 | N24: SERVICEPROMAN2002 | O24: WAGEP & G2002 | P24: WAGETOT2002 | Q24: WAGEGOODPRO2002 | R24: WAGESERVICEPRO2002 | S24: TOTP & G2003 | T24: TOT2003 | U24: GOODPRO2003 | V24: SERVICEPROMAN2003 | W24: WAGEP & G2003 | X24: WAGETOT2003 | Y24: WAGEGOODPRO2003 | Z24: WAGESERVICEPRO2003 | AA24: TOTP & G2004 | AB24: TOT2004 | AC24: GOODPRO2004 | AD24: SERVICEPROMAN2004 | AE24: WAGEP & G2004 | AF24: WAGETOT2004 | AG24: WAGEGOODPRO2004 | AH24: WAGESERVICEPRO2004 | AI24: TOTP & G2005 | AJ24: TOT2005 | AK24: GOODPRO2005 | AL24: SERVICEPROMAN2005 | AM24: WAGEP & G2005 | AN24: WAGETOT2005 | AO24: WAGEGOODPRO2005 | AP24: WAGESERVICEPRO2005 | AQ24: TOTP & G2006 | AR24: TOT2006 | AS24: GOODPRO2006 | AT24: SERVICEPROMAN2006 | AU24: WAGEP & G2006 | AV24: WAGETOT2006 | AW24: WAGEGOODPRO2006 | AX24: WAGESERVICEPRO2006 | AY24: TOTP & G2007 | AZ24: TOT2007 | BA24: GOODPRO2007 | BB24: SERVICEPROMAN2007 | BC24: WAGEP & G2007 | BD24: WAGETOT2007 | BE24: WAGEGOODPRO2007 | BF24: WAGESERVICEPRO2007 | BG24: TOTP & G2008 | BH24: TOT2008 | BI24: GOODPRO2008 | BJ24: SERVICEPROMAN2008 | BK24: WAGEP & G2008 | BL24: WAGETOT2008 | BM24: WAGEGOODPRO2008 | BN24: WAGESERVICEPRO2008 | BO24: TOTP & G2009 | BP24: TOT2009 | BQ24: GOODPRO2009 | BR24: SERVICEPROMAN2009 | BS24: WAGEP & G2009 | BT24: WAGETOT2009 | BU24: WAGEGOODPRO2009 | BV24: WAGESERVICEPRO2009 | BW24: TOTP & G2010 | BX24: TOT2010 | BY24: GOODPRO2010 | BZ24: SERVICEPROMAN2010 | CA24: WAGEP & G2010 | CB24: WAGETOT2010 | CC24: WAGEGOODPRO2010 | CD24: WAGESERVICEPRO2010 | CE24: TOTP & G2011 | CF24: TOT2011 | CG24: GOODPRO2011 | CH24: SERVICEPROMAN2011 | CI24: WAGEP & G2011 | CJ24: WAGETOT2011 | CK24: WAGEGOODPRO2011 | CL24: WAGESERVICEPRO2011 | CM24: TOTP & G2012 | CN24: TOT2012 | CO24: GOODPRO2012 | CP24: SERVICEPROMAN2012 | CQ24: WAGEP & G2012 | CR24: WAGETOT2012 | CS24: WAGEGOODPRO2012 | CT24: WAGESERVICEPRO2012 | CU24: TOTP & G2013 | CV24: TOT2013 | CW24: GOODPRO2013 | CX24: SERVICEPROMAN2013 | CY24: WAGEP & G2013 | CZ24: WAGETOT2013 | DA24: WAGEGOODPRO2013 | DB24: WAGESERVICEPRO2013 | DC24: TOTP & G2014 | DD24: TOT2014 | DE24: GOODPRO2014 | DF24: SERVICEPROMAN2014 | DG24: WAGEP & G2014 | DH24: WAGETOT2014 | DI24: WAGEGOODPRO2014 | DJ24: WAGESERVICEPRO2014 | DK24: TOTP & G2015 | DL24: TOT2015 | DM24: GOODPRO2015 | DN24: SERVICEPROMAN2015 | DO24: WAGEP & G2015 | DP24: WAGETOT2015 | DQ24: WAGEGOODPRO2015 | DR24: WAGESERVICEPRO2015 | DS24: TOTP & G2016 | DT24: TOT2016 | DU24: GOODPRO2016 | DV24: SERVICEPROMAN2016 | DW24: WAGEP & G2016 | DX24: WAGETOT2016 | DY24: WAGEGOODPRO2016 | DZ24: WAGESERVICEPRO2016 | EA24: TOTP & G2017 | EB24: TOT2017 | EC24: GOODPRO2017 | ED24: SERVICEPROMAN2017 | EE24: WAGEP & G2017 | EF24: WAGETOT2017 | EG24: WAGEGOODPRO2017 | EH24: WAGESERVICEPRO2017 | EI24: TOTP & G2018 | EJ24: TOT2018 | EK24: GOODPRO2018 | EL24: SERVICEPROMAN2018 | EM24: WAGEP & G2018 | EN24: WAGETOT2018 | EO24: WAGEGOODPRO2018 | EP24: WAGESERVICEPRO2018 | EQ24: TOTP & G2019 | ER24: TOT2019 | ES24: GOODPRO2019 | ET24: SERVICEPROMAN2019 | EU24: WAGEP & G2019 | EV24: WAGETOT2019 | EW24: WAGEGOODPRO2019 | EX24: WAGESERVICEPRO2019 | EY24: TOTP & G2020 | EZ24: TOT2020 | FA24: GOODPRO2020 | FB24: SERVICEPROMAN2020 | FC24: WAGEP & G2020 | FD24: WAGETOT2020 | FE24: WAGEGOODPRO2020 | FF24: WAGESERVICEPRO2020 | FG24: TOTP & G2021 | FH24: TOT2021 | FI24: GOODPRO2021 | FJ24: SERVICEPROMAN2021 | FK24: WAGEP & G2021 | FL24: WAGETOT2021 | FM24: WAGEGOODPRO2021 | FN24: WAGESERVICEPRO2021 | FO24: TOTP & G2022 | FP24: TOT2022 | FQ24: GOODPRO2022 | FR24: SERVICEPROMAN2022 | FS24: WAGEP & G2022 | FT24: WAGETOT2022 | FU24: WAGEGOODPRO2022 | FV24: WAGESERVICEPRO2022
A25: =VLOOKUP(DropDownList!$A$19,CntyQuery!$A$75:$GZ$85,A$1) -> Grafton County | B25: =VLOOKUP(DropDownList!$A$19,CntyQuery!$A$75:$GZ$85,B$1) -> 5 | C25: =VLOOKUP(DropDownList!$A$19,CntyQuery!$A$75:$GZ$85,C$1) -> 49352 | D25: =VLOOKUP(DropDownList!$A$19,CntyQuery!$A$75:$GZ$85,D$1) -> 43256 | E25: =VLOOKUP(DropDownList!$A$19,CntyQuery!$A$75:$GZ$85,E$1) -> 8085 | F25: =VLOOKUP(DropDownList!$A$19,CntyQuery!$A$75:$GZ$85,F$1) -> 35171 | G25: =VLOOKUP(DropDownList!$A$19,CntyQuery!$A$75:$GZ$85,G$1) -> 617.73 | H25: =VLOOKUP(DropDownList!$A$19,CntyQuery!$A$75:$GZ$85,H$1) -> 624.05 | I25: =VLOOKUP(DropDownList!$A$19,CntyQuery!$A$75:$GZ$85,I$1) -> 672.45 | J25: =VLOOKUP(DropDownList!$A$19,CntyQuery!$A$75:$GZ$85,J$1) -> 612.93 | K25: =VLOOKUP(DropDownList!$A$19,CntyQuery!$A$75:$GZ$85,K$1) -> 49690 | L25: =VLOOKUP(DropDownList!$A$19,CntyQuery!$A$75:$GZ$85,L$1) -> 43362 | M25: =VLOOKUP(DropDownList!$A$19,CntyQuery!$A$75:$GZ$85,M$1) -> 7763 | N25: =VLOOKUP(DropDownList!$A$19,CntyQuery!$A$75:$GZ$85,N$1) -> 35599 | O25: =VLOOKUP(DropDownList!$A$19,CntyQuery!$A$75:$GZ$85,O$1) -> 658.93 | P25: =VLOOKUP(DropDownList!$A$19,CntyQuery!$A$75:$GZ$85,P$1) -> 668.77 | Q25: =VLOOKUP(DropDownList!$A$19,CntyQuery!$A$75:$GZ$85,Q$1) -> 701.81 | R25: =VLOOKUP(DropDownList!$A$19,CntyQuery!$A$75:$GZ$85,R$1) -> 661.56 | S25: =VLOOKUP(DropDownList!$A$19,CntyQuery!$A$75:$GZ$85,S$1) -> 50615 | T25: =VLOOKUP(DropDownList!$A$19,CntyQuery!$A$75:$GZ$85,T$1) -> 44009 | U25: =VLOOKUP(DropDownList!$A$19,CntyQuery!$A$75:$GZ$85,U$1) -> 7790 | V25: =VLOOKUP(DropDownList!$A$19,CntyQuery!$A$75:$GZ$85,V$1) -> 36220 | W25: =VLOOKUP(DropDownList!$A$19,CntyQuery!$A$75:$GZ$85,W$1) -> 704.15 | X25: =VLOOKUP(DropDownList!$A$19,CntyQuery!$A$75:$GZ$85,X$1) -> 717.01 | Y25: =VLOOKUP(DropDownList!$A$19,CntyQuery!$A$75:$GZ$85,Y$1) -> 753.77 | Z25: =VLOOKUP(DropDownList!$A$19,CntyQuery!$A$75:$GZ$85,Z$1) -> 709.11 | AA25: =VLOOKUP(DropDownList!$A$19,CntyQuery!$A$75:$GZ$85,AA$1) -> 51355 | AB25: =VLOOKUP(DropDownList!$A$19,CntyQuery!$A$75:$GZ$85,AB$1) -> 44704 | AC25: =VLOOKUP(DropDownList!$A$19,CntyQuery!$A$75:$GZ$85,AC$1) -> 7636 | AD25: =VLOOKUP(DropDownList!$A$19,CntyQuery!$A$75:$GZ$85,AD$1) -> 37069 | AE25: =VLOOKUP(DropDownList!$A$19,CntyQuery!$A$75:$GZ$85,AE$1) -> 728.96 | AF25: =VLOOKUP(DropDownList!$A$19,CntyQuery!$A$75:$GZ$85,AF$1) -> 740.6 | AG25: =VLOOKUP(DropDownList!$A$19,CntyQuery!$A$75:$GZ$85,AG$1) -> 770.78 | AH25: =VLOOKUP(DropDownList!$A$19,CntyQuery!$A$75:$GZ$85,AH$1) -> 734.38 | AI25: =VLOOKUP(DropDownList!$A$19,CntyQuery!$A$75:$GZ$85,AI$1) -> 51541 | AJ25: =VLOOKUP(DropDownList!$A$19,CntyQuery!$A$75:$GZ$85,AJ$1) -> 44954 | AK25: =VLOOKUP(DropDownList!$A$19,CntyQuery!$A$75:$GZ$85,AK$1) -> 7698 | AL25: =VLOOKUP(DropDownList!$A$19,CntyQuery!$A$75:$GZ$85,AL$1) -> 37256 | AM25: =VLOOKUP(DropDownList!$A$19,CntyQuery!$A$75:$GZ$85,AM$1) -> 768.82 | AN25: =VLOOKUP(DropDownList!$A$19,CntyQuery!$A$75:$GZ$85,AN$1) -> 783.94 | AO25: =VLOOKUP(DropDownList!$A$19,CntyQuery!$A$75:$GZ$85,AO$1) -> 809.26 | AP25: =VLOOKUP(DropDownList!$A$19,CntyQuery!$A$75:$GZ$85,AP$1) -> 778.7 | AQ25: =VLOOKUP(DropDownList!$A$19,CntyQuery!$A$75:$GZ$85,AQ$1) -> 52267 | AR25: =VLOOKUP(DropDownList!$A$19,CntyQuery!$A$75:$GZ$85,AR$1) -> 45531 | AS25: =VLOOKUP(DropDownList!$A$19,CntyQuery!$A$75:$GZ$85,AS$1) -> 7761 | AT25: =VLOOKUP(DropDownList!$A$19,CntyQuery!$A$75:$GZ$85,AT$1) -> 37770 | AU25: =VLOOKUP(DropDownList!$A$19,CntyQuery!$A$75:$GZ$85,AU$1) -> 803.4 | AV25: =VLOOKUP(DropDownList!$A$19,CntyQuery!$A$75:$GZ$85,AV$1) -> 820.96 | AW25: =VLOOKUP(DropDownList!$A$19,CntyQuery!$A$75:$GZ$85,AW$1) -> 855.22 | AX25: =VLOOKUP(DropDownList!$A$19,CntyQuery!$A$75:$GZ$85,AX$1) -> 813.92 | AY25: =VLOOKUP(DropDownList!$A$19,CntyQuery!$A$75:$GZ$85,AY$1) -> 52729 | AZ25: =VLOOKUP(DropDownList!$A$19,CntyQuery!$A$75:$GZ$85,AZ$1) -> 45992 | BA25: =VLOOKUP(DropDownList!$A$19,CntyQuery!$A$75:$GZ$85,BA$1) -> 7672 | BB25: =VLOOKUP(DropDownList!$A$19,CntyQuery!$A$75:$GZ$85,BB$1) -> 38320 | BC25: =VLOOKUP(DropDownList!$A$19,CntyQuery!$A$75:$GZ$85,BC$1) -> 843.04 | BD25: =VLOOKUP(DropDownList!$A$19,CntyQuery!$A$75:$GZ$85,BD$1) -> 860.73 | BE25: =VLOOKUP(DropDownList!$A$19,CntyQuery!$A$75:$GZ$85,BE$1) -> 901.98 | BF25: =VLOOKUP(DropDownList!$A$19,CntyQuery!$A$75:$GZ$85,BF$1) -> 852.47 | BG25: =VLOOKUP(DropDownList!$A$19,CntyQuery!$A$75:$GZ$85,BG$1) -> 52901 | BH25: =VLOOKUP(DropDownList!$A$19,CntyQuery!$A$75:$GZ$85,BH$1) -> 46166 | BI25: =VLOOKUP(DropDownList!$A$19,CntyQuery!$A$75:$GZ$85,BI$1) -> 7347 | BJ25: =VLOOKUP(DropDownList!$A$19,CntyQuery!$A$75:$GZ$85,BJ$1) -> 38819 | BK25: =VLOOKUP(DropDownList!$A$19,CntyQuery!$A$75:$GZ$85,BK$1) -> 867.61 | BL25: =VLOOKUP(DropDownList!$A$19,CntyQuery!$A$75:$GZ$85,BL$1) -> 884.82 | BM25: =VLOOKUP(DropDownList!$A$19,CntyQuery!$A$75:$GZ$85,BM$1) -> 928.14 | BN25: =VLOOKUP(DropDownList!$A$19,CntyQuery!$A$75:$GZ$85,BN$1) -> 876.62 | BO25: =VLOOKUP(DropDownList!$A$19,CntyQuery!$A$75:$GZ$85,BO$1) -> 51401 | BP25: =VLOOKUP(DropDownList!$A$19,CntyQuery!$A$75:$GZ$85,BP$1) -> 44646 | BQ25: =VLOOKUP(DropDownList!$A$19,CntyQuery!$A$75:$GZ$85,BQ$1) -> 6446 | BR25: =VLOOKUP(DropDownList!$A$19,CntyQuery!$A$75:$GZ$85,BR$1) -> 38200 | BS25: =VLOOKUP(DropDownList!$A$19,CntyQuery!$A$75:$GZ$85,BS$1) -> 879.4 | BT25: =VLOOKUP(DropDownList!$A$19,CntyQuery!$A$75:$GZ$85,BT$1) -> 895.26 | BU25: =VLOOKUP(DropDownList!$A$19,CntyQuery!$A$75:$GZ$85,BU$1) -> 899.95 | BV25: =VLOOKUP(DropDownList!$A$19,CntyQuery!$A$75:$GZ$85,BV$1) -> 894.47 | BW25: =VLOOKUP(DropDownList!$A$19,CntyQuery!$A$75:$GZ$85,BW$1) -> 51256 | BX25: =VLOOKUP(DropDownList!$A$19,CntyQuery!$A$75:$GZ$85,BX$1) -> 44376 | BY25: =VLOOKUP(DropDownList!$A$19,CntyQuery!$A$75:$GZ$85,BY$1) -> 6289 | BZ25: =VLOOKUP(DropDownList!$A$19,CntyQuery!$A$75:$GZ$85,BZ$1) -> 38086 | CA25: =VLOOKUP(DropDownList!$A$19,CntyQuery!$A$75:$GZ$85,CA$1) -> 905.77 | CB25: =VLOOKUP(DropDownList!$A$19,CntyQuery!$A$75:$GZ$85,CB$1) -> 925.54 | CC25: =VLOOKUP(DropDownList!$A$19,CntyQuery!$A$75:$GZ$85,CC$1) -> 949.83 | CD25: =VLOOKUP(DropDownList!$A$19,CntyQuery!$A$75:$GZ$85,CD$1) -> 921.53 | CE25: =VLOOKUP(DropDownList!$A$19,CntyQuery!$A$75:$GZ$85,CE$1) -> 51663 | CF25: =VLOOKUP(DropDownList!$A$19,CntyQuery!$A$75:$GZ$85,CF$1) -> 44867 | CG25: =VLOOKUP(DropDownList!$A$19,CntyQuery!$A$75:$GZ$85,CG$1) -> 6681 | CH25: =VLOOKUP(DropDownList!$A$19,CntyQuery!$A$75:$GZ$85,CH$1) -> 38186 | CI25: =VLOOKUP(DropDownList!$A$19,CntyQuery!$A$75:$GZ$85,CI$1) -> 926.58 | CJ25: =VLOOKUP(DropDownList!$A$19,CntyQuery!$A$75:$GZ$85,CJ$1) -> 946.3 | CK25: =VLOOKUP(DropDownList!$A$19,CntyQuery!$A$75:$GZ$85,CK$1) -> 981.6 | CL25: =VLOOKUP(DropDownList!$A$19,CntyQuery!$A$75:$GZ$85,CL$1) -> 940.12 | CM25: =VLOOKUP(DropDownList!$A$19,CntyQuery!$A$75:$GZ$85,CM$1) -> 52026 | CN25: =VLOOKUP(DropDownList!$A$19,CntyQuery!$A$75:$GZ$85,CN$1) -> 45246 | CO25: =VLOOKUP(DropDownList!$A$19,CntyQuery!$A$75:$GZ$85,CO$1) -> 6818 | CP25: =VLOOKUP(DropDownList!$A$19,CntyQuery!$A$75:$GZ$85,CP$1) -> 38428 | CQ25: =VLOOKUP(DropDownList!$A$19,CntyQuery!$A$75:$GZ$85,CQ$1) -> 950.95 | CR25: =VLOOKUP(DropDownList!$A$19,CntyQuery!$A$75:$GZ$85,CR$1) -> 973.52 | CS25: =VLOOKUP(DropDownList!$A$19,CntyQuery!$A$75:$GZ$85,CS$1) -> 996.15 | CT25: =VLOOKUP(DropDownList!$A$19,CntyQuery!$A$75:$GZ$85,CT$1) -> 969.5 | CU25: =VLOOKUP(DropDownList!$A$19,CntyQuery!$A$75:$GZ$85,CU$1) -> 52153 | CV25: =VLOOKUP(DropDownList!$A$19,CntyQuery!$A$75:$GZ$85,CV$1) -> 45454 | CW25: =VLOOKUP(DropDownList!$A$19,CntyQuery!$A$75:$GZ$85,CW$1) -> 6717 | CX25: =VLOOKUP(DropDownList!$A$19,CntyQuery!$A$75:$GZ$85,CX$1) -> 38736 | CY25: =VLOOKUP(DropDownList!$A$19,CntyQuery!$A$75:$GZ$85,CY$1) -> 965.05 | CZ25: =VLOOKUP(DropDownList!$A$19,CntyQuery!$A$75:$GZ$85,CZ$1) -> 986.68 | DA25: =VLOOKUP(DropDownList!$A$19,CntyQuery!$A$75:$GZ$85,DA$1) -> 1028.75 | DB25: =VLOOKUP(DropDownList!$A$19,CntyQuery!$A$75:$GZ$85,DB$1) -> 979.39 | DC25: =VLOOKUP(DropDownList!$A$19,CntyQuery!$A$75:$GZ$85,DC$1) -> 52226 | DD25: =VLOOKUP(DropDownList!$A$19,CntyQuery!$A$75:$GZ$85,DD$1) -> 45565 | DE25: =VLOOKUP(DropDownList!$A$19,CntyQuery!$A$75:$GZ$85,DE$1) -> 6778 | DF25: =VLOOKUP(DropDownList!$A$19,CntyQuery!$A$75:$GZ$85,DF$1) -> 38787 | DG25: =VLOOKUP(DropDownList!$A$19,CntyQuery!$A$75:$GZ$85,DG$1) -> 1004.06 | DH25: =VLOOKUP(DropDownList!$A$19,CntyQuery!$A$75:$GZ$85,DH$1) -> 1029.15 | DI25: =VLOOKUP(DropDownList!$A$19,CntyQuery!$A$75:$GZ$85,DI$1) -> 1069.54 | DJ25: =VLOOKUP(DropDownList!$A$19,CntyQuery!$A$75:$GZ$85,DJ$1) -> 1022.09 | DK25: =VLOOKUP(DropDownList!$A$19,CntyQuery!$A$75:$GZ$85,DK$1) -> 52654 | DL25: =VLOOKUP(DropDownList!$A$19,CntyQuery!$A$75:$GZ$85,DL$1) -> 46056 | DM25: =VLOOKUP(DropDownList!$A$19,CntyQuery!$A$75:$GZ$85,DM$1) -> 6882 | DN25: =VLOOKUP(DropDownList!$A$19,CntyQuery!$A$75:$GZ$85,DN$1) -> 39174 | DO25: =VLOOKUP(DropDownList!$A$19,CntyQuery!$A$75:$GZ$85,DO$1) -> 1037.55 | DP25: =VLOOKUP(DropDownList!$A$19,CntyQuery!$A$75:$GZ$85,DP$1) -> 1061.83 | DQ25: =VLOOKUP(DropDownList!$A$19,CntyQuery!$A$75:$GZ$85,DQ$1) -> 1078.89 | DR25: =VLOOKUP(DropDownList!$A$19,CntyQuery!$A$75:$GZ$85,DR$1) -> 1058.83 | DS25: =VLOOKUP(DropDownList!$A$19,CntyQuery!$A$75:$GZ$85,DS$1) -> 53361 | DT25: =VLOOKUP(DropDownList!$A$19,CntyQuery!$A$75:$GZ$85,DT$1) -> 46686 | DU25: =VLOOKUP(DropDownList!$A$19,CntyQuery!$A$75:$GZ$85,DU$1) -> 6801 | DV25: =VLOOKUP(DropDownList!$A$19,CntyQuery!$A$75:$GZ$85,DV$1) -> 39885 | DW25: =VLOOKUP(DropDownList!$A$19,CntyQuery!$A$75:$GZ$85,DW$1) -> 1058.6 | DX25: =VLOOKUP(DropDownList!$A$19,CntyQuery!$A$75:$GZ$85,DX$1) -> 1086.92 | DY25: =VLOOKUP(DropDownList!$A$19,CntyQuery!$A$75:$GZ$85,DY$1) -> 1082.4 | DZ25: =VLOOKUP(DropDownList!$A$19,CntyQuery!$A$75:$GZ$85,DZ$1) -> 1087.69 | EA25: =VLOOKUP(DropDownList!$A$19,CntyQuery!$A$75:$GZ$85,EA$1) -> 53790 | EB25: =VLOOKUP(DropDownList!$A$19,CntyQuery!$A$75:$GZ$85,EB$1) -> 47161 | EC25: =VLOOKUP(DropDownList!$A$19,CntyQuery!$A$75:$GZ$85,EC$1) -> 6781 | ED25: =VLOOKUP(DropDownList!$A$19,CntyQuery!$A$75:$GZ$85,ED$1) -> 40380 | EE25: =VLOOKUP(DropDownList!$A$19,CntyQuery!$A$75:$GZ$85,EE$1) -> 1079.63 | EF25: =VLOOKUP(DropDownList!$A$19,CntyQuery!$A$75:$GZ$85,EF$1) -> 1108.61 | EG25: =VLOOKUP(DropDownList!$A$19,CntyQuery!$A$75:$GZ$85,EG$1) -> 1125.3 | EH25: =VLOOKUP(DropDownList!$A$19,CntyQuery!$A$75:$GZ$85,EH$1) -> 1105.81 | EI25: =VLOOKUP(DropDownList!$A$19,CntyQuery!$A$75:$GZ$85,EI$1) -> 54119 | EJ25: =VLOOKUP(DropDownList!$A$19,CntyQuery!$A$75:$GZ$85,EJ$1) -> 47417 | EK25: =VLOOKUP(DropDownList!$A$19,CntyQuery!$A$75:$GZ$85,EK$1) -> 6926 | EL25: =VLOOKUP(DropDownList!$A$19,CntyQuery!$A$75:$GZ$85,EL$1) -> 40491 | EM25: =VLOOKUP(DropDownList!$A$19,CntyQuery!$A$75:$GZ$85,EM$1) -> 1105.33 | EN25: =VLOOKUP(DropDownList!$A$19,CntyQuery!$A$75:$GZ$85,EN$1) -> 1135.81 | EO25: =VLOOKUP(DropDownList!$A$19,CntyQuery!$A$75:$GZ$85,EO$1) -> 1167.74 | EP25: =VLOOKUP(DropDownList!$A$19,CntyQuery!$A$75:$GZ$85,EP$1) -> 1130.34 | EQ25: =VLOOKUP(DropDownList!$A$19,CntyQuery!$A$75:$GZ$85,EQ$1) -> 54388 | ER25: =VLOOKUP(DropDownList!$A$19,CntyQuery!$A$75:$GZ$85,ER$1) -> 47685 | ES25: =VLOOKUP(DropDownList!$A$19,CntyQuery!$A$75:$GZ$85,ES$1) -> 6855 | ET25: =VLOOKUP(DropDownList!$A$19,CntyQuery!$A$75:$GZ$85,ET$1) -> 40830 | EU25: =VLOOKUP(DropDownList!$A$19,CntyQuery!$A$75:$GZ$85,EU$1) -> 1142.8 | EV25: =VLOOKUP(DropDownList!$A$19,CntyQuery!$A$75:$GZ$85,EV$1) -> 1174.8 | EW25: =VLOOKUP(DropDownList!$A$19,CntyQuery!$A$75:$GZ$85,EW$1) -> 1156.02 | EX25: =VLOOKUP(DropDownList!$A$19,CntyQuery!$A$75:$GZ$85,EX$1) -> 1177.95 | EY25: =VLOOKUP(DropDownList!$A$19,CntyQuery!$A$75:$GZ$85,EY$1) -> 50622 | EZ25: =VLOOKUP(DropDownList!$A$19,CntyQuery!$A$75:$GZ$85,EZ$1) -> 44208 | FA25: =VLOOKUP(DropDownList!$A$19,CntyQuery!$A$75:$GZ$85,FA$1) -> 6338 | FB25: =VLOOKUP(DropDownList!$A$19,CntyQuery!$A$75:$GZ$85,FB$1) -> 37870 | FC25: =VLOOKUP(DropDownList!$A$19,CntyQuery!$A$75:$GZ$85,FC$1) -> 1251.72 | FD25: =VLOOKUP(DropDownList!$A$19,CntyQuery!$A$75:$GZ$85,FD$1) -> 1287.53 | FE25: =VLOOKUP(DropDownList!$A$19,CntyQuery!$A$75:$GZ$85,FE$1) -> 1194.47 | FF25: =VLOOKUP(DropDownList!$A$19,CntyQuery!$A$75:$GZ$85,FF$1) -> 1303.11 | FG25: =VLOOKUP(DropDownList!$A$19,CntyQuery!$A$75:$GZ$85,FG$1) -> 52299 | FH25: =VLOOKUP(DropDownList!$A$19,CntyQuery!$A$75:$GZ$85,FH$1) -> 45834 | FI25: =VLOOKUP(DropDownList!$A$19,CntyQuery!$A$75:$GZ$85,FI$1) -> 6526 | FJ25: =VLOOKUP(DropDownList!$A$19,CntyQuery!$A$75:$GZ$85,FJ$1) -> 39308 | FK25: =VLOOKUP(DropDownList!$A$19,CntyQuery!$A$75:$GZ$85,FK$1) -> 1284.39 | FL25: =VLOOKUP(DropDownList!$A$19,CntyQuery!$A$75:$GZ$85,FL$1) -> 1324 | FM25: =VLOOKUP(DropDownList!$A$19,CntyQuery!$A$75:$GZ$85,FM$1) -> 1309.54 | FN25: =VLOOKUP(DropDownList!$A$19,CntyQuery!$A$75:$GZ$85,FN$1) -> 1326.4 | FO25: =VLOOKUP(DropDownList!$A$19,CntyQuery!$A$75:$GZ$85,FO$1) -> 53193 | FP25: =VLOOKUP(DropDownList!$A$19,CntyQuery!$A$75:$GZ$85,FP$1) -> 47047 | FQ25: =VLOOKUP(DropDownList!$A$19,CntyQuery!$A$75:$GZ$85,FQ$1) -> 6756 | FR25: =VLOOKUP(DropDownList!$A$19,CntyQuery!$A$75:$GZ$85,FR$1) -> 40292 | FS25: =VLOOKUP(DropDownList!$A$19,CntyQuery!$A$75:$GZ$85,FS$1) -> 1320 | FT25: =VLOOKUP(DropDownList!$A$19,CntyQuery!$A$75:$GZ$85,FT$1) -> 1356 | FU25: =VLOOKUP(DropDownList!$A$19,CntyQuery!$A$75:$GZ$85,FU$1) -> 1348 | FV25: =VLOOKUP(DropDownList!$A$19,CntyQuery!$A$75:$GZ$85,FV$1) -> 1358
A28: Labor Force and Unemployment Rate | B28: Query Name: DPQryUnempByCnty
B29: LaborForce1990 | C29: LaborForce1991 | D29: LaborForce1992 | E29: LaborForce1993 | F29: LaborForce1994 | G29: LaborForce1995 | H29: LaborForce1996 | I29: LaborForce1997 | J29: LaborForce1998 | K29: LaborForce1999 | L29: LaborForce2000 | M29: LaborForce2001 | N29: LaborForce2002 | O29: LaborForce2003 | P29: NumberEmployed1990 | Q29: NumberEmployed1991 | R29: NumberEmployed1992 | S29: NumberEmployed1993 | T29: NumberEmployed1994 | U29: NumberEmployed1995 | V29: NumberEmployed1996 | W29: NumberEmployed1997 | X29: NumberEmployed1998 | Y29: NumberEmployed1999 | Z29: NumberEmployed2000 | AA29: NumberEmployed2001 | AB29: NumberEmployed2002 | AC29: NumberEmployed2003 | AD29: UnempRate1990 | AE29: UnempRate1991 | AF29: UnempRate1992 | AG29: UnempRate1993 | AH29: UnempRate1994 | AI29: UnempRate1995 | AJ29: UnempRate1996 | AK29: UnempRate1997 | AL29: UnempRate1998 | AM29: UnempRate1999 | AN29: UnempRate2000 | AO29: UnempRate2001 | AP29: UnempRate2002 | AQ29: UnempRate2003 | AR29: NumbUnEmployed1990 | AS29: NumbUnEmployed1991 | AT29: NumbUnEmployed1992 | AU29: NumbUnEmployed1993 | AV29: NumbUnEmployed1994 | AW29: NumbUnEmployed1995 | AX29: NumbUnEmployed1996 | AY29: NumbUnEmployed1997 | AZ29: NumbUnEmployed1998 | BA29: NumbUnEmployed1999 | BB29: NumbUnEmployed2000 | BC29: NumbUnEmployed2001 | BD29: NumbUnEmployed2002 | BE29: NumbUnEmployed2003 | BF29: LaborForce2004 | BG29: NumberEmployed2004 | BH29: UnempRate2004 | BI29: NumbUnEmployed2004 | BJ29: LaborForce2005 | BK29: NumberEmployed2005 | BL29: NumbUnEmp2005 | BM29: UnempRate2005 | BN29: LaborForce2006 | BO29: NumberEmployed2006 | BP29: NumbUnEmp2006 | BQ29: UnempRate2006 | BR29: LaborForce2007 | BS29: NumberEmployed2007 | BT29: NumbUnEmp2007 | BU29: UnempRate2007 | BV29: LaborForce2008 | BW29: NumberEmployed2008 | BX29: NumbUnEmp2008 | BY29: UnempRate2008 | BZ29: LaborForce2009 | CA29: NumberEmployed2009 | CB29: NumbUnEmp2009 | CC29: UnempRate2009 | CD29: LaborForce2010 | CE29: NumbEmployed2010 | CF29: NumbUnEmp2010 | CG29: UnempRate2010 | CH29: LaborForce2011 | CI29: NumbEmployed2011 | CJ29: NumbUnEmp2011 | CK29: UnempRate2011 | CL29: LaborForce2012 | CM29: NumbEmployed2012 | CN29: NumbUnEmp2012 | CO29: UnempRate2012 | CP29: LaborForce2013 | CQ29: NumbEmployed2013 | CR29: NumbUnEmp2013 | CS29: UnempRate2013 | CT29: LaborForce2014 | CU29: NumbEmployed2014 | CV29: NumbUnEmp2014 | CW29: UnempRate2014 | CX29: LaborForce2015 | CY29: NumbEmployed2015 | CZ29: NumbUnEmp2015 | DA29: UnempRate2015 | DB29: LaborForce2016 | DC29: NumbEmployed2016 | DD29: NumbUnEmp2016 | DE29: UnempRate2016 | DF29: LaborForce2017 | DG29: NumbEmployed2017 | DH29: NumbUnEmp2017 | DI29: UnempRate2017 | DJ29: LaborForce2018 | DK29: NumbEmployed2018 | DL29: NumbUnEmp2018 | DM29: UnempRate2018 | DN29: LaborForce2019 | DO29: NumbEmployed2019 | DP29: NumbUnEmp2019 | DQ29: UnempRate2019 | DR29: LaborForce2020 | DS29: NumbEmployed2020 | DT29: NumbUnEmp2020 | DU29: UnempRate2020 | DV29: LaborForce2021 | DW29: NumbEmployed2021 | DX29: NumbUnEmp2021 | DY29: UnempRate2021 | DZ29: LaborForce2022 | EA29: NumbEmployed2022 | EB29: NumbUnEmp2022 | EC29: UnempRate2022
A30: =VLOOKUP(DropDownList!$A$19,CntyQuery!$A$94:$FZ$105,A$1) -> Grafton County | B30: =VLOOKUP(DropDownList!$A$19,CntyQuery!$A$94:$FZ$105,B$1) -> 40114 | C30: =VLOOKUP(DropDownList!$A$19,CntyQuery!$A$94:$FZ$105,C$1) -> 40615 | D30: =VLOOKUP(DropDownList!$A$19,CntyQuery!$A$94:$FZ$105,D$1) -> 40202 | E30: =VLOOKUP(DropDownList!$A$19,CntyQuery!$A$94:$FZ$105,E$1) -> 40214 | F30: =VLOOKUP(DropDownList!$A$19,CntyQuery!$A$94:$FZ$105,F$1) -> 41480 | G30: =VLOOKUP(DropDownList!$A$19,CntyQuery!$A$94:$FZ$105,G$1) -> 42160 | H30: =VLOOKUP(DropDownList!$A$19,CntyQuery!$A$94:$FZ$105,H$1) -> 41465 | I30: =VLOOKUP(DropDownList!$A$19,CntyQuery!$A$94:$FZ$105,I$1) -> 42872 | J30: =VLOOKUP(DropDownList!$A$19,CntyQuery!$A$94:$FZ$105,J$1) -> 43915 | K30: =VLOOKUP(DropDownList!$A$19,CntyQuery!$A$94:$FZ$105,K$1) -> 44610 | L30: =VLOOKUP(DropDownList!$A$19,CntyQuery!$A$94:$FZ$105,L$1) -> 44860 | M30: =VLOOKUP(DropDownList!$A$19,CntyQuery!$A$94:$FZ$105,M$1) -> 45010 | N30: =VLOOKUP(DropDownList!$A$19,CntyQuery!$A$94:$FZ$105,N$1) -> 45440 | O30: =VLOOKUP(DropDownList!$A$19,CntyQuery!$A$94:$FZ$105,O$1) -> 45680 | P30: =VLOOKUP(DropDownList!$A$19,CntyQuery!$A$94:$FZ$105,P$1) -> 37935 | Q30: =VLOOKUP(DropDownList!$A$19,CntyQuery!$A$94:$FZ$105,Q$1) -> 37753 | R30: =VLOOKUP(DropDownList!$A$19,CntyQuery!$A$94:$FZ$105,R$1) -> 37788 | S30: =VLOOKUP(DropDownList!$A$19,CntyQuery!$A$94:$FZ$105,S$1) -> 38153 | T30: =VLOOKUP(DropDownList!$A$19,CntyQuery!$A$94:$FZ$105,T$1) -> 40169 | U30: =VLOOKUP(DropDownList!$A$19,CntyQuery!$A$94:$FZ$105,U$1) -> 40853 | V30: =VLOOKUP(DropDownList!$A$19,CntyQuery!$A$94:$FZ$105,V$1) -> 40117 | W30: =VLOOKUP(DropDownList!$A$19,CntyQuery!$A$94:$FZ$105,W$1) -> 41781 | X30: =VLOOKUP(DropDownList!$A$19,CntyQuery!$A$94:$FZ$105,X$1) -> 42942 | Y30: =VLOOKUP(DropDownList!$A$19,CntyQuery!$A$94:$FZ$105,Y$1) -> 43752 | Z30: =VLOOKUP(DropDownList!$A$19,CntyQuery!$A$94:$FZ$105,Z$1) -> 43800 | AA30: =VLOOKUP(DropDownList!$A$19,CntyQuery!$A$94:$FZ$105,AA$1) -> 43800 | AB30: =VLOOKUP(DropDownList!$A$19,CntyQuery!$A$94:$FZ$105,AB$1) -> 44110 | AC30: =VLOOKUP(DropDownList!$A$19,CntyQuery!$A$94:$FZ$105,AC$1) -> 44300 | AD30: =VLOOKUP(DropDownList!$A$19,CntyQuery!$A$94:$FZ$105,AD$1) -> 5.4 | AE30: =VLOOKUP(DropDownList!$A$19,CntyQuery!$A$94:$FZ$105,AE$1) -> 7 | AF30: =VLOOKUP(DropDownList!$A$19,CntyQuery!$A$94:$FZ$105,AF$1) -> 6 | AG30: =VLOOKUP(DropDownList!$A$19,CntyQuery!$A$94:$FZ$105,AG$1) -> 5.1 | AH30: =VLOOKUP(DropDownList!$A$19,CntyQuery!$A$94:$FZ$105,AH$1) -> 3.2 | AI30: =VLOOKUP(DropDownList!$A$19,CntyQuery!$A$94:$FZ$105,AI$1) -> 3.1 | AJ30: =VLOOKUP(DropDownList!$A$19,CntyQuery!$A$94:$FZ$105,AJ$1) -> 3.3 | AK30: =VLOOKUP(DropDownList!$A$19,CntyQuery!$A$94:$FZ$105,AK$1) -> 2.5 | AL30: =VLOOKUP(DropDownList!$A$19,CntyQuery!$A$94:$FZ$105,AL$1) -> 2.2 | AM30: =VLOOKUP(DropDownList!$A$19,CntyQuery!$A$94:$FZ$105,AM$1) -> 1.9 | AN30: =VLOOKUP(DropDownList!$A$19,CntyQuery!$A$94:$FZ$105,AN$1) -> 2.4 | AO30: =VLOOKUP(DropDownList!$A$19,CntyQuery!$A$94:$FZ$105,AO$1) -> 2.7 | AP30: =VLOOKUP(DropDownList!$A$19,CntyQuery!$A$94:$FZ$105,AP$1) -> 2.9 | AQ30: =VLOOKUP(DropDownList!$A$19,CntyQuery!$A$94:$FZ$105,AQ$1) -> 3 | AR30: =VLOOKUP(DropDownList!$A$19,CntyQuery!$A$94:$FZ$105,AR$1) -> 2179 | AS30: =VLOOKUP(DropDownList!$A$19,CntyQuery!$A$94:$FZ$105,AS$1) -> 2862 | AT30: =VLOOKUP(DropDownList!$A$19,CntyQuery!$A$94:$FZ$105,AT$1) -> 2414 | AU30: =VLOOKUP(DropDownList!$A$19,CntyQuery!$A$94:$FZ$105,AU$1) -> 2061 | AV30: =VLOOKUP(DropDownList!$A$19,CntyQuery!$A$94:$FZ$105,AV$1) -> 1311 | AW30: =VLOOKUP(DropDownList!$A$19,CntyQuery!$A$94:$FZ$105,AW$1) -> 1307 | AX30: =VLOOKUP(DropDownList!$A$19,CntyQuery!$A$94:$FZ$105,AX$1) -> 1348 | AY30: =VLOOKUP(DropDownList!$A$19,CntyQuery!$A$94:$FZ$105,AY$1) -> 1091 | AZ30: =VLOOKUP(DropDownList!$A$19,CntyQuery!$A$94:$FZ$105,AZ$1) -> 973 | BA30: =VLOOKUP(DropDownList!$A$19,CntyQuery!$A$94:$FZ$105,BA$1) -> 858 | BB30: =VLOOKUP(DropDownList!$A$19,CntyQuery!$A$94:$FZ$105,BB$1) -> 1060 | BC30: =VLOOKUP(DropDownList!$A$19,CntyQuery!$A$94:$FZ$105,BC$1) -> 1210 | BD30: =VLOOKUP(DropDownList!$A$19,CntyQuery!$A$94:$FZ$105,BD$1) -> 1330 | BE30: =VLOOKUP(DropDownList!$A$19,CntyQuery!$A$94:$FZ$105,BE$1) -> 1380 | BF30: =VLOOKUP(DropDownList!$A$19,CntyQuery!$A$94:$FZ$105,BF$1) -> 46400 | BG30: =VLOOKUP(DropDownList!$A$19,CntyQuery!$A$94:$FZ$105,BG$1) -> 45110 | BH30: =VLOOKUP(DropDownList!$A$19,CntyQuery!$A$94:$FZ$105,BH$1) -> 2.8 | BI30: =VLOOKUP(DropDownList!$A$19,CntyQuery!$A$94:$FZ$105,BI$1) -> 1290 | BJ30: =VLOOKUP(DropDownList!$A$19,CntyQuery!$A$94:$FZ$105,BJ$1) -> 46770 | BK30: =VLOOKUP(DropDownList!$A$19,CntyQuery!$A$94:$FZ$105,BK$1) -> 45450 | BL30: =VLOOKUP(DropDownList!$A$19,CntyQuery!$A$94:$FZ$105,BL$1) -> 1320 | BM30: =VLOOKUP(DropDownList!$A$19,CntyQuery!$A$94:$FZ$105,BM$1) -> 2.8 | BN30: =VLOOKUP(DropDownList!$A$19,CntyQuery!$A$94:$FZ$105,BN$1) -> 47850 | BO30: =VLOOKUP(DropDownList!$A$19,CntyQuery!$A$94:$FZ$105,BO$1) -> 46480 | BP30: =VLOOKUP(DropDownList!$A$19,CntyQuery!$A$94:$FZ$105,BP$1) -> 1370 | BQ30: =VLOOKUP(DropDownList!$A$19,CntyQuery!$A$94:$FZ$105,BQ$1) -> 2.9 | BR30: =VLOOKUP(DropDownList!$A$19,CntyQuery!$A$94:$FZ$105,BR$1) -> 48290 | BS30: =VLOOKUP(DropDownList!$A$19,CntyQuery!$A$94:$FZ$105,BS$1) -> 46860 | BT30: =VLOOKUP(DropDownList!$A$19,CntyQuery!$A$94:$FZ$105,BT$1) -> 1430 | BU30: =VLOOKUP(DropDownList!$A$19,CntyQuery!$A$94:$FZ$105,BU$1) -> 3 | BV30: =VLOOKUP(DropDownList!$A$19,CntyQuery!$A$94:$FZ$105,BV$1) -> 48800 | BW30: =VLOOKUP(DropDownList!$A$19,CntyQuery!$A$94:$FZ$105,BW$1) -> 47260 | BX30: =VLOOKUP(DropDownList!$A$19,CntyQuery!$A$94:$FZ$105,BX$1) -> 1540 | BY30: =VLOOKUP(DropDownList!$A$19,CntyQuery!$A$94:$FZ$105,BY$1) -> 3.1 | BZ30: =VLOOKUP(DropDownList!$A$19,CntyQuery!$A$94:$FZ$105,BZ$1) -> 48890 | CA30: =VLOOKUP(DropDownList!$A$19,CntyQuery!$A$94:$FZ$105,CA$1) -> 46380 | CB30: =VLOOKUP(DropDownList!$A$19,CntyQuery!$A$94:$FZ$105,CB$1) -> 2510 | CC30: =VLOOKUP(DropDownList!$A$19,CntyQuery!$A$94:$FZ$105,CC$1) -> 5.1 | CD30: =VLOOKUP(DropDownList!$A$19,CntyQuery!$A$94:$FZ$105,CD$1) -> 48330 | CE30: =VLOOKUP(DropDownList!$A$19,CntyQuery!$A$94:$FZ$105,CE$1) -> 46010 | CF30: =VLOOKUP(DropDownList!$A$19,CntyQuery!$A$94:$FZ$105,CF$1) -> 2320 | CG30: =VLOOKUP(DropDownList!$A$19,CntyQuery!$A$94:$FZ$105,CG$1) -> 4.8 | CH30: =VLOOKUP(DropDownList!$A$19,CntyQuery!$A$94:$FZ$105,CH$1) -> 48730 | CI30: =VLOOKUP(DropDownList!$A$19,CntyQuery!$A$94:$FZ$105,CI$1) -> 46560 | CJ30: =VLOOKUP(DropDownList!$A$19,CntyQuery!$A$94:$FZ$105,CJ$1) -> 2170 | CK30: =VLOOKUP(DropDownList!$A$19,CntyQuery!$A$94:$FZ$105,CK$1) -> 4.5 | CL30: =VLOOKUP(DropDownList!$A$19,CntyQuery!$A$94:$FZ$105,CL$1) -> 48730 | CM30: =VLOOKUP(DropDownList!$A$19,CntyQuery!$A$94:$FZ$105,CM$1) -> 46560 | CN30: =VLOOKUP(DropDownList!$A$19,CntyQuery!$A$94:$FZ$105,CN$1) -> 2170 | CO30: =VLOOKUP(DropDownList!$A$19,CntyQuery!$A$94:$FZ$105,CO$1) -> 4.4 | CP30: =VLOOKUP(DropDownList!$A$19,CntyQuery!$A$94:$FZ$105,CP$1) -> 48360 | CQ30: =VLOOKUP(DropDownList!$A$19,CntyQuery!$A$94:$FZ$105,CQ$1) -> 46320 | CR30: =VLOOKUP(DropDownList!$A$19,CntyQuery!$A$94:$FZ$105,CR$1) -> 2040 | CS30: =VLOOKUP(DropDownList!$A$19,CntyQuery!$A$94:$FZ$105,CS$1) -> 4.2 | CT30: =VLOOKUP(DropDownList!$A$19,CntyQuery!$A$94:$FZ$105,CT$1) -> 48550 | CU30: =VLOOKUP(DropDownList!$A$19,CntyQuery!$A$94:$FZ$105,CU$1) -> 46880 | CV30: =VLOOKUP(DropDownList!$A$19,CntyQuery!$A$94:$FZ$105,CV$1) -> 1670 | CW30: =VLOOKUP(DropDownList!$A$19,CntyQuery!$A$94:$FZ$105,CW$1) -> 3.4 | CX30: =VLOOKUP(DropDownList!$A$19,CntyQuery!$A$94:$FZ$105,CX$1) -> 48690 | CY30: =VLOOKUP(DropDownList!$A$19,CntyQuery!$A$94:$FZ$105,CY$1) -> 47360 | CZ30: =VLOOKUP(DropDownList!$A$19,CntyQuery!$A$94:$FZ$105,CZ$1) -> 1330 | DA30: =VLOOKUP(DropDownList!$A$19,CntyQuery!$A$94:$FZ$105,DA$1) -> 2.7 | DB30: =VLOOKUP(DropDownList!$A$19,CntyQuery!$A$94:$FZ$105,DB$1) -> 48810 | DC30: =VLOOKUP(DropDownList!$A$19,CntyQuery!$A$94:$FZ$105,DC$1) -> 47660 | DD30: =VLOOKUP(DropDownList!$A$19,CntyQuery!$A$94:$FZ$105,DD$1) -> 1150 | DE30: =VLOOKUP(DropDownList!$A$19,CntyQuery!$A$94:$FZ$105,DE$1) -> 2.4 | DF30: =VLOOKUP(DropDownList!$A$19,CntyQuery!$A$94:$FZ$105,DF$1) -> 49340 | DG30: =VLOOKUP(DropDownList!$A$19,CntyQuery!$A$94:$FZ$105,DG$1) -> 48210 | DH30: =VLOOKUP(DropDownList!$A$19,CntyQuery!$A$94:$FZ$105,DH$1) -> 1130 | DI30: =VLOOKUP(DropDownList!$A$19,CntyQuery!$A$94:$FZ$105,DI$1) -> 2.3 | DJ30: =VLOOKUP(DropDownList!$A$19,CntyQuery!$A$94:$FZ$105,DJ$1) -> 49860 | DK30: =VLOOKUP(DropDownList!$A$19,CntyQuery!$A$94:$FZ$105,DK$1) -> 48780 | DL30: =VLOOKUP(DropDownList!$A$19,CntyQuery!$A$94:$FZ$105,DL$1) -> 1080 | DM30: =VLOOKUP(DropDownList!$A$19,CntyQuery!$A$94:$FZ$105,DM$1) -> 2.3 | DN30: =VLOOKUP(DropDownList!$A$19,CntyQuery!$A$94:$FZ$105,DN$1) -> 50040 | DO30: =VLOOKUP(DropDownList!$A$19,CntyQuery!$A$94:$FZ$105,DO$1) -> 48930 | DP30: =VLOOKUP(DropDownList!$A$19,CntyQuery!$A$94:$FZ$105,DP$1) -> 1110 | DQ30: =VLOOKUP(DropDownList!$A$19,CntyQuery!$A$94:$FZ$105,DQ$1) -> 2.3 | DR30: =VLOOKUP(DropDownList!$A$19,CntyQuery!$A$94:$FZ$105,DR$1) -> 47860 | DS30: =VLOOKUP(DropDownList!$A$19,CntyQuery!$A$94:$FZ$105,DS$1) -> 45030 | DT30: =VLOOKUP(DropDownList!$A$19,CntyQuery!$A$94:$FZ$105,DT$1) -> 2830 | DU30: =VLOOKUP(DropDownList!$A$19,CntyQuery!$A$94:$FZ$105,DU$1) -> 5.9 | DV30: =VLOOKUP(DropDownList!$A$19,CntyQuery!$A$94:$FZ$105,DV$1) -> 48470 | DW30: =VLOOKUP(DropDownList!$A$19,CntyQuery!$A$94:$FZ$105,DW$1) -> 46900 | DX30: =VLOOKUP(DropDownList!$A$19,CntyQuery!$A$94:$FZ$105,DX$1) -> 1570 | DY30: =VLOOKUP(DropDownList!$A$19,CntyQuery!$A$94:$FZ$105,DY$1) -> 3.2 | DZ30: =VLOOKUP(DropDownList!$A$19,CntyQuery!$A$94:$FZ$105,DZ$1) -> 48940 | EA30: =VLOOKUP(DropDownList!$A$19,CntyQuery!$A$94:$FZ$105,EA$1) -> 47800 | EB30: =VLOOKUP(DropDownList!$A$19,CntyQuery!$A$94:$FZ$105,EB$1) -> 1140 | EC30: =VLOOKUP(DropDownList!$A$19,CntyQuery!$A$94:$FZ$105,EC$1) -> 2.3
M32: =IF((CntyDataLink!$BL$25)="n",NA(),IF(VALUE(CntyDataLink!$BL$25)="",NA(),VALUE(CntyDataLink!$BL$25))) -> 884.82
A33: Census 2000 Data - Query Name: CountyQuery3 | B33: 2 | C33: =B33+1 -> 3 | D33: =C33+1 -> 4 | E33: 5 | F33: 6 | G33: 7 | H33: 8 | I33: 9 | J33: 10 | K33: 11 | L33: 12 | M33: 13 | N33: 14 | O33: 15 | P33: 16 | Q33: 17 | R33: 18 | S33: 19 | T33: 20 | U33: 21 | V33: 22 | W33: 23 | X33: 24 | Y33: 25 | Z33: 26 | AA33: 27 | AB33: 28 | AC33: 29 | AD33: 30 | AE33: 31 | AF33: 32 | AG33: 33 | AH33: 34 | AI33: 35 | AJ33: 36 | AK33: 37 | AL33: 38 | AM33: 39 | AN33: 40 | AO33: 41 | AP33: 42 | AQ33: 43 | AR33: 44 | AS33: 45 | AT33: 46 | AU33: 47 | AV33: 48 | AW33: 49 | AX33: 50 | AY33: 51 | AZ33: 52 | BA33: 53 | BB33: 54 | BC33: 55 | BD33: 56 | BE33: 57 | BF33: 58 | BG33: 59 | BH33: 60 | BI33: 61 | BJ33: 62 | BK33: 63 | BL33: 64 | BM33: 65 | BN33: 66 | BO33: 67 | BP33: =BO33+1 -> 68 | BQ33: 69 | BR33: 70 | BS33: 71 | BT33: 72 | BU33: 73 | BV33: 74 | BW33: 75 | BX33: 76 | BY33: 77 | BZ33: 78 | CA33: 79 | CB33: 80 | CC33: 81 | CD33: 82 | CE33: 83 | CF33: 84 | CG33: 85 | CH33: 86 | CI33: 87 | CJ33: 88 | CK33: 89 | CL33: 90 | CM33: 91 | CN33: 92 | CO33: 93 | CP33: 94 | CQ33: 95 | CR33: 96 | CS33: 97 | CT33: 98 | CU33: 99 | CV33: 100 | CW33: 101 | CX33: 102 | CY33: 103
A34: NAME | B34: COUNTY | C34: LOGRECNO | D34: COUSUB | E34: TRACT | F34: AREALAND | G34: AREAWATR | H34: POP100 | I34: HU100 | J34: 2000Population | K34: PopOfOneRace | L34: PopWhite | M34: PopBlack | N34: PopAmIndian | O34: PopAsian | P34: PopHawaiian | Q34: PopOtherRace | R34: Pop2orMoreRaces | S34: PopHispanicLatino | T34: PopNotHispanicLatino | U34: PopMale | V34: PopMale<15 | W34: PopMale15to24 | X34: PopMale25to34 | Y34: PopMale35to44 | Z34: PopMale45to54 | AA34: PopMale55to64 | AB34: PopMale65to74 | AC34: PopMale75to84 | AD34: PopMale85andOver | AE34: PopFemale | AF34: PopFemale<15 | AG34: PopFemale15to24 | AH34: PopFemale25to34 | AI34: PopFemale35t44 | AJ34: PopFemale45to54 | AK34: PopFemale55to64 | AL34: PopFemale65to74 | AM34: PopFemale75to84 | AN34: PopFemale85andOver | AO34: Households2000 | AP34: PopInHH | AQ34: AvgHHSize | AR34: HHs1Person | AS34: HHs2orMorePerson | AT34: HHsFamily | AU34: HHMarriedCoupleFam | AV34: HHSingleParentFam | AW34: HHsNonFamily | AX34: Families | AY34: PopInFam | AZ34: AvgFamSize | BA34: TotHsUnits | BB34: OccHsUnits | BC34: OwnerOccHU | BD34: RenterOccHU | BE34: VctHsUnits | BF34: VctHUForRent | BG34: VctHUForSale | BH34: VctHUSeasonal | BI34: PopInOccHU | BJ34: PopInOwnOccHU | BK34: PopInRntOccHU | BL34: AvgHHSize2 | BM34: AvgHHSizOwnOcc | BN34: AvgHHSizRntOcc | BO34: OwnOccWhtHsHldr | BP34: OwnOccBlkHsHldr | BQ34: OwnOccAmIHsHldr | BR34: OwnOccAsnHsHldr | BS34: OwnOccPIsHsHldr | BT34: OwnOccORHsHldr | BU34: OwnOcc2RcHsHldr | BV34: RntOccWhtHsHldr | BW34: RntOccBlkHsHldr | BX34: RntOccAmIHsHldr | BY34: RntOccAsnHsHldr | BZ34: RntOccPIsHsHldr | CA34: RntOccORHsHldr | CB34: RntOcc2RcHsHldr | CC34: OwnOccHH15to24 | CD34: OwnOccHH25to34 | CE34: OwnOccHH35to44 | CF34: OwnOccHH45to54 | CG34: OwnOccHH55to64 | CH34: OwnOccHH65to74 | CI34: OwnOccHH75to84 | CJ34: OwnOccHH85Over | CK34: RntOccHH15to24 | CL34: RntOccHH25to34 | CM34: RntOccHH35to44 | CN34: RntOccHH45to54 | CO34: RntOccHH55to64 | CP34: RntOccHH65to74 | CQ34: RntOccHH75to84 | CR34: RntOccHH85Over | CS34: P27TotalPop | CT34: P27PopInHseHlds | CU34: P27PopInGrpQtrs | CV34: SUMLEV | CW34: Median Age Total | CX34: Median Age (Male) | CY34: Median Age (Female)
A35: =VLOOKUP(DropDownList!$A$19,CntyQuery!$A$20:$CE$30,A$1) -> Grafton County | B35: =VLOOKUP(DropDownList!$A$19,CntyQryCensus!$A$5:$CY$15,B1) -> 009 | C35: =VLOOKUP(DropDownList!$A$19,CntyQryCensus!$A$5:$CY$15,C1) -> 0010321 | D35: =VLOOKUP(DropDownList!$A$19,CntyQryCensus!$A$5:$CY$15,D1) ->  | E35: =VLOOKUP(DropDownList!$A$19,CntyQryCensus!$A$5:$CY$15,E1) ->  | F35: =VLOOKUP(DropDownList!$A$19,CntyQryCensus!$A$5:$CY$15,F1) -> 4437509185 | G35: =VLOOKUP(DropDownList!$A$19,CntyQryCensus!$A$5:$CY$15,G1) -> 95176279 | H35: =VLOOKUP(DropDownList!$A$19,CntyQryCensus!$A$5:$CY$15,H1) -> 81743 | I35: =VLOOKUP(DropDownList!$A$19,CntyQryCensus!$A$5:$CY$15,I1) -> 43729 | J35: =VLOOKUP(DropDownList!$A$19,CntyQryCensus!$A$5:$CY$15,J1) -> 81743 | K35: =VLOOKUP(DropDownList!$A$19,CntyQryCensus!$A$5:$CY$15,K1) -> 80717 | L35: =VLOOKUP(DropDownList!$A$19,CntyQryCensus!$A$5:$CY$15,L1) -> 78276 | M35: =VLOOKUP(DropDownList!$A$19,CntyQryCensus!$A$5:$CY$15,M1) -> 435 | N35: =VLOOKUP(DropDownList!$A$19,CntyQryCensus!$A$5:$CY$15,N1) -> 255 | O35: =VLOOKUP(DropDownList!$A$19,CntyQryCensus!$A$5:$CY$15,O1) -> 1414 | P35: =VLOOKUP(DropDownList!$A$19,CntyQryCensus!$A$5:$CY$15,P1) -> 22 | Q35: =VLOOKUP(DropDownList!$A$19,CntyQryCensus!$A$5:$CY$15,Q1) -> 315 | R35: =VLOOKUP(DropDownList!$A$19,CntyQryCensus!$A$5:$CY$15,R1) -> 1026 | S35: =VLOOKUP(DropDownList!$A$19,CntyQryCensus!$A$5:$CY$15,S1) -> 914 | T35: =VLOOKUP(DropDownList!$A$19,CntyQryCensus!$A$5:$CY$15,T1) -> 80829 | U35: =VLOOKUP(DropDownList!$A$19,CntyQryCensus!$A$5:$CY$15,U1) -> 40186 | V35: =VLOOKUP(DropDownList!$A$19,CntyQryCensus!$A$5:$CY$15,V1) -> 7446 | W35: =VLOOKUP(DropDownList!$A$19,CntyQryCensus!$A$5:$CY$15,W1) -> 7414 | X35: =VLOOKUP(DropDownList!$A$19,CntyQryCensus!$A$5:$CY$15,X1) -> 4802 | Y35: =VLOOKUP(DropDownList!$A$19,CntyQryCensus!$A$5:$CY$15,Y1) -> 5991 | Z35: =VLOOKUP(DropDownList!$A$19,CntyQryCensus!$A$5:$CY$15,Z1) -> 5983 | AA35: =VLOOKUP(DropDownList!$A$19,CntyQryCensus!$A$5:$CY$15,AA1) -> 3794 | AB35: =VLOOKUP(DropDownList!$A$19,CntyQryCensus!$A$5:$CY$15,AB1) -> 2739 | AC35: =VLOOKUP(DropDownList!$A$19,CntyQryCensus!$A$5:$CY$15,AC1) -> 1622 | AD35: =VLOOKUP(DropDownList!$A$19,CntyQryCensus!$A$5:$CY$15,AD1) -> 395 | AE35: =VLOOKUP(DropDownList!$A$19,CntyQryCensus!$A$5:$CY$15,AE1) -> 41557 | AF35: =VLOOKUP(DropDownList!$A$19,CntyQryCensus!$A$5:$CY$15,AF1) -> 7141 | AG35: =VLOOKUP(DropDownList!$A$19,CntyQryCensus!$A$5:$CY$15,AG1) -> 6942 | AH35: =VLOOKUP(DropDownList!$A$19,CntyQryCensus!$A$5:$CY$15,AH1) -> 4890 | AI35: =VLOOKUP(DropDownList!$A$19,CntyQryCensus!$A$5:$CY$15,AI1) -> 6383 | AJ35: =VLOOKUP(DropDownList!$A$19,CntyQryCensus!$A$5:$CY$15,AJ1) -> 6128 | AK35: =VLOOKUP(DropDownList!$A$19,CntyQryCensus!$A$5:$CY$15,AK1) -> 3856 | AL35: =VLOOKUP(DropDownList!$A$19,CntyQryCensus!$A$5:$CY$15,AL1) -> 2962 | AM35: =VLOOKUP(DropDownList!$A$19,CntyQryCensus!$A$5:$CY$15,AM1) -> 2267 | AN35: =VLOOKUP(DropDownList!$A$19,CntyQryCensus!$A$5:$CY$15,AN1) -> 988 | AO35: =VLOOKUP(DropDownList!$A$19,CntyQryCensus!$A$5:$CY$15,AO1) -> 31598 | AP35: =VLOOKUP(DropDownList!$A$19,CntyQryCensus!$A$5:$CY$15,AP1) -> 75355 | AQ35: =VLOOKUP(DropDownList!$A$19,CntyQryCensus!$A$5:$CY$15,AQ1) -> 2.38 | AR35: =VLOOKUP(DropDownList!$A$19,CntyQryCensus!$A$5:$CY$15,AR1) -> 8644 | AS35: =VLOOKUP(DropDownList!$A$19,CntyQryCensus!$A$5:$CY$15,AS1) -> 22954 | AT35: =VLOOKUP(DropDownList!$A$19,CntyQryCensus!$A$5:$CY$15,AT1) -> 20266 | AU35: =VLOOKUP(DropDownList!$A$19,CntyQryCensus!$A$5:$CY$15,AU1) -> 16543 | AV35: =VLOOKUP(DropDownList!$A$19,CntyQryCensus!$A$5:$CY$15,AV1) -> 3723 | AW35: =VLOOKUP(DropDownList!$A$19,CntyQryCensus!$A$5:$CY$15,AW1) -> 2688 | AX35: =VLOOKUP(DropDownList!$A$19,CntyQryCensus!$A$5:$CY$15,AX1) -> 20266 | AY35: =VLOOKUP(DropDownList!$A$19,CntyQryCensus!$A$5:$CY$15,AY1) -> 58780 | AZ35: =VLOOKUP(DropDownList!$A$19,CntyQryCensus!$A$5:$CY$15,AZ1) -> 2.9 | BA35: =VLOOKUP(DropDownList!$A$19,CntyQryCensus!$A$5:$CY$15,BA1) -> 43729 | BB35: =VLOOKUP(DropDownList!$A$19,CntyQryCensus!$A$5:$CY$15,BB1) -> 31598 | BC35: =VLOOKUP(DropDownList!$A$19,CntyQryCensus!$A$5:$CY$15,BC1) -> 21677 | BD35: =VLOOKUP(DropDownList!$A$19,CntyQryCensus!$A$5:$CY$15,BD1) -> 9921 | BE35: =VLOOKUP(DropDownList!$A$19,CntyQryCensus!$A$5:$CY$15,BE1) -> 12131 | BF35: =VLOOKUP(DropDownList!$A$19,CntyQryCensus!$A$5:$CY$15,BF1) -> 386 | BG35: =VLOOKUP(DropDownList!$A$19,CntyQryCensus!$A$5:$CY$15,BG1) -> 433 | BH35: =VLOOKUP(DropDownList!$A$19,CntyQryCensus!$A$5:$CY$15,BH1) -> 10428 | BI35: =VLOOKUP(DropDownList!$A$19,CntyQryCensus!$A$5:$CY$15,BI1) -> 75355 | BJ35: =VLOOKUP(DropDownList!$A$19,CntyQryCensus!$A$5:$CY$15,BJ1) -> 54413 | BK35: =VLOOKUP(DropDownList!$A$19,CntyQryCensus!$A$5:$CY$15,BK1) -> 20942 | BL35: =VLOOKUP(DropDownList!$A$19,CntyQryCensus!$A$5:$CY$15,BL1) -> 2.38 | BM35: =VLOOKUP(DropDownList!$A$19,CntyQryCensus!$A$5:$CY$15,BM1) -> 2.51 | BN35: =VLOOKUP(DropDownList!$A$19,CntyQryCensus!$A$5:$CY$15,BN1) -> 2.11 | BO35: =VLOOKUP(DropDownList!$A$19,CntyQryCensus!$A$5:$CY$15,BO1) -> 21285 | BP35: =VLOOKUP(DropDownList!$A$19,CntyQryCensus!$A$5:$CY$15,BP1) -> 36 | BQ35: =VLOOKUP(DropDownList!$A$19,CntyQryCensus!$A$5:$CY$15,BQ1) -> 42 | BR35: =VLOOKUP(DropDownList!$A$19,CntyQryCensus!$A$5:$CY$15,BR1) -> 135 | BS35: =VLOOKUP(DropDownList!$A$19,CntyQryCensus!$A$5:$CY$15,BS1) -> 4 | BT35: =VLOOKUP(DropDownList!$A$19,CntyQryCensus!$A$5:$CY$15,BT1) -> 35 | BU35: =VLOOKUP(DropDownList!$A$19,CntyQryCensus!$A$5:$CY$15,BU1) -> 140 | BV35: =VLOOKUP(DropDownList!$A$19,CntyQryCensus!$A$5:$CY$15,BV1) -> 9342 | BW35: =VLOOKUP(DropDownList!$A$19,CntyQryCensus!$A$5:$CY$15,BW1) -> 88 | BX35: =VLOOKUP(DropDownList!$A$19,CntyQryCensus!$A$5:$CY$15,BX1) -> 64 | BY35: =VLOOKUP(DropDownList!$A$19,CntyQryCensus!$A$5:$CY$15,BY1) -> 222 | BZ35: =VLOOKUP(DropDownList!$A$19,CntyQryCensus!$A$5:$CY$15,BZ1) -> 4 | CA35: =VLOOKUP(DropDownList!$A$19,CntyQryCensus!$A$5:$CY$15,CA1) -> 58 | CB35: =VLOOKUP(DropDownList!$A$19,CntyQryCensus!$A$5:$CY$15,CB1) -> 143 | CC35: =VLOOKUP(DropDownList!$A$19,CntyQryCensus!$A$5:$CY$15,CC1) -> 186 | CD35: =VLOOKUP(DropDownList!$A$19,CntyQryCensus!$A$5:$CY$15,CD1) -> 2060 | CE35: =VLOOKUP(DropDownList!$A$19,CntyQryCensus!$A$5:$CY$15,CE1) -> 4718 | CF35: =VLOOKUP(DropDownList!$A$19,CntyQryCensus!$A$5:$CY$15,CF1) -> 5539 | CG35: =VLOOKUP(DropDownList!$A$19,CntyQryCensus!$A$5:$CY$15,CG1) -> 3758 | CH35: =VLOOKUP(DropDownList!$A$19,CntyQryCensus!$A$5:$CY$15,CH1) -> 3004 | CI35: =VLOOKUP(DropDownList!$A$19,CntyQryCensus!$A$5:$CY$15,CI1) -> 1905 | CJ35: =VLOOKUP(DropDownList!$A$19,CntyQryCensus!$A$5:$CY$15,CJ1) -> 507 | CK35: =VLOOKUP(DropDownList!$A$19,CntyQryCensus!$A$5:$CY$15,CK1) -> 1516 | CL35: =VLOOKUP(DropDownList!$A$19,CntyQryCensus!$A$5:$CY$15,CL1) -> 2755 | CM35: =VLOOKUP(DropDownList!$A$19,CntyQryCensus!$A$5:$CY$15,CM1) -> 2089 | CN35: =VLOOKUP(DropDownList!$A$19,CntyQryCensus!$A$5:$CY$15,CN1) -> 1444 | CO35: =VLOOKUP(DropDownList!$A$19,CntyQryCensus!$A$5:$CY$15,CO1) -> 775 | CP35: =VLOOKUP(DropDownList!$A$19,CntyQryCensus!$A$5:$CY$15,CP1) -> 584 | CQ35: =VLOOKUP(DropDownList!$A$19,CntyQryCensus!$A$5:$CY$15,CQ1) -> 548 | CR35: =VLOOKUP(DropDownList!$A$19,CntyQryCensus!$A$5:$CY$15,CR1) -> 210 | CS35: =VLOOKUP(DropDownList!$A$19,CntyQryCensus!$A$5:$CY$15,CS1) -> 81743 | CT35: =VLOOKUP(DropDownList!$A$19,CntyQryCensus!$A$5:$CY$15,CT1) -> 75355 | CU35: =VLOOKUP(DropDownList!$A$19,CntyQryCensus!$A$5:$CY$15,CU1) -> 6388 | CV35: =VLOOKUP(DropDownList!$A$19,CntyQryCensus!$A$5:$CY$15,CV1) -> 0 | CW35: =VLOOKUP(DropDownList!$A$19,CntyQryCensus!$A$5:$CY$15,CW1) -> 37 | CX35: =VLOOKUP(DropDownList!$A$19,CntyQryCensus!$A$5:$CY$15,CX1) -> 35.8 | CY35: =VLOOKUP(DropDownList!$A$19,CntyQryCensus!$A$5:$CY$15,CY1) -> 38.1
A38: Census 2000 DemoProfile Sample Data Tables 2&3 - DPTab23CountyQry
A39: NAME | B39: COUSUB | C39: AREANAME | D39: PopInSchool | E39: Preschool | F39: Kindergarten | G39: Elementary | H39: HighSchool | I39: College | J39: Pop25andOver | K39: HighSchoolGrad | L39: SomeCollege | M39: AssocDegree | N39: BachelDegree | O39: GradDegree | P39: HSGradorHigher | Q39: CollegeGradorHigher | R39: Pop5to20yrs | S39: Pop5to20wDis | T39: Pop21to64 | U39: Pop21to64wDis | V39: Pop65over | W39: Pop65overwDis | X39: Pop5yrsOver | Y39: SameHUin95 | Z39: DiffHUinUSin95 | AA39: HUinSameCountyin95 | AB39: HUinSameStatein95 | AC39: TotalPop | AD39: NativePop | AE39: NatPopBornUS | AF39: NatPopBornInStatRes | AG39: NatPopBornDiffState | AH39: NatPopBornOutUS | AI39: FornBornPop | AJ39: FornPopEnt90to00 | AK39: FornPopNatCit | AL39: FornPopNotCit | AM39: Households | AN39: HHIncLessThn10k | AO39: HHInc10to15K | AP39: HHInc15to25K | AQ39: HHInc25to35K | AR39: HHInc35to50K | AS39: HHInc50to75K | AT39: HHInc75to100K | AU39: HHInc100to150K | AV39: HHInc150to200K | AW39: HHIncOver200K | AX39: MedianHHInc | AY39: HHwithPubAssistInc | AZ39: MeanPubAssist | BA39: FamilyHH | BB39: FHHIncLessThn10k | BC39: FHHInc10to15K | BD39: FHHInc15to25K | BE39: FHHInc25to35K | BF39: FHHInc35to50K | BG39: FHHInc50to75K | BH39: FHHInc75to100K | BI39: FHHInc100to150K | BJ39: FHHInc150to200K | BK39: FHHIncOver200K | BL39: MedianFHHInc | BM39: PerCapitaInc | BN39: PovStatFamilies | BO39: PovStatFHHwChilUnd18 | BP39: PovStatFHHwChilUnd5 | BQ39: PovStFmalHH | BR39: DP3088 | BS39: DP3089 | BT39: PovStatIndiv | BU39: PovStatIndiv18yrOver | BV39: PovStatIndiv65yrOver | BW39: DP3093 | BX39: DP3094 | BY39: DP3095
A40: =VLOOKUP(DropDownList!$A$19,CntyQuery!$A$20:$CE$30,A$1) -> Grafton County | B40: =VLOOKUP(DropDownList!$A$19,CntyQryCensus!$A$21:$BY$31,B$1) -> 00005 | C40: =VLOOKUP(DropDownList!$A$19,CntyQryCensus!$A$21:$BY$31,C$1) -> Grafton County, New Hampshire | D40: =VLOOKUP(DropDownList!$A$19,CntyQryCensus!$A$21:$BY$31,D$1) -> 24139 | E40: =VLOOKUP(DropDownList!$A$19,CntyQryCensus!$A$21:$BY$31,E$1) -> 1043 | F40: =VLOOKUP(DropDownList!$A$19,CntyQryCensus!$A$21:$BY$31,F$1) -> 883 | G40: =VLOOKUP(DropDownList!$A$19,CntyQryCensus!$A$21:$BY$31,G$1) -> 8565 | H40: =VLOOKUP(DropDownList!$A$19,CntyQryCensus!$A$21:$BY$31,H$1) -> 4476 | I40: =VLOOKUP(DropDownList!$A$19,CntyQryCensus!$A$21:$BY$31,I$1) -> 9172 | J40: =VLOOKUP(DropDownList!$A$19,CntyQryCensus!$A$21:$BY$31,J$1) -> 52795 | K40: =VLOOKUP(DropDownList!$A$19,CntyQryCensus!$A$21:$BY$31,K$1) -> 16355 | L40: =VLOOKUP(DropDownList!$A$19,CntyQryCensus!$A$21:$BY$31,L$1) -> 8932 | M40: =VLOOKUP(DropDownList!$A$19,CntyQryCensus!$A$21:$BY$31,M$1) -> 3754 | N40: =VLOOKUP(DropDownList!$A$19,CntyQryCensus!$A$21:$BY$31,N$1) -> 9736 | O40: =VLOOKUP(DropDownList!$A$19,CntyQryCensus!$A$21:$BY$31,O$1) -> 7511 | P40: =VLOOKUP(DropDownList!$A$19,CntyQryCensus!$A$21:$BY$31,P$1) -> 46288 | Q40: =VLOOKUP(DropDownList!$A$19,CntyQryCensus!$A$21:$BY$31,Q$1) -> 17247 | R40: =VLOOKUP(DropDownList!$A$19,CntyQryCensus!$A$21:$BY$31,R$1) -> 19647 | S40: =VLOOKUP(DropDownList!$A$19,CntyQryCensus!$A$21:$BY$31,S$1) -> 1542 | T40: =VLOOKUP(DropDownList!$A$19,CntyQryCensus!$A$21:$BY$31,T$1) -> 46659 | U40: =VLOOKUP(DropDownList!$A$19,CntyQryCensus!$A$21:$BY$31,U$1) -> 6917 | V40: =VLOOKUP(DropDownList!$A$19,CntyQryCensus!$A$21:$BY$31,V$1) -> 10187 | W40: =VLOOKUP(DropDownList!$A$19,CntyQryCensus!$A$21:$BY$31,W$1) -> 3876 | X40: =VLOOKUP(DropDownList!$A$19,CntyQryCensus!$A$21:$BY$31,X$1) -> 77524 | Y40: =VLOOKUP(DropDownList!$A$19,CntyQryCensus!$A$21:$BY$31,Y$1) -> 42233 | Z40: =VLOOKUP(DropDownList!$A$19,CntyQryCensus!$A$21:$BY$31,Z$1) -> 34231 | AA40: =VLOOKUP(DropDownList!$A$19,CntyQryCensus!$A$21:$BY$31,AA$1) -> 15297 | AB40: =VLOOKUP(DropDownList!$A$19,CntyQryCensus!$A$21:$BY$31,AB$1) -> 18934 | AC40: =VLOOKUP(DropDownList!$A$19,CntyQryCensus!$A$21:$BY$31,AC$1) -> 81743 | AD40: =VLOOKUP(DropDownList!$A$19,CntyQryCensus!$A$21:$BY$31,AD$1) -> 78552 | AE40: =VLOOKUP(DropDownList!$A$19,CntyQryCensus!$A$21:$BY$31,AE$1) -> 77848 | AF40: =VLOOKUP(DropDownList!$A$19,CntyQryCensus!$A$21:$BY$31,AF$1) -> 36964 | AG40: =VLOOKUP(DropDownList!$A$19,CntyQryCensus!$A$21:$BY$31,AG$1) -> 40884 | AH40: =VLOOKUP(DropDownList!$A$19,CntyQryCensus!$A$21:$BY$31,AH$1) -> 704 | AI40: =VLOOKUP(DropDownList!$A$19,CntyQryCensus!$A$21:$BY$31,AI$1) -> 3191 | AJ40: =VLOOKUP(DropDownList!$A$19,CntyQryCensus!$A$21:$BY$31,AJ$1) -> 1209 | AK40: =VLOOKUP(DropDownList!$A$19,CntyQryCensus!$A$21:$BY$31,AK$1) -> 1527 | AL40: =VLOOKUP(DropDownList!$A$19,CntyQryCensus!$A$21:$BY$31,AL$1) -> 1664 | AM40: =VLOOKUP(DropDownList!$A$19,CntyQryCensus!$A$21:$BY$31,AM$1) -> 31608 | AN40: =VLOOKUP(DropDownList!$A$19,CntyQryCensus!$A$21:$BY$31,AN$1) -> 2486 | AO40: =VLOOKUP(DropDownList!$A$19,CntyQryCensus!$A$21:$BY$31,AO$1) -> 1738 | AP40: =VLOOKUP(DropDownList!$A$19,CntyQryCensus!$A$21:$BY$31,AP$1) -> 4278 | AQ40: =VLOOKUP(DropDownList!$A$19,CntyQryCensus!$A$21:$BY$31,AQ$1) -> 4246 | AR40: =VLOOKUP(DropDownList!$A$19,CntyQryCensus!$A$21:$BY$31,AR$1) -> 6123 | AS40: =VLOOKUP(DropDownList!$A$19,CntyQryCensus!$A$21:$BY$31,AS$1) -> 6587 | AT40: =VLOOKUP(DropDownList!$A$19,CntyQryCensus!$A$21:$BY$31,AT$1) -> 2947 | AU40: =VLOOKUP(DropDownList!$A$19,CntyQryCensus!$A$21:$BY$31,AU$1) -> 1905 | AV40: =VLOOKUP(DropDownList!$A$19,CntyQryCensus!$A$21:$BY$31,AV$1) -> 708 | AW40: =VLOOKUP(DropDownList!$A$19,CntyQryCensus!$A$21:$BY$31,AW$1) -> 590 | AX40: =VLOOKUP(DropDownList!$A$19,CntyQryCensus!$A$21:$BY$31,AX$1) -> 41962 | AY40: =VLOOKUP(DropDownList!$A$19,CntyQryCensus!$A$21:$BY$31,AY$1) -> 923 | AZ40: =VLOOKUP(DropDownList!$A$19,CntyQryCensus!$A$21:$BY$31,AZ$1) -> 2370 | BA40: =VLOOKUP(DropDownList!$A$19,CntyQryCensus!$A$21:$BY$31,BA$1) -> 20415 | BB40: =VLOOKUP(DropDownList!$A$19,CntyQryCensus!$A$21:$BY$31,BB$1) -> 679 | BC40: =VLOOKUP(DropDownList!$A$19,CntyQryCensus!$A$21:$BY$31,BC$1) -> 627 | BD40: =VLOOKUP(DropDownList!$A$19,CntyQryCensus!$A$21:$BY$31,BD$1) -> 2036 | BE40: =VLOOKUP(DropDownList!$A$19,CntyQryCensus!$A$21:$BY$31,BE$1) -> 2517 | BF40: =VLOOKUP(DropDownList!$A$19,CntyQryCensus!$A$21:$BY$31,BF$1) -> 4215 | BG40: =VLOOKUP(DropDownList!$A$19,CntyQryCensus!$A$21:$BY$31,BG$1) -> 5191 | BH40: =VLOOKUP(DropDownList!$A$19,CntyQryCensus!$A$21:$BY$31,BH$1) -> 2524 | BI40: =VLOOKUP(DropDownList!$A$19,CntyQryCensus!$A$21:$BY$31,BI$1) -> 1534 | BJ40: =VLOOKUP(DropDownList!$A$19,CntyQryCensus!$A$21:$BY$31,BJ$1) -> 605 | BK40: =VLOOKUP(DropDownList!$A$19,CntyQryCensus!$A$21:$BY$31,BK$1) -> 487 | BL40: =VLOOKUP(DropDownList!$A$19,CntyQryCensus!$A$21:$BY$31,BL$1) -> 50424 | BM40: =VLOOKUP(DropDownList!$A$19,CntyQryCensus!$A$21:$BY$31,BM$1) -> 22227 | BN40: =VLOOKUP(DropDownList!$A$19,CntyQryCensus!$A$21:$BY$31,BN$1) -> 1033 | BO40: =VLOOKUP(DropDownList!$A$19,CntyQryCensus!$A$21:$BY$31,BO$1) -> 754 | BP40: =VLOOKUP(DropDownList!$A$19,CntyQryCensus!$A$21:$BY$31,BP$1) -> 341 | BQ40: =VLOOKUP(DropDownList!$A$19,CntyQryCensus!$A$21:$BY$31,BQ$1) -> 495 | BR40: =VLOOKUP(DropDownList!$A$19,CntyQryCensus!$A$21:$BY$31,BR$1) -> 450 | BS40: =VLOOKUP(DropDownList!$A$19,CntyQryCensus!$A$21:$BY$31,BS$1) -> 201 | BT40: =VLOOKUP(DropDownList!$A$19,CntyQryCensus!$A$21:$BY$31,BT$1) -> 6462 | BU40: =VLOOKUP(DropDownList!$A$19,CntyQryCensus!$A$21:$BY$31,BU$1) -> 4786 | BV40: =VLOOKUP(DropDownList!$A$19,CntyQryCensus!$A$21:$BY$31,BV$1) -> 759 | BW40: =VLOOKUP(DropDownList!$A$19,CntyQryCensus!$A$21:$BY$31,BW$1) -> 1489 | BX40: =VLOOKUP(DropDownList!$A$19,CntyQryCensus!$A$21:$BY$31,BX$1) -> 1043 | BY40: =VLOOKUP(DropDownList!$A$19,CntyQryCensus!$A$21:$BY$31,BY$1) -> 3350
A43: Census 2000 DemoProfile Sample Data Table 4 - DPTab4CountyQry
A44: NAME | B44: COUSUB | C44: TotHousingUnits | D44: 1UnitDet | E44: 1UnitAtt | F44: 2Units | G44: 3to4Units | H44: 5to9Units | I44: 10to19Units | J44: 20orMoreUnits | K44: MobileHomes | L44: BoatRvVan | M44: SingleFamilyUnits | N44: MultiFamUnits | O44: MobileHomeUnits | P44: YearBuilt99to00 | Q44: YearBuilt95to98 | R44: YearBUilt90to94 | S44: YearBuilt80to89 | T44: YearBuilt70to79 | U44: YearBuilt60to69 | V44: YearBuilt40to59 | W44: YearBuilt39orEarlier | X44: Rooms1 | Y44: Rooms2 | Z44: Rooms3 | AA44: Rooms4 | AB44: Rooms5 | AC44: Rooms6 | AD44: Rooms7 | AE44: Rooms8 | AF44: Rooms9orMore | AG44: MedianRooms | AH44: OccHU1 | AI44: YrHHMvdIn99to00 | AJ44: YrHHMvdIn95to98 | AK44: YrHHMvdIn90to94 | AL44: YrHHMvdIn80to89 | AM44: YrHHMvdIn70to79 | AN44: YrHHMvdIn69orBefore | AO44: HeatFuelNatGas | AP44: HeatFuelBotGas | AQ44: HeatFuelElectric | AR44: HeatFuelOil | AS44: HeatFuelCoal | AT44: HeatFuelWood | AU44: HeatFuelSolar | AV44: HeatFuelOther | AW44: HeatFuelNone | AX44: LackCompPlumb | AY44: LackCompKit | AZ44: NoTelephone | BA44: OccHU | BB44: OccPerRm1orLess | BC44: OccPerRm1to1_5 | BD44: OccPerRm1_5orMore | BE44: SpecOwnOccUnits | BF44: Value<50K | BG44: Value50to100K | BH44: Value100to150K | BI44: Value150to200K | BJ44: Value200to300K | BK44: Value300to500K | BL44: Value500Kto1mil | BM44: Value1MilorMore | BN44: MedianValue | BO44: WithMortg | BP44: MnthOwnCst<300 | BQ44: MnthOwnCst300to500 | BR44: MnthOwnCst500to700 | BS44: MnthOwnCst700to1000 | BT44: MnthOwnCst1000to1500 | BU44: MnthOwnCst1500to2000 | BV44: MnthOwnCst2000orMore | BW44: MediMnthOwnCst | BX44: NotMrtg | BY44: NotMrtgMediMnthOwnCst | BZ44: OwnCst%HHInc<15 | CA44: OwnCst%HHInc15to20 | CB44: OwnCst%HHInc20to25 | CC44: OwnCst%HHInc25to30 | CD44: OwnCst%HHInc30to35 | CE44: OwnCst%HHInc35orMor | CF44: NotComputed | CG44: SpecRntOccUnits | CH44: Rnt<200 | CI44: Rnt200to300 | CJ44: Rnt300to500 | CK44: Rnt500to750 | CL44: Rnt750to1000 | CM44: Rnt1000to1500 | CN44: Rnt1500orMore | CO44: NoRent | CP44: MedianRent | CQ44: Rnt%HHInc<15 | CR44: Rnt%HHInc15to20 | CS44: Rnt%HHInc20to25 | CT44: Rnt%HHInc25to30 | CU44: Rnt%HHInc30to35 | CV44: Rnt%HHInc35orMore | CW44: Rnt%NotCompute
A45: =VLOOKUP(DropDownList!$A$19,CntyQuery!$A$20:$CE$30,A$1) -> Grafton County | B45: =VLOOKUP(DropDownList!$A$19,CntyQryCensus!$A$37:$CW$47,B$1) -> 00005 | C45: =VLOOKUP(DropDownList!$A$19,CntyQryCensus!$A$37:$CW$47,C$1) -> 43729 | D45: =VLOOKUP(DropDownList!$A$19,CntyQryCensus!$A$37:$CW$47,D$1) -> 26879 | E45: =VLOOKUP(DropDownList!$A$19,CntyQryCensus!$A$37:$CW$47,E$1) -> 2429 | F45: =VLOOKUP(DropDownList!$A$19,CntyQryCensus!$A$37:$CW$47,F$1) -> 2152 | G45: =VLOOKUP(DropDownList!$A$19,CntyQryCensus!$A$37:$CW$47,G$1) -> 2707 | H45: =VLOOKUP(DropDownList!$A$19,CntyQryCensus!$A$37:$CW$47,H$1) -> 2605 | I45: =VLOOKUP(DropDownList!$A$19,CntyQryCensus!$A$37:$CW$47,I$1) -> 1615 | J45: =VLOOKUP(DropDownList!$A$19,CntyQryCensus!$A$37:$CW$47,J$1) -> 1594 | K45: =VLOOKUP(DropDownList!$A$19,CntyQryCensus!$A$37:$CW$47,K$1) -> 3661 | L45: =VLOOKUP(DropDownList!$A$19,CntyQryCensus!$A$37:$CW$47,L$1) -> 87 | M45: =VLOOKUP(DropDownList!$A$19,CntyQryCensus!$A$37:$CW$47,M$1) -> 26879 | N45: =VLOOKUP(DropDownList!$A$19,CntyQryCensus!$A$37:$CW$47,N$1) -> 13102 | O45: =VLOOKUP(DropDownList!$A$19,CntyQryCensus!$A$37:$CW$47,O$1) -> 3748 | P45: =VLOOKUP(DropDownList!$A$19,CntyQryCensus!$A$37:$CW$47,P$1) -> 538 | Q45: =VLOOKUP(DropDownList!$A$19,CntyQryCensus!$A$37:$CW$47,Q$1) -> 1906 | R45: =VLOOKUP(DropDownList!$A$19,CntyQryCensus!$A$37:$CW$47,R$1) -> 2903 | S45: =VLOOKUP(DropDownList!$A$19,CntyQryCensus!$A$37:$CW$47,S$1) -> 10408 | T45: =VLOOKUP(DropDownList!$A$19,CntyQryCensus!$A$37:$CW$47,T$1) -> 6914 | U45: =VLOOKUP(DropDownList!$A$19,CntyQryCensus!$A$37:$CW$47,U$1) -> 3909 | V45: =VLOOKUP(DropDownList!$A$19,CntyQryCensus!$A$37:$CW$47,V$1) -> 4925 | W45: =VLOOKUP(DropDownList!$A$19,CntyQryCensus!$A$37:$CW$47,W$1) -> 12226 | X45: =VLOOKUP(DropDownList!$A$19,CntyQryCensus!$A$37:$CW$47,X$1) -> 582 | Y45: =VLOOKUP(DropDownList!$A$19,CntyQryCensus!$A$37:$CW$47,Y$1) -> 2103 | Z45: =VLOOKUP(DropDownList!$A$19,CntyQryCensus!$A$37:$CW$47,Z$1) -> 4290 | AA45: =VLOOKUP(DropDownList!$A$19,CntyQryCensus!$A$37:$CW$47,AA$1) -> 7818 | AB45: =VLOOKUP(DropDownList!$A$19,CntyQryCensus!$A$37:$CW$47,AB$1) -> 8872 | AC45: =VLOOKUP(DropDownList!$A$19,CntyQryCensus!$A$37:$CW$47,AC$1) -> 7556 | AD45: =VLOOKUP(DropDownList!$A$19,CntyQryCensus!$A$37:$CW$47,AD$1) -> 5388 | AE45: =VLOOKUP(DropDownList!$A$19,CntyQryCensus!$A$37:$CW$47,AE$1) -> 3567 | AF45: =VLOOKUP(DropDownList!$A$19,CntyQryCensus!$A$37:$CW$47,AF$1) -> 3553 | AG45: =VLOOKUP(DropDownList!$A$19,CntyQryCensus!$A$37:$CW$47,AG$1) -> 5.3 | AH45: =VLOOKUP(DropDownList!$A$19,CntyQryCensus!$A$37:$CW$47,AH$1) -> 31598 | AI45: =VLOOKUP(DropDownList!$A$19,CntyQryCensus!$A$37:$CW$47,AI$1) -> 5982 | AJ45: =VLOOKUP(DropDownList!$A$19,CntyQryCensus!$A$37:$CW$47,AJ$1) -> 8462 | AK45: =VLOOKUP(DropDownList!$A$19,CntyQryCensus!$A$37:$CW$47,AK$1) -> 4852 | AL45: =VLOOKUP(DropDownList!$A$19,CntyQryCensus!$A$37:$CW$47,AL$1) -> 6354 | AM45: =VLOOKUP(DropDownList!$A$19,CntyQryCensus!$A$37:$CW$47,AM$1) -> 3183 | AN45: =VLOOKUP(DropDownList!$A$19,CntyQryCensus!$A$37:$CW$47,AN$1) -> 2765 | AO45: =VLOOKUP(DropDownList!$A$19,CntyQryCensus!$A$37:$CW$47,AO$1) -> 487 | AP45: =VLOOKUP(DropDownList!$A$19,CntyQryCensus!$A$37:$CW$47,AP$1) -> 4580 | AQ45: =VLOOKUP(DropDownList!$A$19,CntyQryCensus!$A$37:$CW$47,AQ$1) -> 2608 | AR45: =VLOOKUP(DropDownList!$A$19,CntyQryCensus!$A$37:$CW$47,AR$1) -> 20768 | AS45: =VLOOKUP(DropDownList!$A$19,CntyQryCensus!$A$37:$CW$47,AS$1) -> 42 | AT45: =VLOOKUP(DropDownList!$A$19,CntyQryCensus!$A$37:$CW$47,AT$1) -> 2950 | AU45: =VLOOKUP(DropDownList!$A$19,CntyQryCensus!$A$37:$CW$47,AU$1) -> 11 | AV45: =VLOOKUP(DropDownList!$A$19,CntyQryCensus!$A$37:$CW$47,AV$1) -> 115 | AW45: =VLOOKUP(DropDownList!$A$19,CntyQryCensus!$A$37:$CW$47,AW$1) -> 37 | AX45: =VLOOKUP(DropDownList!$A$19,CntyQryCensus!$A$37:$CW$47,AX$1) -> 217 | AY45: =VLOOKUP(DropDownList!$A$19,CntyQryCensus!$A$37:$CW$47,AY$1) -> 179 | AZ45: =VLOOKUP(DropDownList!$A$19,CntyQryCensus!$A$37:$CW$47,AZ$1) -> 457 | BA45: =VLOOKUP(DropDownList!$A$19,CntyQryCensus!$A$37:$CW$47,BA$1) -> 31598 | BB45: =VLOOKUP(DropDownList!$A$19,CntyQryCensus!$A$37:$CW$47,BB$1) -> 31187 | BC45: =VLOOKUP(DropDownList!$A$19,CntyQryCensus!$A$37:$CW$47,BC$1) -> 331 | BD45: =VLOOKUP(DropDownList!$A$19,CntyQryCensus!$A$37:$CW$47,BD$1) -> 80 | BE45: =VLOOKUP(DropDownList!$A$19,CntyQryCensus!$A$37:$CW$47,BE$1) -> 14515 | BF45: =VLOOKUP(DropDownList!$A$19,CntyQryCensus!$A$37:$CW$47,BF$1) -> 723 | BG45: =VLOOKUP(DropDownList!$A$19,CntyQryCensus!$A$37:$CW$47,BG$1) -> 5577 | BH45: =VLOOKUP(DropDownList!$A$19,CntyQryCensus!$A$37:$CW$47,BH$1) -> 4325 | BI45: =VLOOKUP(DropDownList!$A$19,CntyQryCensus!$A$37:$CW$47,BI$1) -> 1682 | BJ45: =VLOOKUP(DropDownList!$A$19,CntyQryCensus!$A$37:$CW$47,BJ$1) -> 1282 | BK45: =VLOOKUP(DropDownList!$A$19,CntyQryCensus!$A$37:$CW$47,BK$1) -> 759 | BL45: =VLOOKUP(DropDownList!$A$19,CntyQryCensus!$A$37:$CW$47,BL$1) -> 156 | BM45: =VLOOKUP(DropDownList!$A$19,CntyQryCensus!$A$37:$CW$47,BM$1) -> 11 | BN45: =VLOOKUP(DropDownList!$A$19,CntyQryCensus!$A$37:$CW$47,BN$1) -> 109500 | BO45: =VLOOKUP(DropDownList!$A$19,CntyQryCensus!$A$37:$CW$47,BO$1) -> 9590 | BP45: =VLOOKUP(DropDownList!$A$19,CntyQryCensus!$A$37:$CW$47,BP$1) -> 13 | BQ45: =VLOOKUP(DropDownList!$A$19,CntyQryCensus!$A$37:$CW$47,BQ$1) -> 414 | BR45: =VLOOKUP(DropDownList!$A$19,CntyQryCensus!$A$37:$CW$47,BR$1) -> 1391 | BS45: =VLOOKUP(DropDownList!$A$19,CntyQryCensus!$A$37:$CW$47,BS$1) -> 3054 | BT45: =VLOOKUP(DropDownList!$A$19,CntyQryCensus!$A$37:$CW$47,BT$1) -> 3156 | BU45: =VLOOKUP(DropDownList!$A$19,CntyQryCensus!$A$37:$CW$47,BU$1) -> 856 | BV45: =VLOOKUP(DropDownList!$A$19,CntyQryCensus!$A$37:$CW$47,BV$1) -> 706 | BW45: =VLOOKUP(DropDownList!$A$19,CntyQryCensus!$A$37:$CW$47,BW$1) -> 992 | BX45: =VLOOKUP(DropDownList!$A$19,CntyQryCensus!$A$37:$CW$47,BX$1) -> 4925 | BY45: =VLOOKUP(DropDownList!$A$19,CntyQryCensus!$A$37:$CW$47,BY$1) -> 405 | BZ45: =VLOOKUP(DropDownList!$A$19,CntyQryCensus!$A$37:$CW$47,BZ$1) -> 5158 | CA45: =VLOOKUP(DropDownList!$A$19,CntyQryCensus!$A$37:$CW$47,CA$1) -> 2740 | CB45: =VLOOKUP(DropDownList!$A$19,CntyQryCensus!$A$37:$CW$47,CB$1) -> 2231 | CC45: =VLOOKUP(DropDownList!$A$19,CntyQryCensus!$A$37:$CW$47,CC$1) -> 1458 | CD45: =VLOOKUP(DropDownList!$A$19,CntyQryCensus!$A$37:$CW$47,CD$1) -> 883 | CE45: =VLOOKUP(DropDownList!$A$19,CntyQryCensus!$A$37:$CW$47,CE$1) -> 1969 | CF45: =VLOOKUP(DropDownList!$A$19,CntyQryCensus!$A$37:$CW$47,CF$1) -> 76 | CG45: =VLOOKUP(DropDownList!$A$19,CntyQryCensus!$A$37:$CW$47,CG$1) -> 9552 | CH45: =VLOOKUP(DropDownList!$A$19,CntyQryCensus!$A$37:$CW$47,CH$1) -> 481 | CI45: =VLOOKUP(DropDownList!$A$19,CntyQryCensus!$A$37:$CW$47,CI$1) -> 535 | CJ45: =VLOOKUP(DropDownList!$A$19,CntyQryCensus!$A$37:$CW$47,CJ$1) -> 2497 | CK45: =VLOOKUP(DropDownList!$A$19,CntyQryCensus!$A$37:$CW$47,CK$1) -> 3651 | CL45: =VLOOKUP(DropDownList!$A$19,CntyQryCensus!$A$37:$CW$47,CL$1) -> 1171 | CM45: =VLOOKUP(DropDownList!$A$19,CntyQryCensus!$A$37:$CW$47,CM$1) -> 501 | CN45: =VLOOKUP(DropDownList!$A$19,CntyQryCensus!$A$37:$CW$47,CN$1) -> 160 | CO45: =VLOOKUP(DropDownList!$A$19,CntyQryCensus!$A$37:$CW$47,CO$1) -> 556 | CP45: =VLOOKUP(DropDownList!$A$19,CntyQryCensus!$A$37:$CW$47,CP$1) -> 560 | CQ45: =VLOOKUP(DropDownList!$A$19,CntyQryCensus!$A$37:$CW$47,CQ$1) -> 1678 | CR45: =VLOOKUP(DropDownList!$A$19,CntyQryCensus!$A$37:$CW$47,CR$1) -> 1504 | CS45: =VLOOKUP(DropDownList!$A$19,CntyQryCensus!$A$37:$CW$47,CS$1) -> 1414 | CT45: =VLOOKUP(DropDownList!$A$19,CntyQryCensus!$A$37:$CW$47,CT$1) -> 1160 | CU45: =VLOOKUP(DropDownList!$A$19,CntyQryCensus!$A$37:$CW$47,CU$1) -> 722 | CV45: =VLOOKUP(DropDownList!$A$19,CntyQryCensus!$A$37:$CW$47,CV$1) -> 2354 | CW45: =VLOOKUP(DropDownList!$A$19,CntyQryCensus!$A$37:$CW$47,CW$1) -> 720
A48: Census 2000 SummaryFile3 Sample Data - SF3CountyQry1SocialChar
A49: NAME | B49: LOGRECNO | C49: COUNTY | D49: P01TotalPopulation | E49: P02SampleCountOfPop | F49: P03Pop100pctCount | G49: P05UrbanPopulation | H49: P05RuralPopulation | I49: P06WhiteAlone | J49: P06BlackOrAfAm | K49: P06AmIndAlone | L49: P06AsianAlone | M49: P06HawaiianOrPI | N49: P06OtherRace | O49: P06TwoPlusRaces | P49: P07NotHispanicOrLatino | Q49: P07HispanicOrLatino | R49: P08MalePop | S49: P08FemalePop | T49: P09PopInHouseholds | U49: P09PopInFamHH | V49: P09PopInNonFamHH | W49: P09PopInGroupQtr | X49: P13TotalHH | Y49: P13FamilyHH | Z49: P13FamHHolder15to24yrs | AA49: P13FamHHolder25to34yrs | AB49: P13FamHHolder35to44yrs | AC49: P13FamHHolder45to54yrs | AD49: P13FamHHolder55to64yrs | AE49: P13FamHHolder65to74yrs | AF49: P13FamHHolder75to84yrs | AG49: P13FamHHolder85yrsOver | AH49: P13NonFamilyHH | AI49: P13NonFamHHolder15to24yrs | AJ49: P13NonFamHHolder25to34yrs | AK49: P13NonFamHHolder35to44yrs | AL49: P13NonFamHHolder45to54yrs | AM49: P13NonFamHHolder55to64yrs | AN49: P13NonFamHHolder65to74yrs | AO49: P13NonFamHHolder75to84yrs | AP49: P13NonFamHHolder85yrsOver | AQ49: P18Pop15yrsOver | AR49: P18MaritalStatNeverMarried | AS49: P18MaritalStatNowMarried | AT49: P18MaritalStatSeparated | AU49: P18MaritalStatWidowed | AV49: P18MaritalStatWidowFemale | AW49: P18MaritalStatDivorced | AX49: P18MaritalStatDivorcedFemale | AY49: P21NativeBornPop | AZ49: P21NatPopBornInState | BA49: P21NatPopBornOtherState | BB49: P021005 | BC49: P021006 | BD49: P021007 | BE49: P021008 | BF49: P21NatPopBornOutUS | BG49: P21ForeignBornPop | BH49: P021014 | BI49: P021015 | BJ49: P24Pop5YrsPlus | BK49: P24ResSameHouseIn95 | BL49: P24ResDiffHouseIn95 | BM49: P24ResDiffHouseInUSIn95 | BN49: P24ResDiffHouseSameCountyIn95 | BO49: P24ResDiffHouseDiffCountyIn95 | BP49: P24ResDiffHouseDiffCntySamStIn95 | BQ49: P24ResDiffHouseDiffCntyDifStIn95 | BR49: P24ResDiffHouseDiffCntyNEStIn95 | BS49: P24ResDiffHouseDiffCntyMWStIn95 | BT49: P24ResDiffHouseDiffCntySoStIn95 | BU49: P24ResDiffHouseDiffCntyWstStIn95 | BV49: P24ResDiffInPR | BW49: P24ResDiffElsewhereIn95 | BX49: P26Workers16yrsOver | BY49: P26WorkedInState | BZ49: P26WorkedInCnty | CA49: P26WorkedOutsideCnty | CB49: P26WorkedOutsideState | CC49: P30Workers16Over | CD49: P30TranspToWrkCar | CE49: P30TranspToWrkPublic | CF49: P30TranspToWrkOther | CG49: P30WrkdAtHome | CH49: P31WrkrsNotWrkAtHom | CI49: P31TravTim<5min | CJ49: P31TravTim5to9Min | CK49: P31TravTim10to14Min | CL49: P31TravTim15to19Min | CM49: P31TravTim20to24Min | CN49: P31TravTim25to29Min | CO49: P31TravTim30to34Min | CP49: P31TravTim35to39Min | CQ49: P31TravTim40to44Min | CR49: P31TravTim45to59Min | CS49: P31TravTim60to89Min | CT49: P31TravTim90MinMore | CU49: P31WorkAtHome | CV49: P36SchEnrlPop3yrOver | CW49: P36NurserSchEnrl | CX49: P36KinderSchEnrl | CY49: P36ElemSchEnrl | CZ49: P36HighSchEnrl | DA49: P36CollGradSchEnrl | DB49: P37Pop25yrsOver | DC49: P37EduAtain<9grd | DD49: P37EduAtainHSnoDip | DE49: P37EduAtainHSgrad | DF49: P37EduAtainCollNoDeg | DG49: P37EduAtainAssocDeg | DH49: P37EduAtainBachDeg | DI49: P37EduAtainGradProfDeg | DJ49: P42NIPop5to15 | DK49: P42NIPop5to15wDisabl | DL49: P42NIPop16to20 | DM49: P42NIPop16to20wDisab | DN49: P42NIPop16to20wDisEmp | DO49: P42NIPop16to21NoDis | DP49: P42NIPop16to21NoDisEmpl | DQ49: P42NIPop21to64 | DR49: P42NIPop21to64wDis | DS49: P42NIPop21to64wDisEmp | DT49: P42NIPop21to64NoDis | DU49: P42NIPop21to64NoDisEmp | DV49: P42NIPop65to74 | DW49: P42NIPop65to74wDis | DX49: P42NIPop75Over | DY49: P42NIPop75OverwDis | DZ49: P43Pop16YrsOver | EA49: P43Pop16OvrInLaborForce | EB49: P43Pop16OvrCivlLabFrc | EC49: P43Pop16OvrCivlLbrFrcEmp | ED49: P48Families | EE49: P48MarriedFam | EF49: P48MarrFamNoWorkers | EG49: P48MarrFam1Worker | EH49: P48MarrFam2Worker | EI49: P48MarrFamHusbspouseWorked | EJ49: P48MarrFamOther | EK49: P48MarrFam3PlusWorker | EL49: P48MarrFam3WorkHsbWif | EM49: P48MarrFam3PlsWrkOther | EN49: P48OtherFam | EO49: P48MaleHHNoWif | EP49: P48MaleHHNoWifNoWorker | EQ49: P48MaleHHNoWif1Worker | ER49: P48MaleHHNoWif2Worker | ES49: P48MaleHHNoWif3PlusWorker | ET49: P48FemaleHHNoHsb | EU49: P48FemaleHHNoHsbNoWorker | EV49: P48FemaleHHNoHsb1Worker | EW49: P48FemaleHHNoHsb2Worker | EX49: P48FemaleHHNoHsb3Worker | EY49: P49EmpCivPop16YrOver | EZ49: P49IndustAgricult | FA49: P49IndustConst | FB49: P49IndustMnftg | FC49: P49IndustWhlslTrd | FD49: P49IndustRtlTrd | FE49: P49IndustTrspWrhsUtlt | FF49: P49IndustInfrm | FG49: P49IndustFinInsRE | FH49: P49IndustPrfsScntfMngmt | FI49: P49IndustEduHlthSocSrv | FJ49: P49IndustArtsEntRec | FK49: P49IndustOthrSrvc | FL49: P49IndustPubAdm | FM49: P50OccupMngmtProfs | FN49: P50OccupService | FO49: P50OccupSalesOff | FP49: P50OccupFarmFishForest | FQ49: P50OccupConstExtrctMaint | FR49: P50OccupPrdctTrnspMatMv
A50: =VLOOKUP(DropDownList!$A$19,CntyQuery!$A$20:$CE$30,A$1) -> Grafton County | B50: =VLOOKUP(DropDownList!$A$19,CntyQryCensus!$A$55:$FR$65,B$1) -> 0001145 | C50: =VLOOKUP(DropDownList!$A$19,CntyQryCensus!$A$55:$FR$65,C$1) -> 009 | D50: =VLOOKUP(DropDownList!$A$19,CntyQryCensus!$A$55:$FR$65,D$1) -> 81743 | E50: =VLOOKUP(DropDownList!$A$19,CntyQryCensus!$A$55:$FR$65,E$1) -> 20541 | F50: =VLOOKUP(DropDownList!$A$19,CntyQryCensus!$A$55:$FR$65,F$1) -> 81743 | G50: =VLOOKUP(DropDownList!$A$19,CntyQryCensus!$A$55:$FR$65,G$1) -> 28746 | H50: =VLOOKUP(DropDownList!$A$19,CntyQryCensus!$A$55:$FR$65,H$1) -> 52997 | I50: =VLOOKUP(DropDownList!$A$19,CntyQryCensus!$A$55:$FR$65,I$1) -> 78213 | J50: =VLOOKUP(DropDownList!$A$19,CntyQryCensus!$A$55:$FR$65,J$1) -> 470 | K50: =VLOOKUP(DropDownList!$A$19,CntyQryCensus!$A$55:$FR$65,K$1) -> 306 | L50: =VLOOKUP(DropDownList!$A$19,CntyQryCensus!$A$55:$FR$65,L$1) -> 1251 | M50: =VLOOKUP(DropDownList!$A$19,CntyQryCensus!$A$55:$FR$65,M$1) -> 12 | N50: =VLOOKUP(DropDownList!$A$19,CntyQryCensus!$A$55:$FR$65,N$1) -> 294 | O50: =VLOOKUP(DropDownList!$A$19,CntyQryCensus!$A$55:$FR$65,O$1) -> 1197 | P50: =VLOOKUP(DropDownList!$A$19,CntyQryCensus!$A$55:$FR$65,P$1) -> 80789 | Q50: =VLOOKUP(DropDownList!$A$19,CntyQryCensus!$A$55:$FR$65,Q$1) -> 954 | R50: =VLOOKUP(DropDownList!$A$19,CntyQryCensus!$A$55:$FR$65,R$1) -> 40105 | S50: =VLOOKUP(DropDownList!$A$19,CntyQryCensus!$A$55:$FR$65,S$1) -> 41638 | T50: =VLOOKUP(DropDownList!$A$19,CntyQryCensus!$A$55:$FR$65,T$1) -> 75316 | U50: =VLOOKUP(DropDownList!$A$19,CntyQryCensus!$A$55:$FR$65,U$1) -> 60719 | V50: =VLOOKUP(DropDownList!$A$19,CntyQryCensus!$A$55:$FR$65,V$1) -> 14597 | W50: =VLOOKUP(DropDownList!$A$19,CntyQryCensus!$A$55:$FR$65,W$1) -> 6427 | X50: =VLOOKUP(DropDownList!$A$19,CntyQryCensus!$A$55:$FR$65,X$1) -> 31608 | Y50: =VLOOKUP(DropDownList!$A$19,CntyQryCensus!$A$55:$FR$65,Y$1) -> 20415 | Z50: =VLOOKUP(DropDownList!$A$19,CntyQryCensus!$A$55:$FR$65,Z$1) -> 431 | AA50: =VLOOKUP(DropDownList!$A$19,CntyQryCensus!$A$55:$FR$65,AA$1) -> 3145 | AB50: =VLOOKUP(DropDownList!$A$19,CntyQryCensus!$A$55:$FR$65,AB$1) -> 5143 | AC50: =VLOOKUP(DropDownList!$A$19,CntyQryCensus!$A$55:$FR$65,AC$1) -> 5099 | AD50: =VLOOKUP(DropDownList!$A$19,CntyQryCensus!$A$55:$FR$65,AD$1) -> 2958 | AE50: =VLOOKUP(DropDownList!$A$19,CntyQryCensus!$A$55:$FR$65,AE$1) -> 2240 | AF50: =VLOOKUP(DropDownList!$A$19,CntyQryCensus!$A$55:$FR$65,AF$1) -> 1188 | AG50: =VLOOKUP(DropDownList!$A$19,CntyQryCensus!$A$55:$FR$65,AG$1) -> 211 | AH50: =VLOOKUP(DropDownList!$A$19,CntyQryCensus!$A$55:$FR$65,AH$1) -> 11193 | AI50: =VLOOKUP(DropDownList!$A$19,CntyQryCensus!$A$55:$FR$65,AI$1) -> 1116 | AJ50: =VLOOKUP(DropDownList!$A$19,CntyQryCensus!$A$55:$FR$65,AJ$1) -> 1752 | AK50: =VLOOKUP(DropDownList!$A$19,CntyQryCensus!$A$55:$FR$65,AK$1) -> 1578 | AL50: =VLOOKUP(DropDownList!$A$19,CntyQryCensus!$A$55:$FR$65,AL$1) -> 1946 | AM50: =VLOOKUP(DropDownList!$A$19,CntyQryCensus!$A$55:$FR$65,AM$1) -> 1596 | AN50: =VLOOKUP(DropDownList!$A$19,CntyQryCensus!$A$55:$FR$65,AN$1) -> 1375 | AO50: =VLOOKUP(DropDownList!$A$19,CntyQryCensus!$A$55:$FR$65,AO$1) -> 1250 | AP50: =VLOOKUP(DropDownList!$A$19,CntyQryCensus!$A$55:$FR$65,AP$1) -> 580 | AQ50: =VLOOKUP(DropDownList!$A$19,CntyQryCensus!$A$55:$FR$65,AQ$1) -> 67226 | AR50: =VLOOKUP(DropDownList!$A$19,CntyQryCensus!$A$55:$FR$65,AR$1) -> 19685 | AS50: =VLOOKUP(DropDownList!$A$19,CntyQryCensus!$A$55:$FR$65,AS$1) -> 35685 | AT50: =VLOOKUP(DropDownList!$A$19,CntyQryCensus!$A$55:$FR$65,AT$1) -> 675 | AU50: =VLOOKUP(DropDownList!$A$19,CntyQryCensus!$A$55:$FR$65,AU$1) -> 4119 | AV50: =VLOOKUP(DropDownList!$A$19,CntyQryCensus!$A$55:$FR$65,AV$1) -> 3397 | AW50: =VLOOKUP(DropDownList!$A$19,CntyQryCensus!$A$55:$FR$65,AW$1) -> 7062 | AX50: =VLOOKUP(DropDownList!$A$19,CntyQryCensus!$A$55:$FR$65,AX$1) -> 3838 | AY50: =VLOOKUP(DropDownList!$A$19,CntyQryCensus!$A$55:$FR$65,AY$1) -> 78552 | AZ50: =VLOOKUP(DropDownList!$A$19,CntyQryCensus!$A$55:$FR$65,AZ$1) -> 36964 | BA50: =VLOOKUP(DropDownList!$A$19,CntyQryCensus!$A$55:$FR$65,BA$1) -> 40884 | BB50: =VLOOKUP(DropDownList!$A$19,CntyQryCensus!$A$55:$FR$65,BB$1) -> 31013 | BC50: =VLOOKUP(DropDownList!$A$19,CntyQryCensus!$A$55:$FR$65,BC$1) -> 3650 | BD50: =VLOOKUP(DropDownList!$A$19,CntyQryCensus!$A$55:$FR$65,BD$1) -> 3563 | BE50: =VLOOKUP(DropDownList!$A$19,CntyQryCensus!$A$55:$FR$65,BE$1) -> 2658 | BF50: =VLOOKUP(DropDownList!$A$19,CntyQryCensus!$A$55:$FR$65,BF$1) -> 704 | BG50: =VLOOKUP(DropDownList!$A$19,CntyQryCensus!$A$55:$FR$65,BG$1) -> 3191 | BH50: =VLOOKUP(DropDownList!$A$19,CntyQryCensus!$A$55:$FR$65,BH$1) -> 1527 | BI50: =VLOOKUP(DropDownList!$A$19,CntyQryCensus!$A$55:$FR$65,BI$1) -> 1664 | BJ50: =VLOOKUP(DropDownList!$A$19,CntyQryCensus!$A$55:$FR$65,BJ$1) -> 77524 | BK50: =VLOOKUP(DropDownList!$A$19,CntyQryCensus!$A$55:$FR$65,BK$1) -> 42233 | BL50: =VLOOKUP(DropDownList!$A$19,CntyQryCensus!$A$55:$FR$65,BL$1) -> 35291 | BM50: =VLOOKUP(DropDownList!$A$19,CntyQryCensus!$A$55:$FR$65,BM$1) -> 34231 | BN50: =VLOOKUP(DropDownList!$A$19,CntyQryCensus!$A$55:$FR$65,BN$1) -> 15297 | BO50: =VLOOKUP(DropDownList!$A$19,CntyQryCensus!$A$55:$FR$65,BO$1) -> 18934 | BP50: =VLOOKUP(DropDownList!$A$19,CntyQryCensus!$A$55:$FR$65,BP$1) -> 4855 | BQ50: =VLOOKUP(DropDownList!$A$19,CntyQryCensus!$A$55:$FR$65,BQ$1) -> 14079 | BR50: =VLOOKUP(DropDownList!$A$19,CntyQryCensus!$A$55:$FR$65,BR$1) -> 8926 | BS50: =VLOOKUP(DropDownList!$A$19,CntyQryCensus!$A$55:$FR$65,BS$1) -> 1405 | BT50: =VLOOKUP(DropDownList!$A$19,CntyQryCensus!$A$55:$FR$65,BT$1) -> 2024 | BU50: =VLOOKUP(DropDownList!$A$19,CntyQryCensus!$A$55:$FR$65,BU$1) -> 1724 | BV50: =VLOOKUP(DropDownList!$A$19,CntyQryCensus!$A$55:$FR$65,BV$1) -> 10 | BW50: =VLOOKUP(DropDownList!$A$19,CntyQryCensus!$A$55:$FR$65,BW$1) -> 1050 | BX50: =VLOOKUP(DropDownList!$A$19,CntyQryCensus!$A$55:$FR$65,BX$1) -> 41333 | BY50: =VLOOKUP(DropDownList!$A$19,CntyQryCensus!$A$55:$FR$65,BY$1) -> 38337 | BZ50: =VLOOKUP(DropDownList!$A$19,CntyQryCensus!$A$55:$FR$65,BZ$1) -> 33872 | CA50: =VLOOKUP(DropDownList!$A$19,CntyQryCensus!$A$55:$FR$65,CA$1) -> 4465 | CB50: =VLOOKUP(DropDownList!$A$19,CntyQryCensus!$A$55:$FR$65,CB$1) -> 2996 | CC50: =VLOOKUP(DropDownList!$A$19,CntyQryCensus!$A$55:$FR$65,CC$1) -> 41333 | CD50: =VLOOKUP(DropDownList!$A$19,CntyQryCensus!$A$55:$FR$65,CD$1) -> 35125 | CE50: =VLOOKUP(DropDownList!$A$19,CntyQryCensus!$A$55:$FR$65,CE$1) -> 287 | CF50: =VLOOKUP(DropDownList!$A$19,CntyQryCensus!$A$55:$FR$65,CF$1) -> 263 | CG50: =VLOOKUP(DropDownList!$A$19,CntyQryCensus!$A$55:$FR$65,CG$1) -> 2200 | CH50: =VLOOKUP(DropDownList!$A$19,CntyQryCensus!$A$55:$FR$65,CH$1) -> 39133 | CI50: =VLOOKUP(DropDownList!$A$19,CntyQryCensus!$A$55:$FR$65,CI$1) -> 2815 | CJ50: =VLOOKUP(DropDownList!$A$19,CntyQryCensus!$A$55:$FR$65,CJ$1) -> 6566 | CK50: =VLOOKUP(DropDownList!$A$19,CntyQryCensus!$A$55:$FR$65,CK$1) -> 6937 | CL50: =VLOOKUP(DropDownList!$A$19,CntyQryCensus!$A$55:$FR$65,CL$1) -> 6386 | CM50: =VLOOKUP(DropDownList!$A$19,CntyQryCensus!$A$55:$FR$65,CM$1) -> 4711 | CN50: =VLOOKUP(DropDownList!$A$19,CntyQryCensus!$A$55:$FR$65,CN$1) -> 1960 | CO50: =VLOOKUP(DropDownList!$A$19,CntyQryCensus!$A$55:$FR$65,CO$1) -> 4020 | CP50: =VLOOKUP(DropDownList!$A$19,CntyQryCensus!$A$55:$FR$65,CP$1) -> 663 | CQ50: =VLOOKUP(DropDownList!$A$19,CntyQryCensus!$A$55:$FR$65,CQ$1) -> 986 | CR50: =VLOOKUP(DropDownList!$A$19,CntyQryCensus!$A$55:$FR$65,CR$1) -> 1877 | CS50: =VLOOKUP(DropDownList!$A$19,CntyQryCensus!$A$55:$FR$65,CS$1) -> 1234 | CT50: =VLOOKUP(DropDownList!$A$19,CntyQryCensus!$A$55:$FR$65,CT$1) -> 978 | CU50: =VLOOKUP(DropDownList!$A$19,CntyQryCensus!$A$55:$FR$65,CU$1) -> 2200 | CV50: =VLOOKUP(DropDownList!$A$19,CntyQryCensus!$A$55:$FR$65,CV$1) -> 79314 | CW50: =VLOOKUP(DropDownList!$A$19,CntyQryCensus!$A$55:$FR$65,CW$1) -> 1043 | CX50: =VLOOKUP(DropDownList!$A$19,CntyQryCensus!$A$55:$FR$65,CX$1) -> 883 | CY50: =VLOOKUP(DropDownList!$A$19,CntyQryCensus!$A$55:$FR$65,CY$1) -> 8565 | CZ50: =VLOOKUP(DropDownList!$A$19,CntyQryCensus!$A$55:$FR$65,CZ$1) -> 4476 | DA50: =VLOOKUP(DropDownList!$A$19,CntyQryCensus!$A$55:$FR$65,DA$1) -> 9172 | DB50: =VLOOKUP(DropDownList!$A$19,CntyQryCensus!$A$55:$FR$65,DB$1) -> 52795 | DC50: =VLOOKUP(DropDownList!$A$19,CntyQryCensus!$A$55:$FR$65,DC$1) -> 1951 | DD50: =VLOOKUP(DropDownList!$A$19,CntyQryCensus!$A$55:$FR$65,DD$1) -> 4556 | DE50: =VLOOKUP(DropDownList!$A$19,CntyQryCensus!$A$55:$FR$65,DE$1) -> 16355 | DF50: =VLOOKUP(DropDownList!$A$19,CntyQryCensus!$A$55:$FR$65,DF$1) -> 8932 | DG50: =VLOOKUP(DropDownList!$A$19,CntyQryCensus!$A$55:$FR$65,DG$1) -> 3754 | DH50: =VLOOKUP(DropDownList!$A$19,CntyQryCensus!$A$55:$FR$65,DH$1) -> 9736 | DI50: =VLOOKUP(DropDownList!$A$19,CntyQryCensus!$A$55:$FR$65,DI$1) -> 7511 | DJ50: =VLOOKUP(DropDownList!$A$19,CntyQryCensus!$A$55:$FR$65,DJ$1) -> 11286 | DK50: =VLOOKUP(DropDownList!$A$19,CntyQryCensus!$A$55:$FR$65,DK$1) -> 825 | DL50: =VLOOKUP(DropDownList!$A$19,CntyQryCensus!$A$55:$FR$65,DL$1) -> 8361 | DM50: =VLOOKUP(DropDownList!$A$19,CntyQryCensus!$A$55:$FR$65,DM$1) -> 717 | DN50: =VLOOKUP(DropDownList!$A$19,CntyQryCensus!$A$55:$FR$65,DN$1) -> 360 | DO50: =VLOOKUP(DropDownList!$A$19,CntyQryCensus!$A$55:$FR$65,DO$1) -> 7644 | DP50: =VLOOKUP(DropDownList!$A$19,CntyQryCensus!$A$55:$FR$65,DP$1) -> 3519 | DQ50: =VLOOKUP(DropDownList!$A$19,CntyQryCensus!$A$55:$FR$65,DQ$1) -> 46659 | DR50: =VLOOKUP(DropDownList!$A$19,CntyQryCensus!$A$55:$FR$65,DR$1) -> 6917 | DS50: =VLOOKUP(DropDownList!$A$19,CntyQryCensus!$A$55:$FR$65,DS$1) -> 4511 | DT50: =VLOOKUP(DropDownList!$A$19,CntyQryCensus!$A$55:$FR$65,DT$1) -> 39742 | DU50: =VLOOKUP(DropDownList!$A$19,CntyQryCensus!$A$55:$FR$65,DU$1) -> 32312 | DV50: =VLOOKUP(DropDownList!$A$19,CntyQryCensus!$A$55:$FR$65,DV$1) -> 5617 | DW50: =VLOOKUP(DropDownList!$A$19,CntyQryCensus!$A$55:$FR$65,DW$1) -> 1543 | DX50: =VLOOKUP(DropDownList!$A$19,CntyQryCensus!$A$55:$FR$65,DX$1) -> 4570 | DY50: =VLOOKUP(DropDownList!$A$19,CntyQryCensus!$A$55:$FR$65,DY$1) -> 2333 | DZ50: =VLOOKUP(DropDownList!$A$19,CntyQryCensus!$A$55:$FR$65,DZ$1) -> 66228 | EA50: =VLOOKUP(DropDownList!$A$19,CntyQryCensus!$A$55:$FR$65,EA$1) -> 44513 | EB50: =VLOOKUP(DropDownList!$A$19,CntyQryCensus!$A$55:$FR$65,EB$1) -> 44478 | EC50: =VLOOKUP(DropDownList!$A$19,CntyQryCensus!$A$55:$FR$65,EC$1) -> 42329 | ED50: =VLOOKUP(DropDownList!$A$19,CntyQryCensus!$A$55:$FR$65,ED$1) -> 20415 | EE50: =VLOOKUP(DropDownList!$A$19,CntyQryCensus!$A$55:$FR$65,EE$1) -> 16759 | EF50: =VLOOKUP(DropDownList!$A$19,CntyQryCensus!$A$55:$FR$65,EF$1) -> 1855 | EG50: =VLOOKUP(DropDownList!$A$19,CntyQryCensus!$A$55:$FR$65,EG$1) -> 3143 | EH50: =VLOOKUP(DropDownList!$A$19,CntyQryCensus!$A$55:$FR$65,EH$1) -> 9456 | EI50: =VLOOKUP(DropDownList!$A$19,CntyQryCensus!$A$55:$FR$65,EI$1) -> 9085 | EJ50: =VLOOKUP(DropDownList!$A$19,CntyQryCensus!$A$55:$FR$65,EJ$1) -> 371 | EK50: =VLOOKUP(DropDownList!$A$19,CntyQryCensus!$A$55:$FR$65,EK$1) -> 2305 | EL50: =VLOOKUP(DropDownList!$A$19,CntyQryCensus!$A$55:$FR$65,EL$1) -> 2220 | EM50: =VLOOKUP(DropDownList!$A$19,CntyQryCensus!$A$55:$FR$65,EM$1) -> 85 | EN50: =VLOOKUP(DropDownList!$A$19,CntyQryCensus!$A$55:$FR$65,EN$1) -> 3656 | EO50: =VLOOKUP(DropDownList!$A$19,CntyQryCensus!$A$55:$FR$65,EO$1) -> 1021 | EP50: =VLOOKUP(DropDownList!$A$19,CntyQryCensus!$A$55:$FR$65,EP$1) -> 71 | EQ50: =VLOOKUP(DropDownList!$A$19,CntyQryCensus!$A$55:$FR$65,EQ$1) -> 640 | ER50: =VLOOKUP(DropDownList!$A$19,CntyQryCensus!$A$55:$FR$65,ER$1) -> 259 | ES50: =VLOOKUP(DropDownList!$A$19,CntyQryCensus!$A$55:$FR$65,ES$1) -> 51 | ET50: =VLOOKUP(DropDownList!$A$19,CntyQryCensus!$A$55:$FR$65,ET$1) -> 2635 | EU50: =VLOOKUP(DropDownList!$A$19,CntyQryCensus!$A$55:$FR$65,EU$1) -> 303 | EV50: =VLOOKUP(DropDownList!$A$19,CntyQryCensus!$A$55:$FR$65,EV$1) -> 1466 | EW50: =VLOOKUP(DropDownList!$A$19,CntyQryCensus!$A$55:$FR$65,EW$1) -> 736 | EX50: =VLOOKUP(DropDownList!$A$19,CntyQryCensus!$A$55:$FR$65,EX$1) -> 130 | EY50: =VLOOKUP(DropDownList!$A$19,CntyQryCensus!$A$55:$FR$65,EY$1) -> 42329 | EZ50: =VLOOKUP(DropDownList!$A$19,CntyQryCensus!$A$55:$FR$65,EZ$1) -> 761 | FA50: =VLOOKUP(DropDownList!$A$19,CntyQryCensus!$A$55:$FR$65,FA$1) -> 2857 | FB50: =VLOOKUP(DropDownList!$A$19,CntyQryCensus!$A$55:$FR$65,FB$1) -> 5376 | FC50: =VLOOKUP(DropDownList!$A$19,CntyQryCensus!$A$55:$FR$65,FC$1) -> 883 | FD50: =VLOOKUP(DropDownList!$A$19,CntyQryCensus!$A$55:$FR$65,FD$1) -> 5418 | FE50: =VLOOKUP(DropDownList!$A$19,CntyQryCensus!$A$55:$FR$65,FE$1) -> 1520 | FF50: =VLOOKUP(DropDownList!$A$19,CntyQryCensus!$A$55:$FR$65,FF$1) -> 1035 | FG50: =VLOOKUP(DropDownList!$A$19,CntyQryCensus!$A$55:$FR$65,FG$1) -> 1725 | FH50: =VLOOKUP(DropDownList!$A$19,CntyQryCensus!$A$55:$FR$65,FH$1) -> 2620 | FI50: =VLOOKUP(DropDownList!$A$19,CntyQryCensus!$A$55:$FR$65,FI$1) -> 12828 | FJ50: =VLOOKUP(DropDownList!$A$19,CntyQryCensus!$A$55:$FR$65,FJ$1) -> 4401 | FK50: =VLOOKUP(DropDownList!$A$19,CntyQryCensus!$A$55:$FR$65,FK$1) -> 1676 | FL50: =VLOOKUP(DropDownList!$A$19,CntyQryCensus!$A$55:$FR$65,FL$1) -> 1229 | FM50: =VLOOKUP(DropDownList!$A$19,CntyQryCensus!$A$55:$FR$65,FM$1) -> 15473 | FN50: =VLOOKUP(DropDownList!$A$19,CntyQryCensus!$A$55:$FR$65,FN$1) -> 6789 | FO50: =VLOOKUP(DropDownList!$A$19,CntyQryCensus!$A$55:$FR$65,FO$1) -> 9991 | FP50: =VLOOKUP(DropDownList!$A$19,CntyQryCensus!$A$55:$FR$65,FP$1) -> 435 | FQ50: =VLOOKUP(DropDownList!$A$19,CntyQryCensus!$A$55:$FR$65,FQ$1) -> 3959 | FR50: =VLOOKUP(DropDownList!$A$19,CntyQryCensus!$A$55:$FR$65,FR$1) -> 5682
A53: Census 2000 SummaryFile3 Sample Data - SF3CountyQry2aIncomeChar
A54: NAME | B54: LOGRECNO | C54: COUNTY | D54: TotalPop | E54: P52Households1 | F54: P52HHInc<10K | G54: P52HHInc10to15K | H54: P52HHInc15to20K | I54: P52HHInc20to25K | J54: P52HHInc25to30K | K54: P52HHInc30to35K | L54: P52HHInc35to40K | M54: P52HHInc40to45K | N54: P52HHInc45to50K | O54: P52HHInc50to60K | P54: P52HHInc60to75K | Q54: P52HHInc75to100K | R54: P52HHInc100to125K | S54: P52HHInc125to150K | T54: P52HHInc150to200K | U54: P52HHInc>200K | V54: P53MedianHHInc | W54: P54AggregHHInc | X54: P55Households2 | Y54: P55HHUnder25yrs | Z54: P55HH<25HHInc<10K | AA54: P55HH<25HHInc10to15K | AB54: P55HH<25HHInc15to20K | AC54: P55HH<25HHInc20to25K | AD54: P55HH<25HHInc25to30K | AE54: P55HH<25HHInc30to35K | AF54: P55HH<25HHInc35to40K | AG54: P55HH<25HHInc40to45K | AH54: P55HH<25HHInc45to50K | AI54: P55HH<25HHInc50to60K | AJ54: P55HH<25HHInc60to75K | AK54: P55HH<25HHInc75to100K | AL54: P55HH<25HHInc100to125K | AM54: P55HH<25HHInc125to150K | AN54: P55HH<25HHInc150to200K | AO54: P55HH<25HHInc>200K | AP54: P55HH25to34yrs | AQ54: P55HH25to34HHInc<10K | AR54: P55HH25to34HHInc10to15K | AS54: P55HH25to34HHInc15to20K | AT54: P55HH25to34HHInc20to25K | AU54: P55HH25to34HHInc25to30K | AV54: P55HH25to34HHInc30to35K | AW54: P55HH25to34HHInc35to40K | AX54: P55HH25to34HHInc40to45K | AY54: P55HH25to34HHInc45to50K | AZ54: P55HH25to34HHInc50to60K | BA54: P55HH25to34HHInc60to75K | BB54: P55HH25to34HHInc75to100K | BC54: P55HH25to34HHInc100to125K | BD54: P55HH25to34HHInc125to150K | BE54: P55HH25to34HHInc150to200K | BF54: P55HH25to34HHInc>200K | BG54: P55HH35to44yrs | BH54: P55HH35to44HHInc<10K | BI54: P55HH35to44HHInc10to15K | BJ54: P55HH35to44HHInc15to20K | BK54: P55HH35to44HHInc20to25K | BL54: P55HH35to44HHInc25to30K | BM54: P55HH35to44HHInc30to35K | BN54: P55HH35to44HHInc35to40K | BO54: P55HH35to44HHInc40to45K | BP54: P55HH35to44HHInc45to50K | BQ54: P55HH35to44HHInc50to60K | BR54: P55HH35to44HHInc60to75K | BS54: P55HH35to44HHInc75to100K | BT54: P55HH35to44HHInc100to125K | BU54: P55HH35to44HHInc125to150K | BV54: P55HH35to44HHInc150to200K | BW54: P55HH35to44HHInc>200K | BX54: P55HH45to54yrs | BY54: P55HH45to55HHInc<10K | BZ54: P55HH45to55HHInc10to15K | CA54: P55HH45to55HHInc15to20K | CB54: P55HH45to55HHInc20to25K | CC54: P55HH45to55HHInc25to30K | CD54: P55HH45to55HHInc30to35K | CE54: P55HH45to55HHInc35to40K | CF54: P55HH45to55HHInc40to45K | CG54: P55HH45to55HHInc45to50K | CH54: P55HH45to55HHInc50to60K | CI54: P55HH45to55HHInc60to75K | CJ54: P55HH45to55HHInc75to100K | CK54: P55HH45to55HHInc100to125K | CL54: P55HH45to55HHInc125to150K | CM54: P55HH45to55HHInc150to200K | CN54: P55HH45to55HHInc>200K | CO54: P55HH55to64yrs | CP54: P55HH55to64HHInc<10K | CQ54: P55HH55to64HHInc10to15K | CR54: P55HH55to64HHInc15to20K | CS54: P55HH55to64HHInc20to25K | CT54: P55HH55to64HHInc25to30K | CU54: P55HH55to64HHInc30to35K | CV54: P55HH55to64HHInc35to40K | CW54: P55HH55to64HHInc40to45K | CX54: P55HH55to64HHInc45to50K | CY54: P55HH55to64HHInc50to60K | CZ54: P55HH55to64HHInc60to75K | DA54: P55HH55to64HHInc75to100K | DB54: P55HH55to64HHInc100to125K | DC54: P55HH55to64HHInc125to150K | DD54: P55HH55to64HHInc150to200K | DE54: P55HH55to64HHInc>200K | DF54: P55HH65to74yrs | DG54: P55HH65to74HHInc<10K | DH54: P55HH65to74HHInc10to15K | DI54: P55HH65to74HHInc15to20K | DJ54: P55HH65to74HHInc20to25K | DK54: P55HH65to74HHInc25to30K | DL54: P55HH65to74HHInc30to35K | DM54: P55HH65to74HHInc35to40K | DN54: P55HH65to74HHInc40to45K | DO54: P55HH65to74HHInc45to50K | DP54: P55HH65to74HHInc50to60K | DQ54: P55HH65to74HHInc60to75K | DR54: P55HH65to74HHInc75to100K | DS54: P55HH65to74HHInc100to125K | DT54: P55HH65to74HHInc125to150K | DU54: P55HH65to74HHInc150to200K | DV54: P55HH65to74HHInc>200K | DW54: P55HH>75yrs | DX54: P55HH>75HHInc<10K | DY54: P55HH>75HHInc10to15K | DZ54: P55HH>75HHInc15to20K | EA54: P55HH>75HHInc20to25K | EB54: P55HH>75HHInc25to30K | EC54: P55HH>75HHInc30to35K | ED54: P55HH>75HHInc35to40K | EE54: P55HH>75HHInc40to45K | EF54: P55HH>75HHInc45to50K | EG54: P55HH>75HHInc50to60K | EH54: P55HH>75HHInc60to75K | EI54: P55HH>75HHInc75to100K | EJ54: P55HH>75HHInc100to125K | EK54: P55HH>75HHInc125to150K | EL54: P55HH>75HHInc150to200K | EM54: P55HH>75HHInc>200K | EN54: P56MedHHInc | EO54: P56MedHHIncHH<25y | EP54: P56MedHHIncHH25to34y | EQ54: P56MedHHIncHH35to44y | ER54: P56MedHHIncHH45to54y | ES54: P56MedHHIncHH55to64y | ET54: P56MedHHIncHH65to74y | EU54: P56MedHHIncHH>75y | EV54: P58Households3 | EW54: P58HHwithEarnings | EX54: P58HHNoEarnings | EY54: P59HHwWageSalInc | EZ54: P59HHNoWageSalInc | FA54: P60HHwSelfEmpInc | FB54: P60HHNoSelfEmpInc | FC54: P61HHwIndDivInc | FD54: P61HHNoIndDivInc | FE54: P62HHwSocSecInc | FF54: P62HHNoSocSecInc | FG54: P63HHwSSI | FH54: P63HHNoSSI | FI54: P64HHwPubAssInc | FJ54: P64HHNoPubAssInc | FK54: P65HHwRetInc | FL54: P65HHNoRetInc | FM54: P66HHwOtherTypInc | FN54: P66HHNoOtherTypInc | FO54: P67AggregEarnings | FP54: P68AggregWageSalInc | FQ54: P69AggregSelfEmpInc | FR54: P70AggregIntDivInc | FS54: P71AggregSocSecInc | FT54: P72AggregSSIInc | FU54: P73AggregPublicAssInc | FV54: P74AggregRetireInc | FW54: P76Families1 | FX54: P76FamInc<10K | FY54: P76FamInc10to15K | FZ54: P76FamInc15to20K | GA54: P76FamInc20to25K | GB54: P76FamInc25to30K | GC54: P76FamInc30to35K | GD54: P76FamInc35to40K | GE54: P76FamInc40to45K | GF54: P76FamInc45to50K | GG54: P76FamInc50to60K | GH54: P76FamInc60to75K | GI54: P76FamInc75to100K | GJ54: P76FamInc100to125K | GK54: P76FamInc125to150K | GL54: P76FamInc150to200K | GM54: P76FamInc>200K | GN54: P77MedFamInc | GO54: P78AggregFamInc | GP54: P79NonFamHH | GQ54: P79NonFamHHwInc<10K | GR54: P79NonFamHHwInc10to15K | GS54: P79NonFamHHwInc15to20K | GT54: P79NonFamHHwInc20to25K | GU54: P79NonFamHHwInc25to30K | GV54: P79NonFamHHwInc30to35K | GW54: P79NonFamHHwInc35to40K | GX54: P79NonFamHHwInc40to45K | GY54: P79NonFamHHwInc45to50K | GZ54: P79NonFamHHwInc50to60K | HA54: P79NonFamHHwInc60to75K | HB54: P79NonFamHHwInc75to100K | HC54: P79NonFamHHwInc100to125K | HD54: P79NonFamHHwInc125to150K | HE54: P79NonFamHHwInc150to200K | HF54: P79NonFamHHwInc200KorMore | HG54: P80MedNonFamInc | HH54: P82PerCapitaInc
A55: =VLOOKUP(DropDownList!$A$19,CntyQuery!$A$20:$CE$30,A$1) -> Grafton County | B55: =VLOOKUP(DropDownList!$A$19,CntyQryCensus!$A$71:$IK$81,B$1) -> 0001145 | C55: =VLOOKUP(DropDownList!$A$19,CntyQryCensus!$A$71:$IK$81,C$1) -> 009 | D55: =VLOOKUP(DropDownList!$A$19,CntyQryCensus!$A$71:$IK$81,D$1) -> 81743 | E55: =VLOOKUP(DropDownList!$A$19,CntyQryCensus!$A$71:$IK$81,E$1) -> 31608 | F55: =VLOOKUP(DropDownList!$A$19,CntyQryCensus!$A$71:$IK$81,F$1) -> 2486 | G55: =VLOOKUP(DropDownList!$A$19,CntyQryCensus!$A$71:$IK$81,G$1) -> 1738 | H55: =VLOOKUP(DropDownList!$A$19,CntyQryCensus!$A$71:$IK$81,H$1) -> 2196 | I55: =VLOOKUP(DropDownList!$A$19,CntyQryCensus!$A$71:$IK$81,I$1) -> 2082 | J55: =VLOOKUP(DropDownList!$A$19,CntyQryCensus!$A$71:$IK$81,J$1) -> 2155 | K55: =VLOOKUP(DropDownList!$A$19,CntyQryCensus!$A$71:$IK$81,K$1) -> 2091 | L55: =VLOOKUP(DropDownList!$A$19,CntyQryCensus!$A$71:$IK$81,L$1) -> 2087 | M55: =VLOOKUP(DropDownList!$A$19,CntyQryCensus!$A$71:$IK$81,M$1) -> 2160 | N55: =VLOOKUP(DropDownList!$A$19,CntyQryCensus!$A$71:$IK$81,N$1) -> 1876 | O55: =VLOOKUP(DropDownList!$A$19,CntyQryCensus!$A$71:$IK$81,O$1) -> 3387 | P55: =VLOOKUP(DropDownList!$A$19,CntyQryCensus!$A$71:$IK$81,P$1) -> 3200 | Q55: =VLOOKUP(DropDownList!$A$19,CntyQryCensus!$A$71:$IK$81,Q$1) -> 2947 | R55: =VLOOKUP(DropDownList!$A$19,CntyQryCensus!$A$71:$IK$81,R$1) -> 1264 | S55: =VLOOKUP(DropDownList!$A$19,CntyQryCensus!$A$71:$IK$81,S$1) -> 641 | T55: =VLOOKUP(DropDownList!$A$19,CntyQryCensus!$A$71:$IK$81,T$1) -> 708 | U55: =VLOOKUP(DropDownList!$A$19,CntyQryCensus!$A$71:$IK$81,U$1) -> 590 | V55: =VLOOKUP(DropDownList!$A$19,CntyQryCensus!$A$71:$IK$81,V$1) -> 41962 | W55: =VLOOKUP(DropDownList!$A$19,CntyQryCensus!$A$71:$IK$81,W$1) -> 1725250600 | X55: =VLOOKUP(DropDownList!$A$19,CntyQryCensus!$A$71:$IK$81,X$1) -> 31608 | Y55: =VLOOKUP(DropDownList!$A$19,CntyQryCensus!$A$71:$IK$81,Y$1) -> 1547 | Z55: =VLOOKUP(DropDownList!$A$19,CntyQryCensus!$A$71:$IK$81,Z$1) -> 379 | AA55: =VLOOKUP(DropDownList!$A$19,CntyQryCensus!$A$71:$IK$81,AA$1) -> 152 | AB55: =VLOOKUP(DropDownList!$A$19,CntyQryCensus!$A$71:$IK$81,AB$1) -> 139 | AC55: =VLOOKUP(DropDownList!$A$19,CntyQryCensus!$A$71:$IK$81,AC$1) -> 211 | AD55: =VLOOKUP(DropDownList!$A$19,CntyQryCensus!$A$71:$IK$81,AD$1) -> 178 | AE55: =VLOOKUP(DropDownList!$A$19,CntyQryCensus!$A$71:$IK$81,AE$1) -> 72 | AF55: =VLOOKUP(DropDownList!$A$19,CntyQryCensus!$A$71:$IK$81,AF$1) -> 115 | AG55: =VLOOKUP(DropDownList!$A$19,CntyQryCensus!$A$71:$IK$81,AG$1) -> 92 | AH55: =VLOOKUP(DropDownList!$A$19,CntyQryCensus!$A$71:$IK$81,AH$1) -> 55 | AI55: =VLOOKUP(DropDownList!$A$19,CntyQryCensus!$A$71:$IK$81,AI$1) -> 80 | AJ55: =VLOOKUP(DropDownList!$A$19,CntyQryCensus!$A$71:$IK$81,AJ$1) -> 48 | AK55: =VLOOKUP(DropDownList!$A$19,CntyQryCensus!$A$71:$IK$81,AK$1) -> 18 | AL55: =VLOOKUP(DropDownList!$A$19,CntyQryCensus!$A$71:$IK$81,AL$1) -> 3 | AM55: =VLOOKUP(DropDownList!$A$19,CntyQryCensus!$A$71:$IK$81,AM$1) -> 0 | AN55: =VLOOKUP(DropDownList!$A$19,CntyQryCensus!$A$71:$IK$81,AN$1) -> 0 | AO55: =VLOOKUP(DropDownList!$A$19,CntyQryCensus!$A$71:$IK$81,AO$1) -> 5 | AP55: =VLOOKUP(DropDownList!$A$19,CntyQryCensus!$A$71:$IK$81,AP$1) -> 4897 | AQ55: =VLOOKUP(DropDownList!$A$19,CntyQryCensus!$A$71:$IK$81,AQ$1) -> 272 | AR55: =VLOOKUP(DropDownList!$A$19,CntyQryCensus!$A$71:$IK$81,AR$1) -> 133 | AS55: =VLOOKUP(DropDownList!$A$19,CntyQryCensus!$A$71:$IK$81,AS$1) -> 352 | AT55: =VLOOKUP(DropDownList!$A$19,CntyQryCensus!$A$71:$IK$81,AT$1) -> 406 | AU55: =VLOOKUP(DropDownList!$A$19,CntyQryCensus!$A$71:$IK$81,AU$1) -> 415 | AV55: =VLOOKUP(DropDownList!$A$19,CntyQryCensus!$A$71:$IK$81,AV$1) -> 437 | AW55: =VLOOKUP(DropDownList!$A$19,CntyQryCensus!$A$71:$IK$81,AW$1) -> 411 | AX55: =VLOOKUP(DropDownList!$A$19,CntyQryCensus!$A$71:$IK$81,AX$1) -> 455 | AY55: =VLOOKUP(DropDownList!$A$19,CntyQryCensus!$A$71:$IK$81,AY$1) -> 442 | AZ55: =VLOOKUP(DropDownList!$A$19,CntyQryCensus!$A$71:$IK$81,AZ$1) -> 671 | BA55: =VLOOKUP(DropDownList!$A$19,CntyQryCensus!$A$71:$IK$81,BA$1) -> 432 | BB55: =VLOOKUP(DropDownList!$A$19,CntyQryCensus!$A$71:$IK$81,BB$1) -> 338 | BC55: =VLOOKUP(DropDownList!$A$19,CntyQryCensus!$A$71:$IK$81,BC$1) -> 94 | BD55: =VLOOKUP(DropDownList!$A$19,CntyQryCensus!$A$71:$IK$81,BD$1) -> 14 | BE55: =VLOOKUP(DropDownList!$A$19,CntyQryCensus!$A$71:$IK$81,BE$1) -> 14 | BF55: =VLOOKUP(DropDownList!$A$19,CntyQryCensus!$A$71:$IK$81,BF$1) -> 11 | BG55: =VLOOKUP(DropDownList!$A$19,CntyQryCensus!$A$71:$IK$81,BG$1) -> 6721 | BH55: =VLOOKUP(DropDownList!$A$19,CntyQryCensus!$A$71:$IK$81,BH$1) -> 253 | BI55: =VLOOKUP(DropDownList!$A$19,CntyQryCensus!$A$71:$IK$81,BI$1) -> 223 | BJ55: =VLOOKUP(DropDownList!$A$19,CntyQryCensus!$A$71:$IK$81,BJ$1) -> 347 | BK55: =VLOOKUP(DropDownList!$A$19,CntyQryCensus!$A$71:$IK$81,BK$1) -> 323 | BL55: =VLOOKUP(DropDownList!$A$19,CntyQryCensus!$A$71:$IK$81,BL$1) -> 441 | BM55: =VLOOKUP(DropDownList!$A$19,CntyQryCensus!$A$71:$IK$81,BM$1) -> 490 | BN55: =VLOOKUP(DropDownList!$A$19,CntyQryCensus!$A$71:$IK$81,BN$1) -> 454 | BO55: =VLOOKUP(DropDownList!$A$19,CntyQryCensus!$A$71:$IK$81,BO$1) -> 650 | BP55: =VLOOKUP(DropDownList!$A$19,CntyQryCensus!$A$71:$IK$81,BP$1) -> 447 | BQ55: =VLOOKUP(DropDownList!$A$19,CntyQryCensus!$A$71:$IK$81,BQ$1) -> 783 | BR55: =VLOOKUP(DropDownList!$A$19,CntyQryCensus!$A$71:$IK$81,BR$1) -> 855 | BS55: =VLOOKUP(DropDownList!$A$19,CntyQryCensus!$A$71:$IK$81,BS$1) -> 738 | BT55: =VLOOKUP(DropDownList!$A$19,CntyQryCensus!$A$71:$IK$81,BT$1) -> 291 | BU55: =VLOOKUP(DropDownList!$A$19,CntyQryCensus!$A$71:$IK$81,BU$1) -> 140 | BV55: =VLOOKUP(DropDownList!$A$19,CntyQryCensus!$A$71:$IK$81,BV$1) -> 143 | BW55: =VLOOKUP(DropDownList!$A$19,CntyQryCensus!$A$71:$IK$81,BW$1) -> 143 | BX55: =VLOOKUP(DropDownList!$A$19,CntyQryCensus!$A$71:$IK$81,BX$1) -> 7045 | BY55: =VLOOKUP(DropDownList!$A$19,CntyQryCensus!$A$71:$IK$81,BY$1) -> 267 | BZ55: =VLOOKUP(DropDownList!$A$19,CntyQryCensus!$A$71:$IK$81,BZ$1) -> 223 | CA55: =VLOOKUP(DropDownList!$A$19,CntyQryCensus!$A$71:$IK$81,CA$1) -> 263 | CB55: =VLOOKUP(DropDownList!$A$19,CntyQryCensus!$A$71:$IK$81,CB$1) -> 377 | CC55: =VLOOKUP(DropDownList!$A$19,CntyQryCensus!$A$71:$IK$81,CC$1) -> 404 | CD55: =VLOOKUP(DropDownList!$A$19,CntyQryCensus!$A$71:$IK$81,CD$1) -> 435 | CE55: =VLOOKUP(DropDownList!$A$19,CntyQryCensus!$A$71:$IK$81,CE$1) -> 364 | CF55: =VLOOKUP(DropDownList!$A$19,CntyQryCensus!$A$71:$IK$81,CF$1) -> 441 | CG55: =VLOOKUP(DropDownList!$A$19,CntyQryCensus!$A$71:$IK$81,CG$1) -> 419 | CH55: =VLOOKUP(DropDownList!$A$19,CntyQryCensus!$A$71:$IK$81,CH$1) -> 801 | CI55: =VLOOKUP(DropDownList!$A$19,CntyQryCensus!$A$71:$IK$81,CI$1) -> 974 | CJ55: =VLOOKUP(DropDownList!$A$19,CntyQryCensus!$A$71:$IK$81,CJ$1) -> 952 | CK55: =VLOOKUP(DropDownList!$A$19,CntyQryCensus!$A$71:$IK$81,CK$1) -> 437 | CL55: =VLOOKUP(DropDownList!$A$19,CntyQryCensus!$A$71:$IK$81,CL$1) -> 243 | CM55: =VLOOKUP(DropDownList!$A$19,CntyQryCensus!$A$71:$IK$81,CM$1) -> 262 | CN55: =VLOOKUP(DropDownList!$A$19,CntyQryCensus!$A$71:$IK$81,CN$1) -> 183 | CO55: =VLOOKUP(DropDownList!$A$19,CntyQryCensus!$A$71:$IK$81,CO$1) -> 4554 | CP55: =VLOOKUP(DropDownList!$A$19,CntyQryCensus!$A$71:$IK$81,CP$1) -> 311 | CQ55: =VLOOKUP(DropDownList!$A$19,CntyQryCensus!$A$71:$IK$81,CQ$1) -> 192 | CR55: =VLOOKUP(DropDownList!$A$19,CntyQryCensus!$A$71:$IK$81,CR$1) -> 238 | CS55: =VLOOKUP(DropDownList!$A$19,CntyQryCensus!$A$71:$IK$81,CS$1) -> 250 | CT55: =VLOOKUP(DropDownList!$A$19,CntyQryCensus!$A$71:$IK$81,CT$1) -> 300 | CU55: =VLOOKUP(DropDownList!$A$19,CntyQryCensus!$A$71:$IK$81,CU$1) -> 308 | CV55: =VLOOKUP(DropDownList!$A$19,CntyQryCensus!$A$71:$IK$81,CV$1) -> 379 | CW55: =VLOOKUP(DropDownList!$A$19,CntyQryCensus!$A$71:$IK$81,CW$1) -> 212 | CX55: =VLOOKUP(DropDownList!$A$19,CntyQryCensus!$A$71:$IK$81,CX$1) -> 254 | CY55: =VLOOKUP(DropDownList!$A$19,CntyQryCensus!$A$71:$IK$81,CY$1) -> 468 | CZ55: =VLOOKUP(DropDownList!$A$19,CntyQryCensus!$A$71:$IK$81,CZ$1) -> 497 | DA55: =VLOOKUP(DropDownList!$A$19,CntyQryCensus!$A$71:$IK$81,DA$1) -> 491 | DB55: =VLOOKUP(DropDownList!$A$19,CntyQryCensus!$A$71:$IK$81,DB$1) -> 236 | DC55: =VLOOKUP(DropDownList!$A$19,CntyQryCensus!$A$71:$IK$81,DC$1) -> 114 | DD55: =VLOOKUP(DropDownList!$A$19,CntyQryCensus!$A$71:$IK$81,DD$1) -> 174 | DE55: =VLOOKUP(DropDownList!$A$19,CntyQryCensus!$A$71:$IK$81,DE$1) -> 130 | DF55: =VLOOKUP(DropDownList!$A$19,CntyQryCensus!$A$71:$IK$81,DF$1) -> 3615 | DG55: =VLOOKUP(DropDownList!$A$19,CntyQryCensus!$A$71:$IK$81,DG$1) -> 357 | DH55: =VLOOKUP(DropDownList!$A$19,CntyQryCensus!$A$71:$IK$81,DH$1) -> 321 | DI55: =VLOOKUP(DropDownList!$A$19,CntyQryCensus!$A$71:$IK$81,DI$1) -> 425 | DJ55: =VLOOKUP(DropDownList!$A$19,CntyQryCensus!$A$71:$IK$81,DJ$1) -> 274 | DK55: =VLOOKUP(DropDownList!$A$19,CntyQryCensus!$A$71:$IK$81,DK$1) -> 221 | DL55: =VLOOKUP(DropDownList!$A$19,CntyQryCensus!$A$71:$IK$81,DL$1) -> 191 | DM55: =VLOOKUP(DropDownList!$A$19,CntyQryCensus!$A$71:$IK$81,DM$1) -> 227 | DN55: =VLOOKUP(DropDownList!$A$19,CntyQryCensus!$A$71:$IK$81,DN$1) -> 177 | DO55: =VLOOKUP(DropDownList!$A$19,CntyQryCensus!$A$71:$IK$81,DO$1) -> 193 | DP55: =VLOOKUP(DropDownList!$A$19,CntyQryCensus!$A$71:$IK$81,DP$1) -> 358 | DQ55: =VLOOKUP(DropDownList!$A$19,CntyQryCensus!$A$71:$IK$81,DQ$1) -> 258 | DR55: =VLOOKUP(DropDownList!$A$19,CntyQryCensus!$A$71:$IK$81,DR$1) -> 251 | DS55: =VLOOKUP(DropDownList!$A$19,CntyQryCensus!$A$71:$IK$81,DS$1) -> 137 | DT55: =VLOOKUP(DropDownList!$A$19,CntyQryCensus!$A$71:$IK$81,DT$1) -> 64 | DU55: =VLOOKUP(DropDownList!$A$19,CntyQryCensus!$A$71:$IK$81,DU$1) -> 76 | DV55: =VLOOKUP(DropDownList!$A$19,CntyQryCensus!$A$71:$IK$81,DV$1) -> 85 | DW55: =VLOOKUP(DropDownList!$A$19,CntyQryCensus!$A$71:$IK$81,DW$1) -> 3229 | DX55: =VLOOKUP(DropDownList!$A$19,CntyQryCensus!$A$71:$IK$81,DX$1) -> 647 | DY55: =VLOOKUP(DropDownList!$A$19,CntyQryCensus!$A$71:$IK$81,DY$1) -> 494 | DZ55: =VLOOKUP(DropDownList!$A$19,CntyQryCensus!$A$71:$IK$81,DZ$1) -> 432 | EA55: =VLOOKUP(DropDownList!$A$19,CntyQryCensus!$A$71:$IK$81,EA$1) -> 241 | EB55: =VLOOKUP(DropDownList!$A$19,CntyQryCensus!$A$71:$IK$81,EB$1) -> 196 | EC55: =VLOOKUP(DropDownList!$A$19,CntyQryCensus!$A$71:$IK$81,EC$1) -> 158 | ED55: =VLOOKUP(DropDownList!$A$19,CntyQryCensus!$A$71:$IK$81,ED$1) -> 137 | EE55: =VLOOKUP(DropDownList!$A$19,CntyQryCensus!$A$71:$IK$81,EE$1) -> 133 | EF55: =VLOOKUP(DropDownList!$A$19,CntyQryCensus!$A$71:$IK$81,EF$1) -> 66 | EG55: =VLOOKUP(DropDownList!$A$19,CntyQryCensus!$A$71:$IK$81,EG$1) -> 226 | EH55: =VLOOKUP(DropDownList!$A$19,CntyQryCensus!$A$71:$IK$81,EH$1) -> 136 | EI55: =VLOOKUP(DropDownList!$A$19,CntyQryCensus!$A$71:$IK$81,EI$1) -> 159 | EJ55: =VLOOKUP(DropDownList!$A$19,CntyQryCensus!$A$71:$IK$81,EJ$1) -> 66 | EK55: =VLOOKUP(DropDownList!$A$19,CntyQryCensus!$A$71:$IK$81,EK$1) -> 66 | EL55: =VLOOKUP(DropDownList!$A$19,CntyQryCensus!$A$71:$IK$81,EL$1) -> 39 | EM55: =VLOOKUP(DropDownList!$A$19,CntyQryCensus!$A$71:$IK$81,EM$1) -> 33 | EN55: =VLOOKUP(DropDownList!$A$19,CntyQryCensus!$A$71:$IK$81,EN$1) -> 41962 | EO55: =VLOOKUP(DropDownList!$A$19,CntyQryCensus!$A$71:$IK$81,EO$1) -> 22779 | EP55: =VLOOKUP(DropDownList!$A$19,CntyQryCensus!$A$71:$IK$81,EP$1) -> 40188 | EQ55: =VLOOKUP(DropDownList!$A$19,CntyQryCensus!$A$71:$IK$81,EQ$1) -> 47049 | ER55: =VLOOKUP(DropDownList!$A$19,CntyQryCensus!$A$71:$IK$81,ER$1) -> 53690 | ES55: =VLOOKUP(DropDownList!$A$19,CntyQryCensus!$A$71:$IK$81,ES$1) -> 46713 | ET55: =VLOOKUP(DropDownList!$A$19,CntyQryCensus!$A$71:$IK$81,ET$1) -> 35379 | EU55: =VLOOKUP(DropDownList!$A$19,CntyQryCensus!$A$71:$IK$81,EU$1) -> 20857 | EV55: =VLOOKUP(DropDownList!$A$19,CntyQryCensus!$A$71:$IK$81,EV$1) -> 31608 | EW55: =VLOOKUP(DropDownList!$A$19,CntyQryCensus!$A$71:$IK$81,EW$1) -> 26017 | EX55: =VLOOKUP(DropDownList!$A$19,CntyQryCensus!$A$71:$IK$81,EX$1) -> 5591 | EY55: =VLOOKUP(DropDownList!$A$19,CntyQryCensus!$A$71:$IK$81,EY$1) -> 24743 | EZ55: =VLOOKUP(DropDownList!$A$19,CntyQryCensus!$A$71:$IK$81,EZ$1) -> 6865 | FA55: =VLOOKUP(DropDownList!$A$19,CntyQryCensus!$A$71:$IK$81,FA$1) -> 5402 | FB55: =VLOOKUP(DropDownList!$A$19,CntyQryCensus!$A$71:$IK$81,FB$1) -> 26206 | FC55: =VLOOKUP(DropDownList!$A$19,CntyQryCensus!$A$71:$IK$81,FC$1) -> 13369 | FD55: =VLOOKUP(DropDownList!$A$19,CntyQryCensus!$A$71:$IK$81,FD$1) -> 18239 | FE55: =VLOOKUP(DropDownList!$A$19,CntyQryCensus!$A$71:$IK$81,FE$1) -> 8565 | FF55: =VLOOKUP(DropDownList!$A$19,CntyQryCensus!$A$71:$IK$81,FF$1) -> 23043 | FG55: =VLOOKUP(DropDownList!$A$19,CntyQryCensus!$A$71:$IK$81,FG$1) -> 880 | FH55: =VLOOKUP(DropDownList!$A$19,CntyQryCensus!$A$71:$IK$81,FH$1) -> 30728 | FI55: =VLOOKUP(DropDownList!$A$19,CntyQryCensus!$A$71:$IK$81,FI$1) -> 923 | FJ55: =VLOOKUP(DropDownList!$A$19,CntyQryCensus!$A$71:$IK$81,FJ$1) -> 30685 | FK55: =VLOOKUP(DropDownList!$A$19,CntyQryCensus!$A$71:$IK$81,FK$1) -> 5150 | FL55: =VLOOKUP(DropDownList!$A$19,CntyQryCensus!$A$71:$IK$81,FL$1) -> 26458 | FM55: =VLOOKUP(DropDownList!$A$19,CntyQryCensus!$A$71:$IK$81,FM$1) -> 4117 | FN55: =VLOOKUP(DropDownList!$A$19,CntyQryCensus!$A$71:$IK$81,FN$1) -> 27491 | FO55: =VLOOKUP(DropDownList!$A$19,CntyQryCensus!$A$71:$IK$81,FO$1) -> 1331352600 | FP55: =VLOOKUP(DropDownList!$A$19,CntyQryCensus!$A$71:$IK$81,FP$1) -> 1196952900 | FQ55: =VLOOKUP(DropDownList!$A$19,CntyQryCensus!$A$71:$IK$81,FQ$1) -> 134399700 | FR55: =VLOOKUP(DropDownList!$A$19,CntyQryCensus!$A$71:$IK$81,FR$1) -> 146511100 | FS55: =VLOOKUP(DropDownList!$A$19,CntyQryCensus!$A$71:$IK$81,FS$1) -> 98975900 | FT55: =VLOOKUP(DropDownList!$A$19,CntyQryCensus!$A$71:$IK$81,FT$1) -> 6140600 | FU55: =VLOOKUP(DropDownList!$A$19,CntyQryCensus!$A$71:$IK$81,FU$1) -> 2188000 | FV55: =VLOOKUP(DropDownList!$A$19,CntyQryCensus!$A$71:$IK$81,FV$1) -> 108612300 | FW55: =VLOOKUP(DropDownList!$A$19,CntyQryCensus!$A$71:$IK$81,FW$1) -> 20415 | FX55: =VLOOKUP(DropDownList!$A$19,CntyQryCensus!$A$71:$IK$81,FX$1) -> 679 | FY55: =VLOOKUP(DropDownList!$A$19,CntyQryCensus!$A$71:$IK$81,FY$1) -> 627 | FZ55: =VLOOKUP(DropDownList!$A$19,CntyQryCensus!$A$71:$IK$81,FZ$1) -> 943 | GA55: =VLOOKUP(DropDownList!$A$19,CntyQryCensus!$A$71:$IK$81,GA$1) -> 1093 | GB55: =VLOOKUP(DropDownList!$A$19,CntyQryCensus!$A$71:$IK$81,GB$1) -> 1226 | GC55: =VLOOKUP(DropDownList!$A$19,CntyQryCensus!$A$71:$IK$81,GC$1) -> 1291 | GD55: =VLOOKUP(DropDownList!$A$19,CntyQryCensus!$A$71:$IK$81,GD$1) -> 1325 | GE55: =VLOOKUP(DropDownList!$A$19,CntyQryCensus!$A$71:$IK$81,GE$1) -> 1500 | GF55: =VLOOKUP(DropDownList!$A$19,CntyQryCensus!$A$71:$IK$81,GF$1) -> 1390 | GG55: =VLOOKUP(DropDownList!$A$19,CntyQryCensus!$A$71:$IK$81,GG$1) -> 2637 | GH55: =VLOOKUP(DropDownList!$A$19,CntyQryCensus!$A$71:$IK$81,GH$1) -> 2554 | GI55: =VLOOKUP(DropDownList!$A$19,CntyQryCensus!$A$71:$IK$81,GI$1) -> 2524 | GJ55: =VLOOKUP(DropDownList!$A$19,CntyQryCensus!$A$71:$IK$81,GJ$1) -> 1013 | GK55: =VLOOKUP(DropDownList!$A$19,CntyQryCensus!$A$71:$IK$81,GK$1) -> 521 | GL55: =VLOOKUP(DropDownList!$A$19,CntyQryCensus!$A$71:$IK$81,GL$1) -> 605 | GM55: =VLOOKUP(DropDownList!$A$19,CntyQryCensus!$A$71:$IK$81,GM$1) -> 487 | GN55: =VLOOKUP(DropDownList!$A$19,CntyQryCensus!$A$71:$IK$81,GN$1) -> 50424 | GO55: =VLOOKUP(DropDownList!$A$19,CntyQryCensus!$A$71:$IK$81,GO$1) -> 1294920900 | GP55: =VLOOKUP(DropDownList!$A$19,CntyQryCensus!$A$71:$IK$81,GP$1) -> 11193 | GQ55: =VLOOKUP(DropDownList!$A$19,CntyQryCensus!$A$71:$IK$81,GQ$1) -> 1919 | GR55: =VLOOKUP(DropDownList!$A$19,CntyQryCensus!$A$71:$IK$81,GR$1) -> 1161 | GS55: =VLOOKUP(DropDownList!$A$19,CntyQryCensus!$A$71:$IK$81,GS$1) -> 1373 | GT55: =VLOOKUP(DropDownList!$A$19,CntyQryCensus!$A$71:$IK$81,GT$1) -> 1090 | GU55: =VLOOKUP(DropDownList!$A$19,CntyQryCensus!$A$71:$IK$81,GU$1) -> 957 | GV55: =VLOOKUP(DropDownList!$A$19,CntyQryCensus!$A$71:$IK$81,GV$1) -> 830 | GW55: =VLOOKUP(DropDownList!$A$19,CntyQryCensus!$A$71:$IK$81,GW$1) -> 756 | GX55: =VLOOKUP(DropDownList!$A$19,CntyQryCensus!$A$71:$IK$81,GX$1) -> 592 | GY55: =VLOOKUP(DropDownList!$A$19,CntyQryCensus!$A$71:$IK$81,GY$1) -> 429 | GZ55: =VLOOKUP(DropDownList!$A$19,CntyQryCensus!$A$71:$IK$81,GZ$1) -> 639 | HA55: =VLOOKUP(DropDownList!$A$19,CntyQryCensus!$A$71:$IK$81,HA$1) -> 574 | HB55: =VLOOKUP(DropDownList!$A$19,CntyQryCensus!$A$71:$IK$81,HB$1) -> 394 | HC55: =VLOOKUP(DropDownList!$A$19,CntyQryCensus!$A$71:$IK$81,HC$1) -> 211 | HD55: =VLOOKUP(DropDownList!$A$19,CntyQryCensus!$A$71:$IK$81,HD$1) -> 95 | HE55: =VLOOKUP(DropDownList!$A$19,CntyQryCensus!$A$71:$IK$81,HE$1) -> 88 | HF55: =VLOOKUP(DropDownList!$A$19,CntyQryCensus!$A$71:$IK$81,HF$1) -> 85 | HG55: =VLOOKUP(DropDownList!$A$19,CntyQryCensus!$A$71:$IK$81,HG$1) -> 25251 | HH55: =VLOOKUP(DropDownList!$A$19,CntyQryCensus!$A$71:$IK$81,HH$1) -> 22227
A58: Census 2000 SummaryFile3 Sample Data - SF3CountyQry2bPovertyChar
A59: NAME | B59: LOGRECNO | C59: COUNTY | D59: TotalPop | E59: P52Households1 | F59: P82PerCapitaInc | G59: P87PopForPovStatus | H59: P87PopWIncBelowPovStatus | I59: P87PopUnder5yrBelowPoverty | J59: P87Pop5yrBelowPoverty | K59: P87Pop5to11yrBelowPoverty | L59: P87Pop12to17yrBelowPoverty | M59: P87Pop18to64yrBelowPoverty | N59: P87Pop65to74yrBelowPoverty | O59: P87PopOver75yrBelowPoverty | P59: P87PopWIncAbovePovStatus | Q59: P87PopUnder5yrAbovePoverty | R59: P87Pop5yrAbovePoverty | S59: P87Pop5to11yrAbovePoverty | T59: P87Pop12to17yrAbovePoverty | U59: P87Pop18to64yrAbovePoverty | V59: P87Pop65to74yrAbovePoverty | W59: P87PopOver75yrAbovePoverty | X59: P90Families | Y59: P90FamWIncBelowPov | Z59: P90MarCupFamWIncBelowPov | AA59: P90MCFamWRltdChld<18WIncBelowPov | AB59: P90MCFamWRltdChld<5WIncBelowPov | AC59: P90MaleHhlrWIncBelowPov | AD59: P90MaleHhlrWRltdChld<18yrWIncBelowPov | AE59: P90MaleHhlrWRltdChld<5yrWIncBelowPov | AF59: P90FemaleHhlrWIncBelowPov | AG59: P90FemaleHhlrWRltdChld<18yWIncBelowPov | AH59: P90FemaleHhlrWRltdChld<5yWIncBelowPov | AI59: P90FamWIncAbovePov | AJ59: P90MarCupFamWIncAbovePov | AK59: P90MCFamWRltdChld<18WIncAbovePov | AL59: P90MCFamWRltdChld<5WIncAbovePov | AM59: P90MaleHhlrWIncAbovePov | AN59: P90MaleHhlrWRltdChld<18yrWIncAbovePov | AO59: P90MaleHhlrWRltdChld<5yrWIncAbovePov | AP59: P90FemaleHhlrWIncAbovePov | AQ59: P90FemaleHhlrWRltdChld<18yWIncAbovePov | AR59: P90FemaleHhlrWRltdChld<5yWIncAbovePov | AS59: P92Households | AT59: P92HHwIncBelowPov | AU59: P92FamHHwIncBelowPov | AV59: P92MCFamHHwIncBelowPov | AW59: P92MaleFamHHwIncBelowPov | AX59: P92FemaleFamHHwIncBelowPov | AY59: P92NonFamHHwIncBelowPov | AZ59: P92NonFamMaleHHwIncBelowPov | BA59: P92NonFamFemaleHHwIncBelowPov | BB59: P92HHwIncAbovePov | BC59: P92FamHHwIncAbovePov | BD59: P92MCFamHHwIncAbovePov | BE59: P92MaleFamHHwIncAbovePov | BF59: P92FemaleFamHHwIncAbovePov | BG59: P92NonFamHHwIncAbovePov | BH59: P92NonFamMaleHHwIncAbovePov | BI59: P92NonFamFemaleHHwIncAbovePov
A60: =VLOOKUP(DropDownList!$A$19,CntyQuery!$A$20:$CE$30,A$1) -> Grafton County | B60: =VLOOKUP(DropDownList!$A$19,CntyQryCensus!$A$87:$FZ$97,B$1) -> 0001145 | C60: =VLOOKUP(DropDownList!$A$19,CntyQryCensus!$A$87:$FZ$97,C$1) -> 009 | D60: =VLOOKUP(DropDownList!$A$19,CntyQryCensus!$A$87:$FZ$97,D$1) -> 81743 | E60: =VLOOKUP(DropDownList!$A$19,CntyQryCensus!$A$87:$FZ$97,E$1) -> 31608 | F60: =VLOOKUP(DropDownList!$A$19,CntyQryCensus!$A$87:$FZ$97,F$1) -> 22227 | G60: =VLOOKUP(DropDownList!$A$19,CntyQryCensus!$A$87:$FZ$97,G$1) -> 75374 | H60: =VLOOKUP(DropDownList!$A$19,CntyQryCensus!$A$87:$FZ$97,H$1) -> 6462 | I60: =VLOOKUP(DropDownList!$A$19,CntyQryCensus!$A$87:$FZ$97,I$1) -> 446 | J60: =VLOOKUP(DropDownList!$A$19,CntyQryCensus!$A$87:$FZ$97,J$1) -> 81 | K60: =VLOOKUP(DropDownList!$A$19,CntyQryCensus!$A$87:$FZ$97,K$1) -> 509 | L60: =VLOOKUP(DropDownList!$A$19,CntyQryCensus!$A$87:$FZ$97,L$1) -> 640 | M60: =VLOOKUP(DropDownList!$A$19,CntyQryCensus!$A$87:$FZ$97,M$1) -> 4027 | N60: =VLOOKUP(DropDownList!$A$19,CntyQryCensus!$A$87:$FZ$97,N$1) -> 303 | O60: =VLOOKUP(DropDownList!$A$19,CntyQryCensus!$A$87:$FZ$97,O$1) -> 456 | P60: =VLOOKUP(DropDownList!$A$19,CntyQryCensus!$A$87:$FZ$97,P$1) -> 68912 | Q60: =VLOOKUP(DropDownList!$A$19,CntyQryCensus!$A$87:$FZ$97,Q$1) -> 3695 | R60: =VLOOKUP(DropDownList!$A$19,CntyQryCensus!$A$87:$FZ$97,R$1) -> 689 | S60: =VLOOKUP(DropDownList!$A$19,CntyQryCensus!$A$87:$FZ$97,S$1) -> 5580 | T60: =VLOOKUP(DropDownList!$A$19,CntyQryCensus!$A$87:$FZ$97,T$1) -> 5900 | U60: =VLOOKUP(DropDownList!$A$19,CntyQryCensus!$A$87:$FZ$97,U$1) -> 43620 | V60: =VLOOKUP(DropDownList!$A$19,CntyQryCensus!$A$87:$FZ$97,V$1) -> 5314 | W60: =VLOOKUP(DropDownList!$A$19,CntyQryCensus!$A$87:$FZ$97,W$1) -> 4114 | X60: =VLOOKUP(DropDownList!$A$19,CntyQryCensus!$A$87:$FZ$97,X$1) -> 20415 | Y60: =VLOOKUP(DropDownList!$A$19,CntyQryCensus!$A$87:$FZ$97,Y$1) -> 1033 | Z60: =VLOOKUP(DropDownList!$A$19,CntyQryCensus!$A$87:$FZ$97,Z$1) -> 442 | AA60: =VLOOKUP(DropDownList!$A$19,CntyQryCensus!$A$87:$FZ$97,AA$1) -> 219 | AB60: =VLOOKUP(DropDownList!$A$19,CntyQryCensus!$A$87:$FZ$97,AB$1) -> 28 | AC60: =VLOOKUP(DropDownList!$A$19,CntyQryCensus!$A$87:$FZ$97,AC$1) -> 96 | AD60: =VLOOKUP(DropDownList!$A$19,CntyQryCensus!$A$87:$FZ$97,AD$1) -> 85 | AE60: =VLOOKUP(DropDownList!$A$19,CntyQryCensus!$A$87:$FZ$97,AE$1) -> 16 | AF60: =VLOOKUP(DropDownList!$A$19,CntyQryCensus!$A$87:$FZ$97,AF$1) -> 495 | AG60: =VLOOKUP(DropDownList!$A$19,CntyQryCensus!$A$87:$FZ$97,AG$1) -> 450 | AH60: =VLOOKUP(DropDownList!$A$19,CntyQryCensus!$A$87:$FZ$97,AH$1) -> 138 | AI60: =VLOOKUP(DropDownList!$A$19,CntyQryCensus!$A$87:$FZ$97,AI$1) -> 19382 | AJ60: =VLOOKUP(DropDownList!$A$19,CntyQryCensus!$A$87:$FZ$97,AJ$1) -> 16317 | AK60: =VLOOKUP(DropDownList!$A$19,CntyQryCensus!$A$87:$FZ$97,AK$1) -> 7098 | AL60: =VLOOKUP(DropDownList!$A$19,CntyQryCensus!$A$87:$FZ$97,AL$1) -> 1267 | AM60: =VLOOKUP(DropDownList!$A$19,CntyQryCensus!$A$87:$FZ$97,AM$1) -> 925 | AN60: =VLOOKUP(DropDownList!$A$19,CntyQryCensus!$A$87:$FZ$97,AN$1) -> 641 | AO60: =VLOOKUP(DropDownList!$A$19,CntyQryCensus!$A$87:$FZ$97,AO$1) -> 128 | AP60: =VLOOKUP(DropDownList!$A$19,CntyQryCensus!$A$87:$FZ$97,AP$1) -> 2140 | AQ60: =VLOOKUP(DropDownList!$A$19,CntyQryCensus!$A$87:$FZ$97,AQ$1) -> 1352 | AR60: =VLOOKUP(DropDownList!$A$19,CntyQryCensus!$A$87:$FZ$97,AR$1) -> 245 | AS60: =VLOOKUP(DropDownList!$A$19,CntyQryCensus!$A$87:$FZ$97,AS$1) -> 31608 | AT60: =VLOOKUP(DropDownList!$A$19,CntyQryCensus!$A$87:$FZ$97,AT$1) -> 2649 | AU60: =VLOOKUP(DropDownList!$A$19,CntyQryCensus!$A$87:$FZ$97,AU$1) -> 1033 | AV60: =VLOOKUP(DropDownList!$A$19,CntyQryCensus!$A$87:$FZ$97,AV$1) -> 442 | AW60: =VLOOKUP(DropDownList!$A$19,CntyQryCensus!$A$87:$FZ$97,AW$1) -> 96 | AX60: =VLOOKUP(DropDownList!$A$19,CntyQryCensus!$A$87:$FZ$97,AX$1) -> 495 | AY60: =VLOOKUP(DropDownList!$A$19,CntyQryCensus!$A$87:$FZ$97,AY$1) -> 1616 | AZ60: =VLOOKUP(DropDownList!$A$19,CntyQryCensus!$A$87:$FZ$97,AZ$1) -> 625 | BA60: =VLOOKUP(DropDownList!$A$19,CntyQryCensus!$A$87:$FZ$97,BA$1) -> 991 | BB60: =VLOOKUP(DropDownList!$A$19,CntyQryCensus!$A$87:$FZ$97,BB$1) -> 28959 | BC60: =VLOOKUP(DropDownList!$A$19,CntyQryCensus!$A$87:$FZ$97,BC$1) -> 19382 | BD60: =VLOOKUP(DropDownList!$A$19,CntyQryCensus!$A$87:$FZ$97,BD$1) -> 16317 | BE60: =VLOOKUP(DropDownList!$A$19,CntyQryCensus!$A$87:$FZ$97,BE$1) -> 925 | BF60: =VLOOKUP(DropDownList!$A$19,CntyQryCensus!$A$87:$FZ$97,BF$1) -> 2140 | BG60: =VLOOKUP(DropDownList!$A$19,CntyQryCensus!$A$87:$FZ$97,BG$1) -> 9577 | BH60: =VLOOKUP(DropDownList!$A$19,CntyQryCensus!$A$87:$FZ$97,BH$1) -> 4737 | BI60: =VLOOKUP(DropDownList!$A$19,CntyQryCensus!$A$87:$FZ$97,BI$1) -> 4840
S61: =SUM(R60:T60) -> 12169
A63: Census 2000 SummaryFile3 Sample Data - SF3CountyQry7HousingA
A64: NAME | B64: LOGRECNO | C64: COUNTY | D64: TotalPop | E64: H1HousingUnitsTotal | F64: H2SampleHU | G64: H2SampleOccHU | H64: H2SampleVacHU | I64: H3HU100pctCount | J64: H5HUTotal | K64: H5HUUrban | L64: H5HUUrbanInUrbanAreas | M64: H5HUUrbanInUrbanClusters | N64: H5HURural | O64: H5HURuralFarm | P64: H5HURuralNonFarm | Q64: H7HUOcc | R64: H7HUOwnrOcc | S64: H7HURentrOcc | T64: H8HUVacant | U64: H8HUVacantForRent | V64: H8HUVacantForSale | W64: H8HUVacRentedorSold | X64: H8HUVacSeasonal | Y64: H8HUVacForMigrantWrkrs | Z64: H8HUOtherVacant | AA64: H14OccHUa | AB64: H14OwnerOccHU | AC64: H14OwnOccHuHh15to24 | AD64: H14OwnOccHuHh25to34 | AE64: H14OwnOccHuHh35to44 | AF64: H14OwnOccHuHh45to54 | AG64: H14OwnOccHuHh55to59 | AH64: H14OwnOccHuHh60to64 | AI64: H14OwnOccHuHh65to74 | AJ64: H14OwnOccHuHh75to84 | AK64: H14OwnOccHuHh85Over | AL64: H14RenterOccHU1 | AM64: H14RntrOccHuHh15to24 | AN64: H14RntrOccHuHh25to34 | AO64: H14RntrOccHuHh35to44 | AP64: H14RntrOccHuHh45to54 | AQ64: H14RntrOccHuHh55to59 | AR64: H14RntrOccHuHh60to64 | AS64: H14RntrOccHuHh65to74 | AT64: H14RntrOccHuHh75to84 | AU64: H14RntrOccHuHh85Over | AV64: H15PopInOccHU | AW64: H15PopInOwnOccHU1 | AX64: H15PopInRentOccHU1 | AY64: H17OccupHUb | AZ64: H17OwnOccHU2 | BA64: H17OwnOccHU1PersonHH | BB64: H17OwnOccHU2PersonHH | BC64: H17OwnOccHU3PersonHH | BD64: H17OwnOccHU4PersonHH | BE64: H17OwnOccHU5PersonHH | BF64: H17OwnOccHU6PersonHH | BG64: H17OwnOccHU7PlusPersonHH | BH64: H17RentOccHU2 | BI64: H17RntOccHU1PersonHH | BJ64: H17RntOccHU2PersonHH | BK64: H17RntOccHU3PersonHH | BL64: H17RntOccHU4PersonHH | BM64: H17RntOccHU5PersonHH | BN64: H17RntOccHU6PersonHH | BO64: H17RntOccHU7PlusPersonHH | BP64: H18AvgHHSize | BQ64: H18AvgHHSizeOwnOcc | BR64: H18AvgHHSizeRentOcc | BS64: H23TotHU | BT64: H23HU1Room | BU64: H23HU2Room | BV64: H23HU3Room | BW64: H23HU4Room | BX64: H23HU5Room | BY64: H23HU6Room | BZ64: H23HU7Room | CA64: H23HU8Room | CB64: H23HU9orMoreRoom | CC64: H24MedianNumRooms | CD64: H25AggregNumRooms | CE64: H30TotalHU | CF64: H30Det1HU | CG64: H30Att1HU | CH64: H30Units2 | CI64: H30Units3or4 | CJ64: H30Units5to9 | CK64: H30Units10to19 | CL64: H30Units20to49 | CM64: H30Units50orMore | CN64: H30UnitsMobileHome | CO64: H30UnitsBoatRv | CP64: H32OccHUcTotal | CQ64: H32OwnerOccHU3 | CR64: H32OwnOccHU1Det | CS64: H32OwnOccHU1Att | CT64: H32OwnOccHU2Unit | CU64: H32OwnOccHU3to4Unit | CV64: H32OwnOccHU5to9Unit | CW64: H32OwnOccHU10to19Unit | CX64: H32OwnOccHU20to49Unit | CY64: H32OwnOccHU50plusUnit | CZ64: H32OwnOccHUMobHom | DA64: H32OwnOccHUBoatRVOth | DB64: H32RentrOccHU3 | DC64: H32RntrOccHU1Det | DD64: H32RntrOccHU1Att | DE64: H32RntrOccHU2Unit | DF64: H32RntrOccHU3to4Unit | DG64: H32RntrOccHU5to9Unit | DH64: H32RntrOccHU10to19Unit | DI64: H32RntrOccHU20to49Unit | DJ64: H32RntrOccHU50PlusUnit | DK64: H32RntrOccHUMobHom | DL64: H32RntrOccHUBoatRVOth | DM64: H33TotPopInOccHU | DN64: H33PopInOwnOccHU2 | DO64: H33PopInOOHU1Det | DP64: H33PopInOOHU1Att | DQ64: H33PopInOOHU2unit | DR64: H33PopInOOHU3to4Unit | DS64: H33PopInOOHU5to9Unit | DT64: H33PopInOOHU10to19Unit | DU64: H33PopInOOHU20to49Unit | DV64: H33PopInOOHU50PlusUnit | DW64: H33PopInOOHUMobilHome | DX64: H33PopInOOHUOtherUnit | DY64: H33PopInRentOccHU2 | DZ64: H33PopInROHU1Det | EA64: H33PopInROHU1Att | EB64: H33PopInROHU2Unit | EC64: H33PopInROHU3to4Unit | ED64: H33PopInROHU5to9Unit | EE64: H33PopInROHU10to19Unit | EF64: H33PopInROHU20to49Unit | EG64: H33PopInROHU50PlusUnit | EH64: H33PopInROHUMobilHome | EI64: H33PopInROHUOtherUnit | EJ64: H36OccHousingUnitsdTotal | EK64: H36OwnerOccHU4 | EL64: H36OOHUBuilt99to0300 | EM64: H36OOHUBuilt95to98 | EN64: H36OOHUBuilt90to94 | EO64: H36OOHUBuilt80to89 | EP64: H36OOHUBuilt70to79 | EQ64: H36OOHUBuilt60to69 | ER64: H36OOHUBuilt50to59 | ES64: H36OOHUBuilt40to49 | ET64: H36OOHUBuilt39Earlier | EU64: H36RentOccHU4 | EV64: H36ROHUBuilt99to0300 | EW64: H36ROHUBuilt95to98 | EX64: H36ROHUBuilt90to94 | EY64: H36ROHUBuilt80to89 | EZ64: H36ROHUBuilt70to79 | FA64: H36ROHUBuilt60to69 | FB64: H36ROHUBuilt50to59 | FC64: H36ROHUBuilt40to49 | FD64: H36ROHUBuilt39Earlier | FE64: H40OccupHousUnitse | FF64: H40HeatFuelUtilGas | FG64: H40HeatFuelBotGas | FH64: H40HeatFuelElect | FI64: H40HeatFuelOilKero | FJ64: H40HeatFuelCoal | FK64: H40HeatFuelWood | FL64: H40HeatFuelSolar | FM64: H40HeatFuelOther | FN64: H40HeatFuelNone | FO64: H41TotalHU | FP64: H41HUNoBdrm | FQ64: H41HU1Bdrm | FR64: H41HU2Bdrm | FS64: H41HU3Bdrm | FT64: H41HU4Bdrm | FU64: H41HU5MoreBdrm | FV64: H42OccuHousUnitf | FW64: H42OwnerOccHU5 | FX64: H42OOHUNoBdrm | FY64: H42OOHU1Bdrm | FZ64: H42OOHU2Bdrm | GA64: H42OOHU3Bdrm | GB64: H42OOHU4Bdrm | GC64: H42OOHU5PlusBdrm | GD64: H42RentOccHU5 | GE64: H42ROHUNoBdrm | GF64: H42ROHU1Bdrm | GG64: H42ROHU2Bdrm | GH64: H42ROHU3Bdrm | GI64: H42ROHU4Bdrm | GJ64: H42ROHU5PlusBdrm | GK64: H48OccupHousUnitsg | GL64: H48OwnerOccHU6 | GM64: H48OOHUwCompltPlumFacil | GN64: H48OOHULackCompltPlumFacil | GO64: H48RentOccHU6 | GP64: H48ROHUwCompltPlumFacil | GQ64: H48ROHULackCompltPlumFacil | GR64: H51OccupHousUnitf | GS64: H51OwnerOccHU7 | GT64: H51OOHUwCompleteKitFacil | GU64: H51OOHULackCompleteKitFacil | GV64: H51RenterOccHU7 | GW64: H51ROHUwCompleteKitFacil | GX64: H51ROHULackCompleteKitFacil
A65: =VLOOKUP(DropDownList!$A$19,CntyQuery!$A$20:$CE$30,A$1) -> Grafton County | B65: =VLOOKUP(DropDownList!$A$19,CntyQryCensus!$A$103:$GX$113,B$1) -> 0001145 | C65: =VLOOKUP(DropDownList!$A$19,CntyQryCensus!$A$103:$GX$113,C$1) -> 009 | D65: =VLOOKUP(DropDownList!$A$19,CntyQryCensus!$A$103:$GX$113,D$1) -> 81743 | E65: =VLOOKUP(DropDownList!$A$19,CntyQryCensus!$A$103:$GX$113,E$1) -> 43729 | F65: =VLOOKUP(DropDownList!$A$19,CntyQryCensus!$A$103:$GX$113,F$1) -> 12874 | G65: =VLOOKUP(DropDownList!$A$19,CntyQryCensus!$A$103:$GX$113,G$1) -> 8167 | H65: =VLOOKUP(DropDownList!$A$19,CntyQryCensus!$A$103:$GX$113,H$1) -> 4707 | I65: =VLOOKUP(DropDownList!$A$19,CntyQryCensus!$A$103:$GX$113,I$1) -> 43729 | J65: =VLOOKUP(DropDownList!$A$19,CntyQryCensus!$A$103:$GX$113,J$1) -> 43729 | K65: =VLOOKUP(DropDownList!$A$19,CntyQryCensus!$A$103:$GX$113,K$1) -> 10662 | L65: =VLOOKUP(DropDownList!$A$19,CntyQryCensus!$A$103:$GX$113,L$1) -> 0 | M65: =VLOOKUP(DropDownList!$A$19,CntyQryCensus!$A$103:$GX$113,M$1) -> 10662 | N65: =VLOOKUP(DropDownList!$A$19,CntyQryCensus!$A$103:$GX$113,N$1) -> 33067 | O65: =VLOOKUP(DropDownList!$A$19,CntyQryCensus!$A$103:$GX$113,O$1) -> 265 | P65: =VLOOKUP(DropDownList!$A$19,CntyQryCensus!$A$103:$GX$113,P$1) -> 32802 | Q65: =VLOOKUP(DropDownList!$A$19,CntyQryCensus!$A$103:$GX$113,Q$1) -> 31598 | R65: =VLOOKUP(DropDownList!$A$19,CntyQryCensus!$A$103:$GX$113,R$1) -> 21687 | S65: =VLOOKUP(DropDownList!$A$19,CntyQryCensus!$A$103:$GX$113,S$1) -> 9911 | T65: =VLOOKUP(DropDownList!$A$19,CntyQryCensus!$A$103:$GX$113,T$1) -> 12131 | U65: =VLOOKUP(DropDownList!$A$19,CntyQryCensus!$A$103:$GX$113,U$1) -> 381 | V65: =VLOOKUP(DropDownList!$A$19,CntyQryCensus!$A$103:$GX$113,V$1) -> 445 | W65: =VLOOKUP(DropDownList!$A$19,CntyQryCensus!$A$103:$GX$113,W$1) -> 198 | X65: =VLOOKUP(DropDownList!$A$19,CntyQryCensus!$A$103:$GX$113,X$1) -> 10583 | Y65: =VLOOKUP(DropDownList!$A$19,CntyQryCensus!$A$103:$GX$113,Y$1) -> 4 | Z65: =VLOOKUP(DropDownList!$A$19,CntyQryCensus!$A$103:$GX$113,Z$1) -> 520 | AA65: =VLOOKUP(DropDownList!$A$19,CntyQryCensus!$A$103:$GX$113,AA$1) -> 31598 | AB65: =VLOOKUP(DropDownList!$A$19,CntyQryCensus!$A$103:$GX$113,AB$1) -> 21687 | AC65: =VLOOKUP(DropDownList!$A$19,CntyQryCensus!$A$103:$GX$113,AC$1) -> 123 | AD65: =VLOOKUP(DropDownList!$A$19,CntyQryCensus!$A$103:$GX$113,AD$1) -> 1893 | AE65: =VLOOKUP(DropDownList!$A$19,CntyQryCensus!$A$103:$GX$113,AE$1) -> 4589 | AF65: =VLOOKUP(DropDownList!$A$19,CntyQryCensus!$A$103:$GX$113,AF$1) -> 5775 | AG65: =VLOOKUP(DropDownList!$A$19,CntyQryCensus!$A$103:$GX$113,AG$1) -> 2133 | AH65: =VLOOKUP(DropDownList!$A$19,CntyQryCensus!$A$103:$GX$113,AH$1) -> 1686 | AI65: =VLOOKUP(DropDownList!$A$19,CntyQryCensus!$A$103:$GX$113,AI$1) -> 3076 | AJ65: =VLOOKUP(DropDownList!$A$19,CntyQryCensus!$A$103:$GX$113,AJ$1) -> 1898 | AK65: =VLOOKUP(DropDownList!$A$19,CntyQryCensus!$A$103:$GX$113,AK$1) -> 514 | AL65: =VLOOKUP(DropDownList!$A$19,CntyQryCensus!$A$103:$GX$113,AL$1) -> 9911 | AM65: =VLOOKUP(DropDownList!$A$19,CntyQryCensus!$A$103:$GX$113,AM$1) -> 1487 | AN65: =VLOOKUP(DropDownList!$A$19,CntyQryCensus!$A$103:$GX$113,AN$1) -> 2755 | AO65: =VLOOKUP(DropDownList!$A$19,CntyQryCensus!$A$103:$GX$113,AO$1) -> 2131 | AP65: =VLOOKUP(DropDownList!$A$19,CntyQryCensus!$A$103:$GX$113,AP$1) -> 1405 | AQ65: =VLOOKUP(DropDownList!$A$19,CntyQryCensus!$A$103:$GX$113,AQ$1) -> 403 | AR65: =VLOOKUP(DropDownList!$A$19,CntyQryCensus!$A$103:$GX$113,AR$1) -> 312 | AS65: =VLOOKUP(DropDownList!$A$19,CntyQryCensus!$A$103:$GX$113,AS$1) -> 530 | AT65: =VLOOKUP(DropDownList!$A$19,CntyQryCensus!$A$103:$GX$113,AT$1) -> 611 | AU65: =VLOOKUP(DropDownList!$A$19,CntyQryCensus!$A$103:$GX$113,AU$1) -> 277 | AV65: =VLOOKUP(DropDownList!$A$19,CntyQryCensus!$A$103:$GX$113,AV$1) -> 75316 | AW65: =VLOOKUP(DropDownList!$A$19,CntyQryCensus!$A$103:$GX$113,AW$1) -> 54700 | AX65: =VLOOKUP(DropDownList!$A$19,CntyQryCensus!$A$103:$GX$113,AX$1) -> 20616 | AY65: =VLOOKUP(DropDownList!$A$19,CntyQryCensus!$A$103:$GX$113,AY$1) -> 31598 | AZ65: =VLOOKUP(DropDownList!$A$19,CntyQryCensus!$A$103:$GX$113,AZ$1) -> 21687 | BA65: =VLOOKUP(DropDownList!$A$19,CntyQryCensus!$A$103:$GX$113,BA$1) -> 4587 | BB65: =VLOOKUP(DropDownList!$A$19,CntyQryCensus!$A$103:$GX$113,BB$1) -> 8752 | BC65: =VLOOKUP(DropDownList!$A$19,CntyQryCensus!$A$103:$GX$113,BC$1) -> 3390 | BD65: =VLOOKUP(DropDownList!$A$19,CntyQryCensus!$A$103:$GX$113,BD$1) -> 3224 | BE65: =VLOOKUP(DropDownList!$A$19,CntyQryCensus!$A$103:$GX$113,BE$1) -> 1263 | BF65: =VLOOKUP(DropDownList!$A$19,CntyQryCensus!$A$103:$GX$113,BF$1) -> 335 | BG65: =VLOOKUP(DropDownList!$A$19,CntyQryCensus!$A$103:$GX$113,BG$1) -> 136 | BH65: =VLOOKUP(DropDownList!$A$19,CntyQryCensus!$A$103:$GX$113,BH$1) -> 9911 | BI65: =VLOOKUP(DropDownList!$A$19,CntyQryCensus!$A$103:$GX$113,BI$1) -> 4084 | BJ65: =VLOOKUP(DropDownList!$A$19,CntyQryCensus!$A$103:$GX$113,BJ$1) -> 2967 | BK65: =VLOOKUP(DropDownList!$A$19,CntyQryCensus!$A$103:$GX$113,BK$1) -> 1422 | BL65: =VLOOKUP(DropDownList!$A$19,CntyQryCensus!$A$103:$GX$113,BL$1) -> 991 | BM65: =VLOOKUP(DropDownList!$A$19,CntyQryCensus!$A$103:$GX$113,BM$1) -> 292 | BN65: =VLOOKUP(DropDownList!$A$19,CntyQryCensus!$A$103:$GX$113,BN$1) -> 82 | BO65: =VLOOKUP(DropDownList!$A$19,CntyQryCensus!$A$103:$GX$113,BO$1) -> 73 | BP65: =VLOOKUP(DropDownList!$A$19,CntyQryCensus!$A$103:$GX$113,BP$1) -> 2 | BQ65: =VLOOKUP(DropDownList!$A$19,CntyQryCensus!$A$103:$GX$113,BQ$1) -> 3 | BR65: =VLOOKUP(DropDownList!$A$19,CntyQryCensus!$A$103:$GX$113,BR$1) -> 2 | BS65: =VLOOKUP(DropDownList!$A$19,CntyQryCensus!$A$103:$GX$113,BS$1) -> 43729 | BT65: =VLOOKUP(DropDownList!$A$19,CntyQryCensus!$A$103:$GX$113,BT$1) -> 582 | BU65: =VLOOKUP(DropDownList!$A$19,CntyQryCensus!$A$103:$GX$113,BU$1) -> 2103 | BV65: =VLOOKUP(DropDownList!$A$19,CntyQryCensus!$A$103:$GX$113,BV$1) -> 4290 | BW65: =VLOOKUP(DropDownList!$A$19,CntyQryCensus!$A$103:$GX$113,BW$1) -> 7818 | BX65: =VLOOKUP(DropDownList!$A$19,CntyQryCensus!$A$103:$GX$113,BX$1) -> 8872 | BY65: =VLOOKUP(DropDownList!$A$19,CntyQryCensus!$A$103:$GX$113,BY$1) -> 7556 | BZ65: =VLOOKUP(DropDownList!$A$19,CntyQryCensus!$A$103:$GX$113,BZ$1) -> 5388 | CA65: =VLOOKUP(DropDownList!$A$19,CntyQryCensus!$A$103:$GX$113,CA$1) -> 3567 | CB65: =VLOOKUP(DropDownList!$A$19,CntyQryCensus!$A$103:$GX$113,CB$1) -> 3553 | CC65: =VLOOKUP(DropDownList!$A$19,CntyQryCensus!$A$103:$GX$113,CC$1) -> 5 | CD65: =VLOOKUP(DropDownList!$A$19,CntyQryCensus!$A$103:$GX$113,CD$1) -> 240408 | CE65: =VLOOKUP(DropDownList!$A$19,CntyQryCensus!$A$103:$GX$113,CE$1) -> 43729 | CF65: =VLOOKUP(DropDownList!$A$19,CntyQryCensus!$A$103:$GX$113,CF$1) -> 26879 | CG65: =VLOOKUP(DropDownList!$A$19,CntyQryCensus!$A$103:$GX$113,CG$1) -> 2429 | CH65: =VLOOKUP(DropDownList!$A$19,CntyQryCensus!$A$103:$GX$113,CH$1) -> 2152 | CI65: =VLOOKUP(DropDownList!$A$19,CntyQryCensus!$A$103:$GX$113,CI$1) -> 2707 | CJ65: =VLOOKUP(DropDownList!$A$19,CntyQryCensus!$A$103:$GX$113,CJ$1) -> 2605 | CK65: =VLOOKUP(DropDownList!$A$19,CntyQryCensus!$A$103:$GX$113,CK$1) -> 1615 | CL65: =VLOOKUP(DropDownList!$A$19,CntyQryCensus!$A$103:$GX$113,CL$1) -> 795 | CM65: =VLOOKUP(DropDownList!$A$19,CntyQryCensus!$A$103:$GX$113,CM$1) -> 799 | CN65: =VLOOKUP(DropDownList!$A$19,CntyQryCensus!$A$103:$GX$113,CN$1) -> 3661 | CO65: =VLOOKUP(DropDownList!$A$19,CntyQryCensus!$A$103:$GX$113,CO$1) -> 87 | CP65: =VLOOKUP(DropDownList!$A$19,CntyQryCensus!$A$103:$GX$113,CP$1) -> 31598 | CQ65: =VLOOKUP(DropDownList!$A$19,CntyQryCensus!$A$103:$GX$113,CQ$1) -> 21687 | CR65: =VLOOKUP(DropDownList!$A$19,CntyQryCensus!$A$103:$GX$113,CR$1) -> 17609 | CS65: =VLOOKUP(DropDownList!$A$19,CntyQryCensus!$A$103:$GX$113,CS$1) -> 508 | CT65: =VLOOKUP(DropDownList!$A$19,CntyQryCensus!$A$103:$GX$113,CT$1) -> 614 | CU65: =VLOOKUP(DropDownList!$A$19,CntyQryCensus!$A$103:$GX$113,CU$1) -> 246 | CV65: =VLOOKUP(DropDownList!$A$19,CntyQryCensus!$A$103:$GX$113,CV$1) -> 159 | CW65: =VLOOKUP(DropDownList!$A$19,CntyQryCensus!$A$103:$GX$113,CW$1) -> 133 | CX65: =VLOOKUP(DropDownList!$A$19,CntyQryCensus!$A$103:$GX$113,CX$1) -> 33 | CY65: =VLOOKUP(DropDownList!$A$19,CntyQryCensus!$A$103:$GX$113,CY$1) -> 24 | CZ65: =VLOOKUP(DropDownList!$A$19,CntyQryCensus!$A$103:$GX$113,CZ$1) -> 2356 | DA65: =VLOOKUP(DropDownList!$A$19,CntyQryCensus!$A$103:$GX$113,DA$1) -> 5 | DB65: =VLOOKUP(DropDownList!$A$19,CntyQryCensus!$A$103:$GX$113,DB$1) -> 9911 | DC65: =VLOOKUP(DropDownList!$A$19,CntyQryCensus!$A$103:$GX$113,DC$1) -> 2634 | DD65: =VLOOKUP(DropDownList!$A$19,CntyQryCensus!$A$103:$GX$113,DD$1) -> 319 | DE65: =VLOOKUP(DropDownList!$A$19,CntyQryCensus!$A$103:$GX$113,DE$1) -> 1269 | DF65: =VLOOKUP(DropDownList!$A$19,CntyQryCensus!$A$103:$GX$113,DF$1) -> 1828 | DG65: =VLOOKUP(DropDownList!$A$19,CntyQryCensus!$A$103:$GX$113,DG$1) -> 1580 | DH65: =VLOOKUP(DropDownList!$A$19,CntyQryCensus!$A$103:$GX$113,DH$1) -> 923 | DI65: =VLOOKUP(DropDownList!$A$19,CntyQryCensus!$A$103:$GX$113,DI$1) -> 609 | DJ65: =VLOOKUP(DropDownList!$A$19,CntyQryCensus!$A$103:$GX$113,DJ$1) -> 225 | DK65: =VLOOKUP(DropDownList!$A$19,CntyQryCensus!$A$103:$GX$113,DK$1) -> 517 | DL65: =VLOOKUP(DropDownList!$A$19,CntyQryCensus!$A$103:$GX$113,DL$1) -> 7 | DM65: =VLOOKUP(DropDownList!$A$19,CntyQryCensus!$A$103:$GX$113,DM$1) -> 75316 | DN65: =VLOOKUP(DropDownList!$A$19,CntyQryCensus!$A$103:$GX$113,DN$1) -> 54700 | DO65: =VLOOKUP(DropDownList!$A$19,CntyQryCensus!$A$103:$GX$113,DO$1) -> 45641 | DP65: =VLOOKUP(DropDownList!$A$19,CntyQryCensus!$A$103:$GX$113,DP$1) -> 1149 | DQ65: =VLOOKUP(DropDownList!$A$19,CntyQryCensus!$A$103:$GX$113,DQ$1) -> 1435 | DR65: =VLOOKUP(DropDownList!$A$19,CntyQryCensus!$A$103:$GX$113,DR$1) -> 527 | DS65: =VLOOKUP(DropDownList!$A$19,CntyQryCensus!$A$103:$GX$113,DS$1) -> 255 | DT65: =VLOOKUP(DropDownList!$A$19,CntyQryCensus!$A$103:$GX$113,DT$1) -> 278 | DU65: =VLOOKUP(DropDownList!$A$19,CntyQryCensus!$A$103:$GX$113,DU$1) -> 33 | DV65: =VLOOKUP(DropDownList!$A$19,CntyQryCensus!$A$103:$GX$113,DV$1) -> 35 | DW65: =VLOOKUP(DropDownList!$A$19,CntyQryCensus!$A$103:$GX$113,DW$1) -> 5336 | DX65: =VLOOKUP(DropDownList!$A$19,CntyQryCensus!$A$103:$GX$113,DX$1) -> 11 | DY65: =VLOOKUP(DropDownList!$A$19,CntyQryCensus!$A$103:$GX$113,DY$1) -> 20616 | DZ65: =VLOOKUP(DropDownList!$A$19,CntyQryCensus!$A$103:$GX$113,DZ$1) -> 6743 | EA65: =VLOOKUP(DropDownList!$A$19,CntyQryCensus!$A$103:$GX$113,EA$1) -> 673 | EB65: =VLOOKUP(DropDownList!$A$19,CntyQryCensus!$A$103:$GX$113,EB$1) -> 2788 | EC65: =VLOOKUP(DropDownList!$A$19,CntyQryCensus!$A$103:$GX$113,EC$1) -> 3408 | ED65: =VLOOKUP(DropDownList!$A$19,CntyQryCensus!$A$103:$GX$113,ED$1) -> 2895 | EE65: =VLOOKUP(DropDownList!$A$19,CntyQryCensus!$A$103:$GX$113,EE$1) -> 1524 | EF65: =VLOOKUP(DropDownList!$A$19,CntyQryCensus!$A$103:$GX$113,EF$1) -> 1060 | EG65: =VLOOKUP(DropDownList!$A$19,CntyQryCensus!$A$103:$GX$113,EG$1) -> 350 | EH65: =VLOOKUP(DropDownList!$A$19,CntyQryCensus!$A$103:$GX$113,EH$1) -> 1166 | EI65: =VLOOKUP(DropDownList!$A$19,CntyQryCensus!$A$103:$GX$113,EI$1) -> 9 | EJ65: =VLOOKUP(DropDownList!$A$19,CntyQryCensus!$A$103:$GX$113,EJ$1) -> 31598 | EK65: =VLOOKUP(DropDownList!$A$19,CntyQryCensus!$A$103:$GX$113,EK$1) -> 21687 | EL65: =VLOOKUP(DropDownList!$A$19,CntyQryCensus!$A$103:$GX$113,EL$1) -> 313 | EM65: =VLOOKUP(DropDownList!$A$19,CntyQryCensus!$A$103:$GX$113,EM$1) -> 1227 | EN65: =VLOOKUP(DropDownList!$A$19,CntyQryCensus!$A$103:$GX$113,EN$1) -> 1542 | EO65: =VLOOKUP(DropDownList!$A$19,CntyQryCensus!$A$103:$GX$113,EO$1) -> 4421 | EP65: =VLOOKUP(DropDownList!$A$19,CntyQryCensus!$A$103:$GX$113,EP$1) -> 3858 | EQ65: =VLOOKUP(DropDownList!$A$19,CntyQryCensus!$A$103:$GX$113,EQ$1) -> 1861 | ER65: =VLOOKUP(DropDownList!$A$19,CntyQryCensus!$A$103:$GX$113,ER$1) -> 1381 | ES65: =VLOOKUP(DropDownList!$A$19,CntyQryCensus!$A$103:$GX$113,ES$1) -> 984 | ET65: =VLOOKUP(DropDownList!$A$19,CntyQryCensus!$A$103:$GX$113,ET$1) -> 6100 | EU65: =VLOOKUP(DropDownList!$A$19,CntyQryCensus!$A$103:$GX$113,EU$1) -> 9911 | EV65: =VLOOKUP(DropDownList!$A$19,CntyQryCensus!$A$103:$GX$113,EV$1) -> 43 | EW65: =VLOOKUP(DropDownList!$A$19,CntyQryCensus!$A$103:$GX$113,EW$1) -> 214 | EX65: =VLOOKUP(DropDownList!$A$19,CntyQryCensus!$A$103:$GX$113,EX$1) -> 283 | EY65: =VLOOKUP(DropDownList!$A$19,CntyQryCensus!$A$103:$GX$113,EY$1) -> 1828 | EZ65: =VLOOKUP(DropDownList!$A$19,CntyQryCensus!$A$103:$GX$113,EZ$1) -> 1443 | FA65: =VLOOKUP(DropDownList!$A$19,CntyQryCensus!$A$103:$GX$113,FA$1) -> 930 | FB65: =VLOOKUP(DropDownList!$A$19,CntyQryCensus!$A$103:$GX$113,FB$1) -> 803 | FC65: =VLOOKUP(DropDownList!$A$19,CntyQryCensus!$A$103:$GX$113,FC$1) -> 523 | FD65: =VLOOKUP(DropDownList!$A$19,CntyQryCensus!$A$103:$GX$113,FD$1) -> 3844 | FE65: =VLOOKUP(DropDownList!$A$19,CntyQryCensus!$A$103:$GX$113,FE$1) -> 31598 | FF65: =VLOOKUP(DropDownList!$A$19,CntyQryCensus!$A$103:$GX$113,FF$1) -> 487 | FG65: =VLOOKUP(DropDownList!$A$19,CntyQryCensus!$A$103:$GX$113,FG$1) -> 4580 | FH65: =VLOOKUP(DropDownList!$A$19,CntyQryCensus!$A$103:$GX$113,FH$1) -> 2608 | FI65: =VLOOKUP(DropDownList!$A$19,CntyQryCensus!$A$103:$GX$113,FI$1) -> 20768 | FJ65: =VLOOKUP(DropDownList!$A$19,CntyQryCensus!$A$103:$GX$113,FJ$1) -> 42 | FK65: =VLOOKUP(DropDownList!$A$19,CntyQryCensus!$A$103:$GX$113,FK$1) -> 2950 | FL65: =VLOOKUP(DropDownList!$A$19,CntyQryCensus!$A$103:$GX$113,FL$1) -> 11 | FM65: =VLOOKUP(DropDownList!$A$19,CntyQryCensus!$A$103:$GX$113,FM$1) -> 115 | FN65: =VLOOKUP(DropDownList!$A$19,CntyQryCensus!$A$103:$GX$113,FN$1) -> 37 | FO65: =VLOOKUP(DropDownList!$A$19,CntyQryCensus!$A$103:$GX$113,FO$1) -> 43729 | FP65: =VLOOKUP(DropDownList!$A$19,CntyQryCensus!$A$103:$GX$113,FP$1) -> 759 | FQ65: =VLOOKUP(DropDownList!$A$19,CntyQryCensus!$A$103:$GX$113,FQ$1) -> 5958 | FR65: =VLOOKUP(DropDownList!$A$19,CntyQryCensus!$A$103:$GX$113,FR$1) -> 13787 | FS65: =VLOOKUP(DropDownList!$A$19,CntyQryCensus!$A$103:$GX$113,FS$1) -> 15746 | FT65: =VLOOKUP(DropDownList!$A$19,CntyQryCensus!$A$103:$GX$113,FT$1) -> 5735 | FU65: =VLOOKUP(DropDownList!$A$19,CntyQryCensus!$A$103:$GX$113,FU$1) -> 1744 | FV65: =VLOOKUP(DropDownList!$A$19,CntyQryCensus!$A$103:$GX$113,FV$1) -> 31598 | FW65: =VLOOKUP(DropDownList!$A$19,CntyQryCensus!$A$103:$GX$113,FW$1) -> 21687 | FX65: =VLOOKUP(DropDownList!$A$19,CntyQryCensus!$A$103:$GX$113,FX$1) -> 75 | FY65: =VLOOKUP(DropDownList!$A$19,CntyQryCensus!$A$103:$GX$113,FY$1) -> 925 | FZ65: =VLOOKUP(DropDownList!$A$19,CntyQryCensus!$A$103:$GX$113,FZ$1) -> 5582 | GA65: =VLOOKUP(DropDownList!$A$19,CntyQryCensus!$A$103:$GX$113,GA$1) -> 9925 | GB65: =VLOOKUP(DropDownList!$A$19,CntyQryCensus!$A$103:$GX$113,GB$1) -> 4070 | GC65: =VLOOKUP(DropDownList!$A$19,CntyQryCensus!$A$103:$GX$113,GC$1) -> 1110 | GD65: =VLOOKUP(DropDownList!$A$19,CntyQryCensus!$A$103:$GX$113,GD$1) -> 9911 | GE65: =VLOOKUP(DropDownList!$A$19,CntyQryCensus!$A$103:$GX$113,GE$1) -> 327 | GF65: =VLOOKUP(DropDownList!$A$19,CntyQryCensus!$A$103:$GX$113,GF$1) -> 3171 | GG65: =VLOOKUP(DropDownList!$A$19,CntyQryCensus!$A$103:$GX$113,GG$1) -> 3899 | GH65: =VLOOKUP(DropDownList!$A$19,CntyQryCensus!$A$103:$GX$113,GH$1) -> 1801 | GI65: =VLOOKUP(DropDownList!$A$19,CntyQryCensus!$A$103:$GX$113,GI$1) -> 546 | GJ65: =VLOOKUP(DropDownList!$A$19,CntyQryCensus!$A$103:$GX$113,GJ$1) -> 167 | GK65: =VLOOKUP(DropDownList!$A$19,CntyQryCensus!$A$103:$GX$113,GK$1) -> 31598 | GL65: =VLOOKUP(DropDownList!$A$19,CntyQryCensus!$A$103:$GX$113,GL$1) -> 21687 | GM65: =VLOOKUP(DropDownList!$A$19,CntyQryCensus!$A$103:$GX$113,GM$1) -> 21517 | GN65: =VLOOKUP(DropDownList!$A$19,CntyQryCensus!$A$103:$GX$113,GN$1) -> 170 | GO65: =VLOOKUP(DropDownList!$A$19,CntyQryCensus!$A$103:$GX$113,GO$1) -> 9911 | GP65: =VLOOKUP(DropDownList!$A$19,CntyQryCensus!$A$103:$GX$113,GP$1) -> 9864 | GQ65: =VLOOKUP(DropDownList!$A$19,CntyQryCensus!$A$103:$GX$113,GQ$1) -> 47 | GR65: =VLOOKUP(DropDownList!$A$19,CntyQryCensus!$A$103:$GX$113,GR$1) -> 31598 | GS65: =VLOOKUP(DropDownList!$A$19,CntyQryCensus!$A$103:$GX$113,GS$1) -> 21687 | GT65: =VLOOKUP(DropDownList!$A$19,CntyQryCensus!$A$103:$GX$113,GT$1) -> 21560 | GU65: =VLOOKUP(DropDownList!$A$19,CntyQryCensus!$A$103:$GX$113,GU$1) -> 127 | GV65: =VLOOKUP(DropDownList!$A$19,CntyQryCensus!$A$103:$GX$113,GV$1) -> 9911 | GW65: =VLOOKUP(DropDownList!$A$19,CntyQryCensus!$A$103:$GX$113,GW$1) -> 9859 | GX65: =VLOOKUP(DropDownList!$A$19,CntyQryCensus!$A$103:$GX$113,GX$1) -> 52
A68: Census 2000 SummaryFile3 Sample Data - SF3CountyQry8HousingCostA
A69: NAME | B69: LOGRECNO | C69: COUNTY | D69: TotalPop | E69: H62RntrOccHU | F69: H62RntrOccHUwRent | G69: H62ROHUGRent<100 | H69: H62ROHUGRent100to149 | I69: H62ROHUGRent150to199 | J69: H62ROHUGRent200to249 | K69: H62ROHUGRent250to299 | L69: H62ROHUGRent300to349 | M69: H62ROHUGRent350to399 | N69: H62ROHUGRent400to449 | O69: H62ROHUGRent450to499 | P69: H62ROHUGRent500to549 | Q69: H62ROHUGRent550to599 | R69: H62ROHUGRent600to649 | S69: H62ROHUGRent650to699 | T69: H62ROHUGRent700to749 | U69: H62ROHUGRent750to799 | V69: H62ROHUGRent800to899 | W69: H62ROHUGRent900to999 | X69: H62ROHUGRent1000to1249 | Y69: H62ROHUGRent1250to1499 | Z69: H62ROHUGRent1500to1999 | AA69: H62ROHUGRent2000> | AB69: H62ROHUNoGRent | AC69: H63MedianGrossRnt | AD69: H69RenterOccHsU | AE69: H69GRnt<10PctHHInc | AF69: H69GRnt10to15PctHHInc | AG69: H69GRnt15to20PctHHInc | AH69: H69GRnt20to25PctHHInc | AI69: H69GRnt25to30PctHHInc | AJ69: H69GRnt30to35PctHHInc | AK69: H69GRnt35to40PctHHInc | AL69: H69GRnt40to50PctHHInc | AM69: H69GRnt>50PctHHInc | AN69: H69GRntPctNotcomputed | AO69: H73RenterOccHU | AP69: H73ROHUHhInc<10k | AQ69: H73ROHUHhInc<10kRnt<20pct | AR69: H73ROHUHhInc<10kRnt20to25pct | AS69: H73ROHUHhInc<10kRnt25to30pct | AT69: H73ROHUHhInc<10kRnt30to35pct | AU69: H73ROHUHhInc<10kRnt>35pct | AV69: H73ROHUHhInc<10kPctNotComput | AW69: H73ROHUHhInc10to20k | AX69: H73ROHUHhInc10to20kRnt<20pct | AY69: H73ROHUHhInc10to20kRnt20to25pct | AZ69: H73ROHUHhInc10to20kRnt25to30pct | BA69: H73ROHUHhInc10to20kRnt30to35pct | BB69: H73ROHUHhInc10to20kRnt>35pct | BC69: H73ROHUHhInc10to20kRntPctNC | BD69: H73ROHUHhInc20to35k | BE69: H73ROHUHhInc20to35kRnt<20pct | BF69: H73ROHUHhInc20to35kRnt20to25pct | BG69: H73ROHUHhInc20to35kRnt25to30pct | BH69: H73ROHUHhInc20to35kRnt30to35pct | BI69: H73ROHUHhInc20to35kRnt>35pct | BJ69: H73ROHUHhInc20to35kRntPctNC | BK69: H73ROHUHhInc35to40k | BL69: H73ROHUHhInc35to40kRnt<20pct | BM69: H73ROHUHhInc35to40kRnt20to25pct | BN69: H73ROHUHhInc35to40kRnt25to30pct | BO69: H73ROHUHhInc35to40kRnt30to35pct | BP69: H73ROHUHhInc35to40kRnt>35pct | BQ69: H73ROHUHhInc35to40kRntPctNC | BR69: H73ROHUHhInc50to75k | BS69: H73ROHUHhInc50to75kRnt<20pct | BT69: H73ROHUHhInc50to75kRnt20to25pct | BU69: H73ROHUHhInc50to75kRnt25to30pct | BV69: H73ROHUHhInc50to75kRnt30to35pct | BW69: H73ROHUHhInc50to75kRnt>35pct | BX69: H73ROHUHhInc50to75kRntPctNC | BY69: H73ROHUHhInc75to100k | BZ69: H73ROHUHhInc75to100kRnt<20pct | CA69: H73ROHUHhInc75to100kRnt20to25pct | CB69: H73ROHUHhInc75to100kRnt25to30pct | CC69: H73ROHUHhInc75to100kRnt30to35pct | CD69: H73ROHUHhInc75to100kRnt>35pct | CE69: H73ROHUHhInc75to100kRntPctNC | CF69: H73ROHUHhInc>100k | CG69: H73ROHUHhInc>100kRnt<20pct | CH69: H73ROHUHhInc>100kRnt20to25pct | CI69: H73ROHUHhInc>100kRnt25to30pct | CJ69: H73ROHUHhInc>100kRnt30to35pct | CK69: H73ROHUHhInc>100kRnt>35pct | CL69: H73ROHUHhInc>100kRntPctNC
